Workbook

Sheet 表紙
V17: d

Sheet Menu
C3: スマートランキングを確認したい | H3: 各種計算機能を利用したい
D5: 予算計画 | I5: 借入可能額を計算したい
D7: 支払計画 | I7: FCFを計算したい
D9: 資金調達 | I9: 金利上昇リスクによる返済額の影響を知りたい
D11: フラット35の優遇を入力したい | I11: 住宅ローンを比較したい
D13: キャンペーンを確認したい
D15: 団信を確認したい
D17: スマートランキングを確認したい

Sheet AA
C2: 年収 | E2: 年齢 | G2: 借入期間 | I2: 返済タイプ | K2: 他の借入金月返済額計
A4: お客様 1 | D4: 万円 | F4: 才 | H4: 年 | L4: 円
A6: お客様 2 | D6: 万円 | F6: 才 | H6: 年 | L6: 円
B8: 合計 | C8: =C4+C6 -> 0 | D8: 万円 | E8: 契約種類 | H8: =_xlfn.XLOOKUP(F8,table!AA1:AA6,table!V1:V6) -> 0
Q9: フラット35
D10: みずほ銀行 | E10: =table!D19 -> 三井住友銀行 | F10: =table!D20 -> 三菱UFJ銀行 | G10: =table!D21 -> りそな銀行 | H10: =table!D23 -> 三井住友信託銀行 | I10: =table!D24 -> auじぶん銀行 | J10: =table!D25 -> PayPay銀行 | K10: =table!D26 -> SBI新生銀行 | L10: =table!D27 -> イオン銀行 | M10: =table!D28 -> 住信SBIネット銀行 | N10: =table!D35 -> 横浜銀行 | O10: =table!T36 -> 北洋銀行 | P10: =table!D33 -> 北陸銀行 | Q10: =table!D40 -> SBIアルヒ | R10: 住信SBIネット銀行 | S10: 住信SBIネット銀行
Q11: 買取型 | R11: 保証型（9割） | S11: 保証型（8割）
B12: 審査金利 | D12: =IF($C4="","",_xlfn.XLOOKUP(D10,table!$D18:$D$43,table!$H$18:$H$43)) ->  | E12: =IF($C4="","",_xlfn.XLOOKUP(E10,table!$D18:$D$43,table!$H$18:$H$43)) ->  | F12: =IF($C4="","",_xlfn.XLOOKUP(F10,table!$D18:$D$43,table!$H$18:$H$43)) ->  | G12: =IF($C4="","",_xlfn.XLOOKUP(G10,table!$D18:$D$43,table!$H$18:$H$43)) ->  | H12: =IF($C4="","",_xlfn.XLOOKUP(H10,table!$D18:$D$43,table!$H$18:$H$43)) ->  | I12: =IF($C4="","",_xlfn.XLOOKUP(I10,table!$D18:$D$43,table!$H$18:$H$43)) ->  | J12: =IF($C4="","",_xlfn.XLOOKUP(J10,table!$D18:$D$43,table!$H$18:$H$43)) ->  | K12: =IF($C4="","",_xlfn.XLOOKUP(K10,table!$D18:$D$43,table!$H$18:$H$43)) ->  | L12: =IF($C4="","",_xlfn.XLOOKUP(L10,table!$D18:$D$43,table!$H$18:$H$43)) ->  | M12: =IF($C4="","",_xlfn.XLOOKUP(M10,table!$D18:$D$43,table!$H$18:$H$43)) ->  | N12: =IF($C4="","",_xlfn.XLOOKUP(N10,table!$D18:$D$43,table!$H$18:$H$43)) ->  | O12: =IF($C4="","",_xlfn.XLOOKUP(O10,table!$D18:$D$43,table!$H$18:$H$43)) ->  | P12: =IF($C4="","",_xlfn.XLOOKUP(P10,table!$D18:$D$43,table!$H$18:$H$43)) ->  | Q12: 0.0194 | R12: =IF(C4="","",IF(G4>35,"",金利手数料一覧!D39)) ->  | S12: =IF(C4="","",IF(G4>35,"",金利手数料一覧!D38)) -> 
B13: 返済負担率 | D13: =IF(D12="","",HLOOKUP($C4,table!$I$17:$L$43,2,TRUE)) ->  | E13: =IF(E12="","",HLOOKUP($C4,table!$I$17:$L$43,3,TRUE)) ->  | F13: =IF(F12="","",HLOOKUP($C4,table!$I$17:$L$43,4,TRUE)) ->  | G13: =IF(G12="","",HLOOKUP($C4,table!$I$17:$L$43,5,TRUE)) ->  | H13: =IF(H12="","",HLOOKUP($C4,table!$I$17:$L$43,7,TRUE)) ->  | I13: =IF(I12="","",HLOOKUP($C4,table!$I$17:$L$43,8,TRUE)) ->  | J13: =IF(J12="","",HLOOKUP($C4,table!$I$17:$L$43,9,TRUE)) ->  | K13: =IF(K12="","",HLOOKUP($C4,table!$I$17:$L$43,10,TRUE)) ->  | L13: =IF(L12="","",HLOOKUP($C4,table!$I$17:$L$43,11,TRUE)) ->  | M13: =IF(M12="","",HLOOKUP($C4,table!$I$17:$L$43,12,TRUE)) ->  | N13: =IF(N12="","",HLOOKUP($C4,table!$I$17:$L$43,19,TRUE)) ->  | O13: =IF(O12="","",HLOOKUP($C4,table!$I$17:$L$43,2,TRUE)) ->  | P13: =IF(P12="","",HLOOKUP($C4,table!$I$17:$L$43,17,TRUE)) ->  | Q13: =IF(Q12="","",HLOOKUP($C4,table!$I$17:$L$43,24,TRUE)) -> 0.3 | R13: =IF(R12="","",HLOOKUP($C4,table!$I$17:$L$43,25,TRUE)) ->  | S13: =IF(S12="","",HLOOKUP($C4,table!$I$17:$L$43,25,TRUE)) -> 
B14: 借入期間 | D14: =IF(G4="","",IF($H8=4,MIN(みずほ!$AF3-$E6,$G6,みずほ!$AJ3),MIN(みずほ!$AF3-$E4,$G4,みずほ!$AJ3))) ->  | E14: =IF(D14="","",IF($H8=4,MIN(三井住友!$AF3-$E6,$G6,三井住友!$AJ3),MIN(三井住友!AF3-$E4,$G4,三井住友!AJ3))) ->  | F14: =IF(E14="","",IF($H8=4,MIN(三菱!$AF3-$E6,$G6,三菱!$AJ3),MIN(三菱!$AF3-$E4,$G4,三菱!$AJ3))) ->  | G14: =IF(F14="","",IF($H8=4,MIN(りそな保証!$AF3-$E6,$G6,りそな保証!$AJ3),MIN(りそな保証!AH3-$E4,$G4,りそな保証!AL3))) ->  | H14: =IF(G14="","",IF($H8=4,MIN(三井住友信!$AF3-$E6,$G6,三井住友信!$AJ3),MIN(三井住友信!$AF3-$E4,$G4,三井住友信!$AJ3))) ->  | I14: =IF(H14="","",IF($H8=4,MIN(じぶん!$AF3-$E6,$G6,じぶん!$AJ3),MIN(じぶん!$AF3-$E4,$G4,じぶん!$AJ3))) ->  | J14: =IF(I14="","",IF($H8=4,MIN(PayPay!$AF3-$E6,$G6,PayPay!$AJ3),MIN(PayPay!$AF3-$E4,$G4,PayPay!$AJ3))) ->  | K14: =IF(J14="","",IF($H8=4,MIN(SBI新生!$AF3-$E6,$G6,SBI新生!$AJ3),MIN(SBI新生!$AF3-$E4,$G4,SBI新生!$AJ3))) ->  | L14: =IF(K14="","",IF($H8=4,MIN(イオン定率!$AF3-$E6,$G6,イオン定率!$AJ3),MIN(イオン定率!$AF3-$E4,$G4,イオン定率!$AJ3))) ->  | M14: =IF(L14="","",IF($H8=4,MIN(住信SBIネット!$AF3-$E6,$G6,住信SBIネット!$AJ3),MIN(住信SBIネット!$AF3-$E4,$G4,住信SBIネット!$AJ3))) ->  | N14: =IF(M14="","",IF($H8=4,MIN(横浜!$AF3-$E6,$G6,横浜!$AJ3),MIN(横浜!$AF3-$E4,$G4,横浜!$AJ3))) ->  | O14: =IF(N14="","",IF($H8=3,MIN(三菱!$AF3-$E6,$G6,三菱!$AJ3),MIN(三菱!$AF3-$E4,$G4,三菱!$AJ3))) ->  | P14: =IF(O14="","",IF($H8=4,MIN(北陸!$AF3-$E6,$G6,北陸!$AJ3),MIN(北陸!$AF3-$E4,$G4,北陸!$AJ3))) ->  | Q14: =IF(P14="","",IF($H8=4,MIN(79-$E6,$G6,50),MIN(79-$E4,$G4,50))) ->  | R14: =IF(Q14="","",IF($H8=4,MIN(79-$E6,$G6,50),MIN(79-$E4,$G4,50))) ->  | S14: =IF(R14="","",IF($H8=4,MIN(79-$E6,$G6,50),MIN(79-$E4,$G4,50))) -> 
D15: =INT(($C4+IF(OR($H8=2,$H8=3,$H8=4),$C6,0))*D13/12*10000)-$K4-(IF(OR($H8=2,$H8=3,$H8=4),$K6,0)) ->  | E15: =INT(($C4+IF(OR($H8=2,$H8=3,$H8=4),$C6,0))*E13/12*10000)-$K4-(IF(OR($H8=2,$H8=3,$H8=4),$K6,0)) ->  | Q15: 0
B16: =A4 -> お客様 1 | D16: =IFERROR(IF($I4="元利均等",INT(PV(D12/12,D14*12,-D15,,))/10000,D15/(1/D14/12+D12/12)/10000),"") ->  | E16: =IFERROR(IF(H8=4,0,IF($I4="元利均等",INT(PV(E12/12,E14*12,-E15,,))/10000,E15/(1/E14/12+E12/12)/10000)),"") ->  | F16: =IFERROR(IF(H8=4,0,IF($I4="元利均等",INT(PV(F12/12,F14*12,-F15,,))/10000,F15/(1/F14/12+F12/12)/10000)),"") ->  | G16: =IFERROR(IF($I4="元利均等",INT(PV(G12/12,G14*12,-G15,,))/10000,G15/(1/G14/12+G12/12)/10000),"") ->  | H16: =IFERROR(IF(H8=4,0,IF($I4="元利均等",INT(PV(H12/12,H14*12,-H15,,))/10000,H15/(1/H14/12+H12/12)/10000)),"") ->  | I16: =IFERROR(IF(H8=4,0,IF($I4="元利均等",INT(PV(I12/12,I14*12,-I15,,))/10000,I15/(1/I14/12+I12/12)/10000)),"") ->  | J16: =IFERROR(IF(H8=4,0,IF($I4="元利均等",INT(PV(J12/12,J14*12,-J15,,))/10000,J15/(1/J14/12+J12/12)/10000)),"") ->  | K16: =IFERROR(IF(H8=4,0,IF($I4="元利均等",INT(PV(K12/12,K14*12,-K15,,))/10000,K15/(1/K14/12+K12/12)/10000)),"") ->  | L16: =IFERROR(IF(H8=4,0,IF($I4="元利均等",INT(PV(L12/12,L14*12,-L15,,))/10000,L15/(1/L14/12+L12/12)/10000)),"") ->  | M16: =IFERROR(IF(H8=4,0,IF($I4="元利均等",INT(PV(M12/12,M14*12,-M15,,))/10000,M15/(1/M14/12+M12/12)/10000)),"") ->  | O16: =IFERROR(IF($I4="元利均等",INT(PV(O12/12,O14*12,-O15,,))/10000,O15/(1/O14/12+O12/12)/10000),"") ->  | Q16: =IFERROR(IF($I4="元利均等",MIN(8000,INT(PV(Q12/12,Q14*12,-Q15,,))/10000),MIN(Q15/(1/Q14/12+Q12/12)/10000,8000)),"") ->  | R16: =IFERROR(IF($I4="元利均等",MIN(8000,INT(PV(R12/12,R14*12,-R15,,))/10000),MIN(8000,R15/(1/R14/12+R12/12)/10000)),"") ->  | S16: =IFERROR(IF($I4="元利均等",MIN(8000,INT(PV(S12/12,S14*12,-S15,,))/10000),MIN(8000,S15/(1/S14/12+S12/12)/10000)),"") -> 
B18: 審査金利 | D18: =IF(OR($C6="",$H8=1,$H8=2,$H8=3,$H8=4),"",D12) ->  | E18: =IF(OR($C6="",$H8=1,$H8=2,$H8=3,$H8=4),"",E12) ->  | O18: =IF(OR($C6="",$H8=1,$H8=2,$H8=3,$H8=4),"",O12) ->  | Q18: =IF(OR($C6="",$H8=1,$H8=2,$H8=3,$H8=4),"",IF(E6<=20,当月!P463,IF(E6<=35,当月!M469,当月!Q491))) ->  | R18: =IF(OR($C6="",$H8=1,$H8=2,$H8=3,$H8=4),"",IF(G6>35,"",R12)) ->  | S18: =IF(OR($C6="",$H8=1,$H8=2,$H8=3,$H8=4),"",IF(G6>35,"",S12)) -> 
B19: 返済負担率 | D19: =IF(OR(D18="",$H8=2,$H8=3,$H8=4),"",HLOOKUP($C6,table!$I$17:$L$43,2,TRUE)) ->  | E19: =IF(OR(E18="",$H8=2,$H8=3,$H8=4),"",HLOOKUP($C6,table!$I$17:$L$43,3,TRUE)) ->  | F19: =IF(OR(F18="",$H8=2,$H8=3,$H8=4),"",HLOOKUP($C6,table!$I$17:$L$43,4,TRUE)) ->  | G19: =IF(OR(G18="",$H8=2,$H8=3,$H8=4),"",HLOOKUP($C6,table!$I$17:$L$43,5,TRUE)) ->  | H19: =IF(OR(H18="",$H8=2,$H8=3,$H8=4),"",HLOOKUP($C6,table!$I$17:$L$43,7,TRUE)) ->  | I19: =IF(OR(I18="",$H8=2,$H8=3,$H8=4),"",HLOOKUP($C6,table!$I$17:$L$43,8,TRUE)) ->  | J19: =IF(OR(J18="",$H8=2,$H8=3,$H8=4),"",HLOOKUP($C6,table!$I$17:$L$43,9,TRUE)) ->  | K19: =IF(OR(K18="",$H8=2,$H8=3,$H8=4),"",HLOOKUP($C6,table!$I$17:$L$43,10,TRUE)) ->  | L19: =IF(OR(L18="",$H8=2,$H8=3,$H8=4),"",HLOOKUP($C6,table!$I$17:$L$43,11,TRUE)) ->  | M19: =IF(OR(M18="",$H8=2,$H8=3,$H8=4),"",HLOOKUP($C6,table!$I$17:$L$43,12,TRUE)) ->  | N19: =IF(OR(N18="",$H8=2,$H8=3,$H8=4),"",HLOOKUP($C6,table!$I$17:$L$43,19,TRUE)) ->  | O19: =IF(OR(O18="",$H8=2,$H8=3,$H8=4),"",HLOOKUP($C6,table!$I$17:$L$43,2,TRUE)) ->  | P19: =IF(OR(P18="",$H8=2,$H8=3,$H8=4),"",HLOOKUP($C6,table!$I$17:$L$43,17,TRUE)) ->  | Q19: =IF(OR(Q18="",$H8=2,$H8=3,$H8=4),"",HLOOKUP($C6,table!$I$17:$L$43,24,TRUE)) ->  | R19: =IF(OR(R18="",$H8=2,$H8=3,$H8=4),"",HLOOKUP($C6,table!$I$17:$L$43,25,TRUE)) ->  | S19: =IF(OR(S18="",$H8=2,$H8=3,$H8=4),"",HLOOKUP($C6,table!$I$17:$L$43,25,TRUE)) -> 
B20: 借入期間 | D20: =IF(OR(D19="",$H8=2,$H8=3,$H8=4),"",MIN(みずほ!$AF3-$E6,$G6,みずほ!$AJ3)) ->  | E20: =IF(OR(E19="",$H8=2,$H8=3,$H8=4),"",MIN(三井住友!$AF3-$E6,$G6,三井住友!$AJ3)) ->  | F20: =IF(OR(F19="",$H8=2,$H8=3,$H8=4),"",MIN(三菱!$AF3-$E6,$G6,三菱!$AJ3)) ->  | G20: =IF(OR(G19="",$H8=2,$H8=3,$H8=4),"",MIN(りそな保証!$AF3-$E6,$G6,りそな保証!$AJ3)) ->  | H20: =IF(OR(H19="",$H8=2,$H8=3,$H8=4),"",MIN(三井住友信!$AF3-$E6,$G6,三井住友信!$AJ3)) ->  | I20: =IF(OR(I19="",$H8=2,$H8=3,$H8=4),"",MIN(じぶん!$AF3-$E6,$G6,じぶん!$AJ3)) ->  | J20: =IF(OR(J19="",$H8=2,$H8=3,$H8=4),"",MIN(PayPay!$AF3-$E6,$G6,PayPay!$AJ3)) ->  | K20: =IF(OR(K19="",$H8=2,$H8=3,$H8=4),"",MIN(SBI新生!$AF3-$E6,$G6,SBI新生!$AJ3)) ->  | L20: =IF(OR(L19="",$H8=2,$H8=3,$H8=4),"",MIN(イオン定率!$AF3-$E6,$G6,イオン定率!$AJ3)) ->  | M20: =IF(OR(M19="",$H8=2,$H8=3,$H8=4),"",MIN(住信SBIネット!$AF3-$E6,$G6,住信SBIネット!$AJ3)) ->  | N20: =IF(OR(N19="",$H8=2,$H8=3,$H8=4),"",MIN(横浜!$AF3-$E6,$G6,横浜!$AJ3)) ->  | O20: =IF(OR(O19="",$H8=2,$H8=3,$H8=4),"",MIN(横浜!$AF3-$E6,$G6,横浜!$AJ3)) ->  | P20: =IF(OR(P19="",$H8=2,$H8=3,$H8=4),"",MIN(北陸!$AF3-$E6,$G6,北陸!$AJ3)) ->  | Q20: =IF(OR(Q19="",$H8=2,$H8=3,$H8=4),"",MIN(79-$E6,$G6,50)) ->  | R20: =IF(OR(R19="",$H8=2,$H8=3,$H8=4),"",MIN(79-$E6,$G6,35)) ->  | S20: =IF(OR(S19="",$H8=2,$H8=3,$H8=4),"",MIN(79-$E6,$G6,35)) -> 
D21: =INT($C6*D13/12*10000)-$K6 ->  | E21: =INT($C6*E13/12*10000)-$K6 ->  | Q21: 0
B22: =A6 -> お客様 2 | D22: =IF(D18="","",IF($I6="元利均等",INT(PV(D18/12,D20*12,-D21,,))/10000,(#REF!-$K6)/(1/D20/12+D18/12)/10000)) ->  | E22: =IF(E18="","",IF($I6="元利均等",INT(PV(E18/12,E20*12,-E21,,))/10000,(#REF!-$K6)/(1/E20/12+E18/12)/10000)) ->  | F22: =IF(F18="","",IF($I6="元利均等",INT(PV(F18/12,F20*12,-F21,,))/10000,(#REF!-$K6)/(1/F20/12+F18/12)/10000)) ->  | G22: =IF(G18="","",IF($I6="元利均等",INT(PV(G18/12,G20*12,-G21,,))/10000,(#REF!-$K6)/(1/G20/12+G18/12)/10000)) ->  | H22: =IF(H18="","",IF($I6="元利均等",INT(PV(H18/12,H20*12,-H21,,))/10000,(#REF!-$K6)/(1/H20/12+H18/12)/10000)) ->  | I22: =IF(I18="","",IF($I6="元利均等",INT(PV(I18/12,I20*12,-I21,,))/10000,(#REF!-$K6)/(1/I20/12+I18/12)/10000)) ->  | J22: =IF(J18="","",IF($I6="元利均等",INT(PV(J18/12,J20*12,-J21,,))/10000,(#REF!-$K6)/(1/J20/12+J18/12)/10000)) ->  | K22: =IF(K18="","",IF($I6="元利均等",INT(PV(K18/12,K20*12,-K21,,))/10000,(#REF!-$K6)/(1/K20/12+K18/12)/10000)) ->  | L22: =IF(L18="","",IF($I6="元利均等",INT(PV(L18/12,L20*12,-L21,,))/10000,(#REF!-$K6)/(1/L20/12+L18/12)/10000)) ->  | M22: =IF(M18="","",IF($I6="元利均等",INT(PV(M18/12,M20*12,-M21,,))/10000,(#REF!-$K6)/(1/M20/12+M18/12)/10000)) ->  | N22: =IF(N18="","",IF($I6="元利均等",INT(PV(N18/12,N20*12,-N21,,))/10000,(#REF!-$K6)/(1/N20/12+N18/12)/10000)) ->  | P22: =IF(P18="","",IF($I6="元利均等",INT(PV(P18/12,P20*12,-P21,,))/10000,(#REF!-$K6)/(1/P20/12+P18/12)/10000)) ->  | Q22: =IF(Q18="","",IF($I6="元利均等",MIN(8000,INT(PV(Q18/12,Q20*12,-Q21,,))/10000),MIN(8000,(79-$K6)/(1/Q20/12+Q18/12)/10000))) ->  | R22: =IF(R18="","",IF($I6="元利均等",MIN(8000,INT(PV(R18/12,R20*12,-R21,,))/10000),MIN(8000,(79-$K6)/(1/R20/12+R18/12)/10000))) -> 
B24: 合計 | D24: =IF(D16="",0,D16)+IF(D22="",0,D22) -> 0 | E24: 0 | F24: 0 | G24: 0 | H24: 0 | I24: 0 | J24: 0 | K24: 0 | L24: 0 | M24: 0 | N24: 0 | O24: 0 | P24: 0 | Q24: =MIN(IF(Q16="",0,Q16),8000)+MIN(IF(P22="",0,P22),8000) -> 0 | R24: =MIN(IF(R16="",0,R16),8000)+MIN(IF(Q22="",0,Q22),8000) -> 0 | S24: =MIN(IF(S16="",0,S16),8000)+MIN(IF(R22="",0,R22),8000) -> 0

Sheet FCF
C1: =IF(AA!C4="","「AA」の年収をご入力ください","") -> 「AA」の年収をご入力ください | D1: =IF(D2=0,"「AA」で年収を入力してください","") -> 「AA」で年収を入力してください | I1: 昨年度残高 | J1: 今年度残高
C2: 月の収入 | D2: =INT((AA!C4+IF(AA!H8=5,AA!C6,0))/12*10000) -> 0 | E2: 円 | F2: 1年間の貯蓄額増加額 | G2: =J2-I2 -> 0 | H2: 円 貯金 | K2: 円
C3: 月の支出 | D3: =D2-D4 -> 0 | E3: 円 | F3: 1年間の資産運用投資額 | G3: =J3-I3 -> 0 | H3: 円 投資 | K3: 円
C4: 収支（余剰金） | E4: 円 | F4: 月平均の余剰資金額 | G4: =INT(SUM(G2:G3)/12) -> 0 | H4: 円
C5: 現在 | F5: 住宅購入後
C6: 家賃 | E6: 円 | F6: 住宅ローン返済額 | G6: =IFERROR(INT(PMT(J8/12,J7*12,-J6*10000,,)),0) -> 0 | H6: 円 | I6: 借入金額 | K6: 万円 | N6: 総予算 | O6: 7000 | P6: 万円 | Q6: 7000 | R6: ～ | S6: 7450
C7: 更新料 | E7: 円 | F7: 固定資産税等 | H7: 円 | I7: 借入期間 | K7: 年
C8: 駐車場代 | E8: 円 | F8: 修繕積立金 | H8: 円 | I8: 金 利 | J8: =IF(J7="","",IF(J7<=20,金利手数料一覧!D136,IF(J7<=35,金利手数料一覧!D135,IF(J7<=50,金利手数料一覧!D137,0)))) ->  | N8: 土地 | O8: =O6-O9-O10 -> 2440 | P8: 万円 | Q8: 2440 | R8: ～ | S8: =O8+O11 -> 2890
C9: 火災保険 | E9: 円 | F9: 火災保険 | H9: 円 | I9: 返済タイプ | N9: 建物 | O9: 4000 | P9: 万円 | Q9: 3800 | R9: ～ | S9: 4000 | U9: 27坪～30坪
C10: 光熱費 | E10: 円 | F10: 光熱費 | H10: 円 | N10: 諸費用 | O10: =O6*8% -> 560 | P10: 万円
C11: 教育積立金 | E11: 円 | F11: 教育費積立 | H11: 円 | N11: 補助金 | O11: 450 | P11: 万円
C12: 年金保険 | E12: 円 | F12: 年金保険 | H12: 円
C13: iDeCoまたはNISA | E13: 円 | F13: iDeCoまたはNISA | H13: 円
C14: その他投資積立 | E14: 円 | F14: その他投資積立 | H14: 円
C15: その他剰余金 | D15: =D4-SUM(D12:D14) -> 0 | E15: 円 | F15: その他剰余金 | G15: =G16-SUM(G6:G14) -> 0 | H15: 円 | I15: FCF | J15: =SUM(G12:G15) -> 0 | K15: 対月収比 | L15: =IFERROR(J15/D2,0) -> 0
C16: 合計 | D16: =SUM(D6:D15) -> 0 | E16: 円 | F16: 合計 | G16: =D16 -> 0 | H16: 円 | I16: FALSE
I17: FALSE | J17: =J15*30*12 -> 0
D18: =SUM(D6:D9) -> 0

Sheet PMT
D1: =IF(FCF!J15=0,"「FCF」の計算を行ってください","") -> 「FCF」の計算を行ってください
B2: 借入金額 | E2: 万円
B3: 借入期間 | E3: 年
B5: 金融機関名 | F5: =IF(D5="","",D5) -> 
B6: 金利タイプ | D6: 変動金利 | F6: 全期間固定
B7: 固定期間 | E7: 年後 | F7: =D3 -> 0
B8: MIX比率 | D8: 5 | E8: ： | F8: =10-D8 -> 5
B10: 当初金利 | D10: =IFERROR(_xlfn.XLOOKUP(D5,table!D18:D41,table!N18:N41),"") ->  | F10: =IFERROR(VLOOKUP(F5,table!O17:S42,IF(D3<=20,2,IF(D3<=25,3,IF(D3<=30,4,5))),FALSE),"") -> 
B11: 毎月返済額 | D11: =IFERROR(INT(PMT(D10/12,D3*12,-D2*10000,,)),0) -> 0 | F11: =IFERROR(INT(PMT(F10/12,D3*12,-D2*10000,,)),0) -> 0
B12: FCF | D12: =FCF!J15 -> 0
B14: 金利上昇時期 | E14: 年後
B15: 金利上昇幅
B16: 金利上昇直前残高 | D16: =INT(FV(D10/12,IF(D14>D7,D14,D7)*12,D11,-D2*10000,)) -> 
B17: 上昇後毎月返済額 | D17: =IFERROR(INT(PMT((D10+D15)/12,(D3-IF(D14>D7,D14,D7))*12,-D16,,)),"") -> 
B19: =IF(FCF!J15="","「FCF」の入力が必要です","") -> 
C30: 当初毎月返済額 | D30: =D11 -> 0 | H30: =MIN(D30,D31,D35,D35+E35) -> 0 | I30: =MAX(D30,D31,D35,D35+E35) -> 0
C31: 金利上昇後毎月返済額 | D31: =D17 ->  | H31: =INT(H30/10000-2)*10000 -> -20000 | I31: =INT(I30/10000+2)*10000 -> 20000
C32: ="MIX "&TEXT(D8,0)&"： "&TEXT(F8,0) -> MIX 5： 5 | D32: =IF(OR(D5=table!D25,D5=table!D30),0,INT((D31*D8/10+D33*F8/10))) ->  | H32: =D8 -> 5 | I32: =F8 -> 5
C33: 全期間固定金利 | D33: =F11 -> 0
C35: 当初毎月返済額 | D35: =FCF!G6 -> 0 | E35: =FCF!J15 -> 0
C36: 金利上昇後毎月返済額 | D36: =D35 -> 0 | E36: =FCF!J15 -> 0

Sheet 予算計画
L1: （単位：万円）
B2: 項目 | E2: 概要 | F2: 金額 | G2: 備考 | K2: 項目 | L2: 合計
B3: 不動産 | C3: 土地関係費用 | D3: 土地売買価格 | G3: マンションの場合はここに入力してください | I3: 不動産 | J3: =F3 -> 0 | K3: 土地売買価格 | L3: =F3 -> 0
D4: 内 手付金 | I4: 建物 | J4: =F21+F40+F47 -> 0 | K4: 工事費用 | L4: =F21+F40+F47 -> 0
D5: 契約印紙税(土地） | F5: =IFERROR(VLOOKUP(F3*10000,table!B2:D11,3,TRUE)/10000,0) -> 0 | I5: 諸費用 | J5: =F17-J3+F59+F66+F73 -> 0 | K5: 残債 | L5: =F49 -> 0
D6: 仲介手数料 | E6: （売買価格×3％+6万円）＋消費税（10%） | G6: =IF(F3="","","法定上限額は"&TEXT(H6,"0.0")&"万円です") ->  | H6: =IF(F3<200,F3*5%,IF(F3<400,(F3*4%+2),(F3*3%+6)))*1.1 -> 0 | K6: 諸費用 | L6: =F17-F3+F59+F66+F73 -> 0
D7: 所有権移転登記 | E7: 売買の場合は土地価格×1.5%+50,000円で計算 | F7: =IF(F3="","",F3/2*1.5%+12) ->  | K7: 合計 | L7: =SUM(L3:L6) -> 0
D8: 固定資産税精算金 | E8: 所有権移転日より発生（年始は高く年末だと安い） | G8: 現在の所有者が法人か個人により異なる
D9: 都市計画法申請 | E9: 市街化調整区域内の時のみ | K9: 住宅ローン
D10: 水路占用許可申請 | G10: 橋をかける場合など | K10: 借入期間
D11: 農地除外・転用手続き | E11: 青地→白地が除外 白地（農地）→宅地が転用 | G11: 必要時は各15万 | K11: 自己資金 | L11: =L7-L9 -> 0
D12: 上水道加入金・下水受益者負担金 | E12: すでに引き込みがされている場合も必要 | G12: それぞれ約4万・約10万
D13: 給排水管引き込み工事 | E13: 【予算】上水道60万 下水は基本的に公費のため0円 | G13: 必要時は約60万 | K13: 新築 | O13: FALSE
D14: 給水管・下水管 長距離追加費用 | E14: 【予算】11m以上のとき20000円／mで加算する | G14: 必要時は2万／m | K14: マンション | O14: FALSE
D15: 造成工事費用 | E15: 【予算】境界CBは2段（400）で14000／m | G15: 概算予算 70万（50m）
D16: 予備費
D17: 小 計 | F17: =SUM(F3:F16)-F4 -> 0
B18: 建物 | C18: 建物本体 | D18: 基本本体工事 | E18: 標準仕様書による 平屋の場合は+15% | G18: 消費税別の金額で入力してください
D19: 本体割増・内装工事 | E19: 【予算】目安は坪数×15万円
D20: 消費税 | E20: 0.1 | F20: =IFERROR((F18+F19)*0.1,0) -> 0
D21: 小 計 | F21: =SUM(F18:F20) -> 0
C22: 付帯工事 | D22: 仮設工事 | E22: 仮設仮囲い・水道・電気・仮設電気代含む
D23: 電気外線引き込み | E23: 防護管必要時は＋10万円 ※金額は目安
D24: 屋外給排水工事 | E24: 【予算】通常97.2万
D25: 建築確認申請料 | E25: 実施設計料・公的機関検査料を含む
D26: 建物検査費 | E26: 第三者機関による現場監査・品質チェック・瑕疵保険料
D27: 長期優良住宅申請料 | E27: 各種書類作成・外皮計算・構造計算を含む
D28: 解体工事 | E28: 概算：建物は1万円／㎡ 樹木は3000円／㎡ | G28: 鉄筋は1.5倍みる
D29: 浄化槽設置工事 | E29: 下水の場合は不要／5,7,10人槽で金額違うので注意↓
D30: 地盤調査・地盤保証 | E30: 地盤保証（20年最大5000万円の保証込）
D31: 地盤改良工事 | E31: 【予算】調査前なので改良の有無未確定 改良確率１０％程度 | G31: 概算予算 100万
D32: 太陽光発電システム | E32: MAXION40年保証 286,000円／1kW ※400W／枚 | G32: 標準はMaxiの9.6kW（24枚）
D33: 照明工事 | E33: 10,000円/坪 （LED照明）
D34: 2世帯住宅増加分 | E34: 玄関＋風呂＋キッチン想定の予算 | G34: 概算予算 200万
D35: ガレージ予算 | E35: 屋根一体型基礎による1台分の家屋隣接ガレージ | G35: 概算予算 350万
D36: 蓄電池 | E36: テスラ13.5kwh ※2023/5確認 | G36: テスラ 234万円（パネルがMAXIONだと225万）
D38: その他
D39: 消費税 | E39: 0.1 | F39: =SUM(F22:F38)*0.1 -> 0
D40: 小 計 | F40: =SUM(F22:F39) -> 0
C41: オプション工事 | D41: 外構工事費用 | E41: 芝・柵・デッキ等 敷地面積など内容により変動
D42: エアコン工事費用 | E42: 目安として2台分の予算取りです
D43: カーテン工事費用 | E43: 目安として坪数×1万円＋8万円という予算取りです
D45: その他
D46: 消費税 | E46: 0.1 | F46: =SUM(F41:F45)*0.1 -> 0
D47: 小 計 | F47: =SUM(F41:F46) -> 0
B48: 残債 | D48: 住宅ローン残高 | E48: 完済予定金額を入力します | G48: 住み替え、建替え時
D49: 小 計 | F49: =F48 -> 0
B50: 諸費用 | C50: 建物関係費用 | D50: 契約印紙税（建物） | E50: クラウドサインのため印紙代無料 | G50: ="紙ベースの場合は、"&TEXT(K50,"#,##0")&"円" -> 紙ベースの場合は、0円 | K50: =IFERROR(VLOOKUP(L4*10000,table!B3:D11,3,TRUE),0) -> 0
D51: 建物表題登記 | E51: 土地家屋調査士（調査費・報酬） | G51: 約10万 新築時のみ必要（中古・リフォームは不要）
D52: 保存設定登記 | E52: 司法書士（登録免許税・報酬） | F52: =IF(O14=TRUE,F3,IF(L4=0,0,(F21+F40+F47)))/2*0.5%+IF(OR(O14=TRUE,O13=FALSE),0,12) -> 0 | G52: 固定資産税評価額×0.15%+報酬12万円
D53: 抵当権設定登記 | E53: 司法書士（登録免許税・報酬） | F53: =IF(L9="","",L9*0.1%) ->  | G53: 固定資産税評価額×0.1%
D54: 地目変更登記 | E54: 土地家屋調査士（登録免許税・報酬） | G54: 約5万 他地目→宅地のときのみ
D55: 建物滅失登記 | E55: 土地家屋調査士（調査費・報酬） | G55: 約5万 建て替え時のみ
D56: 分筆登記 | E56: 土地家屋調査士（登記・調査費・報酬） | G56: 約70万 地勢により変わる
D59: 小 計 | F59: =SUM(F50:F58) -> 0
C60: 金融関係費用 | D60: 融資手数料 | E60: 金融機関によって違います | F60: =IF(L9>0,L9*2.2%+IF(O14=TRUE,0,11),0) -> 0 | G60: 手数料2.2％で算出
D61: 銀行用印紙税 | E61: ローンの組み方によって違います | F61: =IFERROR((VLOOKUP(L9*10000,table!B3:C11,2,TRUE)+VLOOKUP(L9*10000,table!B3:C11,2,TRUE))/10000,0) -> 0 | G61: 本融資2万円+つなぎ2万円
D62: 保証料 | E62: 銀行によって％が違います | G62: フラット35は0円
D63: 火災保険 | E63: 火災（建物・家財）・風災の価格目安 ※5年更新 | G63: 水災加算時は値をU51に変更
D64: 団体信用生命保険 | E64: 一般銀行は銀行側で負担（金利に含まれている） | F64: 0 | G64: フラット35の場合は金利に含まれてる
D65: つなぎ融資関係費用 | E65: 土地代+着工金30％+中間金30％×1.3％+手数料5万円+各つなぎ金額×0.805% | G65: SBIアルヒの条件で計算
D66: 小 計 | F66: =SUM(F60:F65) -> 0
C67: その他 | D67: 賃貸家賃 | E67: 建替え中に賃貸住まいの場合は家賃×8か月(目安） | G67: ＋初期費用おおよそ20万円
D68: 引っ越し費用 | E68: 自分たちでするか業者でするか | G68: 5万円から20万円（建替え時）
D69: 家具・家電 | G69: お客様の予算
D70: 地鎮祭費用 | E70: 平松建築に委託の場合は3万円 | G70: お客様の予算
D71: 上棟費用 | E71: 大工さんご祝儀 餅まき費用は別途 | G71: 餅まきする場合は20万円（目安）
D72: 予備費
D73: 小 計 | F73: =SUM(F67:F72) -> 0

Sheet 資金調達
B2: 都道府県 | F2: 借入金額 | H2: 借入期間 | L2: 返済タイプ | M2: 団信種類 | N2: フラット20 | P2: 年齢 | R2: 年収
B3: 物件新旧 | D3: =_xlfn.XLOOKUP(C3,table!W$2:W$6,table!V$2:V$6) -> 5 | E3: お客様1 | G3: 万円 | I3: 年 | K3: カ月 | Q3: 才 | S3: 万円
B4: 物件種類 | D4: =IFERROR(_xlfn.XLOOKUP(C4,table!X$2:X$6,table!V$2:V$6),0) -> 0 | E4: お客様2 | G4: 万円 | I4: 年 | K4: カ月 | Q4: 才 | S4: 万円
B5: 居住区分 | D5: =_xlfn.XLOOKUP(C5,table!Y$2:Y$6,table!V$2:V$6) -> 4 | E5: 合計 | F5: =F3+F4 -> 0 | G5: 万円 | L5: =IFERROR(_xlfn.XLOOKUP(L3,table!T$3:T$4,table!O$3:O$4),0) -> 0 | N5: =IFERROR(_xlfn.XLOOKUP(N3,table!S$3:S$4,table!O$3:O$4),0) -> 0
B6: 使途 | D6: =_xlfn.XLOOKUP(C6,table!Z$2:Z$6,table!V$2:V$6) -> 4 | E6: 種類 | G6: =_xlfn.XLOOKUP(F6,table!AA1:AA6,table!V1:V6) -> 0 | L6: =IFERROR(_xlfn.XLOOKUP(L4,table!T$3:T$4,table!O$3:O$4),"") ->  | M6: =_xlfn.XLOOKUP(M$3,table!Q$1:Q$7,table!O$1:O$7) -> 0 | N6: =IFERROR(_xlfn.XLOOKUP(N4,table!S$3:S$4,table!O$3:O$4),0) -> 0
D7: =IF(E15>0,1,0) -> 0 | F7: =IF(F5=F18,"","借入金額を正しく入力してください！") ->  | M7: =_xlfn.XLOOKUP(M4,table!Q$1:Q$7,table!O$1:O$7) -> 0
C9: 資金計画概要 | E9: 支払額 | F9: 借入金額 | G9: 自己資金 | J9: 支払条件 | L9: 支払額 | M9: 借入金額 | N9: 期間＊ | P9: 簡易計算機
E10: （万円） | F10: （万円） | G10: （万円） | L10: （万円） | M10: （万円） | N10: （ヵ月） | P10: 借入金額
C11: マンション | G11: =E11-F11 -> 0 | J11: 不動産価格 | L11: =IF(AND(D3=1,D4=1),E11,IF(E11>0,E11,IF(E12>0,E12,0))*1.05) -> 0 | P11: 借入期間
C12: 不動産価格 | G12: =E12-F12 -> 0 | J12: 残債 | L12: =E16 -> 0 | P12: 金利
C13: 内 土地 | J13: 契約時 | P13: 毎月返済額 | R13: =IFERROR(INT(PMT(R12/12,R11*12,-R10*10000,,)),"") ->  | S13: 円
C14: 工事費用 | G14: =E14-F14 -> 0 | J14: 着工時 | P14: その他ローン返済 | S14: 円
C15: リフォーム工事費用 | G15: =E15-F15 -> 0 | H15: =IF(F15>0,1,0) -> 0 | J15: 中間時
C16: 残債 | G16: =E16-F16 -> 0 | J16: リフォーム代 | L16: =E15 -> 0 | P16: 返済負担率 | R16: =IFERROR((R13+R14)*12/(R3+R4)/10000,"") -> 
C17: 諸費用概算 | E17: =IF(D4=1,5%,IF(D4=2,8%,IF(D4=3,6%,IF(OR(D4=4,D4=5),7%,0%))))*(SUM(E11:E12)+SUM(E14:E16)) -> 0 | G17: =IFERROR(E17-F17,0) -> 0 | J17: 諸費用 | L17: =IFERROR(IF(AND(D3=1,D4=1),E17,E17-(E11+E12)*5%),0) -> 0
C18: 合計 | E18: =SUM(E11:E12)+SUM(E14:E17) -> 0 | F18: =SUM(F11:F17)-F13 -> 0 | G18: =E18-F18 -> 0 | J18: 最終金 | L18: =E14+E15-SUM(L13:L16) -> 0 | M18: =MIN(L18,F18-M11-M12-M14-M15) -> 0
E19: =SUM(E11:E16)-E13 -> 0
C20: 融資率（フラット35） | F20: =IFERROR(F18/E18,"") ->  | J20: 総合計 | L20: =SUM(L11:L18) -> 0 | M20: =F18 -> 0 | N20: =MAX(N11:N15) -> 0
C21: 融資率 | F21: =IFERROR(F18/(SUM(E11:E15)-E13),"") ->  | J21: つなぎ合計 | M21: =SUM(M11:M15) -> 0 | N21: =COUNT(N11:N15) -> 0
M22: =M14+M15 -> 0
N33: =COUNT(M11:M15) -> 0 | O33: =IF(N33>3,3,N33) -> 0
N34: 不動産積 | O34: =M11*N11 -> 0
N35: 残債積 | O35: =M12*N12 -> 0
N36: 契約金積 | O36: =M13*N13 -> 0
N37: 着工金積 | O37: =M14*N14 -> 0
N38: 中間金積 | O38: =M15*N15 -> 0
N39: 総合計 | O39: =SUM(O34:O38) -> 0
N40: 3回 | O40: =O34+O37+O38 -> 0
N41: 2回 | O41: =O37+O38 -> 0
N42: 1回 | O42: =M15*N15 -> 0
N43: リフォーム | O43: =M11*N11 -> 0

Sheet 支払計画
D2: 一括（当初） | F2: 分割（2回） | H2: 分割（3回以上） | J2: 一括（最終）
D4: 金融機関名 | F4: 金融機関名 | H4: 金融機関名 | J4: 金融機関名
D5: 商品名 | F5: 商品名 | H5: 商品名 | J5: 商品名
D6: 手数料タイプ | F6: 手数料タイプ | H6: 手数料タイプ | J6: 手数料タイプ
E7: =_xlfn.XLOOKUP(E4&E5&E6,table!$U18:$U100&table!$V18:$V100&table!$W18:$W100,table!$AB18:$AB100) -> 0 | G7: =_xlfn.XLOOKUP(G4&G5&G6,table!$U18:$U100&table!$V18:$V100&table!$W18:$W100,table!$AB18:$AB100) -> 0 | I7: =_xlfn.XLOOKUP(I4&I5&I6,table!$U18:$U100&table!$V18:$V100&table!$W18:$W100,table!$AB18:$AB100) -> 0 | K7: =_xlfn.XLOOKUP(K4&K5&K6,table!$U18:$U100&table!$V18:$V100&table!$W18:$W100,table!$AB18:$AB100) -> 0
B8: 全体 | D8: 総予算 | E8: =_xlfn.XLOOKUP(E$7*10+IF(RIGHT(E$5,4)="+ローン",2,IF(RIGHT(E$5,3)="プラス",3,1)),諸費用並び替え!$C$1:$DF$1,諸費用並び替え!$C6:$DF6) ->  | F8: =D8 -> 総予算 | G8: =IF(G36="Error","",_xlfn.XLOOKUP(G$7*10+IF(RIGHT(G$5,4)="+ローン",2,IF(RIGHT(G$5,3)="プラス",3,1)),諸費用並び替え!$C$1:$DF$1,諸費用並び替え!$C6:$DF6)) ->  | H8: =F8 -> 総予算 | I8: =_xlfn.XLOOKUP(I$7*10+IF(RIGHT(I$5,4)="+ローン",2,IF(RIGHT(I$5,3)="プラス",3,1)),諸費用並び替え!$C$1:$DF$1,諸費用並び替え!$C6:$DF6) ->  | J8: =H8 -> 総予算 | K8: =IF(K36="Error","",_xlfn.XLOOKUP(K$7*10+IF(RIGHT(K$5,4)="+ローン",2,IF(RIGHT(K$5,3)="プラス",3,1)),諸費用並び替え!C$1:DF$1,諸費用並び替え!C6:DF6)) -> 
D9: 不動産 | E9: =_xlfn.XLOOKUP(E$7*10+IF(RIGHT(E$5,4)="+ローン",2,IF(RIGHT(E$5,3)="プラス",3,1)),諸費用並び替え!$C$1:$DF$1,諸費用並び替え!$C7:$DF7) ->  | F9: =D9 -> 不動産 | G9: =IF(G8="","",_xlfn.XLOOKUP(G$7*10+IF(RIGHT(G$5,4)="+ローン",2,IF(RIGHT(G$5,3)="プラス",3,1)),諸費用並び替え!$C$1:$DF$1,諸費用並び替え!$C7:$DF7)) ->  | H9: =F9 -> 不動産 | I9: =_xlfn.XLOOKUP(I$7*10+IF(RIGHT(I$5,4)="+ローン",2,IF(RIGHT(I$5,3)="プラス",3,1)),諸費用並び替え!$C$1:$DF$1,諸費用並び替え!$C7:$DF7) ->  | J9: =H9 -> 不動産 | K9: =IF(K8="","",_xlfn.XLOOKUP(K$7*10+IF(RIGHT(K$5,4)="+ローン",2,IF(RIGHT(K$5,3)="プラス",3,1)),諸費用並び替え!C$1:DF$1,諸費用並び替え!C7:DF7)) -> 
D10: 工事費用 | E10: =_xlfn.XLOOKUP(E$7*10+IF(RIGHT(E$5,4)="+ローン",2,IF(RIGHT(E$5,3)="プラス",3,1)),諸費用並び替え!$C$1:$DF$1,諸費用並び替え!$C8:$DF8) ->  | F10: =D10 -> 工事費用 | G10: =IF(G8="","",_xlfn.XLOOKUP(G$7*10+IF(RIGHT(G$5,4)="+ローン",2,IF(RIGHT(G$5,3)="プラス",3,1)),諸費用並び替え!$C$1:$DF$1,諸費用並び替え!$C8:$DF8)) ->  | H10: 工事費用 | I10: =_xlfn.XLOOKUP(I$7*10+IF(RIGHT(I$5,4)="+ローン",2,IF(RIGHT(I$5,3)="プラス",3,1)),諸費用並び替え!$C$1:$DF$1,諸費用並び替え!$C8:$DF8) ->  | J10: 工事費用 | K10: =IF(K9="","",_xlfn.XLOOKUP(K$7*10+IF(RIGHT(K$5,4)="+ローン",2,IF(RIGHT(K$5,3)="プラス",3,1)),諸費用並び替え!C$1:DF$1,諸費用並び替え!C8:DF8)) -> 
D11: 残債 | E11: =_xlfn.XLOOKUP(E$7*10+IF(RIGHT(E$5,4)="+ローン",2,IF(RIGHT(E$5,3)="プラス",3,1)),諸費用並び替え!$C$1:$DF$1,諸費用並び替え!$C9:$DF9) ->  | F11: 残債 | G11: =IF(G8="","",_xlfn.XLOOKUP(G$7*10+IF(RIGHT(G$5,4)="+ローン",2,IF(RIGHT(G$5,3)="プラス",3,1)),諸費用並び替え!$C$1:$DF$1,諸費用並び替え!$C9:$DF9)) ->  | H11: 残債 | I11: =_xlfn.XLOOKUP(I$7*10+IF(RIGHT(I$5,4)="+ローン",2,IF(RIGHT(I$5,3)="プラス",3,1)),諸費用並び替え!$C$1:$DF$1,諸費用並び替え!$C9:$DF9) ->  | J11: 残債 | K11: =IF(K10="","",_xlfn.XLOOKUP(K$7*10+IF(RIGHT(K$5,4)="+ローン",2,IF(RIGHT(K$5,3)="プラス",3,1)),諸費用並び替え!C$1:DF$1,諸費用並び替え!C9:DF9)) -> 
D12: 諸費用 | E12: =_xlfn.XLOOKUP(E$7*10+IF(RIGHT(E$5,4)="+ローン",2,IF(RIGHT(E$5,3)="プラス",3,1)),諸費用並び替え!$C$1:$DF$1,諸費用並び替え!$C10:$DF10) ->  | F12: 諸費用 | G12: =IF(G8="","",_xlfn.XLOOKUP(G$7*10+IF(RIGHT(G$5,4)="+ローン",2,IF(RIGHT(G$5,3)="プラス",3,1)),諸費用並び替え!$C$1:$DF$1,諸費用並び替え!$C10:$DF10)) ->  | H12: 諸費用 | I12: =_xlfn.XLOOKUP(I$7*10+IF(RIGHT(I$5,4)="+ローン",2,IF(RIGHT(I$5,3)="プラス",3,1)),諸費用並び替え!$C$1:$DF$1,諸費用並び替え!$C10:$DF10) ->  | J12: 諸費用 | K12: =IF(K11="","",_xlfn.XLOOKUP(K$7*10+IF(RIGHT(K$5,4)="+ローン",2,IF(RIGHT(K$5,3)="プラス",3,1)),諸費用並び替え!C$1:DF$1,諸費用並び替え!C10:DF10)) -> 
D13: 住宅ローン | E13: =_xlfn.XLOOKUP(E$7*10+IF(RIGHT(E$5,4)="+ローン",2,IF(RIGHT(E$5,3)="プラス",3,1)),諸費用並び替え!$C$1:$DF$1,諸費用並び替え!$C11:$DF11) ->  | F13: 住宅ローン | G13: =IF(G8="","",_xlfn.XLOOKUP(G$7*10+IF(RIGHT(G$5,4)="+ローン",2,IF(RIGHT(G$5,3)="プラス",3,1)),諸費用並び替え!$C$1:$DF$1,諸費用並び替え!$C11:$DF11)) ->  | H13: 住宅ローン | I13: =_xlfn.XLOOKUP(I$7*10+IF(RIGHT(I$5,4)="+ローン",2,IF(RIGHT(I$5,3)="プラス",3,1)),諸費用並び替え!$C$1:$DF$1,諸費用並び替え!$C11:$DF11) ->  | J13: 住宅ローン | K13: =IF(K12="","",_xlfn.XLOOKUP(K$7*10+IF(RIGHT(K$5,4)="+ローン",2,IF(RIGHT(K$5,3)="プラス",3,1)),諸費用並び替え!C$1:DF$1,諸費用並び替え!C11:DF11)) -> 
D14: つなぎ融資 | E14: =_xlfn.XLOOKUP(E$7*10+IF(RIGHT(E$5,4)="+ローン",2,IF(RIGHT(E$5,3)="プラス",3,1)),諸費用並び替え!$C$1:$DF$1,諸費用並び替え!$C12:$DF12) ->  | F14: つなぎ融資 | G14: =IF(G8="","",_xlfn.XLOOKUP(G$7*10+IF(RIGHT(G$5,4)="+ローン",2,IF(RIGHT(G$5,3)="プラス",3,1)),諸費用並び替え!$C$1:$DF$1,諸費用並び替え!$C12:$DF12)) ->  | H14: つなぎ融資 | I14: =_xlfn.XLOOKUP(I$7*10+IF(RIGHT(I$5,4)="+ローン",2,IF(RIGHT(I$5,3)="プラス",3,1)),諸費用並び替え!$C$1:$DF$1,諸費用並び替え!$C12:$DF12) ->  | J14: つなぎ融資 | K14: =IF(K13="","",_xlfn.XLOOKUP(K$7*10+IF(RIGHT(K$5,4)="+ローン",2,IF(RIGHT(K$5,3)="プラス",3,1)),諸費用並び替え!C$1:DF$1,諸費用並び替え!C12:DF12)) -> 
D15: 自己資金 | E15: =_xlfn.XLOOKUP(E$7*10+IF(RIGHT(E$5,4)="+ローン",2,IF(RIGHT(E$5,3)="プラス",3,1)),諸費用並び替え!$C$1:$DF$1,諸費用並び替え!$C13:$DF13) ->  | F15: 自己資金 | G15: =IF(G8="","",_xlfn.XLOOKUP(G$7*10+IF(RIGHT(G$5,4)="+ローン",2,IF(RIGHT(G$5,3)="プラス",3,1)),諸費用並び替え!$C$1:$DF$1,諸費用並び替え!$C13:$DF13)) ->  | H15: 自己資金 | I15: =_xlfn.XLOOKUP(I$7*10+IF(RIGHT(I$5,4)="+ローン",2,IF(RIGHT(I$5,3)="プラス",3,1)),諸費用並び替え!$C$1:$DF$1,諸費用並び替え!$C13:$DF13) ->  | J15: 自己資金 | K15: =IF(K14="","",_xlfn.XLOOKUP(K$7*10+IF(RIGHT(K$5,4)="+ローン",2,IF(RIGHT(K$5,3)="プラス",3,1)),諸費用並び替え!C$1:DF$1,諸費用並び替え!C13:DF13)) -> 
B17: 不動産購入 | C17: 契約時 | D17: =_xlfn.XLOOKUP(E$7*10,諸費用並び替え!$C$1:$DF$1,諸費用並び替え!$C15:$DF15) ->  | E17: =_xlfn.XLOOKUP(E$7*10+IF(RIGHT(E$5,4)="+ローン",2,IF(RIGHT(E$5,3)="プラス",3,1)),諸費用並び替え!$C$1:$DF$1,諸費用並び替え!$C15:$DF15) ->  | F17: =_xlfn.XLOOKUP(G$7*10,諸費用並び替え!$C$1:$DF$1,諸費用並び替え!$C15:$DF15) ->  | G17: =IF(G$8="",0,_xlfn.XLOOKUP(G$7*10+IF(RIGHT(G$5,4)="+ローン",2,IF(RIGHT(G$5,3)="プラス",3,1)),諸費用並び替え!$C$1:$DF$1,諸費用並び替え!$C15:$DF15)) ->  | H17: =_xlfn.XLOOKUP(I$7*10,諸費用並び替え!$C$1:$DF$1,諸費用並び替え!$C15:$DF15) ->  | I17: =_xlfn.XLOOKUP(I$7*10+IF(RIGHT(I$5,4)="+ローン",2,IF(RIGHT(I$5,3)="プラス",3,1)),諸費用並び替え!$C$1:$DF$1,諸費用並び替え!$C15:$DF15) ->  | J17: =_xlfn.XLOOKUP(K$7*10,諸費用並び替え!C$1:DF$1,諸費用並び替え!C15:DF15) ->  | K17: =_xlfn.XLOOKUP(K$7*10+IF(RIGHT(K$5,4)="+ローン",2,IF(RIGHT(K$5,3)="プラス",3,1)),諸費用並び替え!C$1:DF$1,諸費用並び替え!C15:DF15) -> 
D19: =_xlfn.XLOOKUP(E$7*10,諸費用並び替え!$C$1:$DF$1,諸費用並び替え!$C17:$DF17) ->  | E19: =_xlfn.XLOOKUP(E$7*10+IF(RIGHT(E$5,4)="+ローン",2,IF(RIGHT(E$5,3)="プラス",3,1)),諸費用並び替え!$C$1:$DF$1,諸費用並び替え!$C17:$DF17) ->  | F19: =_xlfn.XLOOKUP(G$7*10,諸費用並び替え!$C$1:$DF$1,諸費用並び替え!$C17:$DF17) ->  | G19: =IF(G$8="",0,_xlfn.XLOOKUP(G$7*10+IF(RIGHT(G$5,4)="+ローン",2,IF(RIGHT(G$5,3)="プラス",3,1)),諸費用並び替え!$C$1:$DF$1,諸費用並び替え!$C17:$DF17)) ->  | H19: =_xlfn.XLOOKUP(I$7*10,諸費用並び替え!$C$1:$DF$1,諸費用並び替え!$C17:$DF17) ->  | I19: =_xlfn.XLOOKUP(I$7*10+IF(RIGHT(I$5,4)="+ローン",2,IF(RIGHT(I$5,3)="プラス",3,1)),諸費用並び替え!$C$1:$DF$1,諸費用並び替え!$C17:$DF17) ->  | J19: =_xlfn.XLOOKUP(K$7*10,諸費用並び替え!C$1:DF$1,諸費用並び替え!C17:DF17) ->  | K19: =_xlfn.XLOOKUP(K$7*10+IF(RIGHT(K$5,4)="+ローン",2,IF(RIGHT(K$5,3)="プラス",3,1)),諸費用並び替え!C$1:DF$1,諸費用並び替え!C17:DF17) -> 
D20: =_xlfn.XLOOKUP(E$7*10,諸費用並び替え!$C$1:$DF$1,諸費用並び替え!$C18:$DF18) ->  | E20: =_xlfn.XLOOKUP(E$7*10+IF(RIGHT(E$5,4)="+ローン",2,IF(RIGHT(E$5,3)="プラス",3,1)),諸費用並び替え!$C$1:$DF$1,諸費用並び替え!$C18:$DF18) ->  | F20: =_xlfn.XLOOKUP(G$7*10,諸費用並び替え!$C$1:$DF$1,諸費用並び替え!$C18:$DF18) ->  | G20: =IF(G$8="",0,_xlfn.XLOOKUP(G$7*10+IF(RIGHT(G$5,4)="+ローン",2,IF(RIGHT(G$5,3)="プラス",3,1)),諸費用並び替え!$C$1:$DF$1,諸費用並び替え!$C18:$DF18)) ->  | H20: =_xlfn.XLOOKUP(I$7*10,諸費用並び替え!$C$1:$DF$1,諸費用並び替え!$C18:$DF18) ->  | I20: =_xlfn.XLOOKUP(I$7*10+IF(RIGHT(I$5,4)="+ローン",2,IF(RIGHT(I$5,3)="プラス",3,1)),諸費用並び替え!$C$1:$DF$1,諸費用並び替え!$C18:$DF18) ->  | J20: =_xlfn.XLOOKUP(K$7*10,諸費用並び替え!C$1:DF$1,諸費用並び替え!C18:DF18) ->  | K20: =_xlfn.XLOOKUP(K$7*10+IF(RIGHT(K$5,4)="+ローン",2,IF(RIGHT(K$5,3)="プラス",3,1)),諸費用並び替え!C$1:DF$1,諸費用並び替え!C18:DF18) -> 
D22: =_xlfn.XLOOKUP(E$7*10,諸費用並び替え!$C$1:$DF$1,諸費用並び替え!$C20:$DF20) ->  | E22: =_xlfn.XLOOKUP(E$7*10+IF(RIGHT(E$5,4)="+ローン",2,IF(RIGHT(E$5,3)="プラス",3,1)),諸費用並び替え!$C$1:$DF$1,諸費用並び替え!$C20:$DF20) ->  | F22: =_xlfn.XLOOKUP(G$7*10,諸費用並び替え!$C$1:$DF$1,諸費用並び替え!$C20:$DF20) ->  | G22: =IF(G$8="",0,_xlfn.XLOOKUP(G$7*10+IF(RIGHT(G$5,4)="+ローン",2,IF(RIGHT(G$5,3)="プラス",3,1)),諸費用並び替え!$C$1:$DF$1,諸費用並び替え!$C20:$DF20)) ->  | H22: =_xlfn.XLOOKUP(I$7*10,諸費用並び替え!$C$1:$DF$1,諸費用並び替え!$C20:$DF20) ->  | I22: =_xlfn.XLOOKUP(I$7*10+IF(RIGHT(I$5,4)="+ローン",2,IF(RIGHT(I$5,3)="プラス",3,1)),諸費用並び替え!$C$1:$DF$1,諸費用並び替え!$C20:$DF20) ->  | J22: =_xlfn.XLOOKUP(K$7*10,諸費用並び替え!C$1:DF$1,諸費用並び替え!C20:DF20) ->  | K22: =_xlfn.XLOOKUP(K$7*10+IF(RIGHT(K$5,4)="+ローン",2,IF(RIGHT(K$5,3)="プラス",3,1)),諸費用並び替え!C$1:DF$1,諸費用並び替え!C20:DF20) -> 
D23: =_xlfn.XLOOKUP(E$7*10,諸費用並び替え!$C$1:$DF$1,諸費用並び替え!$C21:$DF21) ->  | E23: =_xlfn.XLOOKUP(E$7*10+IF(RIGHT(E$5,4)="+ローン",2,IF(RIGHT(E$5,3)="プラス",3,1)),諸費用並び替え!$C$1:$DF$1,諸費用並び替え!$C21:$DF21) ->  | F23: =_xlfn.XLOOKUP(G$7*10,諸費用並び替え!$C$1:$DF$1,諸費用並び替え!$C21:$DF21) ->  | G23: =IF(G$8="",0,_xlfn.XLOOKUP(G$7*10+IF(RIGHT(G$5,4)="+ローン",2,IF(RIGHT(G$5,3)="プラス",3,1)),諸費用並び替え!$C$1:$DF$1,諸費用並び替え!$C21:$DF21)) ->  | H23: =_xlfn.XLOOKUP(I$7*10,諸費用並び替え!$C$1:$DF$1,諸費用並び替え!$C21:$DF21) ->  | I23: =_xlfn.XLOOKUP(I$7*10+IF(RIGHT(I$5,4)="+ローン",2,IF(RIGHT(I$5,3)="プラス",3,1)),諸費用並び替え!$C$1:$DF$1,諸費用並び替え!$C21:$DF21) ->  | J23: =_xlfn.XLOOKUP(K$7*10,諸費用並び替え!C$1:DF$1,諸費用並び替え!C21:DF21) ->  | K23: =_xlfn.XLOOKUP(K$7*10+IF(RIGHT(K$5,4)="+ローン",2,IF(RIGHT(K$5,3)="プラス",3,1)),諸費用並び替え!C$1:DF$1,諸費用並び替え!C21:DF21) -> 
C25: 決済時 | D25: =_xlfn.XLOOKUP(E$7*10,諸費用並び替え!$C$1:$DF$1,諸費用並び替え!$C23:$DF23) ->  | E25: =_xlfn.XLOOKUP(E$7*10+IF(RIGHT(E$5,4)="+ローン",2,IF(RIGHT(E$5,3)="プラス",3,1)),諸費用並び替え!$C$1:$DF$1,諸費用並び替え!$C23:$DF23) ->  | F25: =_xlfn.XLOOKUP(G$7*10,諸費用並び替え!$C$1:$DF$1,諸費用並び替え!$C23:$DF23) ->  | G25: =IF(G$8="",0,_xlfn.XLOOKUP(G$7*10+IF(RIGHT(G$5,4)="+ローン",2,IF(RIGHT(G$5,3)="プラス",3,1)),諸費用並び替え!$C$1:$DF$1,諸費用並び替え!$C23:$DF23)) ->  | H25: =_xlfn.XLOOKUP(I$7*10,諸費用並び替え!$C$1:$DF$1,諸費用並び替え!$C23:$DF23) ->  | I25: =_xlfn.XLOOKUP(I$7*10+IF(RIGHT(I$5,4)="+ローン",2,IF(RIGHT(I$5,3)="プラス",3,1)),諸費用並び替え!$C$1:$DF$1,諸費用並び替え!$C23:$DF23) ->  | J25: =_xlfn.XLOOKUP(K$7*10,諸費用並び替え!C$1:DF$1,諸費用並び替え!C23:DF23) ->  | K25: =_xlfn.XLOOKUP(K$7*10+IF(RIGHT(K$5,4)="+ローン",2,IF(RIGHT(K$5,3)="プラス",3,1)),諸費用並び替え!C$1:DF$1,諸費用並び替え!C23:DF23) -> 
D27: =_xlfn.XLOOKUP(E$7*10,諸費用並び替え!$C$1:$DF$1,諸費用並び替え!$C25:$DF25) ->  | E27: =_xlfn.XLOOKUP(E$7*10+IF(RIGHT(E$5,4)="+ローン",2,IF(RIGHT(E$5,3)="プラス",3,1)),諸費用並び替え!$C$1:$DF$1,諸費用並び替え!$C25:$DF25) ->  | F27: =_xlfn.XLOOKUP(G$7*10,諸費用並び替え!$C$1:$DF$1,諸費用並び替え!$C25:$DF25) ->  | G27: =IF(G$8="",0,_xlfn.XLOOKUP(G$7*10+IF(RIGHT(G$5,4)="+ローン",2,IF(RIGHT(G$5,3)="プラス",3,1)),諸費用並び替え!$C$1:$DF$1,諸費用並び替え!$C25:$DF25)) ->  | H27: =_xlfn.XLOOKUP(I$7*10,諸費用並び替え!$C$1:$DF$1,諸費用並び替え!$C25:$DF25) ->  | I27: =_xlfn.XLOOKUP(I$7*10+IF(RIGHT(I$5,4)="+ローン",2,IF(RIGHT(I$5,3)="プラス",3,1)),諸費用並び替え!$C$1:$DF$1,諸費用並び替え!$C25:$DF25) ->  | J27: =_xlfn.XLOOKUP(K$7*10,諸費用並び替え!C$1:DF$1,諸費用並び替え!C25:DF25) ->  | K27: =_xlfn.XLOOKUP(K$7*10+IF(RIGHT(K$5,4)="+ローン",2,IF(RIGHT(K$5,3)="プラス",3,1)),諸費用並び替え!C$1:DF$1,諸費用並び替え!C25:DF25) -> 
D28: =_xlfn.XLOOKUP(E$7*10,諸費用並び替え!$C$1:$DF$1,諸費用並び替え!$C26:$DF26) ->  | E28: =_xlfn.XLOOKUP(E$7*10+IF(RIGHT(E$5,4)="+ローン",2,IF(RIGHT(E$5,3)="プラス",3,1)),諸費用並び替え!$C$1:$DF$1,諸費用並び替え!$C26:$DF26) ->  | F28: =_xlfn.XLOOKUP(G$7*10,諸費用並び替え!$C$1:$DF$1,諸費用並び替え!$C26:$DF26) ->  | G28: =IF(G$8="",0,_xlfn.XLOOKUP(G$7*10+IF(RIGHT(G$5,4)="+ローン",2,IF(RIGHT(G$5,3)="プラス",3,1)),諸費用並び替え!$C$1:$DF$1,諸費用並び替え!$C26:$DF26)) ->  | H28: =_xlfn.XLOOKUP(I$7*10,諸費用並び替え!$C$1:$DF$1,諸費用並び替え!$C26:$DF26) ->  | I28: =_xlfn.XLOOKUP(I$7*10+IF(RIGHT(I$5,4)="+ローン",2,IF(RIGHT(I$5,3)="プラス",3,1)),諸費用並び替え!$C$1:$DF$1,諸費用並び替え!$C26:$DF26) ->  | J28: =_xlfn.XLOOKUP(K$7*10,諸費用並び替え!C$1:DF$1,諸費用並び替え!C26:DF26) ->  | K28: =_xlfn.XLOOKUP(K$7*10+IF(RIGHT(K$5,4)="+ローン",2,IF(RIGHT(K$5,3)="プラス",3,1)),諸費用並び替え!C$1:DF$1,諸費用並び替え!C26:DF26) -> 
D30: =_xlfn.XLOOKUP(E$7*10,諸費用並び替え!$C$1:$DF$1,諸費用並び替え!$C28:$DF28) ->  | E30: =_xlfn.XLOOKUP(E$7*10+IF(RIGHT(E$5,4)="+ローン",2,IF(RIGHT(E$5,3)="プラス",3,1)),諸費用並び替え!$C$1:$DF$1,諸費用並び替え!$C28:$DF28) ->  | F30: =_xlfn.XLOOKUP(G$7*10,諸費用並び替え!$C$1:$DF$1,諸費用並び替え!$C28:$DF28) ->  | G30: =IF(G$8="",0,_xlfn.XLOOKUP(G$7*10+IF(RIGHT(G$5,4)="+ローン",2,IF(RIGHT(G$5,3)="プラス",3,1)),諸費用並び替え!$C$1:$DF$1,諸費用並び替え!$C28:$DF28)) ->  | H30: =_xlfn.XLOOKUP(I$7*10,諸費用並び替え!$C$1:$DF$1,諸費用並び替え!$C28:$DF28) ->  | I30: =_xlfn.XLOOKUP(I$7*10+IF(RIGHT(I$5,4)="+ローン",2,IF(RIGHT(I$5,3)="プラス",3,1)),諸費用並び替え!$C$1:$DF$1,諸費用並び替え!$C28:$DF28) ->  | J30: =_xlfn.XLOOKUP(K$7*10,諸費用並び替え!C$1:DF$1,諸費用並び替え!C28:DF28) ->  | K30: =_xlfn.XLOOKUP(K$7*10+IF(RIGHT(K$5,4)="+ローン",2,IF(RIGHT(K$5,3)="プラス",3,1)),諸費用並び替え!C$1:DF$1,諸費用並び替え!C28:DF28) -> 
D31: =_xlfn.XLOOKUP(E$7*10,諸費用並び替え!$C$1:$DF$1,諸費用並び替え!$C29:$DF29) ->  | E31: =_xlfn.XLOOKUP(E$7*10+IF(RIGHT(E$5,4)="+ローン",2,IF(RIGHT(E$5,3)="プラス",3,1)),諸費用並び替え!$C$1:$DF$1,諸費用並び替え!$C29:$DF29) ->  | F31: =_xlfn.XLOOKUP(G$7*10,諸費用並び替え!$C$1:$DF$1,諸費用並び替え!$C29:$DF29) ->  | G31: =IF(G$8="",0,_xlfn.XLOOKUP(G$7*10+IF(RIGHT(G$5,4)="+ローン",2,IF(RIGHT(G$5,3)="プラス",3,1)),諸費用並び替え!$C$1:$DF$1,諸費用並び替え!$C29:$DF29)) ->  | H31: =_xlfn.XLOOKUP(I$7*10,諸費用並び替え!$C$1:$DF$1,諸費用並び替え!$C29:$DF29) ->  | I31: =_xlfn.XLOOKUP(I$7*10+IF(RIGHT(I$5,4)="+ローン",2,IF(RIGHT(I$5,3)="プラス",3,1)),諸費用並び替え!$C$1:$DF$1,諸費用並び替え!$C29:$DF29) ->  | J31: =_xlfn.XLOOKUP(K$7*10,諸費用並び替え!C$1:DF$1,諸費用並び替え!C29:DF29) ->  | K31: =_xlfn.XLOOKUP(K$7*10+IF(RIGHT(K$5,4)="+ローン",2,IF(RIGHT(K$5,3)="プラス",3,1)),諸費用並び替え!C$1:DF$1,諸費用並び替え!C29:DF29) -> 
D32: =_xlfn.XLOOKUP(E$7*10,諸費用並び替え!$C$1:$DF$1,諸費用並び替え!$C30:$DF30) ->  | E32: =_xlfn.XLOOKUP(E$7*10+IF(RIGHT(E$5,4)="+ローン",2,IF(RIGHT(E$5,3)="プラス",3,1)),諸費用並び替え!$C$1:$DF$1,諸費用並び替え!$C30:$DF30) ->  | F32: =_xlfn.XLOOKUP(G$7*10,諸費用並び替え!$C$1:$DF$1,諸費用並び替え!$C30:$DF30) ->  | G32: =IF(G$8="",0,_xlfn.XLOOKUP(G$7*10+IF(RIGHT(G$5,4)="+ローン",2,IF(RIGHT(G$5,3)="プラス",3,1)),諸費用並び替え!$C$1:$DF$1,諸費用並び替え!$C30:$DF30)) ->  | H32: =_xlfn.XLOOKUP(I$7*10,諸費用並び替え!$C$1:$DF$1,諸費用並び替え!$C30:$DF30) ->  | I32: =_xlfn.XLOOKUP(I$7*10+IF(RIGHT(I$5,4)="+ローン",2,IF(RIGHT(I$5,3)="プラス",3,1)),諸費用並び替え!$C$1:$DF$1,諸費用並び替え!$C30:$DF30) ->  | J32: =_xlfn.XLOOKUP(K$7*10,諸費用並び替え!C$1:DF$1,諸費用並び替え!C30:DF30) ->  | K32: =_xlfn.XLOOKUP(K$7*10+IF(RIGHT(K$5,4)="+ローン",2,IF(RIGHT(K$5,3)="プラス",3,1)),諸費用並び替え!C$1:DF$1,諸費用並び替え!C30:DF30) -> 
D33: =_xlfn.XLOOKUP(E$7*10,諸費用並び替え!$C$1:$DF$1,諸費用並び替え!$C31:$DF31) ->  | E33: =_xlfn.XLOOKUP(E$7*10+IF(RIGHT(E$5,4)="+ローン",2,IF(RIGHT(E$5,3)="プラス",3,1)),諸費用並び替え!$C$1:$DF$1,諸費用並び替え!$C31:$DF31) ->  | F33: =_xlfn.XLOOKUP(G$7*10,諸費用並び替え!$C$1:$DF$1,諸費用並び替え!$C31:$DF31) ->  | G33: =IF(G$8="",0,_xlfn.XLOOKUP(G$7*10+IF(RIGHT(G$5,4)="+ローン",2,IF(RIGHT(G$5,3)="プラス",3,1)),諸費用並び替え!$C$1:$DF$1,諸費用並び替え!$C31:$DF31)) ->  | H33: =_xlfn.XLOOKUP(I$7*10,諸費用並び替え!$C$1:$DF$1,諸費用並び替え!$C31:$DF31) ->  | I33: =_xlfn.XLOOKUP(I$7*10+IF(RIGHT(I$5,4)="+ローン",2,IF(RIGHT(I$5,3)="プラス",3,1)),諸費用並び替え!$C$1:$DF$1,諸費用並び替え!$C31:$DF31) ->  | J33: =_xlfn.XLOOKUP(K$7*10,諸費用並び替え!C$1:DF$1,諸費用並び替え!C31:DF31) ->  | K33: =_xlfn.XLOOKUP(K$7*10+IF(RIGHT(K$5,4)="+ローン",2,IF(RIGHT(K$5,3)="プラス",3,1)),諸費用並び替え!C$1:DF$1,諸費用並び替え!C31:DF31) -> 
D34: =_xlfn.XLOOKUP(E$7*10,諸費用並び替え!$C$1:$DF$1,諸費用並び替え!$C32:$DF32) ->  | E34: =_xlfn.XLOOKUP(E$7*10+IF(RIGHT(E$5,4)="+ローン",2,IF(RIGHT(E$5,3)="プラス",3,1)),諸費用並び替え!$C$1:$DF$1,諸費用並び替え!$C32:$DF32) ->  | F34: =_xlfn.XLOOKUP(G$7*10,諸費用並び替え!$C$1:$DF$1,諸費用並び替え!$C32:$DF32) ->  | G34: =IF(G$8="",0,_xlfn.XLOOKUP(G$7*10+IF(RIGHT(G$5,4)="+ローン",2,IF(RIGHT(G$5,3)="プラス",3,1)),諸費用並び替え!$C$1:$DF$1,諸費用並び替え!$C32:$DF32)) ->  | H34: =_xlfn.XLOOKUP(I$7*10,諸費用並び替え!$C$1:$DF$1,諸費用並び替え!$C32:$DF32) ->  | I34: =_xlfn.XLOOKUP(I$7*10+IF(RIGHT(I$5,4)="+ローン",2,IF(RIGHT(I$5,3)="プラス",3,1)),諸費用並び替え!$C$1:$DF$1,諸費用並び替え!$C32:$DF32) ->  | J34: =_xlfn.XLOOKUP(K$7*10,諸費用並び替え!C$1:DF$1,諸費用並び替え!C32:DF32) ->  | K34: =_xlfn.XLOOKUP(K$7*10+IF(RIGHT(K$5,4)="+ローン",2,IF(RIGHT(K$5,3)="プラス",3,1)),諸費用並び替え!C$1:DF$1,諸費用並び替え!C32:DF32) -> 
B36: 残債 | C36: 不動産購入前 または着工前 | D36: =_xlfn.XLOOKUP(E$7*10,諸費用並び替え!$C$1:$DF$1,諸費用並び替え!$C34:$DF34) ->  | E36: =_xlfn.XLOOKUP(E$7*10+IF(RIGHT(E$5,4)="+ローン",2,IF(RIGHT(E$5,3)="プラス",3,1)),諸費用並び替え!$C$1:$DF$1,諸費用並び替え!$C34:$DF34) ->  | F36: =_xlfn.XLOOKUP(G$7*10,諸費用並び替え!$C$1:$DF$1,諸費用並び替え!$C34:$DF34) ->  | G36: =_xlfn.XLOOKUP(G$7*10+IF(RIGHT(G$5,4)="+ローン",2,IF(RIGHT(G$5,3)="プラス",3,1)),諸費用並び替え!$C$1:$DF$1,諸費用並び替え!$C34:$DF34) ->  | H36: =_xlfn.XLOOKUP(I$7*10,諸費用並び替え!$C$1:$DF$1,諸費用並び替え!$C34:$DF34) ->  | I36: =_xlfn.XLOOKUP(I$7*10+IF(RIGHT(I$5,4)="+ローン",2,IF(RIGHT(I$5,3)="プラス",3,1)),諸費用並び替え!$C$1:$DF$1,諸費用並び替え!$C34:$DF34) ->  | J36: =_xlfn.XLOOKUP(K$7*10,諸費用並び替え!C$1:DF$1,諸費用並び替え!C34:DF34) ->  | K36: =_xlfn.XLOOKUP(K$7*10+IF(RIGHT(K$5,4)="+ローン",2,IF(RIGHT(K$5,3)="プラス",3,1)),諸費用並び替え!C$1:DF$1,諸費用並び替え!C34:DF34) -> 
D38: =_xlfn.XLOOKUP(E$7*10,諸費用並び替え!$C$1:$DF$1,諸費用並び替え!$C36:$DF36) ->  | E38: =_xlfn.XLOOKUP(E$7*10+IF(RIGHT(E$5,4)="+ローン",2,IF(RIGHT(E$5,3)="プラス",3,1)),諸費用並び替え!$C$1:$DF$1,諸費用並び替え!$C36:$DF36) ->  | F38: =_xlfn.XLOOKUP(G$7*10,諸費用並び替え!$C$1:$DF$1,諸費用並び替え!$C36:$DF36) ->  | G38: =IF(G$8="",0,_xlfn.XLOOKUP(G$7*10+IF(RIGHT(G$5,4)="+ローン",2,IF(RIGHT(G$5,3)="プラス",3,1)),諸費用並び替え!$C$1:$DF$1,諸費用並び替え!$C36:$DF36)) ->  | H38: =_xlfn.XLOOKUP(I$7*10,諸費用並び替え!$C$1:$DF$1,諸費用並び替え!$C36:$DF36) ->  | I38: =_xlfn.XLOOKUP(I$7*10+IF(RIGHT(I$5,4)="+ローン",2,IF(RIGHT(I$5,3)="プラス",3,1)),諸費用並び替え!$C$1:$DF$1,諸費用並び替え!$C36:$DF36) ->  | J38: =_xlfn.XLOOKUP(K$7*10,諸費用並び替え!C$1:DF$1,諸費用並び替え!C36:DF36) ->  | K38: =_xlfn.XLOOKUP(K$7*10+IF(RIGHT(K$5,4)="+ローン",2,IF(RIGHT(K$5,3)="プラス",3,1)),諸費用並び替え!C$1:DF$1,諸費用並び替え!C36:DF36) -> 
D39: =_xlfn.XLOOKUP(E$7*10,諸費用並び替え!$C$1:$DF$1,諸費用並び替え!$C37:$DF37) ->  | E39: =_xlfn.XLOOKUP(E$7*10+IF(RIGHT(E$5,4)="+ローン",2,IF(RIGHT(E$5,3)="プラス",3,1)),諸費用並び替え!$C$1:$DF$1,諸費用並び替え!$C37:$DF37) ->  | F39: =_xlfn.XLOOKUP(G$7*10,諸費用並び替え!$C$1:$DF$1,諸費用並び替え!$C37:$DF37) ->  | G39: =IF(G$8="",0,_xlfn.XLOOKUP(G$7*10+IF(RIGHT(G$5,4)="+ローン",2,IF(RIGHT(G$5,3)="プラス",3,1)),諸費用並び替え!$C$1:$DF$1,諸費用並び替え!$C37:$DF37)) ->  | H39: =_xlfn.XLOOKUP(I$7*10,諸費用並び替え!$C$1:$DF$1,諸費用並び替え!$C37:$DF37) ->  | I39: =_xlfn.XLOOKUP(I$7*10+IF(RIGHT(I$5,4)="+ローン",2,IF(RIGHT(I$5,3)="プラス",3,1)),諸費用並び替え!$C$1:$DF$1,諸費用並び替え!$C37:$DF37) ->  | J39: =_xlfn.XLOOKUP(K$7*10,諸費用並び替え!C$1:DF$1,諸費用並び替え!C37:DF37) ->  | K39: =_xlfn.XLOOKUP(K$7*10+IF(RIGHT(K$5,4)="+ローン",2,IF(RIGHT(K$5,3)="プラス",3,1)),諸費用並び替え!C$1:DF$1,諸費用並び替え!C37:DF37) -> 
D41: =_xlfn.XLOOKUP(E$7*10,諸費用並び替え!$C$1:$DF$1,諸費用並び替え!$C39:$DF39) ->  | E41: =_xlfn.XLOOKUP(E$7*10+IF(RIGHT(E$5,4)="+ローン",2,IF(RIGHT(E$5,3)="プラス",3,1)),諸費用並び替え!$C$1:$DF$1,諸費用並び替え!$C39:$DF39) ->  | F41: =_xlfn.XLOOKUP(G$7*10,諸費用並び替え!$C$1:$DF$1,諸費用並び替え!$C39:$DF39) ->  | G41: =IF(G$8="",0,_xlfn.XLOOKUP(G$7*10+IF(RIGHT(G$5,4)="+ローン",2,IF(RIGHT(G$5,3)="プラス",3,1)),諸費用並び替え!$C$1:$DF$1,諸費用並び替え!$C39:$DF39)) ->  | H41: =_xlfn.XLOOKUP(I$7*10,諸費用並び替え!$C$1:$DF$1,諸費用並び替え!$C39:$DF39) ->  | I41: =_xlfn.XLOOKUP(I$7*10+IF(RIGHT(I$5,4)="+ローン",2,IF(RIGHT(I$5,3)="プラス",3,1)),諸費用並び替え!$C$1:$DF$1,諸費用並び替え!$C39:$DF39) ->  | J41: =_xlfn.XLOOKUP(K$7*10,諸費用並び替え!C$1:DF$1,諸費用並び替え!C39:DF39) ->  | K41: =_xlfn.XLOOKUP(K$7*10+IF(RIGHT(K$5,4)="+ローン",2,IF(RIGHT(K$5,3)="プラス",3,1)),諸費用並び替え!C$1:DF$1,諸費用並び替え!C39:DF39) -> 
D42: =_xlfn.XLOOKUP(E$7*10,諸費用並び替え!$C$1:$DF$1,諸費用並び替え!$C40:$DF40) ->  | E42: =_xlfn.XLOOKUP(E$7*10+IF(RIGHT(E$5,4)="+ローン",2,IF(RIGHT(E$5,3)="プラス",3,1)),諸費用並び替え!$C$1:$DF$1,諸費用並び替え!$C40:$DF40) ->  | F42: =_xlfn.XLOOKUP(G$7*10,諸費用並び替え!$C$1:$DF$1,諸費用並び替え!$C40:$DF40) ->  | G42: =IF(G$8="",0,_xlfn.XLOOKUP(G$7*10+IF(RIGHT(G$5,4)="+ローン",2,IF(RIGHT(G$5,3)="プラス",3,1)),諸費用並び替え!$C$1:$DF$1,諸費用並び替え!$C40:$DF40)) ->  | H42: =_xlfn.XLOOKUP(I$7*10,諸費用並び替え!$C$1:$DF$1,諸費用並び替え!$C40:$DF40) ->  | I42: =_xlfn.XLOOKUP(I$7*10+IF(RIGHT(I$5,4)="+ローン",2,IF(RIGHT(I$5,3)="プラス",3,1)),諸費用並び替え!$C$1:$DF$1,諸費用並び替え!$C40:$DF40) ->  | J42: =_xlfn.XLOOKUP(K$7*10,諸費用並び替え!C$1:DF$1,諸費用並び替え!C40:DF40) ->  | K42: =_xlfn.XLOOKUP(K$7*10+IF(RIGHT(K$5,4)="+ローン",2,IF(RIGHT(K$5,3)="プラス",3,1)),諸費用並び替え!C$1:DF$1,諸費用並び替え!C40:DF40) -> 
D43: =_xlfn.XLOOKUP(E$7*10,諸費用並び替え!$C$1:$DF$1,諸費用並び替え!$C41:$DF41) ->  | E43: =_xlfn.XLOOKUP(E$7*10+IF(RIGHT(E$5,4)="+ローン",2,IF(RIGHT(E$5,3)="プラス",3,1)),諸費用並び替え!$C$1:$DF$1,諸費用並び替え!$C41:$DF41) ->  | F43: =_xlfn.XLOOKUP(G$7*10,諸費用並び替え!$C$1:$DF$1,諸費用並び替え!$C41:$DF41) ->  | G43: =IF(G$8="",0,_xlfn.XLOOKUP(G$7*10+IF(RIGHT(G$5,4)="+ローン",2,IF(RIGHT(G$5,3)="プラス",3,1)),諸費用並び替え!$C$1:$DF$1,諸費用並び替え!$C41:$DF41)) ->  | H43: =_xlfn.XLOOKUP(I$7*10,諸費用並び替え!$C$1:$DF$1,諸費用並び替え!$C41:$DF41) ->  | I43: =_xlfn.XLOOKUP(I$7*10+IF(RIGHT(I$5,4)="+ローン",2,IF(RIGHT(I$5,3)="プラス",3,1)),諸費用並び替え!$C$1:$DF$1,諸費用並び替え!$C41:$DF41) ->  | J43: =_xlfn.XLOOKUP(K$7*10,諸費用並び替え!C$1:DF$1,諸費用並び替え!C41:DF41) ->  | K43: =_xlfn.XLOOKUP(K$7*10+IF(RIGHT(K$5,4)="+ローン",2,IF(RIGHT(K$5,3)="プラス",3,1)),諸費用並び替え!C$1:DF$1,諸費用並び替え!C41:DF41) -> 
B46: 住宅建設 | C46: 契約時 | D46: =_xlfn.XLOOKUP(E$7*10,諸費用並び替え!$C$1:$DF$1,諸費用並び替え!$C44:$DF44) ->  | E46: =_xlfn.XLOOKUP(E$7*10+IF(RIGHT(E$5,4)="+ローン",2,IF(RIGHT(E$5,3)="プラス",3,1)),諸費用並び替え!$C$1:$DF$1,諸費用並び替え!$C44:$DF44) ->  | F46: =_xlfn.XLOOKUP(G$7*10,諸費用並び替え!$C$1:$DF$1,諸費用並び替え!$C44:$DF44) ->  | G46: =IF(G$8="",0,_xlfn.XLOOKUP(G$7*10+IF(RIGHT(G$5,4)="+ローン",2,IF(RIGHT(G$5,3)="プラス",3,1)),諸費用並び替え!$C$1:$DF$1,諸費用並び替え!$C44:$DF44)) ->  | H46: =_xlfn.XLOOKUP(I$7*10,諸費用並び替え!$C$1:$DF$1,諸費用並び替え!$C44:$DF44) ->  | I46: =_xlfn.XLOOKUP(I$7*10+IF(RIGHT(I$5,4)="+ローン",2,IF(RIGHT(I$5,3)="プラス",3,1)),諸費用並び替え!$C$1:$DF$1,諸費用並び替え!$C44:$DF44) ->  | J46: =_xlfn.XLOOKUP(K$7*10,諸費用並び替え!C$1:DF$1,諸費用並び替え!C44:DF44) ->  | K46: =IF(K8="",0,_xlfn.XLOOKUP(K$7*10+IF(RIGHT(K$5,4)="+ローン",2,IF(RIGHT(K$5,3)="プラス",3,1)),諸費用並び替え!C$1:DF$1,諸費用並び替え!C44:DF44)) -> 
B47: または工事
D48: =_xlfn.XLOOKUP(E$7*10,諸費用並び替え!$C$1:$DF$1,諸費用並び替え!$C46:$DF46) ->  | E48: =_xlfn.XLOOKUP(E$7*10+IF(RIGHT(E$5,4)="+ローン",2,IF(RIGHT(E$5,3)="プラス",3,1)),諸費用並び替え!$C$1:$DF$1,諸費用並び替え!$C46:$DF46) ->  | F48: =_xlfn.XLOOKUP(G$7*10,諸費用並び替え!$C$1:$DF$1,諸費用並び替え!$C46:$DF46) ->  | G48: =IF(G$8="",0,_xlfn.XLOOKUP(G$7*10+IF(RIGHT(G$5,4)="+ローン",2,IF(RIGHT(G$5,3)="プラス",3,1)),諸費用並び替え!$C$1:$DF$1,諸費用並び替え!$C46:$DF46)) ->  | H48: =_xlfn.XLOOKUP(I$7*10,諸費用並び替え!$C$1:$DF$1,諸費用並び替え!$C46:$DF46) ->  | I48: =_xlfn.XLOOKUP(I$7*10+IF(RIGHT(I$5,4)="+ローン",2,IF(RIGHT(I$5,3)="プラス",3,1)),諸費用並び替え!$C$1:$DF$1,諸費用並び替え!$C46:$DF46) ->  | J48: =_xlfn.XLOOKUP(K$7*10,諸費用並び替え!C$1:DF$1,諸費用並び替え!C46:DF46) ->  | K48: =IF(K8="",0,_xlfn.XLOOKUP(K$7*10+IF(RIGHT(K$5,4)="+ローン",2,IF(RIGHT(K$5,3)="プラス",3,1)),諸費用並び替え!C$1:DF$1,諸費用並び替え!C46:DF46)) -> 
D49: =_xlfn.XLOOKUP(E$7*10,諸費用並び替え!$C$1:$DF$1,諸費用並び替え!$C47:$DF47) ->  | E49: =_xlfn.XLOOKUP(E$7*10+IF(RIGHT(E$5,4)="+ローン",2,IF(RIGHT(E$5,3)="プラス",3,1)),諸費用並び替え!$C$1:$DF$1,諸費用並び替え!$C47:$DF47) ->  | F49: =_xlfn.XLOOKUP(G$7*10,諸費用並び替え!$C$1:$DF$1,諸費用並び替え!$C47:$DF47) ->  | G49: =IF(G$8="",0,_xlfn.XLOOKUP(G$7*10+IF(RIGHT(G$5,4)="+ローン",2,IF(RIGHT(G$5,3)="プラス",3,1)),諸費用並び替え!$C$1:$DF$1,諸費用並び替え!$C47:$DF47)) ->  | H49: =_xlfn.XLOOKUP(I$7*10,諸費用並び替え!$C$1:$DF$1,諸費用並び替え!$C47:$DF47) ->  | I49: =_xlfn.XLOOKUP(I$7*10+IF(RIGHT(I$5,4)="+ローン",2,IF(RIGHT(I$5,3)="プラス",3,1)),諸費用並び替え!$C$1:$DF$1,諸費用並び替え!$C47:$DF47) ->  | J49: =_xlfn.XLOOKUP(K$7*10,諸費用並び替え!C$1:DF$1,諸費用並び替え!C47:DF47) ->  | K49: =IF(K8="",0,_xlfn.XLOOKUP(K$7*10+IF(RIGHT(K$5,4)="+ローン",2,IF(RIGHT(K$5,3)="プラス",3,1)),諸費用並び替え!C$1:DF$1,諸費用並び替え!C47:DF47)) -> 
D51: =_xlfn.XLOOKUP(E$7*10,諸費用並び替え!$C$1:$DF$1,諸費用並び替え!$C49:$DF49) ->  | E51: =_xlfn.XLOOKUP(E$7*10+IF(RIGHT(E$5,4)="+ローン",2,IF(RIGHT(E$5,3)="プラス",3,1)),諸費用並び替え!$C$1:$DF$1,諸費用並び替え!$C49:$DF49) ->  | F51: =_xlfn.XLOOKUP(G$7*10,諸費用並び替え!$C$1:$DF$1,諸費用並び替え!$C49:$DF49) ->  | G51: =IF(G$8="",0,_xlfn.XLOOKUP(G$7*10+IF(RIGHT(G$5,4)="+ローン",2,IF(RIGHT(G$5,3)="プラス",3,1)),諸費用並び替え!$C$1:$DF$1,諸費用並び替え!$C49:$DF49)) ->  | H51: =_xlfn.XLOOKUP(I$7*10,諸費用並び替え!$C$1:$DF$1,諸費用並び替え!$C49:$DF49) ->  | I51: =_xlfn.XLOOKUP(I$7*10+IF(RIGHT(I$5,4)="+ローン",2,IF(RIGHT(I$5,3)="プラス",3,1)),諸費用並び替え!$C$1:$DF$1,諸費用並び替え!$C49:$DF49) ->  | J51: =_xlfn.XLOOKUP(K$7*10,諸費用並び替え!C$1:DF$1,諸費用並び替え!C49:DF49) ->  | K51: =IF(K8="",0,_xlfn.XLOOKUP(K$7*10+IF(RIGHT(K$5,4)="+ローン",2,IF(RIGHT(K$5,3)="プラス",3,1)),諸費用並び替え!C$1:DF$1,諸費用並び替え!C49:DF49)) -> 
D52: =_xlfn.XLOOKUP(E$7*10,諸費用並び替え!$C$1:$DF$1,諸費用並び替え!$C50:$DF50) ->  | E52: =_xlfn.XLOOKUP(E$7*10+IF(RIGHT(E$5,4)="+ローン",2,IF(RIGHT(E$5,3)="プラス",3,1)),諸費用並び替え!$C$1:$DF$1,諸費用並び替え!$C50:$DF50) ->  | F52: =_xlfn.XLOOKUP(G$7*10,諸費用並び替え!$C$1:$DF$1,諸費用並び替え!$C50:$DF50) ->  | G52: =IF(G$8="",0,_xlfn.XLOOKUP(G$7*10+IF(RIGHT(G$5,4)="+ローン",2,IF(RIGHT(G$5,3)="プラス",3,1)),諸費用並び替え!$C$1:$DF$1,諸費用並び替え!$C50:$DF50)) ->  | H52: =_xlfn.XLOOKUP(I$7*10,諸費用並び替え!$C$1:$DF$1,諸費用並び替え!$C50:$DF50) ->  | I52: =_xlfn.XLOOKUP(I$7*10+IF(RIGHT(I$5,4)="+ローン",2,IF(RIGHT(I$5,3)="プラス",3,1)),諸費用並び替え!$C$1:$DF$1,諸費用並び替え!$C50:$DF50) ->  | J52: =_xlfn.XLOOKUP(K$7*10,諸費用並び替え!C$1:DF$1,諸費用並び替え!C50:DF50) ->  | K52: =IF(K8="",0,_xlfn.XLOOKUP(K$7*10+IF(RIGHT(K$5,4)="+ローン",2,IF(RIGHT(K$5,3)="プラス",3,1)),諸費用並び替え!C$1:DF$1,諸費用並び替え!C50:DF50)) -> 
D53: =_xlfn.XLOOKUP(E$7*10,諸費用並び替え!$C$1:$DF$1,諸費用並び替え!$C51:$DF51) ->  | E53: =_xlfn.XLOOKUP(E$7*10+IF(RIGHT(E$5,4)="+ローン",2,IF(RIGHT(E$5,3)="プラス",3,1)),諸費用並び替え!$C$1:$DF$1,諸費用並び替え!$C51:$DF51) ->  | F53: =_xlfn.XLOOKUP(G$7*10,諸費用並び替え!$C$1:$DF$1,諸費用並び替え!$C51:$DF51) ->  | G53: =IF(G$8="",0,_xlfn.XLOOKUP(G$7*10+IF(RIGHT(G$5,4)="+ローン",2,IF(RIGHT(G$5,3)="プラス",3,1)),諸費用並び替え!$C$1:$DF$1,諸費用並び替え!$C51:$DF51)) ->  | H53: =_xlfn.XLOOKUP(I$7*10,諸費用並び替え!$C$1:$DF$1,諸費用並び替え!$C51:$DF51) ->  | I53: =_xlfn.XLOOKUP(I$7*10+IF(RIGHT(I$5,4)="+ローン",2,IF(RIGHT(I$5,3)="プラス",3,1)),諸費用並び替え!$C$1:$DF$1,諸費用並び替え!$C51:$DF51) ->  | J53: =_xlfn.XLOOKUP(K$7*10,諸費用並び替え!C$1:DF$1,諸費用並び替え!C51:DF51) ->  | K53: =IF(K8="",0,_xlfn.XLOOKUP(K$7*10+IF(RIGHT(K$5,4)="+ローン",2,IF(RIGHT(K$5,3)="プラス",3,1)),諸費用並び替え!C$1:DF$1,諸費用並び替え!C51:DF51)) -> 
D54: =_xlfn.XLOOKUP(E$7*10,諸費用並び替え!$C$1:$DF$1,諸費用並び替え!$C52:$DF52) ->  | E54: =_xlfn.XLOOKUP(E$7*10+IF(RIGHT(E$5,4)="+ローン",2,IF(RIGHT(E$5,3)="プラス",3,1)),諸費用並び替え!$C$1:$DF$1,諸費用並び替え!$C52:$DF52) ->  | F54: =_xlfn.XLOOKUP(G$7*10,諸費用並び替え!$C$1:$DF$1,諸費用並び替え!$C52:$DF52) ->  | G54: =IF(G$8="",0,_xlfn.XLOOKUP(G$7*10+IF(RIGHT(G$5,4)="+ローン",2,IF(RIGHT(G$5,3)="プラス",3,1)),諸費用並び替え!$C$1:$DF$1,諸費用並び替え!$C52:$DF52)) ->  | H54: =_xlfn.XLOOKUP(I$7*10,諸費用並び替え!$C$1:$DF$1,諸費用並び替え!$C52:$DF52) ->  | I54: =_xlfn.XLOOKUP(I$7*10+IF(RIGHT(I$5,4)="+ローン",2,IF(RIGHT(I$5,3)="プラス",3,1)),諸費用並び替え!$C$1:$DF$1,諸費用並び替え!$C52:$DF52) ->  | J54: =_xlfn.XLOOKUP(K$7*10,諸費用並び替え!C$1:DF$1,諸費用並び替え!C52:DF52) ->  | K54: =IF(K8="",0,_xlfn.XLOOKUP(K$7*10+IF(RIGHT(K$5,4)="+ローン",2,IF(RIGHT(K$5,3)="プラス",3,1)),諸費用並び替え!C$1:DF$1,諸費用並び替え!C52:DF52)) -> 
C56: 着工時 | D56: =_xlfn.XLOOKUP(E$7*10,諸費用並び替え!$C$1:$DF$1,諸費用並び替え!$C55:$DF55) ->  | E56: =_xlfn.XLOOKUP(E$7*10+IF(RIGHT(E$5,4)="+ローン",2,IF(RIGHT(E$5,3)="プラス",3,1)),諸費用並び替え!$C$1:$DF$1,諸費用並び替え!$C55:$DF55) ->  | F56: =_xlfn.XLOOKUP(G$7*10,諸費用並び替え!$C$1:$DF$1,諸費用並び替え!$C55:$DF55) ->  | G56: =IF(G$8="",0,_xlfn.XLOOKUP(G$7*10+IF(RIGHT(G$5,4)="+ローン",2,IF(RIGHT(G$5,3)="プラス",3,1)),諸費用並び替え!$C$1:$DF$1,諸費用並び替え!$C55:$DF55)) ->  | H56: =_xlfn.XLOOKUP(I$7*10,諸費用並び替え!$C$1:$DF$1,諸費用並び替え!$C55:$DF55) ->  | I56: =_xlfn.XLOOKUP(I$7*10+IF(RIGHT(I$5,4)="+ローン",2,IF(RIGHT(I$5,3)="プラス",3,1)),諸費用並び替え!$C$1:$DF$1,諸費用並び替え!$C55:$DF55) ->  | J56: =_xlfn.XLOOKUP(K$7*10,諸費用並び替え!C$1:DF$1,諸費用並び替え!C55:DF55) ->  | K56: =IF(K8="",0,_xlfn.XLOOKUP(K$7*10+IF(RIGHT(K$5,4)="+ローン",2,IF(RIGHT(K$5,3)="プラス",3,1)),諸費用並び替え!C$1:DF$1,諸費用並び替え!C55:DF55)) -> 
D58: =_xlfn.XLOOKUP(E$7*10,諸費用並び替え!$C$1:$DF$1,諸費用並び替え!$C57:$DF57) ->  | E58: =_xlfn.XLOOKUP(E$7*10+IF(RIGHT(E$5,4)="+ローン",2,IF(RIGHT(E$5,3)="プラス",3,1)),諸費用並び替え!$C$1:$DF$1,諸費用並び替え!$C57:$DF57) ->  | F58: =_xlfn.XLOOKUP(G$7*10,諸費用並び替え!$C$1:$DF$1,諸費用並び替え!$C57:$DF57) ->  | G58: =IF(G$8="",0,_xlfn.XLOOKUP(G$7*10+IF(RIGHT(G$5,4)="+ローン",2,IF(RIGHT(G$5,3)="プラス",3,1)),諸費用並び替え!$C$1:$DF$1,諸費用並び替え!$C57:$DF57)) ->  | H58: =_xlfn.XLOOKUP(I$7*10,諸費用並び替え!$C$1:$DF$1,諸費用並び替え!$C57:$DF57) ->  | I58: =_xlfn.XLOOKUP(I$7*10+IF(RIGHT(I$5,4)="+ローン",2,IF(RIGHT(I$5,3)="プラス",3,1)),諸費用並び替え!$C$1:$DF$1,諸費用並び替え!$C57:$DF57) ->  | J58: =_xlfn.XLOOKUP(K$7*10,諸費用並び替え!C$1:DF$1,諸費用並び替え!C57:DF57) ->  | K58: =IF(K8="",0,_xlfn.XLOOKUP(K$7*10+IF(RIGHT(K$5,4)="+ローン",2,IF(RIGHT(K$5,3)="プラス",3,1)),諸費用並び替え!C$1:DF$1,諸費用並び替え!C57:DF57)) -> 
D59: =_xlfn.XLOOKUP(E$7*10,諸費用並び替え!$C$1:$DF$1,諸費用並び替え!$C58:$DF58) ->  | E59: =_xlfn.XLOOKUP(E$7*10+IF(RIGHT(E$5,4)="+ローン",2,IF(RIGHT(E$5,3)="プラス",3,1)),諸費用並び替え!$C$1:$DF$1,諸費用並び替え!$C58:$DF58) ->  | F59: =_xlfn.XLOOKUP(G$7*10,諸費用並び替え!$C$1:$DF$1,諸費用並び替え!$C58:$DF58) ->  | G59: =IF(G$8="",0,_xlfn.XLOOKUP(G$7*10+IF(RIGHT(G$5,4)="+ローン",2,IF(RIGHT(G$5,3)="プラス",3,1)),諸費用並び替え!$C$1:$DF$1,諸費用並び替え!$C58:$DF58)) ->  | H59: =_xlfn.XLOOKUP(I$7*10,諸費用並び替え!$C$1:$DF$1,諸費用並び替え!$C58:$DF58) ->  | I59: =_xlfn.XLOOKUP(I$7*10+IF(RIGHT(I$5,4)="+ローン",2,IF(RIGHT(I$5,3)="プラス",3,1)),諸費用並び替え!$C$1:$DF$1,諸費用並び替え!$C58:$DF58) ->  | J59: =_xlfn.XLOOKUP(K$7*10,諸費用並び替え!C$1:DF$1,諸費用並び替え!C58:DF58) ->  | K59: =IF(K8="",0,_xlfn.XLOOKUP(K$7*10+IF(RIGHT(K$5,4)="+ローン",2,IF(RIGHT(K$5,3)="プラス",3,1)),諸費用並び替え!C$1:DF$1,諸費用並び替え!C58:DF58)) -> 
D61: =_xlfn.XLOOKUP(E$7*10,諸費用並び替え!$C$1:$DF$1,諸費用並び替え!$C60:$DF60) ->  | E61: =_xlfn.XLOOKUP(E$7*10+IF(RIGHT(E$5,4)="+ローン",2,IF(RIGHT(E$5,3)="プラス",3,1)),諸費用並び替え!$C$1:$DF$1,諸費用並び替え!$C60:$DF60) ->  | F61: =_xlfn.XLOOKUP(G$7*10,諸費用並び替え!$C$1:$DF$1,諸費用並び替え!$C60:$DF60) ->  | G61: =IF(G$8="",0,_xlfn.XLOOKUP(G$7*10+IF(RIGHT(G$5,4)="+ローン",2,IF(RIGHT(G$5,3)="プラス",3,1)),諸費用並び替え!$C$1:$DF$1,諸費用並び替え!$C60:$DF60)) ->  | H61: =_xlfn.XLOOKUP(I$7*10,諸費用並び替え!$C$1:$DF$1,諸費用並び替え!$C60:$DF60) ->  | I61: =_xlfn.XLOOKUP(I$7*10+IF(RIGHT(I$5,4)="+ローン",2,IF(RIGHT(I$5,3)="プラス",3,1)),諸費用並び替え!$C$1:$DF$1,諸費用並び替え!$C60:$DF60) ->  | J61: =_xlfn.XLOOKUP(K$7*10,諸費用並び替え!C$1:DF$1,諸費用並び替え!C60:DF60) ->  | K61: =IF(K8="",0,_xlfn.XLOOKUP(K$7*10+IF(RIGHT(K$5,4)="+ローン",2,IF(RIGHT(K$5,3)="プラス",3,1)),諸費用並び替え!C$1:DF$1,諸費用並び替え!C60:DF60)) -> 
D62: =_xlfn.XLOOKUP(E$7*10,諸費用並び替え!$C$1:$DF$1,諸費用並び替え!$C61:$DF61) ->  | E62: =_xlfn.XLOOKUP(E$7*10+IF(RIGHT(E$5,4)="+ローン",2,IF(RIGHT(E$5,3)="プラス",3,1)),諸費用並び替え!$C$1:$DF$1,諸費用並び替え!$C61:$DF61) ->  | F62: =_xlfn.XLOOKUP(G$7*10,諸費用並び替え!$C$1:$DF$1,諸費用並び替え!$C61:$DF61) ->  | G62: =IF(G$8="",0,_xlfn.XLOOKUP(G$7*10+IF(RIGHT(G$5,4)="+ローン",2,IF(RIGHT(G$5,3)="プラス",3,1)),諸費用並び替え!$C$1:$DF$1,諸費用並び替え!$C61:$DF61)) ->  | H62: =_xlfn.XLOOKUP(I$7*10,諸費用並び替え!$C$1:$DF$1,諸費用並び替え!$C61:$DF61) ->  | I62: =_xlfn.XLOOKUP(I$7*10+IF(RIGHT(I$5,4)="+ローン",2,IF(RIGHT(I$5,3)="プラス",3,1)),諸費用並び替え!$C$1:$DF$1,諸費用並び替え!$C61:$DF61) ->  | J62: =_xlfn.XLOOKUP(K$7*10,諸費用並び替え!C$1:DF$1,諸費用並び替え!C61:DF61) ->  | K62: =IF(K8="",0,_xlfn.XLOOKUP(K$7*10+IF(RIGHT(K$5,4)="+ローン",2,IF(RIGHT(K$5,3)="プラス",3,1)),諸費用並び替え!C$1:DF$1,諸費用並び替え!C61:DF61)) -> 
D63: =_xlfn.XLOOKUP(E$7*10,諸費用並び替え!$C$1:$DF$1,諸費用並び替え!$C62:$DF62) ->  | E63: =_xlfn.XLOOKUP(E$7*10+IF(RIGHT(E$5,4)="+ローン",2,IF(RIGHT(E$5,3)="プラス",3,1)),諸費用並び替え!$C$1:$DF$1,諸費用並び替え!$C62:$DF62) ->  | F63: =_xlfn.XLOOKUP(G$7*10,諸費用並び替え!$C$1:$DF$1,諸費用並び替え!$C62:$DF62) ->  | G63: =IF(G$8="",0,_xlfn.XLOOKUP(G$7*10+IF(RIGHT(G$5,4)="+ローン",2,IF(RIGHT(G$5,3)="プラス",3,1)),諸費用並び替え!$C$1:$DF$1,諸費用並び替え!$C62:$DF62)) ->  | H63: =_xlfn.XLOOKUP(I$7*10,諸費用並び替え!$C$1:$DF$1,諸費用並び替え!$C62:$DF62) ->  | I63: =_xlfn.XLOOKUP(I$7*10+IF(RIGHT(I$5,4)="+ローン",2,IF(RIGHT(I$5,3)="プラス",3,1)),諸費用並び替え!$C$1:$DF$1,諸費用並び替え!$C62:$DF62) ->  | J63: =_xlfn.XLOOKUP(K$7*10,諸費用並び替え!C$1:DF$1,諸費用並び替え!C62:DF62) ->  | K63: =IF(K8="",0,_xlfn.XLOOKUP(K$7*10+IF(RIGHT(K$5,4)="+ローン",2,IF(RIGHT(K$5,3)="プラス",3,1)),諸費用並び替え!C$1:DF$1,諸費用並び替え!C62:DF62)) -> 
C65: 中間時 | D65: =_xlfn.XLOOKUP(E$7*10,諸費用並び替え!$C$1:$DF$1,諸費用並び替え!$C66:$DF66) ->  | E65: =_xlfn.XLOOKUP(E$7*10+IF(RIGHT(E$5,4)="+ローン",2,IF(RIGHT(E$5,3)="プラス",3,1)),諸費用並び替え!$C$1:$DF$1,諸費用並び替え!$C66:$DF66) ->  | F65: =_xlfn.XLOOKUP(G$7*10,諸費用並び替え!$C$1:$DF$1,諸費用並び替え!$C66:$DF66) ->  | G65: =IF(G$8="",0,_xlfn.XLOOKUP(G$7*10+IF(RIGHT(G$5,4)="+ローン",2,IF(RIGHT(G$5,3)="プラス",3,1)),諸費用並び替え!$C$1:$DF$1,諸費用並び替え!$C66:$DF66)) ->  | H65: =_xlfn.XLOOKUP(I$7*10,諸費用並び替え!$C$1:$DF$1,諸費用並び替え!$C66:$DF66) ->  | I65: =_xlfn.XLOOKUP(I$7*10+IF(RIGHT(I$5,4)="+ローン",2,IF(RIGHT(I$5,3)="プラス",3,1)),諸費用並び替え!$C$1:$DF$1,諸費用並び替え!$C66:$DF66) ->  | J65: =_xlfn.XLOOKUP(K$7*10,諸費用並び替え!C$1:DF$1,諸費用並び替え!C66:DF66) ->  | K65: =IF(K8="",0,_xlfn.XLOOKUP(K$7*10+IF(RIGHT(K$5,4)="+ローン",2,IF(RIGHT(K$5,3)="プラス",3,1)),諸費用並び替え!C$1:DF$1,諸費用並び替え!C66:DF66)) -> 
D67: =_xlfn.XLOOKUP(E$7*10,諸費用並び替え!$C$1:$DF$1,諸費用並び替え!$C68:$DF68) ->  | E67: =_xlfn.XLOOKUP(E$7*10+IF(RIGHT(E$5,4)="+ローン",2,IF(RIGHT(E$5,3)="プラス",3,1)),諸費用並び替え!$C$1:$DF$1,諸費用並び替え!$C68:$DF68) ->  | F67: =_xlfn.XLOOKUP(G$7*10,諸費用並び替え!$C$1:$DF$1,諸費用並び替え!$C68:$DF68) ->  | G67: =IF(G$8="",0,_xlfn.XLOOKUP(G$7*10+IF(RIGHT(G$5,4)="+ローン",2,IF(RIGHT(G$5,3)="プラス",3,1)),諸費用並び替え!$C$1:$DF$1,諸費用並び替え!$C68:$DF68)) ->  | H67: =_xlfn.XLOOKUP(I$7*10,諸費用並び替え!$C$1:$DF$1,諸費用並び替え!$C68:$DF68) ->  | I67: =_xlfn.XLOOKUP(I$7*10+IF(RIGHT(I$5,4)="+ローン",2,IF(RIGHT(I$5,3)="プラス",3,1)),諸費用並び替え!$C$1:$DF$1,諸費用並び替え!$C68:$DF68) ->  | J67: =_xlfn.XLOOKUP(K$7*10,諸費用並び替え!C$1:DF$1,諸費用並び替え!C68:DF68) ->  | K67: =IF(K8="",0,_xlfn.XLOOKUP(K$7*10+IF(RIGHT(K$5,4)="+ローン",2,IF(RIGHT(K$5,3)="プラス",3,1)),諸費用並び替え!C$1:DF$1,諸費用並び替え!C68:DF68)) -> 
D68: =_xlfn.XLOOKUP(E$7*10,諸費用並び替え!$C$1:$DF$1,諸費用並び替え!$C69:$DF69) ->  | E68: =_xlfn.XLOOKUP(E$7*10+IF(RIGHT(E$5,4)="+ローン",2,IF(RIGHT(E$5,3)="プラス",3,1)),諸費用並び替え!$C$1:$DF$1,諸費用並び替え!$C69:$DF69) ->  | F68: =_xlfn.XLOOKUP(G$7*10,諸費用並び替え!$C$1:$DF$1,諸費用並び替え!$C69:$DF69) ->  | G68: =IF(G$8="",0,_xlfn.XLOOKUP(G$7*10+IF(RIGHT(G$5,4)="+ローン",2,IF(RIGHT(G$5,3)="プラス",3,1)),諸費用並び替え!$C$1:$DF$1,諸費用並び替え!$C69:$DF69)) ->  | H68: =_xlfn.XLOOKUP(I$7*10,諸費用並び替え!$C$1:$DF$1,諸費用並び替え!$C69:$DF69) ->  | I68: =_xlfn.XLOOKUP(I$7*10+IF(RIGHT(I$5,4)="+ローン",2,IF(RIGHT(I$5,3)="プラス",3,1)),諸費用並び替え!$C$1:$DF$1,諸費用並び替え!$C69:$DF69) ->  | J68: =_xlfn.XLOOKUP(K$7*10,諸費用並び替え!C$1:DF$1,諸費用並び替え!C69:DF69) ->  | K68: =IF(K8="",0,_xlfn.XLOOKUP(K$7*10+IF(RIGHT(K$5,4)="+ローン",2,IF(RIGHT(K$5,3)="プラス",3,1)),諸費用並び替え!C$1:DF$1,諸費用並び替え!C69:DF69)) -> 
D70: =_xlfn.XLOOKUP(E$7*10,諸費用並び替え!$C$1:$DF$1,諸費用並び替え!$C71:$DF71) ->  | E70: =_xlfn.XLOOKUP(E$7*10+IF(RIGHT(E$5,4)="+ローン",2,IF(RIGHT(E$5,3)="プラス",3,1)),諸費用並び替え!$C$1:$DF$1,諸費用並び替え!$C71:$DF71) ->  | F70: =_xlfn.XLOOKUP(G$7*10,諸費用並び替え!$C$1:$DF$1,諸費用並び替え!$C71:$DF71) ->  | G70: =IF(G$8="",0,_xlfn.XLOOKUP(G$7*10+IF(RIGHT(G$5,4)="+ローン",2,IF(RIGHT(G$5,3)="プラス",3,1)),諸費用並び替え!$C$1:$DF$1,諸費用並び替え!$C71:$DF71)) ->  | H70: =_xlfn.XLOOKUP(I$7*10,諸費用並び替え!$C$1:$DF$1,諸費用並び替え!$C71:$DF71) ->  | I70: =_xlfn.XLOOKUP(I$7*10+IF(RIGHT(I$5,4)="+ローン",2,IF(RIGHT(I$5,3)="プラス",3,1)),諸費用並び替え!$C$1:$DF$1,諸費用並び替え!$C71:$DF71) ->  | J70: =_xlfn.XLOOKUP(K$7*10,諸費用並び替え!C$1:DF$1,諸費用並び替え!C71:DF71) ->  | K70: =IF(K$8="",0,_xlfn.XLOOKUP(K$7*10+IF(RIGHT(K$5,4)="+ローン",2,IF(RIGHT(K$5,3)="プラス",3,1)),諸費用並び替え!C$1:DF$1,諸費用並び替え!C71:DF71)) -> 
D71: =_xlfn.XLOOKUP(E$7*10,諸費用並び替え!$C$1:$DF$1,諸費用並び替え!$C72:$DF72) ->  | E71: =_xlfn.XLOOKUP(E$7*10+IF(RIGHT(E$5,4)="+ローン",2,IF(RIGHT(E$5,3)="プラス",3,1)),諸費用並び替え!$C$1:$DF$1,諸費用並び替え!$C72:$DF72) ->  | F71: =_xlfn.XLOOKUP(G$7*10,諸費用並び替え!$C$1:$DF$1,諸費用並び替え!$C72:$DF72) ->  | G71: =IF(G$8="",0,_xlfn.XLOOKUP(G$7*10+IF(RIGHT(G$5,4)="+ローン",2,IF(RIGHT(G$5,3)="プラス",3,1)),諸費用並び替え!$C$1:$DF$1,諸費用並び替え!$C72:$DF72)) ->  | H71: =_xlfn.XLOOKUP(I$7*10,諸費用並び替え!$C$1:$DF$1,諸費用並び替え!$C72:$DF72) ->  | I71: =_xlfn.XLOOKUP(I$7*10+IF(RIGHT(I$5,4)="+ローン",2,IF(RIGHT(I$5,3)="プラス",3,1)),諸費用並び替え!$C$1:$DF$1,諸費用並び替え!$C72:$DF72) ->  | J71: =_xlfn.XLOOKUP(K$7*10,諸費用並び替え!C$1:DF$1,諸費用並び替え!C72:DF72) ->  | K71: =IF(K$8="",0,_xlfn.XLOOKUP(K$7*10+IF(RIGHT(K$5,4)="+ローン",2,IF(RIGHT(K$5,3)="プラス",3,1)),諸費用並び替え!C$1:DF$1,諸費用並び替え!C72:DF72)) -> 
D72: =_xlfn.XLOOKUP(E$7*10,諸費用並び替え!$C$1:$DF$1,諸費用並び替え!$C73:$DF73) ->  | E72: =_xlfn.XLOOKUP(E$7*10+IF(RIGHT(E$5,4)="+ローン",2,IF(RIGHT(E$5,3)="プラス",3,1)),諸費用並び替え!$C$1:$DF$1,諸費用並び替え!$C73:$DF73) ->  | F72: =_xlfn.XLOOKUP(G$7*10,諸費用並び替え!$C$1:$DF$1,諸費用並び替え!$C73:$DF73) ->  | G72: =IF(G$8="",0,_xlfn.XLOOKUP(G$7*10+IF(RIGHT(G$5,4)="+ローン",2,IF(RIGHT(G$5,3)="プラス",3,1)),諸費用並び替え!$C$1:$DF$1,諸費用並び替え!$C73:$DF73)) ->  | H72: =_xlfn.XLOOKUP(I$7*10,諸費用並び替え!$C$1:$DF$1,諸費用並び替え!$C73:$DF73) ->  | I72: =_xlfn.XLOOKUP(I$7*10+IF(RIGHT(I$5,4)="+ローン",2,IF(RIGHT(I$5,3)="プラス",3,1)),諸費用並び替え!$C$1:$DF$1,諸費用並び替え!$C73:$DF73) ->  | J72: =_xlfn.XLOOKUP(K$7*10,諸費用並び替え!C$1:DF$1,諸費用並び替え!C73:DF73) ->  | K72: =IF(K$8="",0,_xlfn.XLOOKUP(K$7*10+IF(RIGHT(K$5,4)="+ローン",2,IF(RIGHT(K$5,3)="プラス",3,1)),諸費用並び替え!C$1:DF$1,諸費用並び替え!C73:DF73)) -> 
C74: 竣工前 | D74: =_xlfn.XLOOKUP(E$7*10,諸費用並び替え!$C$1:$DF$1,諸費用並び替え!$C76:$DF76) ->  | E74: =_xlfn.XLOOKUP(E$7*10+IF(RIGHT(E$5,4)="+ローン",2,IF(RIGHT(E$5,3)="プラス",3,1)),諸費用並び替え!$C$1:$DF$1,諸費用並び替え!$C76:$DF76) ->  | F74: =_xlfn.XLOOKUP(G$7*10,諸費用並び替え!$C$1:$DF$1,諸費用並び替え!$C76:$DF76) ->  | G74: =IF(G$8="",0,_xlfn.XLOOKUP(G$7*10+IF(RIGHT(G$5,4)="+ローン",2,IF(RIGHT(G$5,3)="プラス",3,1)),諸費用並び替え!$C$1:$DF$1,諸費用並び替え!$C76:$DF76)) ->  | H74: =_xlfn.XLOOKUP(I$7*10,諸費用並び替え!$C$1:$DF$1,諸費用並び替え!$C76:$DF76) ->  | I74: =_xlfn.XLOOKUP(I$7*10+IF(RIGHT(I$5,4)="+ローン",2,IF(RIGHT(I$5,3)="プラス",3,1)),諸費用並び替え!$C$1:$DF$1,諸費用並び替え!$C76:$DF76) ->  | J74: =_xlfn.XLOOKUP(K$7*10,諸費用並び替え!C$1:DF$1,諸費用並び替え!C76:DF76) ->  | K74: =IF(K$8="",0,_xlfn.XLOOKUP(K$7*10+IF(RIGHT(K$5,4)="+ローン",2,IF(RIGHT(K$5,3)="プラス",3,1)),諸費用並び替え!C$1:DF$1,諸費用並び替え!C76:DF76)) -> 
D76: =_xlfn.XLOOKUP(E$7*10,諸費用並び替え!$C$1:$DF$1,諸費用並び替え!$C78:$DF78) ->  | E76: =_xlfn.XLOOKUP(E$7*10+IF(RIGHT(E$5,4)="+ローン",2,IF(RIGHT(E$5,3)="プラス",3,1)),諸費用並び替え!$C$1:$DF$1,諸費用並び替え!$C78:$DF78) ->  | F76: =_xlfn.XLOOKUP(G$7*10,諸費用並び替え!$C$1:$DF$1,諸費用並び替え!$C78:$DF78) ->  | G76: =IF(G$8="",0,_xlfn.XLOOKUP(G$7*10+IF(RIGHT(G$5,4)="+ローン",2,IF(RIGHT(G$5,3)="プラス",3,1)),諸費用並び替え!$C$1:$DF$1,諸費用並び替え!$C78:$DF78)) ->  | H76: =_xlfn.XLOOKUP(I$7*10,諸費用並び替え!$C$1:$DF$1,諸費用並び替え!$C78:$DF78) ->  | I76: =_xlfn.XLOOKUP(I$7*10+IF(RIGHT(I$5,4)="+ローン",2,IF(RIGHT(I$5,3)="プラス",3,1)),諸費用並び替え!$C$1:$DF$1,諸費用並び替え!$C78:$DF78) ->  | J76: =_xlfn.XLOOKUP(K$7*10,諸費用並び替え!C$1:DF$1,諸費用並び替え!C78:DF78) ->  | K76: =IF(K$8="",0,_xlfn.XLOOKUP(K$7*10+IF(RIGHT(K$5,4)="+ローン",2,IF(RIGHT(K$5,3)="プラス",3,1)),諸費用並び替え!C$1:DF$1,諸費用並び替え!C78:DF78)) -> 
D77: =_xlfn.XLOOKUP(E$7*10,諸費用並び替え!$C$1:$DF$1,諸費用並び替え!$C79:$DF79) ->  | E77: =_xlfn.XLOOKUP(E$7*10+IF(RIGHT(E$5,4)="+ローン",2,IF(RIGHT(E$5,3)="プラス",3,1)),諸費用並び替え!$C$1:$DF$1,諸費用並び替え!$C79:$DF79) ->  | F77: =_xlfn.XLOOKUP(G$7*10,諸費用並び替え!$C$1:$DF$1,諸費用並び替え!$C79:$DF79) ->  | G77: =IF(G$8="",0,_xlfn.XLOOKUP(G$7*10+IF(RIGHT(G$5,4)="+ローン",2,IF(RIGHT(G$5,3)="プラス",3,1)),諸費用並び替え!$C$1:$DF$1,諸費用並び替え!$C79:$DF79)) ->  | H77: =_xlfn.XLOOKUP(I$7*10,諸費用並び替え!$C$1:$DF$1,諸費用並び替え!$C79:$DF79) ->  | I77: =_xlfn.XLOOKUP(I$7*10+IF(RIGHT(I$5,4)="+ローン",2,IF(RIGHT(I$5,3)="プラス",3,1)),諸費用並び替え!$C$1:$DF$1,諸費用並び替え!$C79:$DF79) ->  | J77: =_xlfn.XLOOKUP(K$7*10,諸費用並び替え!C$1:DF$1,諸費用並び替え!C79:DF79) ->  | K77: =IF(K$8="",0,_xlfn.XLOOKUP(K$7*10+IF(RIGHT(K$5,4)="+ローン",2,IF(RIGHT(K$5,3)="プラス",3,1)),諸費用並び替え!C$1:DF$1,諸費用並び替え!C79:DF79)) -> 
D79: =_xlfn.XLOOKUP(E$7*10,諸費用並び替え!$C$1:$DF$1,諸費用並び替え!$C81:$DF81) ->  | E79: =_xlfn.XLOOKUP(E$7*10+IF(RIGHT(E$5,4)="+ローン",2,IF(RIGHT(E$5,3)="プラス",3,1)),諸費用並び替え!$C$1:$DF$1,諸費用並び替え!$C81:$DF81) ->  | F79: =_xlfn.XLOOKUP(G$7*10,諸費用並び替え!$C$1:$DF$1,諸費用並び替え!$C81:$DF81) ->  | G79: =IF(G$8="",0,_xlfn.XLOOKUP(G$7*10+IF(RIGHT(G$5,4)="+ローン",2,IF(RIGHT(G$5,3)="プラス",3,1)),諸費用並び替え!$C$1:$DF$1,諸費用並び替え!$C81:$DF81)) ->  | H79: =_xlfn.XLOOKUP(I$7*10,諸費用並び替え!$C$1:$DF$1,諸費用並び替え!$C81:$DF81) ->  | I79: =_xlfn.XLOOKUP(I$7*10+IF(RIGHT(I$5,4)="+ローン",2,IF(RIGHT(I$5,3)="プラス",3,1)),諸費用並び替え!$C$1:$DF$1,諸費用並び替え!$C81:$DF81) ->  | J79: =_xlfn.XLOOKUP(K$7*10,諸費用並び替え!C$1:DF$1,諸費用並び替え!C81:DF81) ->  | K79: =IF(K$8="",0,_xlfn.XLOOKUP(K$7*10+IF(RIGHT(K$5,4)="+ローン",2,IF(RIGHT(K$5,3)="プラス",3,1)),諸費用並び替え!C$1:DF$1,諸費用並び替え!C81:DF81)) -> 
D80: =_xlfn.XLOOKUP(E$7*10,諸費用並び替え!$C$1:$DF$1,諸費用並び替え!$C82:$DF82) ->  | E80: =_xlfn.XLOOKUP(E$7*10+IF(RIGHT(E$5,4)="+ローン",2,IF(RIGHT(E$5,3)="プラス",3,1)),諸費用並び替え!$C$1:$DF$1,諸費用並び替え!$C82:$DF82) ->  | F80: =_xlfn.XLOOKUP(G$7*10,諸費用並び替え!$C$1:$DF$1,諸費用並び替え!$C82:$DF82) ->  | G80: =IF(G$8="",0,_xlfn.XLOOKUP(G$7*10+IF(RIGHT(G$5,4)="+ローン",2,IF(RIGHT(G$5,3)="プラス",3,1)),諸費用並び替え!$C$1:$DF$1,諸費用並び替え!$C82:$DF82)) ->  | H80: =_xlfn.XLOOKUP(I$7*10,諸費用並び替え!$C$1:$DF$1,諸費用並び替え!$C82:$DF82) ->  | I80: =_xlfn.XLOOKUP(I$7*10+IF(RIGHT(I$5,4)="+ローン",2,IF(RIGHT(I$5,3)="プラス",3,1)),諸費用並び替え!$C$1:$DF$1,諸費用並び替え!$C82:$DF82) ->  | J80: =_xlfn.XLOOKUP(K$7*10,諸費用並び替え!C$1:DF$1,諸費用並び替え!C82:DF82) ->  | K80: =IF(K$8="",0,_xlfn.XLOOKUP(K$7*10+IF(RIGHT(K$5,4)="+ローン",2,IF(RIGHT(K$5,3)="プラス",3,1)),諸費用並び替え!C$1:DF$1,諸費用並び替え!C82:DF82)) -> 
C82: 引渡時 | D82: =_xlfn.XLOOKUP(E$7*10,諸費用並び替え!$C$1:$DF$1,諸費用並び替え!$C84:$DF84) ->  | E82: =_xlfn.XLOOKUP(E$7*10+IF(RIGHT(E$5,4)="+ローン",2,IF(RIGHT(E$5,3)="プラス",3,1)),諸費用並び替え!$C$1:$DF$1,諸費用並び替え!$C84:$DF84) ->  | F82: =_xlfn.XLOOKUP(G$7*10,諸費用並び替え!$C$1:$DF$1,諸費用並び替え!$C84:$DF84) ->  | G82: =IF(G$8="",0,_xlfn.XLOOKUP(G$7*10+IF(RIGHT(G$5,4)="+ローン",2,IF(RIGHT(G$5,3)="プラス",3,1)),諸費用並び替え!$C$1:$DF$1,諸費用並び替え!$C84:$DF84)) ->  | H82: =_xlfn.XLOOKUP(I$7*10,諸費用並び替え!$C$1:$DF$1,諸費用並び替え!$C84:$DF84) ->  | I82: =_xlfn.XLOOKUP(I$7*10+IF(RIGHT(I$5,4)="+ローン",2,IF(RIGHT(I$5,3)="プラス",3,1)),諸費用並び替え!$C$1:$DF$1,諸費用並び替え!$C84:$DF84) ->  | J82: =_xlfn.XLOOKUP(K$7*10,諸費用並び替え!C$1:DF$1,諸費用並び替え!C84:DF84) ->  | K82: =IF(K$8="",0,_xlfn.XLOOKUP(K$7*10+IF(RIGHT(K$5,4)="+ローン",2,IF(RIGHT(K$5,3)="プラス",3,1)),諸費用並び替え!C$1:DF$1,諸費用並び替え!C84:DF84)) -> 
D84: =_xlfn.XLOOKUP(E$7*10,諸費用並び替え!$C$1:$DF$1,諸費用並び替え!$C86:$DF86) ->  | E84: =_xlfn.XLOOKUP(E$7*10+IF(RIGHT(E$5,4)="+ローン",2,IF(RIGHT(E$5,3)="プラス",3,1)),諸費用並び替え!$C$1:$DF$1,諸費用並び替え!$C86:$DF86) ->  | F84: =_xlfn.XLOOKUP(G$7*10,諸費用並び替え!$C$1:$DF$1,諸費用並び替え!$C86:$DF86) ->  | G84: =IF(G$8="",0,_xlfn.XLOOKUP(G$7*10+IF(RIGHT(G$5,4)="+ローン",2,IF(RIGHT(G$5,3)="プラス",3,1)),諸費用並び替え!$C$1:$DF$1,諸費用並び替え!$C86:$DF86)) ->  | H84: =_xlfn.XLOOKUP(I$7*10,諸費用並び替え!$C$1:$DF$1,諸費用並び替え!$C86:$DF86) ->  | I84: =_xlfn.XLOOKUP(I$7*10+IF(RIGHT(I$5,4)="+ローン",2,IF(RIGHT(I$5,3)="プラス",3,1)),諸費用並び替え!$C$1:$DF$1,諸費用並び替え!$C86:$DF86) ->  | J84: =_xlfn.XLOOKUP(K$7*10,諸費用並び替え!C$1:DF$1,諸費用並び替え!C86:DF86) ->  | K84: =IF(K$8="",0,_xlfn.XLOOKUP(K$7*10+IF(RIGHT(K$5,4)="+ローン",2,IF(RIGHT(K$5,3)="プラス",3,1)),諸費用並び替え!C$1:DF$1,諸費用並び替え!C86:DF86)) -> 
D85: =_xlfn.XLOOKUP(E$7*10,諸費用並び替え!$C$1:$DF$1,諸費用並び替え!$C87:$DF87) ->  | E85: =_xlfn.XLOOKUP(E$7*10+IF(RIGHT(E$5,4)="+ローン",2,IF(RIGHT(E$5,3)="プラス",3,1)),諸費用並び替え!$C$1:$DF$1,諸費用並び替え!$C87:$DF87) ->  | F85: =_xlfn.XLOOKUP(G$7*10,諸費用並び替え!$C$1:$DF$1,諸費用並び替え!$C87:$DF87) ->  | G85: =IF(G$8="",0,_xlfn.XLOOKUP(G$7*10+IF(RIGHT(G$5,4)="+ローン",2,IF(RIGHT(G$5,3)="プラス",3,1)),諸費用並び替え!$C$1:$DF$1,諸費用並び替え!$C87:$DF87)) ->  | H85: =_xlfn.XLOOKUP(I$7*10,諸費用並び替え!$C$1:$DF$1,諸費用並び替え!$C87:$DF87) ->  | I85: =_xlfn.XLOOKUP(I$7*10+IF(RIGHT(I$5,4)="+ローン",2,IF(RIGHT(I$5,3)="プラス",3,1)),諸費用並び替え!$C$1:$DF$1,諸費用並び替え!$C87:$DF87) ->  | J85: =_xlfn.XLOOKUP(K$7*10,諸費用並び替え!C$1:DF$1,諸費用並び替え!C87:DF87) ->  | K85: =IF(K$8="",0,_xlfn.XLOOKUP(K$7*10+IF(RIGHT(K$5,4)="+ローン",2,IF(RIGHT(K$5,3)="プラス",3,1)),諸費用並び替え!C$1:DF$1,諸費用並び替え!C87:DF87)) -> 
D87: =_xlfn.XLOOKUP(E$7*10,諸費用並び替え!$C$1:$DF$1,諸費用並び替え!$C89:$DF89) ->  | E87: =_xlfn.XLOOKUP(E$7*10+IF(RIGHT(E$5,4)="+ローン",2,IF(RIGHT(E$5,3)="プラス",3,1)),諸費用並び替え!$C$1:$DF$1,諸費用並び替え!$C89:$DF89) ->  | F87: =_xlfn.XLOOKUP(G$7*10,諸費用並び替え!$C$1:$DF$1,諸費用並び替え!$C89:$DF89) ->  | G87: =IF(G$8="",0,_xlfn.XLOOKUP(G$7*10+IF(RIGHT(G$5,4)="+ローン",2,IF(RIGHT(G$5,3)="プラス",3,1)),諸費用並び替え!$C$1:$DF$1,諸費用並び替え!$C89:$DF89)) ->  | H87: =_xlfn.XLOOKUP(I$7*10,諸費用並び替え!$C$1:$DF$1,諸費用並び替え!$C89:$DF89) ->  | I87: =_xlfn.XLOOKUP(I$7*10+IF(RIGHT(I$5,4)="+ローン",2,IF(RIGHT(I$5,3)="プラス",3,1)),諸費用並び替え!$C$1:$DF$1,諸費用並び替え!$C89:$DF89) ->  | J87: =_xlfn.XLOOKUP(K$7*10,諸費用並び替え!C$1:DF$1,諸費用並び替え!C89:DF89) ->  | K87: =IF(K$8="",0,_xlfn.XLOOKUP(K$7*10+IF(RIGHT(K$5,4)="+ローン",2,IF(RIGHT(K$5,3)="プラス",3,1)),諸費用並び替え!C$1:DF$1,諸費用並び替え!C89:DF89)) -> 
D88: =_xlfn.XLOOKUP(E$7*10,諸費用並び替え!$C$1:$DF$1,諸費用並び替え!$C90:$DF90) ->  | E88: =_xlfn.XLOOKUP(E$7*10+IF(RIGHT(E$5,4)="+ローン",2,IF(RIGHT(E$5,3)="プラス",3,1)),諸費用並び替え!$C$1:$DF$1,諸費用並び替え!$C90:$DF90) ->  | F88: =_xlfn.XLOOKUP(G$7*10,諸費用並び替え!$C$1:$DF$1,諸費用並び替え!$C90:$DF90) ->  | G88: =IF(G$8="",0,_xlfn.XLOOKUP(G$7*10+IF(RIGHT(G$5,4)="+ローン",2,IF(RIGHT(G$5,3)="プラス",3,1)),諸費用並び替え!$C$1:$DF$1,諸費用並び替え!$C90:$DF90)) ->  | H88: =_xlfn.XLOOKUP(I$7*10,諸費用並び替え!$C$1:$DF$1,諸費用並び替え!$C90:$DF90) ->  | I88: =_xlfn.XLOOKUP(I$7*10+IF(RIGHT(I$5,4)="+ローン",2,IF(RIGHT(I$5,3)="プラス",3,1)),諸費用並び替え!$C$1:$DF$1,諸費用並び替え!$C90:$DF90) ->  | J88: =_xlfn.XLOOKUP(K$7*10,諸費用並び替え!C$1:DF$1,諸費用並び替え!C90:DF90) ->  | K88: =IF(K$8="",0,_xlfn.XLOOKUP(K$7*10+IF(RIGHT(K$5,4)="+ローン",2,IF(RIGHT(K$5,3)="プラス",3,1)),諸費用並び替え!C$1:DF$1,諸費用並び替え!C90:DF90)) -> 
D89: =_xlfn.XLOOKUP(E$7*10,諸費用並び替え!$C$1:$DF$1,諸費用並び替え!$C91:$DF91) ->  | E89: =_xlfn.XLOOKUP(E$7*10+IF(RIGHT(E$5,4)="+ローン",2,IF(RIGHT(E$5,3)="プラス",3,1)),諸費用並び替え!$C$1:$DF$1,諸費用並び替え!$C91:$DF91) ->  | F89: =_xlfn.XLOOKUP(G$7*10,諸費用並び替え!$C$1:$DF$1,諸費用並び替え!$C91:$DF91) ->  | G89: =IF(G$8="",0,_xlfn.XLOOKUP(G$7*10+IF(RIGHT(G$5,4)="+ローン",2,IF(RIGHT(G$5,3)="プラス",3,1)),諸費用並び替え!$C$1:$DF$1,諸費用並び替え!$C91:$DF91)) ->  | H89: =_xlfn.XLOOKUP(I$7*10,諸費用並び替え!$C$1:$DF$1,諸費用並び替え!$C91:$DF91) ->  | I89: =_xlfn.XLOOKUP(I$7*10+IF(RIGHT(I$5,4)="+ローン",2,IF(RIGHT(I$5,3)="プラス",3,1)),諸費用並び替え!$C$1:$DF$1,諸費用並び替え!$C91:$DF91) ->  | J89: =_xlfn.XLOOKUP(K$7*10,諸費用並び替え!C$1:DF$1,諸費用並び替え!C91:DF91) ->  | K89: =IF(K$8="",0,_xlfn.XLOOKUP(K$7*10+IF(RIGHT(K$5,4)="+ローン",2,IF(RIGHT(K$5,3)="プラス",3,1)),諸費用並び替え!C$1:DF$1,諸費用並び替え!C91:DF91)) -> 
D90: =_xlfn.XLOOKUP(E$7*10,諸費用並び替え!$C$1:$DF$1,諸費用並び替え!$C92:$DF92) ->  | E90: =_xlfn.XLOOKUP(E$7*10+IF(RIGHT(E$5,4)="+ローン",2,IF(RIGHT(E$5,3)="プラス",3,1)),諸費用並び替え!$C$1:$DF$1,諸費用並び替え!$C92:$DF92) ->  | F90: =_xlfn.XLOOKUP(G$7*10,諸費用並び替え!$C$1:$DF$1,諸費用並び替え!$C92:$DF92) ->  | G90: =IF(G$8="",0,_xlfn.XLOOKUP(G$7*10+IF(RIGHT(G$5,4)="+ローン",2,IF(RIGHT(G$5,3)="プラス",3,1)),諸費用並び替え!$C$1:$DF$1,諸費用並び替え!$C92:$DF92)) ->  | H90: =_xlfn.XLOOKUP(I$7*10,諸費用並び替え!$C$1:$DF$1,諸費用並び替え!$C92:$DF92) ->  | I90: =_xlfn.XLOOKUP(I$7*10+IF(RIGHT(I$5,4)="+ローン",2,IF(RIGHT(I$5,3)="プラス",3,1)),諸費用並び替え!$C$1:$DF$1,諸費用並び替え!$C92:$DF92) ->  | J90: =_xlfn.XLOOKUP(K$7*10,諸費用並び替え!C$1:DF$1,諸費用並び替え!C92:DF92) ->  | K90: =IF(K$8="",0,_xlfn.XLOOKUP(K$7*10+IF(RIGHT(K$5,4)="+ローン",2,IF(RIGHT(K$5,3)="プラス",3,1)),諸費用並び替え!C$1:DF$1,諸費用並び替え!C92:DF92)) -> 
D91: =_xlfn.XLOOKUP(E$7*10,諸費用並び替え!$C$1:$DF$1,諸費用並び替え!$C93:$DF93) ->  | E91: =_xlfn.XLOOKUP(E$7*10+IF(RIGHT(E$5,4)="+ローン",2,IF(RIGHT(E$5,3)="プラス",3,1)),諸費用並び替え!$C$1:$DF$1,諸費用並び替え!$C93:$DF93) ->  | F91: =_xlfn.XLOOKUP(G$7*10,諸費用並び替え!$C$1:$DF$1,諸費用並び替え!$C93:$DF93) ->  | G91: =IF(G$8="",0,_xlfn.XLOOKUP(G$7*10+IF(RIGHT(G$5,4)="+ローン",2,IF(RIGHT(G$5,3)="プラス",3,1)),諸費用並び替え!$C$1:$DF$1,諸費用並び替え!$C93:$DF93)) ->  | H91: =_xlfn.XLOOKUP(I$7*10,諸費用並び替え!$C$1:$DF$1,諸費用並び替え!$C93:$DF93) ->  | I91: =_xlfn.XLOOKUP(I$7*10+IF(RIGHT(I$5,4)="+ローン",2,IF(RIGHT(I$5,3)="プラス",3,1)),諸費用並び替え!$C$1:$DF$1,諸費用並び替え!$C93:$DF93) ->  | J91: =_xlfn.XLOOKUP(K$7*10,諸費用並び替え!C$1:DF$1,諸費用並び替え!C93:DF93) ->  | K91: =IF(K$8="",0,_xlfn.XLOOKUP(K$7*10+IF(RIGHT(K$5,4)="+ローン",2,IF(RIGHT(K$5,3)="プラス",3,1)),諸費用並び替え!C$1:DF$1,諸費用並び替え!C93:DF93)) -> 
D92: =_xlfn.XLOOKUP(E$7*10,諸費用並び替え!$C$1:$DF$1,諸費用並び替え!$C94:$DF94) ->  | E92: =_xlfn.XLOOKUP(E$7*10+IF(RIGHT(E$5,4)="+ローン",2,IF(RIGHT(E$5,3)="プラス",3,1)),諸費用並び替え!$C$1:$DF$1,諸費用並び替え!$C94:$DF94) ->  | F92: =_xlfn.XLOOKUP(G$7*10,諸費用並び替え!$C$1:$DF$1,諸費用並び替え!$C94:$DF94) ->  | G92: =IF(G$8="",0,_xlfn.XLOOKUP(G$7*10+IF(RIGHT(G$5,4)="+ローン",2,IF(RIGHT(G$5,3)="プラス",3,1)),諸費用並び替え!$C$1:$DF$1,諸費用並び替え!$C94:$DF94)) ->  | H92: =_xlfn.XLOOKUP(I$7*10,諸費用並び替え!$C$1:$DF$1,諸費用並び替え!$C94:$DF94) ->  | I92: =_xlfn.XLOOKUP(I$7*10+IF(RIGHT(I$5,4)="+ローン",2,IF(RIGHT(I$5,3)="プラス",3,1)),諸費用並び替え!$C$1:$DF$1,諸費用並び替え!$C94:$DF94) ->  | J92: =_xlfn.XLOOKUP(K$7*10,諸費用並び替え!C$1:DF$1,諸費用並び替え!C94:DF94) ->  | K92: =IF(K$8="",0,_xlfn.XLOOKUP(K$7*10+IF(RIGHT(K$5,4)="+ローン",2,IF(RIGHT(K$5,3)="プラス",3,1)),諸費用並び替え!C$1:DF$1,諸費用並び替え!C94:DF94)) -> 

Sheet フラット35
A2: 【購入予定地】 | C2: 政令指定都市ですか？ | H2: TRUE
C3: 敷地面積は何㎡ですか？ | F3: ㎡
A5: 【購入予定建物】 | C5: 延べ床面積は何㎡ですか？ | F5: ㎡
C6: 居住用面積は何㎡ですか？
C7: （同じ場合は入力不要です）
A9: 【住宅ローン控除】
C10: 長期優良住宅・低炭素住宅 | E10: 子育て世帯 | H10: TRUE | I10: TRUE | J10: （年末時点で19歳未満の扶養親族を有するもの）
C11: ＺＥＨ水準省エネ住宅 | E11: 若年夫婦 | H11: FALSE | I11: TRUE | J11: （夫婦のいずれかが年末時点で40才未満のもの）
C12: 省エネ基準適合住宅 | E12: 延床面積40㎡以上 | H12: FALSE | I12: FALSE
C13: その他 | E13: 延床面積50㎡以上 | H13: FALSE | I13: TRUE
C14: 既存住宅 | H14: FALSE
A16: 【フラット35】 | C16: 戸建て住宅 | H16: FALSE | L16: ポイント | M16: =F32 -> 0
C17: マンション | H17: FALSE
C18: 既存住宅＋リノベーション | F18: ポイント | H18: FALSE | I18: =IF(H18=TRUE,1,0) -> 0 | L18: =IF(M16=0,"","当初5年") ->  | M18: =IF(L18="","",IF(F32=0,0%,IF(F32=1,-0.25%,IF(F32=2,-0.5%,IF(F32=3,-0.75%,-1%))))) -> 
C19: 若年夫婦（いずれか1人が40才未満） | F19: =IF(H19=TRUE,G19,0) -> 0 | G19: 1 | H19: FALSE
C20: 子ども人数 | E20: 人 | F20: =IF(H20=TRUE,G20,0) -> 0 | G20: =IF(F19=1,D20-G19,D20) -> 0 | H20: FALSE | L20: =IF(F32=0,"",IF(F32<5,"6年以降","6～10年")) ->  | M20: =IF(L20="","",IF(F32<=4,0%,IF(F32=5,-0.25%,IF(F32=6,-0.5%,IF(F32=7,-0.75%,-1%))))) -> 
C21: =IF(OR(H16=TRUE,H17=TRUE),"フラット35Ｓ(ＺＥＨ)","") ->  | F21: =IF(H21=TRUE,G21,0) -> 0 | G21: 3 | H21: FALSE
C22: フラット35Ｓ（金利Ａプラン） | F22: =IF(H22=TRUE,G22,0) -> 0 | G22: =IF(OR(H16=TRUE,H17=TRUE),2,IF(H18=TRUE,4,0)) -> 0 | H22: FALSE | L22: =IF(F32<5,"",IF(F32<9,"11年以降","11～15年")) ->  | M22: =IF(F32<=4,"",IF(F32<=8,0%,IF(F32=9,-0.25%,IF(F32=10,-0.5%,IF(F32=11,-0.75%,-1%))))) -> 
C23: フラット35Ｓ（金利Ｂプラン） | F23: 0 | G23: =IF(OR(H16=TRUE,H17=TRUE),1,IF(H18=TRUE,2,0)) -> 0 | H23: FALSE
C24: =IF(OR(H16=TRUE,H17=TRUE),"認定長期優良住宅","") ->  | F24: =IF(H24=TRUE,IF(OR(H23=TRUE,SUM(F21:F23)=0),0,G24),0) -> 0 | G24: 1 | H24: FALSE | L24: =IF(F32<9,"",IF(F32<13,"16年以降","16～20年")) ->  | M24: =IF(F32<=8,"",IF(F32<=12,0%,IF(F32=13,-0.25%,IF(F32=14,-0.5%,IF(F32=15,-0.75%,-1%))))) -> 
C25: =IF(OR(H17=TRUE,H18=TRUE),"管理計画認定マンション","") ->  | F25: 0 | G25: 1 | H25: FALSE
C26: =IF(OR(H17=TRUE,H18=TRUE),"安心Ｒ住宅","") ->  | F26: 0 | G26: 1 | H26: FALSE | L26: =IF(F32<13,"",IF(F32<17,"21年以降","21～25年")) ->  | M26: =IF(F32<=12,"",IF(F32<=16,0%,IF(F32=17,-0.25%,IF(F32=18,-0.5%,IF(F32=19,-0.75%,-1%))))) -> 
C27: =IF(OR(H17=TRUE,H18=TRUE),"インスペクション実施住宅","") ->  | F27: 0 | G27: 1 | H27: FALSE
C28: =IF(OR(H17=TRUE,H18=TRUE),"既存住宅売買瑕疵保険付住宅","") ->  | F28: 0 | G28: 1 | H28: FALSE | L28: =IF(F32<17,"",IF(F32<21,"26年以降","26～30年")) ->  | M28: =IF(F32<=16,"",IF(F32<=20,0%,IF(F32=21,-0.25%,IF(F32=22,-0.5%,IF(F32=23,-0.75%,-1%))))) -> 
C29: 地域連携型（子育て支援・空き家対策） | F29: 0 | G29: 2 | H29: FALSE
C30: 地域連携型（地域活性型） | F30: 0 | G30: 1 | H30: FALSE | L30: =IF(F32<21,"",IF(F32<25,"31年以降","31～35年")) ->  | M30: =IF(F32<=20,"",IF(F32<=24,0%,IF(F32=25,-0.25%,IF(F32=26,-0.5%,IF(F32=27,-0.75%,-1%))))) -> 
C31: 地方移住支援型 | F31: 0 | G31: 2 | H31: FALSE
C32: 合計 | F32: =SUM(F19:F31) -> 0

Sheet キャンペーン
A1: 地域判定 | B1: 適用 | C1: 金融機関名 | E1: 適用 | G1: キャンペーン概要 | H1: 金利 | I1: 適用
A3: =IF(金融機関マスター!E4=1,"☑","☐") -> ☑ | C3: みずほ銀行 | D3: FALSE | F3: FALSE | G3: ネット申込
F5: FALSE | G5: 店頭申込 | H5: 0.002
A7: =IF(金融機関マスター!B5=1,"☑","☐") ->  | C7: 三菱UFJ銀行 | D7: FALSE
A9: =IF(金融機関マスター!B6=1,"☑","☐") ->  | C9: 三井住友銀行 | D9: FALSE | F9: FALSE | G9: 環境に配慮した住宅（ZEH）を対象とした住宅ローン | H9: -0.0005
G10: 申込期限：2025年9月30日
A12: =IF(金融機関マスター!B7=1,"☑","☐") ->  | C12: りそな銀行 | D12: FALSE | F12: FALSE | G12: 環境配慮型 | H12: -0.0001
F14: FALSE | G14: WEB完結金利優遇 | H14: =IF(COUNTIF(J14:J16,TRUE)>=3,-0.05%,0) -> 0 | J14: FALSE | K14: りそな住宅ローン事前審査WEB申込
J15: FALSE | K15: りそな住宅ローンマイページによる正式審査申込の利用
J16: FALSE | K16: りそな住宅ローン電子契約サービスの利用（非対面電子契約、店頭電子契約いずれも可）
F19: FALSE | G19: 変動金利の優遇 | H19: =IF(COUNTIF(J19:J21,TRUE)>=1,-0.03%,0) -> 0 | J19: FALSE | K19: 給与振込
J20: FALSE | K20: 団信革命付保
J21: FALSE | K21: りそなクレジットカード＜クラブオポイントプラス＞
J22: FALSE | K22: NISAでの積立投資信託
J23: FALSE | K23: 積立投資信託
J24: FALSE | K24: 積立式定期預金
A26: =IF(金融機関マスター!B9=1,"☑","☐") ->  | C26: PayPay銀行 | D26: FALSE | F26: FALSE | G26: 住宅ローン金利優遇 | H26: =IF(AND(J26=TRUE,J27=TRUE),-0.13%,IF(J26=TRUE,-0.07%,0)) -> 0 | J26: FALSE | K26: りそな住宅ローン事前審査WEB申込
J27: FALSE | K27: りそな住宅ローンマイページによる正式審査申込の利用
A29: =IF(金融機関マスター!B10=1,"☑","☐") ->  | C29: ソニー銀行 | D29: FALSE | F29: FALSE | G29: 環境配慮型住宅ローン（変動セレクトのみ） | H29: -0.001
A31: =IF(金融機関マスター!B11=1,"☑","☐") ->  | C31: 楽天銀行 | D31: FALSE | F31: FALSE | G31: 楽天銀行を返済口座に指定する | H31: -0.003 | K31: フラット35利用の場合に、融資手数料1.43％を1.1％まで優遇
A33: =IF(金融機関マスター!B12=1,"☑","☐") ->  | C33: 住信SBIネット銀行 | D33: FALSE
A35: =IF(金融機関マスター!B13=1,"☑","☐") ->  | C35: auじぶん銀行 | D35: FALSE | F35: FALSE | G35: 住宅ローン金利優遇割 | H35: -0.0007 | J35: FALSE | K35: モバイル：au回線（auマネ活プラン）2回線以上
H36: -0.0003 | J36: FALSE | K36: でんき：じぶんでんき
H37: -0.0003 | J37: FALSE | K37: インターネット：J:COMまたはコミュファ光
H38: -0.0002 | J38: FALSE | K38: ＴＶ：J:COM TV
G39: 合計 | H39: =IF(J35=TRUE,H35,0)+IF(J36=TRUE,H36,0)+IF(J37=TRUE,H37,0)+IF(J38=TRUE,H38,0) -> 0
F40: FALSE | G40: 変動金利全期間引下げプラン | H40: -0.0009 | J40: FALSE | K40: 50才以下、自己資金20％以上
H41: -0.00054 | J41: FALSE | K41: 50才以下、自己資金20％未満
A43: =IF(金融機関マスター!B14=1,"☑","☐") ->  | C43: イオン銀行 | D43: FALSE
A45: =IF(金融機関マスター!B28=1,"☑","☐") ->  | C45: 常陽銀行 | D45: FALSE | F45: FALSE | G45: ずーっとうれしい金利引下げの適用条件 | H45: =IF(COUNTIF(J45:J48,TRUE)=4,-0.325%,0) -> 0 | J45: FALSE | K45: 給与振込ご指定の方
J46: FALSE | K46: 「めぶきdeでんき」のご契約またはZEH基準を満たす住宅を建設・購入される方
J47: FALSE | K47: 常陽バンキングアプリのご利用
J48: FALSE | K48: 当行発行のクレジットカード契約、またはJOYO CARD Debit契約
A50: =IF(金融機関マスター!B34=1,"☑","☐") ->  | C50: 横浜銀行 | D50: FALSE | F50: FALSE | G50: さらにおトクな金利プラン | H50: =IF(COUNTIF(J50:J53,TRUE)=4,-0.03%,0) -> 0 | J50: FALSE | K50: お借入時の年齢が18才以上の方
G51: 申込期限：2026年3月31日 | J51: FALSE | K51: 横浜銀行にて給与振込をご利用の方
J52: FALSE | K52: スマホアプリ「はまぎん365」をご利用中の方
J53: FALSE | K53: 保証会社（横浜信用保証）の保証が受けられる方
F54: TRUE
A56: =IF(金融機関マスター!B38=1,"☑","☐") ->  | C56: 北陸銀行 | D56: FALSE | F56: FALSE | G56: 石川県・富山県・福井県・首都圏・大阪・名古屋・新潟で | H56: =0.35%-0.7% -> -0.0035 | K56: 2年固定の金利と手数料率を優遇
H57: =0.4%-0.8% -> -0.004 | K57: 3年固定の金利と手数料率を優遇
H58: =0.61%-1.05% -> -0.0044 | K58: 5年固定の金利と手数料率を優遇
F59: FALSE | G59: 北海道で | H59: =0.35%-0.8% -> -0.0045 | K59: 3年固定の金利と手数料率を優遇
H60: =1.01%-1.05% -> -0.0004 | K60: 5年固定の金利と手数料率を優遇
F61: FALSE | G61: 金利引下げについて | H61: =-IF(COUNTIF(J61:J66,TRUE)>=IF(F59=TRUE,3,4),IF(F59=TRUE,3,4),COUNTIF(J61:J66,TRUE))*0.1% -> 0 | J61: FALSE | K61: カードローン
J62: FALSE | K62: クレジットカードorデビットカード
J63: FALSE | K63: ほくぎんダイレクトＡor北陸銀行ポータルアプリ
J64: FALSE | K64: ほくぎんダイレクトＡor投資信託口座の利用登録
J65: FALSE | K65: ＮＩＳＡ
J66: FALSE | K66: ほくぎんWeb口座
A68: =IF(金融機関マスター!B40=1,"☑","☐") ->  | C68: 北國銀行 | D68: FALSE | F68: FALSE | G68: 金利プランの適用条件 | H68: =IF(F68=TRUE,"-1.6～2.2％","") ->  | K68: HOKKOKU LIFE+に加入する
F70: FALSE | G70: 特約固定期間終了時の適用金利 | H70: =IF(OR(J70=TRUE,AND(J71=TRUE,J72=TRUE,J73=TRUE)),"-1.2～1.6％","") ->  | J70: FALSE | K70: HOKKOKU LIFE+に加入する
J71: FALSE | K71: 北國Visaデビットカード
J72: FALSE | K72: 北國クラウドバンキング
J73: FALSE | K73: 給与振込または年金受け取り・口座振替
A75: =IF(金融機関マスター!B42=1,"☑","☐") ->  | C75: 静岡銀行 | D75: FALSE
A77: =IF(金融機関マスター!B78=1,"☑","☐") ->  | C77: 三菱UFJ信託銀行 | D77: FALSE
A79: =IF(金融機関マスター!B79=1,"☑","☐") ->  | C79: 三井住友信託銀行 | D79: FALSE | F79: FALSE | G79: 家計応援プラン | H79: =IF(OR(J79=TRUE,J80=TRUE),-0.03%,0) -> 0 | J79: FALSE | K79: 投資信託自動購入プラン
G80: 申込期限：2025年9月30日、実行期限：2027年4月30日 | J80: FALSE | K80: 三井住友信託ダイナースクラブカード
A83: =IF(金融機関マスター!B81=1,"☑","☐") ->  | C83: SBI新生銀行 | D83: FALSE | F83: FALSE | G83: <ZEH住宅限定>住宅ローン金利優遇プログラム | H83: -0.0001
A85: =IF(金融機関マスター!B370=1,"☑","☐") ->  | C85: 中央ろうきん | D85: FALSE | F85: FALSE | G85: 団体会員 | K85: 金利、諸費用等が優遇されます
F87: FALSE | G87: 生協会員 | K87: 金利、諸費用等が優遇されます
D89: TRUE | F89: FALSE | G89: 団体会員以外の会員
A91: =IF(金融機関マスター!B374=1,"☑","☐") ->  | C91: 北陸ろうきん | D91: FALSE | F91: FALSE | G91: 融資金利引下げ項目 | H91: まるっと500α | J91: FALSE | K91: ろうきん会員の間接構成員の方・生活協同組合員の方（本人または同居家族）
H92: =IF(COUNTIF(J91:J95,TRUE)>=1,-1.25%,0) -> 0 | J92: FALSE | K92: 給与振込ご指定の方
H93: まるっと500 | J93: FALSE | K93: 障がい者手帳等をお持ちの方（本人または同居家族）
H94: =IF(COUNTIF(J91:J95,TRUE)>=1,-0.6%,0) -> 0 | J94: FALSE | K94: 子育て支援項目に該当される方
J95: FALSE | K95: 令和6年度能登半島地震復興特別利下げ
H96: まるっと500α | J96: FALSE | K96: 「ろうきんアプリ」かつ｛Webお知らせ」ご利用登録の方
H97: =IF(COUNTIF(J96:J103,TRUE)>=3,-1.25%,IF(COUNTIF(J96:J103,TRUE)>=2,-0.8%,IF(COUNTIF(J96:J103,TRUE)>=1,-0.4%))) -> FALSE | J97: FALSE | K97: インターネットバンキング（ろうきんダイレクト）ご契約の方
H98: まるっと500 | J98: FALSE | K98: カードローン「マイプラン」ご契約の方（ご契約対象20歳以上）
H99: =IF(COUNTIF(J96:J103,TRUE)>=3,-0.6%,IF(COUNTIF(J96:J103,TRUE)>=2,-0.4%,IF(COUNTIF(J96:J103,TRUE)>=1,-0.2%))) -> FALSE | J99: FALSE | K99: 財形貯蓄またはエース預金ご契約の方
J100: FALSE | K100: 個人型確定拠出年金または積立型投資信託ご加入の方
J101: FALSE | K101: 宅建会員業者・指定住宅業者から紹介の方
J102: FALSE | K102: 「いしかわの木づかい応援住宅ローン制度」「県産材を活用したふくいの住まい支援事業」対象住宅を新築・建売購入・リフォームの方
J103: FALSE | K103: 「福井県防犯モデル一戸建て住宅認定制度」認定証をお持ちの方
H104: まるっと500α
H105: =IF(H92+H97<-1.25%,-1.25%,H92+H97)-0.3% -> -0.003 | I105: 当初引下げ
H106: =IF(H92+H97<-1.25%,-1.25%,H92+H97) -> 0 | I106: 固定期間終了後
H107: まるっと500
H108: =IF(H94+H99<-0.6%,-0.6%,H94+H99)-0.75% -> -0.0075 | I108: 固定金利特別引下げ
H109: =IF(H94+H99<-0.6%,-0.6%,H94+H99) -> 0 | I109: 変動金利引下げ
A112: =IF(金融機関マスター!B83=1,"☑","☐") ->  | C112: 北洋銀行 | D112: FALSE | F112: FALSE | G112: ほくようゼロカーボン応援プラン | H112: -0.0002
G113: 申込期限：2025年6月30日、実行期限：2026年12月30日
A115: =IF(金融機関マスター!B26=1,"☑","☐") ->  | C115: 群馬銀行 | D115: FALSE | F115: FALSE | G115: 全期間固定金利型住宅ローン（ZEH住宅・ZEH-M・LCCM住宅の新築・購入で） | H115: -0.001
A117: =IF(金融機関マスター!B400=1,"☑","☐") ->  | C117: UI銀行 | D117: FALSE
A119: ☑ | C119: SBIアルヒ | D119: FALSE
A121: ☑ | C121: カシワバラ・アシスト | D121: FALSE
F217: TRUE

Sheet 中間処理 (hidden)
A1: =_xlfn.XLOOKUP(資金調達!F6,table!AA1:AA6,table!V1:V6) -> 0 | B1: =資金調達!F6 -> 0
A2: =金利手数料一覧!Y1 -> 1 | C2: 借入金額 | D2: 借入期間 | F2: 年齢 | G2: 収入 | H2: 団信 | J2: 物件総額 | K2: 総予算 | L2: 自己資金 | M2: 残債
J3: =(資金調達!E18-資金調達!E17)*10000 -> 0 | K3: =資金調達!E18*10000 -> 0 | L3: =資金調達!G18*10000 -> 0 | M3: =資金調達!E16*10000 -> 0
A4: 債務者1 | C4: =資金調達!F3*10000 -> 0 | D4: =資金調達!H3 -> 0 | E4: =資金調達!J3 -> 0 | F4: =IF(資金調達!P3="",資金調達!P3,資金調達!P3) -> 0 | G4: =IF(資金調達!R3="",資金調達!R3,資金調達!R3) -> 0 | H4: =資金調達!M3 -> 0 | J4: =C18/J3 ->  | K4: =C18/K3 -> 
A5: 債務者2 | C5: =資金調達!F4*10000 -> 0 | D5: =資金調達!H4 -> 0 | E5: =資金調達!J4 -> 0 | F5: =IF(資金調達!P4="",0,資金調達!P4) -> 0 | G5: =IF(資金調達!R4="",資金調達!R4,資金調達!R4) -> 0 | H5: =資金調達!M4 -> 0
A6: 1 | B6: =table!AA2 -> 単独債務 | C6: =C4 -> 0 | D6: =D4 -> 0 | E6: 0 | F6: 0 | G6: 0 | H6: =_xlfn.XLOOKUP(H$4,table!Q$2:Q$7,table!O$2:O$7) ->  | I6: =C6/J$3 -> 
A7: 2 | B7: =table!AA3 -> 単独債務（収入合算） | C7: =C6 -> 0 | D7: =D$4 -> 0 | E7: 0 | F7: 0 | G7: =G$4+G5 -> 0 | H7: =_xlfn.XLOOKUP(H$4,table!Q$2:Q$7,table!O$2:O$7) ->  | I7: =C7/J$3 ->  | J7: =資金調達!E13 -> 0
A8: 3 | B8: =table!AA4 -> 連帯債務 | C8: =C4 -> 0 | D8: =IF(F4=F8,D4,D5) -> 0 | E8: =IF(F4=F8,E4,E5) -> 0 | F8: =MAX(F4:F5) -> 0 | G8: =G$4+G5 -> 0 | H8: =_xlfn.XLOOKUP(H$4,table!Q$2:Q$7,table!O$2:O$7) -> 
A9: 4 | B9: =table!AA5 -> 親子リレー | C9: =C4 -> 0 | D9: =D5 -> 0 | E9: =E5 -> 0 | F9: =F5 -> 0 | G9: 0 | H9: =_xlfn.XLOOKUP(H$4,table!Q$2:Q$7,table!O$2:O$7) -> 
A10: 5 | B10: ペアローン１ | C10: =C4 -> 0 | D10: 0 | E10: 0 | F10: 0 | G10: =G$4+G5 -> 0 | H10: =_xlfn.XLOOKUP(H$4,table!Q$2:Q$7,table!O$2:O$7) ->  | I10: =(C10+C11)/J$3 ->  | J10: =資金調達!F20 ->  | K10: =K3/(C10+C11)*C10 ->  | L10: =IF(K3>80000000,INT(80000000*(C10/K3)),K3*0.9) -> 0
A11: 6 | B11: ペアローン２ | C11: =C5 -> 0 | D11: =D5 -> 0 | E11: 0 | F11: 0 | G11: 0 | H11: =IFERROR(_xlfn.XLOOKUP(H$5,table!Q$2:Q$7,table!O$2:O$7),0) -> 0 | I11: =(C11+C10)/J$3 ->  | J11: =J10 ->  | K11: =K3-K10 ->  | L11: =IF(K3>80000000,80000000-L10,K3-L10) -> 0
N15: 27
M16: じぶん | N16: 24000
I17: 融資率 | J17: 融資率F | M17: アイフル | N17: 23000
A18: ローンの計算 | B18: =IF(AND(A1=5,A2=2),6,A1) -> 0 | C18: =_xlfn.XLOOKUP($B18,$A6:$A11,C6:C11) ->  | D18: =_xlfn.XLOOKUP($B18,$A6:$A11,D6:D11) ->  | I18: =_xlfn.XLOOKUP($B18,$A6:$A11,I6:I11) ->  | J18: =資金調達!F20 -> 
R22: 借入予定額 | Y22: 次回 | AB22: 次々回 | AE22: 5年ﾙｰﾙ | AG22: つなぎ融資の条件

Sheet SmartRanking
B2: 決済予定 | E2: 年 | G2: 月予定
B4: 住宅ローンの
B5: 金利上昇時期 | E5: 年後に | F5: 0.01 | G5: 0.02 | H5: 0.03
K6: =IF(資金調達!F6="","「資金調達」の債務種類が未入力です！","") -> 「資金調達」の債務種類が未入力です！
D7: 借入金額 | E7: 借入期間 | G7: 返済タイプ | H7: 団信タイプ | K7: お客様2 のランキングを作成する場合、先にお客様1 のボタンを押しておく必要があります。
D8: （万円） | E8: （年） | F8: （ヵ月）
B9: お客様1 | D9: =資金調達!F3 -> 0 | E9: =資金調達!H3 -> 0 | F9: =資金調達!J3 -> 0 | G9: =資金調達!L3 -> 0 | H9: =資金調達!M3 -> 0
B11: お客様2 | D11: =資金調達!F4 -> 0 | E11: =資金調達!H4 -> 0 | F11: =資金調達!J4 -> 0 | G11: =資金調達!L4 -> 0 | H11: =資金調達!M4 -> 0
B14: ミックス | D14: 変動金利 | G14: 万円 | H14: =IFERROR(F14/F18,"") ->  | K14: ミックスプラン のランキングを作成する場合、先にお客様1 のボタンを押しておく必要があります。
D16: 固定金利 | G16: 万円 | H16: =IFERROR(F16/F18,"") -> 
D18: 合計 | F18: =F14+F16 -> 0 | G18: 万円
C20: =IF(D9=F18,"","ミックス・プランのランキングを生成するには、お客様1とミックス合計金額をあわせて下さい。") -> 

Sheet 商品比較 (hidden)
B1: =_xlfn.XLOOKUP(A1,table!AA7:AA9,table!Z7:Z9) -> 0 | C1: =_xlfn.XLOOKUP(B1,table!AB7:AB9,table!AA7:AA9) ->  | D1: =_xlfn.XLOOKUP(C1,table!AC7:AC9,table!AB7:AB9) ->  | K1: 当初金利 | M1: 金利上昇時 | N1: 0.03 | O1: =_xlfn.XLOOKUP(N1,table!U1:U4,table!V1:V4) -> 3 | P1: 当初金利 | Q1: 金利上昇時
A2: お客様 | B2: 金融機関名 | C2: 商品名 | D2: 金利タイプ | E2: 手数料タイプ | F2: 返済タイプ | G2: 優遇タイプ | H2: 団信タイプ | I2: 借入金額 | J2: 借入期間 | K2: 金利 | L2: 毎月返済額 | M2: 金利 | N2: 毎月返済額 | O2: 諸費用 | P2: TC
A3: 1 | I3: =_xlfn.XLOOKUP($B3&$C3&$D3&$E3&$F3&$G3,比較表!$B$2:$B$1001&比較表!$C$2:$C$1001&比較表!$O$2:$O$1001&比較表!$F$2:$F$1001&比較表!$G$2:$G$1001&比較表!$H$2:$H$1001,比較表!L$2:L$1001)/10000 -> 0 | J3: =_xlfn.XLOOKUP($B3&$C3&$D3&$E3&$F3&$G3,比較表!$B$2:$B$1001&比較表!$C$2:$C$1001&比較表!$O$2:$O$1001&比較表!$F$2:$F$1001&比較表!$G$2:$G$1001&比較表!$H$2:$H$1001,比較表!M$2:M$1001) -> 0 | K3: =_xlfn.XLOOKUP($B3&$C3&$D3&$E3&$F3&$G3,比較表!$B$2:$B$1001&比較表!$C$2:$C$1001&比較表!$O$2:$O$1001&比較表!$F$2:$F$1001&比較表!$G$2:$G$1001&比較表!$H$2:$H$1001,比較表!P$2:P$1001) -> 0 | L3: =_xlfn.XLOOKUP($B3&$C3&$D3&$E3&$F3&$G3,比較表!$B$2:$B$1001&比較表!$C$2:$C$1001&比較表!$O$2:$O$1001&比較表!$F$2:$F$1001&比較表!$G$2:$G$1001&比較表!$H$2:$H$1001,比較表!Q$2:Q$1001) -> 0 | M3: =_xlfn.XLOOKUP($B3&$C3&$D3&$E3&$F3&$G3,比較表!$B$2:$B$1001&比較表!$C$2:$C$1001&比較表!$O$2:$O$1001&比較表!$F$2:$F$1001&比較表!$G$2:$G$1001&比較表!$H$2:$H$1001,IF($O$1=1,比較表!R$2:R$1001,IF($O$1=2,比較表!T$2:T$1001,IF($O$1=3,比較表!V$2:V$1001,"")))) -> 0 | N3: =_xlfn.XLOOKUP($B3&$C3&$D3&$E3&$F3&$G3,比較表!$B$2:$B$1001&比較表!$C$2:$C$1001&比較表!$O$2:$O$1001&比較表!$F$2:$F$1001&比較表!$G$2:$G$1001&比較表!$H$2:$H$1001,IF($O$1=1,比較表!S$2:S$1001,IF($O$1=2,比較表!U$2:U$1001,IF($O$1=3,比較表!W$2:W$1001,"")))) -> 0 | O3: =_xlfn.XLOOKUP($B3&$C3&$D3&$E3&$F3&$G3,比較表!$B$2:$B$1001&比較表!$C$2:$C$1001&比較表!$O$2:$O$1001&比較表!$F$2:$F$1001&比較表!$G$2:$G$1001&比較表!$H$2:$H$1001,比較表!AL$2:AL$1001)/10000 -> 0 | P3: =_xlfn.XLOOKUP($B3&$C3&$D3&$E3&$F3&$G3,比較表!$B$2:$B$1001&比較表!$C$2:$C$1001&比較表!$O$2:$O$1001&比較表!$F$2:$F$1001&比較表!$G$2:$G$1001&比較表!$H$2:$H$1001,比較表!AN$2:AN$1001)/10000 -> 0 | Q3: =_xlfn.XLOOKUP($B3&$C3&$D3&$E3&$F3&$G3,比較表!$B$2:$B$1001&比較表!$C$2:$C$1001&比較表!$O$2:$O$1001&比較表!$F$2:$F$1001&比較表!$G$2:$G$1001&比較表!$H$2:$H$1001,IF($O$1=1,比較表!AO$2:AO$1001,IF($O$1=2,比較表!AP$2:AP$1001,IF($O$1=3,比較表!AQ$2:AQ$1001,""))))/10000 -> 0
A4: 1 | I4: =_xlfn.XLOOKUP($B4&$C4&$D4&$E4&$F4&$G4,比較表!$B$2:$B$1001&比較表!$C$2:$C$1001&比較表!$O$2:$O$1001&比較表!$F$2:$F$1001&比較表!$G$2:$G$1001&比較表!$H$2:$H$1001,比較表!L$2:L$1001)/10000 -> 0 | J4: =_xlfn.XLOOKUP($B4&$C4&$D4&$E4&$F4&$G4,比較表!$B$2:$B$1001&比較表!$C$2:$C$1001&比較表!$O$2:$O$1001&比較表!$F$2:$F$1001&比較表!$G$2:$G$1001&比較表!$H$2:$H$1001,比較表!M$2:M$1001) -> 0 | K4: =_xlfn.XLOOKUP($B4&$C4&$D4&$E4&$F4&$G4,比較表!$B$2:$B$1001&比較表!$C$2:$C$1001&比較表!$O$2:$O$1001&比較表!$F$2:$F$1001&比較表!$G$2:$G$1001&比較表!$H$2:$H$1001,比較表!P$2:P$1001) -> 0 | L4: =_xlfn.XLOOKUP($B4&$C4&$D4&$E4&$F4&$G4,比較表!$B$2:$B$1001&比較表!$C$2:$C$1001&比較表!$O$2:$O$1001&比較表!$F$2:$F$1001&比較表!$G$2:$G$1001&比較表!$H$2:$H$1001,比較表!Q$2:Q$1001) -> 0 | M4: =_xlfn.XLOOKUP($B4&$C4&$D4&$E4&$F4&$G4,比較表!$B$2:$B$1001&比較表!$C$2:$C$1001&比較表!$O$2:$O$1001&比較表!$F$2:$F$1001&比較表!$G$2:$G$1001&比較表!$H$2:$H$1001,IF($O$1=1,比較表!R$2:R$1001,IF($O$1=2,比較表!T$2:T$1001,IF($O$1=3,比較表!V$2:V$1001,"")))) -> 0 | N4: =_xlfn.XLOOKUP($B4&$C4&$D4&$E4&$F4&$G4,比較表!$B$2:$B$1001&比較表!$C$2:$C$1001&比較表!$O$2:$O$1001&比較表!$F$2:$F$1001&比較表!$G$2:$G$1001&比較表!$H$2:$H$1001,IF($O$1=1,比較表!S$2:S$1001,IF($O$1=2,比較表!U$2:U$1001,IF($O$1=3,比較表!W$2:W$1001,"")))) -> 0 | O4: =_xlfn.XLOOKUP($B4&$C4&$D4&$E4&$F4&$G4,比較表!$B$2:$B$1001&比較表!$C$2:$C$1001&比較表!$O$2:$O$1001&比較表!$F$2:$F$1001&比較表!$G$2:$G$1001&比較表!$H$2:$H$1001,比較表!AL$2:AL$1001)/10000 -> 0 | P4: =_xlfn.XLOOKUP($B4&$C4&$D4&$E4&$F4&$G4,比較表!$B$2:$B$1001&比較表!$C$2:$C$1001&比較表!$O$2:$O$1001&比較表!$F$2:$F$1001&比較表!$G$2:$G$1001&比較表!$H$2:$H$1001,比較表!AN$2:AN$1001)/10000 -> 0 | Q4: =_xlfn.XLOOKUP($B4&$C4&$D4&$E4&$F4&$G4,比較表!$B$2:$B$1001&比較表!$C$2:$C$1001&比較表!$O$2:$O$1001&比較表!$F$2:$F$1001&比較表!$G$2:$G$1001&比較表!$H$2:$H$1001,IF($O$1=1,比較表!AO$2:AO$1001,IF($O$1=2,比較表!AP$2:AP$1001,IF($O$1=3,比較表!AQ$2:AQ$1001,""))))/10000 -> 0
A5: 1 | I5: =_xlfn.XLOOKUP($B5&$C5&$D5&$E5&$F5&$G5,比較表!$B$2:$B$1001&比較表!$C$2:$C$1001&比較表!$O$2:$O$1001&比較表!$F$2:$F$1001&比較表!$G$2:$G$1001&比較表!$H$2:$H$1001,比較表!L$2:L$1001)/10000 -> 0 | J5: =_xlfn.XLOOKUP($B5&$C5&$D5&$E5&$F5&$G5,比較表!$B$2:$B$1001&比較表!$C$2:$C$1001&比較表!$O$2:$O$1001&比較表!$F$2:$F$1001&比較表!$G$2:$G$1001&比較表!$H$2:$H$1001,比較表!M$2:M$1001) -> 0 | K5: =_xlfn.XLOOKUP($B5&$C5&$D5&$E5&$F5&$G5,比較表!$B$2:$B$1001&比較表!$C$2:$C$1001&比較表!$O$2:$O$1001&比較表!$F$2:$F$1001&比較表!$G$2:$G$1001&比較表!$H$2:$H$1001,比較表!P$2:P$1001) -> 0 | L5: =_xlfn.XLOOKUP($B5&$C5&$D5&$E5&$F5&$G5,比較表!$B$2:$B$1001&比較表!$C$2:$C$1001&比較表!$O$2:$O$1001&比較表!$F$2:$F$1001&比較表!$G$2:$G$1001&比較表!$H$2:$H$1001,比較表!Q$2:Q$1001) -> 0 | M5: =_xlfn.XLOOKUP($B5&$C5&$D5&$E5&$F5&$G5,比較表!$B$2:$B$1001&比較表!$C$2:$C$1001&比較表!$O$2:$O$1001&比較表!$F$2:$F$1001&比較表!$G$2:$G$1001&比較表!$H$2:$H$1001,IF($O$1=1,比較表!R$2:R$1001,IF($O$1=2,比較表!T$2:T$1001,IF($O$1=3,比較表!V$2:V$1001,"")))) -> 0 | N5: =_xlfn.XLOOKUP($B5&$C5&$D5&$E5&$F5&$G5,比較表!$B$2:$B$1001&比較表!$C$2:$C$1001&比較表!$O$2:$O$1001&比較表!$F$2:$F$1001&比較表!$G$2:$G$1001&比較表!$H$2:$H$1001,IF($O$1=1,比較表!S$2:S$1001,IF($O$1=2,比較表!U$2:U$1001,IF($O$1=3,比較表!W$2:W$1001,"")))) -> 0 | O5: =_xlfn.XLOOKUP($B5&$C5&$D5&$E5&$F5&$G5,比較表!$B$2:$B$1001&比較表!$C$2:$C$1001&比較表!$O$2:$O$1001&比較表!$F$2:$F$1001&比較表!$G$2:$G$1001&比較表!$H$2:$H$1001,比較表!AL$2:AL$1001)/10000 -> 0 | P5: =_xlfn.XLOOKUP($B5&$C5&$D5&$E5&$F5&$G5,比較表!$B$2:$B$1001&比較表!$C$2:$C$1001&比較表!$O$2:$O$1001&比較表!$F$2:$F$1001&比較表!$G$2:$G$1001&比較表!$H$2:$H$1001,比較表!AN$2:AN$1001)/10000 -> 0 | Q5: =_xlfn.XLOOKUP($B5&$C5&$D5&$E5&$F5&$G5,比較表!$B$2:$B$1001&比較表!$C$2:$C$1001&比較表!$O$2:$O$1001&比較表!$F$2:$F$1001&比較表!$G$2:$G$1001&比較表!$H$2:$H$1001,IF($O$1=1,比較表!AO$2:AO$1001,IF($O$1=2,比較表!AP$2:AP$1001,IF($O$1=3,比較表!AQ$2:AQ$1001,""))))/10000 -> 0
A6: 1 | I6: =_xlfn.XLOOKUP($B6&$C6&$D6&$E6&$F6&$G6,比較表!$B$2:$B$1001&比較表!$C$2:$C$1001&比較表!$O$2:$O$1001&比較表!$F$2:$F$1001&比較表!$G$2:$G$1001&比較表!$H$2:$H$1001,比較表!L$2:L$1001)/10000 -> 0 | J6: =_xlfn.XLOOKUP($B6&$C6&$D6&$E6&$F6&$G6,比較表!$B$2:$B$1001&比較表!$C$2:$C$1001&比較表!$O$2:$O$1001&比較表!$F$2:$F$1001&比較表!$G$2:$G$1001&比較表!$H$2:$H$1001,比較表!M$2:M$1001) -> 0 | K6: =_xlfn.XLOOKUP($B6&$C6&$D6&$E6&$F6&$G6,比較表!$B$2:$B$1001&比較表!$C$2:$C$1001&比較表!$O$2:$O$1001&比較表!$F$2:$F$1001&比較表!$G$2:$G$1001&比較表!$H$2:$H$1001,比較表!P$2:P$1001) -> 0 | L6: =_xlfn.XLOOKUP($B6&$C6&$D6&$E6&$F6&$G6,比較表!$B$2:$B$1001&比較表!$C$2:$C$1001&比較表!$O$2:$O$1001&比較表!$F$2:$F$1001&比較表!$G$2:$G$1001&比較表!$H$2:$H$1001,比較表!Q$2:Q$1001) -> 0 | M6: =_xlfn.XLOOKUP($B6&$C6&$D6&$E6&$F6&$G6,比較表!$B$2:$B$1001&比較表!$C$2:$C$1001&比較表!$O$2:$O$1001&比較表!$F$2:$F$1001&比較表!$G$2:$G$1001&比較表!$H$2:$H$1001,IF($O$1=1,比較表!R$2:R$1001,IF($O$1=2,比較表!T$2:T$1001,IF($O$1=3,比較表!V$2:V$1001,"")))) -> 0 | N6: =_xlfn.XLOOKUP($B6&$C6&$D6&$E6&$F6&$G6,比較表!$B$2:$B$1001&比較表!$C$2:$C$1001&比較表!$O$2:$O$1001&比較表!$F$2:$F$1001&比較表!$G$2:$G$1001&比較表!$H$2:$H$1001,IF($O$1=1,比較表!S$2:S$1001,IF($O$1=2,比較表!U$2:U$1001,IF($O$1=3,比較表!W$2:W$1001,"")))) -> 0 | O6: =_xlfn.XLOOKUP($B6&$C6&$D6&$E6&$F6&$G6,比較表!$B$2:$B$1001&比較表!$C$2:$C$1001&比較表!$O$2:$O$1001&比較表!$F$2:$F$1001&比較表!$G$2:$G$1001&比較表!$H$2:$H$1001,比較表!AL$2:AL$1001)/10000 -> 0 | P6: =_xlfn.XLOOKUP($B6&$C6&$D6&$E6&$F6&$G6,比較表!$B$2:$B$1001&比較表!$C$2:$C$1001&比較表!$O$2:$O$1001&比較表!$F$2:$F$1001&比較表!$G$2:$G$1001&比較表!$H$2:$H$1001,比較表!AN$2:AN$1001)/10000 -> 0 | Q6: =_xlfn.XLOOKUP($B6&$C6&$D6&$E6&$F6&$G6,比較表!$B$2:$B$1001&比較表!$C$2:$C$1001&比較表!$O$2:$O$1001&比較表!$F$2:$F$1001&比較表!$G$2:$G$1001&比較表!$H$2:$H$1001,IF($O$1=1,比較表!AO$2:AO$1001,IF($O$1=2,比較表!AP$2:AP$1001,IF($O$1=3,比較表!AQ$2:AQ$1001,""))))/10000 -> 0
A7: 1 | I7: =_xlfn.XLOOKUP($B7&$C7&$D7&$E7&$F7&$G7,比較表!$B$2:$B$1001&比較表!$C$2:$C$1001&比較表!$O$2:$O$1001&比較表!$F$2:$F$1001&比較表!$G$2:$G$1001&比較表!$H$2:$H$1001,比較表!L$2:L$1001)/10000 -> 0 | J7: =_xlfn.XLOOKUP($B7&$C7&$D7&$E7&$F7&$G7,比較表!$B$2:$B$1001&比較表!$C$2:$C$1001&比較表!$O$2:$O$1001&比較表!$F$2:$F$1001&比較表!$G$2:$G$1001&比較表!$H$2:$H$1001,比較表!M$2:M$1001) -> 0 | K7: =_xlfn.XLOOKUP($B7&$C7&$D7&$E7&$F7&$G7,比較表!$B$2:$B$1001&比較表!$C$2:$C$1001&比較表!$O$2:$O$1001&比較表!$F$2:$F$1001&比較表!$G$2:$G$1001&比較表!$H$2:$H$1001,比較表!P$2:P$1001) -> 0 | L7: =_xlfn.XLOOKUP($B7&$C7&$D7&$E7&$F7&$G7,比較表!$B$2:$B$1001&比較表!$C$2:$C$1001&比較表!$O$2:$O$1001&比較表!$F$2:$F$1001&比較表!$G$2:$G$1001&比較表!$H$2:$H$1001,比較表!Q$2:Q$1001) -> 0 | M7: =_xlfn.XLOOKUP($B7&$C7&$D7&$E7&$F7&$G7,比較表!$B$2:$B$1001&比較表!$C$2:$C$1001&比較表!$O$2:$O$1001&比較表!$F$2:$F$1001&比較表!$G$2:$G$1001&比較表!$H$2:$H$1001,IF($O$1=1,比較表!R$2:R$1001,IF($O$1=2,比較表!T$2:T$1001,IF($O$1=3,比較表!V$2:V$1001,"")))) -> 0 | N7: =_xlfn.XLOOKUP($B7&$C7&$D7&$E7&$F7&$G7,比較表!$B$2:$B$1001&比較表!$C$2:$C$1001&比較表!$O$2:$O$1001&比較表!$F$2:$F$1001&比較表!$G$2:$G$1001&比較表!$H$2:$H$1001,IF($O$1=1,比較表!S$2:S$1001,IF($O$1=2,比較表!U$2:U$1001,IF($O$1=3,比較表!W$2:W$1001,"")))) -> 0 | O7: =_xlfn.XLOOKUP($B7&$C7&$D7&$E7&$F7&$G7,比較表!$B$2:$B$1001&比較表!$C$2:$C$1001&比較表!$O$2:$O$1001&比較表!$F$2:$F$1001&比較表!$G$2:$G$1001&比較表!$H$2:$H$1001,比較表!AL$2:AL$1001)/10000 -> 0 | P7: =_xlfn.XLOOKUP($B7&$C7&$D7&$E7&$F7&$G7,比較表!$B$2:$B$1001&比較表!$C$2:$C$1001&比較表!$O$2:$O$1001&比較表!$F$2:$F$1001&比較表!$G$2:$G$1001&比較表!$H$2:$H$1001,比較表!AN$2:AN$1001)/10000 -> 0 | Q7: =_xlfn.XLOOKUP($B7&$C7&$D7&$E7&$F7&$G7,比較表!$B$2:$B$1001&比較表!$C$2:$C$1001&比較表!$O$2:$O$1001&比較表!$F$2:$F$1001&比較表!$G$2:$G$1001&比較表!$H$2:$H$1001,IF($O$1=1,比較表!AO$2:AO$1001,IF($O$1=2,比較表!AP$2:AP$1001,IF($O$1=3,比較表!AQ$2:AQ$1001,""))))/10000 -> 0
A8: 1 | I8: =_xlfn.XLOOKUP($B8&$C8&$D8&$E8&$F8&$G8,比較表!$B$2:$B$1001&比較表!$C$2:$C$1001&比較表!$O$2:$O$1001&比較表!$F$2:$F$1001&比較表!$G$2:$G$1001&比較表!$H$2:$H$1001,比較表!L$2:L$1001)/10000 -> 0 | J8: =_xlfn.XLOOKUP($B8&$C8&$D8&$E8&$F8&$G8,比較表!$B$2:$B$1001&比較表!$C$2:$C$1001&比較表!$O$2:$O$1001&比較表!$F$2:$F$1001&比較表!$G$2:$G$1001&比較表!$H$2:$H$1001,比較表!M$2:M$1001) -> 0 | K8: =_xlfn.XLOOKUP($B8&$C8&$D8&$E8&$F8&$G8,比較表!$B$2:$B$1001&比較表!$C$2:$C$1001&比較表!$O$2:$O$1001&比較表!$F$2:$F$1001&比較表!$G$2:$G$1001&比較表!$H$2:$H$1001,比較表!P$2:P$1001) -> 0 | L8: =_xlfn.XLOOKUP($B8&$C8&$D8&$E8&$F8&$G8,比較表!$B$2:$B$1001&比較表!$C$2:$C$1001&比較表!$O$2:$O$1001&比較表!$F$2:$F$1001&比較表!$G$2:$G$1001&比較表!$H$2:$H$1001,比較表!Q$2:Q$1001) -> 0 | M8: =_xlfn.XLOOKUP($B8&$C8&$D8&$E8&$F8&$G8,比較表!$B$2:$B$1001&比較表!$C$2:$C$1001&比較表!$O$2:$O$1001&比較表!$F$2:$F$1001&比較表!$G$2:$G$1001&比較表!$H$2:$H$1001,IF($O$1=1,比較表!R$2:R$1001,IF($O$1=2,比較表!T$2:T$1001,IF($O$1=3,比較表!V$2:V$1001,"")))) -> 0 | N8: =_xlfn.XLOOKUP($B8&$C8&$D8&$E8&$F8&$G8,比較表!$B$2:$B$1001&比較表!$C$2:$C$1001&比較表!$O$2:$O$1001&比較表!$F$2:$F$1001&比較表!$G$2:$G$1001&比較表!$H$2:$H$1001,IF($O$1=1,比較表!S$2:S$1001,IF($O$1=2,比較表!U$2:U$1001,IF($O$1=3,比較表!W$2:W$1001,"")))) -> 0 | O8: =_xlfn.XLOOKUP($B8&$C8&$D8&$E8&$F8&$G8,比較表!$B$2:$B$1001&比較表!$C$2:$C$1001&比較表!$O$2:$O$1001&比較表!$F$2:$F$1001&比較表!$G$2:$G$1001&比較表!$H$2:$H$1001,比較表!AL$2:AL$1001)/10000 -> 0 | P8: =_xlfn.XLOOKUP($B8&$C8&$D8&$E8&$F8&$G8,比較表!$B$2:$B$1001&比較表!$C$2:$C$1001&比較表!$O$2:$O$1001&比較表!$F$2:$F$1001&比較表!$G$2:$G$1001&比較表!$H$2:$H$1001,比較表!AN$2:AN$1001)/10000 -> 0 | Q8: =_xlfn.XLOOKUP($B8&$C8&$D8&$E8&$F8&$G8,比較表!$B$2:$B$1001&比較表!$C$2:$C$1001&比較表!$O$2:$O$1001&比較表!$F$2:$F$1001&比較表!$G$2:$G$1001&比較表!$H$2:$H$1001,IF($O$1=1,比較表!AO$2:AO$1001,IF($O$1=2,比較表!AP$2:AP$1001,IF($O$1=3,比較表!AQ$2:AQ$1001,""))))/10000 -> 0
A10: 2 | I10: =_xlfn.XLOOKUP($B10&$C10&$D10&$E10&$F10&$G10,比較表2!$B$2:$B$1001&比較表2!$C$2:$C$1001&比較表2!$O$2:$O$1001&比較表2!$F$2:$F$1001&比較表2!$G$2:$G$1001&比較表2!$H$2:$H$1001,比較表2!L$2:L$1001)/10000 -> 0 | J10: =_xlfn.XLOOKUP($B10&$C10&$D10&$E10&$F10&$G10,比較表2!$B$2:$B$1001&比較表2!$C$2:$C$1001&比較表2!$O$2:$O$1001&比較表2!$F$2:$F$1001&比較表2!$G$2:$G$1001&比較表2!$H$2:$H$1001,比較表2!M$2:M$1001) -> 0 | K10: =_xlfn.XLOOKUP($B10&$C10&$D10&$E10&$F10&$G10,比較表2!$B$2:$B$1001&比較表2!$C$2:$C$1001&比較表2!$O$2:$O$1001&比較表2!$F$2:$F$1001&比較表2!$G$2:$G$1001&比較表2!$H$2:$H$1001,比較表2!P$2:P$1001) -> 0 | L10: =_xlfn.XLOOKUP($B10&$C10&$D10&$E10&$F10&$G10,比較表2!$B$2:$B$1001&比較表2!$C$2:$C$1001&比較表2!$O$2:$O$1001&比較表2!$F$2:$F$1001&比較表2!$G$2:$G$1001&比較表2!$H$2:$H$1001,比較表2!Q$2:Q$1001) -> 0 | M10: =_xlfn.XLOOKUP($B10&$C10&$D10&$E10&$F10&$G10,比較表2!$B$2:$B$1001&比較表2!$C$2:$C$1001&比較表2!$O$2:$O$1001&比較表2!$F$2:$F$1001&比較表2!$G$2:$G$1001&比較表2!$H$2:$H$1001,IF($O$1=1,比較表!R$2:R$1001,IF($O$1=2,比較表!T$2:T$1001,IF($O$1=3,比較表!V$2:V$1001,"")))) -> 0 | N10: =_xlfn.XLOOKUP($B10&$C10&$D10&$E10&$F10&$G10,比較表2!$B$2:$B$1001&比較表2!$C$2:$C$1001&比較表2!$O$2:$O$1001&比較表2!$F$2:$F$1001&比較表2!$G$2:$G$1001&比較表2!$H$2:$H$1001,IF($O$1=1,比較表!S$2:S$1001,IF($O$1=2,比較表!U$2:U$1001,IF($O$1=3,比較表!W$2:W$1001,"")))) -> 0 | O10: =_xlfn.XLOOKUP($B10&$C10&$D10&$E10&$F10&$G10,比較表2!$B$2:$B$1001&比較表2!$C$2:$C$1001&比較表2!$O$2:$O$1001&比較表2!$F$2:$F$1001&比較表2!$G$2:$G$1001&比較表2!$H$2:$H$1001,比較表2!AL$2:AL$1001)/10000 -> 0 | P10: =_xlfn.XLOOKUP($B10&$C10&$D10&$E10&$F10&$G10,比較表2!$B$2:$B$1001&比較表2!$C$2:$C$1001&比較表2!$O$2:$O$1001&比較表2!$F$2:$F$1001&比較表2!$G$2:$G$1001&比較表2!$H$2:$H$1001,比較表2!AN$2:AN$1001)/10000 -> 0 | Q10: =_xlfn.XLOOKUP($B10&$C10&$D10&$E10&$F10&$G10,比較表2!$B$2:$B$1001&比較表2!$C$2:$C$1001&比較表2!$O$2:$O$1001&比較表2!$F$2:$F$1001&比較表2!$G$2:$G$1001&比較表2!$H$2:$H$1001,IF($O$1=1,比較表2!AO$2:AO$1001,IF($O$1=2,比較表2!AP$2:AP$1001,IF($O$1=3,比較表2!AQ$2:AQ$1001,""))))/10000 -> 0
A11: 2 | I11: =_xlfn.XLOOKUP($B11&$C11&$D11&$E11&$F11&$G11,比較表2!$B$2:$B$1001&比較表2!$C$2:$C$1001&比較表2!$O$2:$O$1001&比較表2!$F$2:$F$1001&比較表2!$G$2:$G$1001&比較表2!$H$2:$H$1001,比較表2!L$2:L$1001)/10000 -> 0 | J11: =_xlfn.XLOOKUP($B11&$C11&$D11&$E11&$F11&$G11,比較表2!$B$2:$B$1001&比較表2!$C$2:$C$1001&比較表2!$O$2:$O$1001&比較表2!$F$2:$F$1001&比較表2!$G$2:$G$1001&比較表2!$H$2:$H$1001,比較表2!M$2:M$1001) -> 0 | K11: =_xlfn.XLOOKUP($B11&$C11&$D11&$E11&$F11&$G11,比較表2!$B$2:$B$1001&比較表2!$C$2:$C$1001&比較表2!$O$2:$O$1001&比較表2!$F$2:$F$1001&比較表2!$G$2:$G$1001&比較表2!$H$2:$H$1001,比較表2!P$2:P$1001) -> 0 | L11: =_xlfn.XLOOKUP($B11&$C11&$D11&$E11&$F11&$G11,比較表2!$B$2:$B$1001&比較表2!$C$2:$C$1001&比較表2!$O$2:$O$1001&比較表2!$F$2:$F$1001&比較表2!$G$2:$G$1001&比較表2!$H$2:$H$1001,比較表2!Q$2:Q$1001) -> 0 | M11: =_xlfn.XLOOKUP($B11&$C11&$D11&$E11&$F11&$G11,比較表2!$B$2:$B$1001&比較表2!$C$2:$C$1001&比較表2!$O$2:$O$1001&比較表2!$F$2:$F$1001&比較表2!$G$2:$G$1001&比較表2!$H$2:$H$1001,IF($O$1=1,比較表!R$2:R$1001,IF($O$1=2,比較表!T$2:T$1001,IF($O$1=3,比較表!V$2:V$1001,"")))) -> 0 | N11: =_xlfn.XLOOKUP($B11&$C11&$D11&$E11&$F11&$G11,比較表2!$B$2:$B$1001&比較表2!$C$2:$C$1001&比較表2!$O$2:$O$1001&比較表2!$F$2:$F$1001&比較表2!$G$2:$G$1001&比較表2!$H$2:$H$1001,IF($O$1=1,比較表!S$2:S$1001,IF($O$1=2,比較表!U$2:U$1001,IF($O$1=3,比較表!W$2:W$1001,"")))) -> 0 | O11: =_xlfn.XLOOKUP($B11&$C11&$D11&$E11&$F11&$G11,比較表2!$B$2:$B$1001&比較表2!$C$2:$C$1001&比較表2!$O$2:$O$1001&比較表2!$F$2:$F$1001&比較表2!$G$2:$G$1001&比較表2!$H$2:$H$1001,比較表2!AL$2:AL$1001)/10000 -> 0 | P11: =_xlfn.XLOOKUP($B11&$C11&$D11&$E11&$F11&$G11,比較表2!$B$2:$B$1001&比較表2!$C$2:$C$1001&比較表2!$O$2:$O$1001&比較表2!$F$2:$F$1001&比較表2!$G$2:$G$1001&比較表2!$H$2:$H$1001,比較表2!AN$2:AN$1001)/10000 -> 0 | Q11: =_xlfn.XLOOKUP($B11&$C11&$D11&$E11&$F11&$G11,比較表2!$B$2:$B$1001&比較表2!$C$2:$C$1001&比較表2!$O$2:$O$1001&比較表2!$F$2:$F$1001&比較表2!$G$2:$G$1001&比較表2!$H$2:$H$1001,IF($O$1=1,比較表2!AO$2:AO$1001,IF($O$1=2,比較表2!AP$2:AP$1001,IF($O$1=3,比較表2!AQ$2:AQ$1001,""))))/10000 -> 0
A12: 2 | I12: =_xlfn.XLOOKUP($B12&$C12&$D12&$E12&$F12&$G12,比較表2!$B$2:$B$1001&比較表2!$C$2:$C$1001&比較表2!$O$2:$O$1001&比較表2!$F$2:$F$1001&比較表2!$G$2:$G$1001&比較表2!$H$2:$H$1001,比較表2!L$2:L$1001)/10000 -> 0 | J12: =_xlfn.XLOOKUP($B12&$C12&$D12&$E12&$F12&$G12,比較表2!$B$2:$B$1001&比較表2!$C$2:$C$1001&比較表2!$O$2:$O$1001&比較表2!$F$2:$F$1001&比較表2!$G$2:$G$1001&比較表2!$H$2:$H$1001,比較表2!M$2:M$1001) -> 0 | K12: =_xlfn.XLOOKUP($B12&$C12&$D12&$E12&$F12&$G12,比較表2!$B$2:$B$1001&比較表2!$C$2:$C$1001&比較表2!$O$2:$O$1001&比較表2!$F$2:$F$1001&比較表2!$G$2:$G$1001&比較表2!$H$2:$H$1001,比較表2!P$2:P$1001) -> 0 | L12: =_xlfn.XLOOKUP($B12&$C12&$D12&$E12&$F12&$G12,比較表2!$B$2:$B$1001&比較表2!$C$2:$C$1001&比較表2!$O$2:$O$1001&比較表2!$F$2:$F$1001&比較表2!$G$2:$G$1001&比較表2!$H$2:$H$1001,比較表2!Q$2:Q$1001) -> 0 | M12: =_xlfn.XLOOKUP($B12&$C12&$D12&$E12&$F12&$G12,比較表2!$B$2:$B$1001&比較表2!$C$2:$C$1001&比較表2!$O$2:$O$1001&比較表2!$F$2:$F$1001&比較表2!$G$2:$G$1001&比較表2!$H$2:$H$1001,IF($O$1=1,比較表!R$2:R$1001,IF($O$1=2,比較表!T$2:T$1001,IF($O$1=3,比較表!V$2:V$1001,"")))) -> 0 | N12: =_xlfn.XLOOKUP($B12&$C12&$D12&$E12&$F12&$G12,比較表2!$B$2:$B$1001&比較表2!$C$2:$C$1001&比較表2!$O$2:$O$1001&比較表2!$F$2:$F$1001&比較表2!$G$2:$G$1001&比較表2!$H$2:$H$1001,IF($O$1=1,比較表!S$2:S$1001,IF($O$1=2,比較表!U$2:U$1001,IF($O$1=3,比較表!W$2:W$1001,"")))) -> 0 | O12: =_xlfn.XLOOKUP($B12&$C12&$D12&$E12&$F12&$G12,比較表2!$B$2:$B$1001&比較表2!$C$2:$C$1001&比較表2!$O$2:$O$1001&比較表2!$F$2:$F$1001&比較表2!$G$2:$G$1001&比較表2!$H$2:$H$1001,比較表2!AL$2:AL$1001)/10000 -> 0 | P12: =_xlfn.XLOOKUP($B12&$C12&$D12&$E12&$F12&$G12,比較表2!$B$2:$B$1001&比較表2!$C$2:$C$1001&比較表2!$O$2:$O$1001&比較表2!$F$2:$F$1001&比較表2!$G$2:$G$1001&比較表2!$H$2:$H$1001,比較表2!AN$2:AN$1001)/10000 -> 0 | Q12: =_xlfn.XLOOKUP($B12&$C12&$D12&$E12&$F12&$G12,比較表2!$B$2:$B$1001&比較表2!$C$2:$C$1001&比較表2!$O$2:$O$1001&比較表2!$F$2:$F$1001&比較表2!$G$2:$G$1001&比較表2!$H$2:$H$1001,IF($O$1=1,比較表2!AO$2:AO$1001,IF($O$1=2,比較表2!AP$2:AP$1001,IF($O$1=3,比較表2!AQ$2:AQ$1001,""))))/10000 -> 0
A13: 2 | I13: =_xlfn.XLOOKUP($B13&$C13&$D13&$E13&$F13&$G13,比較表2!$B$2:$B$1001&比較表2!$C$2:$C$1001&比較表2!$O$2:$O$1001&比較表2!$F$2:$F$1001&比較表2!$G$2:$G$1001&比較表2!$H$2:$H$1001,比較表2!L$2:L$1001)/10000 -> 0 | J13: =_xlfn.XLOOKUP($B13&$C13&$D13&$E13&$F13&$G13,比較表2!$B$2:$B$1001&比較表2!$C$2:$C$1001&比較表2!$O$2:$O$1001&比較表2!$F$2:$F$1001&比較表2!$G$2:$G$1001&比較表2!$H$2:$H$1001,比較表2!M$2:M$1001) -> 0 | K13: =_xlfn.XLOOKUP($B13&$C13&$D13&$E13&$F13&$G13,比較表2!$B$2:$B$1001&比較表2!$C$2:$C$1001&比較表2!$O$2:$O$1001&比較表2!$F$2:$F$1001&比較表2!$G$2:$G$1001&比較表2!$H$2:$H$1001,比較表2!P$2:P$1001) -> 0 | L13: =_xlfn.XLOOKUP($B13&$C13&$D13&$E13&$F13&$G13,比較表!$B$2:$B$1001&比較表!$C$2:$C$1001&比較表!$O$2:$O$1001&比較表!$F$2:$F$1001&比較表!$G$2:$G$1001&比較表!$H$2:$H$1001,比較表2!Q$2:Q$1001) -> 0 | M13: =_xlfn.XLOOKUP($B13&$C13&$D13&$E13&$F13&$G13,比較表2!$B$2:$B$1001&比較表2!$C$2:$C$1001&比較表2!$O$2:$O$1001&比較表2!$F$2:$F$1001&比較表2!$G$2:$G$1001&比較表2!$H$2:$H$1001,IF($O$1=1,比較表!R$2:R$1001,IF($O$1=2,比較表!T$2:T$1001,IF($O$1=3,比較表!V$2:V$1001,"")))) -> 0 | N13: =_xlfn.XLOOKUP($B13&$C13&$D13&$E13&$F13&$G13,比較表2!$B$2:$B$1001&比較表2!$C$2:$C$1001&比較表2!$O$2:$O$1001&比較表2!$F$2:$F$1001&比較表2!$G$2:$G$1001&比較表2!$H$2:$H$1001,IF($O$1=1,比較表!S$2:S$1001,IF($O$1=2,比較表!U$2:U$1001,IF($O$1=3,比較表!W$2:W$1001,"")))) -> 0 | O13: =_xlfn.XLOOKUP($B13&$C13&$D13&$E13&$F13&$G13,比較表2!$B$2:$B$1001&比較表2!$C$2:$C$1001&比較表2!$O$2:$O$1001&比較表2!$F$2:$F$1001&比較表2!$G$2:$G$1001&比較表2!$H$2:$H$1001,比較表2!AL$2:AL$1001)/10000 -> 0 | P13: =_xlfn.XLOOKUP($B13&$C13&$D13&$E13&$F13&$G13,比較表2!$B$2:$B$1001&比較表2!$C$2:$C$1001&比較表2!$O$2:$O$1001&比較表2!$F$2:$F$1001&比較表2!$G$2:$G$1001&比較表2!$H$2:$H$1001,比較表2!AN$2:AN$1001)/10000 -> 0 | Q13: =_xlfn.XLOOKUP($B13&$C13&$D13&$E13&$F13&$G13,比較表2!$B$2:$B$1001&比較表2!$C$2:$C$1001&比較表2!$O$2:$O$1001&比較表2!$F$2:$F$1001&比較表2!$G$2:$G$1001&比較表2!$H$2:$H$1001,IF($O$1=1,比較表2!AO$2:AO$1001,IF($O$1=2,比較表2!AP$2:AP$1001,IF($O$1=3,比較表2!AQ$2:AQ$1001,""))))/10000 -> 0
A14: 2 | I14: =_xlfn.XLOOKUP($B14&$C14&$D14&$E14&$F14&$G14,比較表2!$B$2:$B$1001&比較表2!$C$2:$C$1001&比較表2!$O$2:$O$1001&比較表2!$F$2:$F$1001&比較表2!$G$2:$G$1001&比較表2!$H$2:$H$1001,比較表2!L$2:L$1001)/10000 -> 0 | J14: =_xlfn.XLOOKUP($B14&$C14&$D14&$E14&$F14&$G14,比較表2!$B$2:$B$1001&比較表2!$C$2:$C$1001&比較表2!$O$2:$O$1001&比較表2!$F$2:$F$1001&比較表2!$G$2:$G$1001&比較表2!$H$2:$H$1001,比較表2!M$2:M$1001) -> 0 | K14: =_xlfn.XLOOKUP($B14&$C14&$D14&$E14&$F14&$G14,比較表2!$B$2:$B$1001&比較表2!$C$2:$C$1001&比較表2!$O$2:$O$1001&比較表2!$F$2:$F$1001&比較表2!$G$2:$G$1001&比較表2!$H$2:$H$1001,比較表2!P$2:P$1001) -> 0 | L14: =_xlfn.XLOOKUP($B14&$C14&$D14&$E14&$F14&$G14,比較表2!$B$2:$B$1001&比較表2!$C$2:$C$1001&比較表2!$O$2:$O$1001&比較表2!$F$2:$F$1001&比較表2!$G$2:$G$1001&比較表2!$H$2:$H$1001,比較表2!Q$2:Q$1001) -> 0 | M14: =_xlfn.XLOOKUP($B14&$C14&$D14&$E14&$F14&$G14,比較表2!$B$2:$B$1001&比較表2!$C$2:$C$1001&比較表2!$O$2:$O$1001&比較表2!$F$2:$F$1001&比較表2!$G$2:$G$1001&比較表2!$H$2:$H$1001,IF($O$1=1,比較表!R$2:R$1001,IF($O$1=2,比較表!T$2:T$1001,IF($O$1=3,比較表!V$2:V$1001,"")))) -> 0 | N14: =_xlfn.XLOOKUP($B14&$C14&$D14&$E14&$F14&$G14,比較表2!$B$2:$B$1001&比較表2!$C$2:$C$1001&比較表2!$O$2:$O$1001&比較表2!$F$2:$F$1001&比較表2!$G$2:$G$1001&比較表2!$H$2:$H$1001,IF($O$1=1,比較表!S$2:S$1001,IF($O$1=2,比較表!U$2:U$1001,IF($O$1=3,比較表!W$2:W$1001,"")))) -> 0 | O14: =_xlfn.XLOOKUP($B14&$C14&$D14&$E14&$F14&$G14,比較表2!$B$2:$B$1001&比較表2!$C$2:$C$1001&比較表2!$O$2:$O$1001&比較表2!$F$2:$F$1001&比較表2!$G$2:$G$1001&比較表2!$H$2:$H$1001,比較表2!AL$2:AL$1001)/10000 -> 0 | P14: =_xlfn.XLOOKUP($B14&$C14&$D14&$E14&$F14&$G14,比較表2!$B$2:$B$1001&比較表2!$C$2:$C$1001&比較表2!$O$2:$O$1001&比較表2!$F$2:$F$1001&比較表2!$G$2:$G$1001&比較表2!$H$2:$H$1001,比較表2!AN$2:AN$1001)/10000 -> 0 | Q14: =_xlfn.XLOOKUP($B14&$C14&$D14&$E14&$F14&$G14,比較表2!$B$2:$B$1001&比較表2!$C$2:$C$1001&比較表2!$O$2:$O$1001&比較表2!$F$2:$F$1001&比較表2!$G$2:$G$1001&比較表2!$H$2:$H$1001,IF($O$1=1,比較表2!AO$2:AO$1001,IF($O$1=2,比較表2!AP$2:AP$1001,IF($O$1=3,比較表2!AQ$2:AQ$1001,""))))/10000 -> 0
A15: 2 | I15: =_xlfn.XLOOKUP($B15&$C15&$D15&$E15&$F15&$G15,比較表2!$B$2:$B$1001&比較表2!$C$2:$C$1001&比較表2!$O$2:$O$1001&比較表2!$F$2:$F$1001&比較表2!$G$2:$G$1001&比較表2!$H$2:$H$1001,比較表2!L$2:L$1001)/10000 -> 0 | J15: =_xlfn.XLOOKUP($B15&$C15&$D15&$E15&$F15&$G15,比較表2!$B$2:$B$1001&比較表2!$C$2:$C$1001&比較表2!$O$2:$O$1001&比較表2!$F$2:$F$1001&比較表2!$G$2:$G$1001&比較表2!$H$2:$H$1001,比較表2!M$2:M$1001) -> 0 | K15: =_xlfn.XLOOKUP($B15&$C15&$D15&$E15&$F15&$G15,比較表2!$B$2:$B$1001&比較表2!$C$2:$C$1001&比較表2!$O$2:$O$1001&比較表2!$F$2:$F$1001&比較表2!$G$2:$G$1001&比較表2!$H$2:$H$1001,比較表2!P$2:P$1001) -> 0 | L15: =_xlfn.XLOOKUP($B15&$C15&$D15&$E15&$F15&$G15,比較表2!$B$2:$B$1001&比較表2!$C$2:$C$1001&比較表2!$O$2:$O$1001&比較表2!$F$2:$F$1001&比較表2!$G$2:$G$1001&比較表2!$H$2:$H$1001,比較表2!Q$2:Q$1001) -> 0 | M15: =_xlfn.XLOOKUP($B15&$C15&$D15&$E15&$F15&$G15,比較表2!$B$2:$B$1001&比較表2!$C$2:$C$1001&比較表2!$O$2:$O$1001&比較表2!$F$2:$F$1001&比較表2!$G$2:$G$1001&比較表2!$H$2:$H$1001,IF($O$1=1,比較表!R$2:R$1001,IF($O$1=2,比較表!T$2:T$1001,IF($O$1=3,比較表!V$2:V$1001,"")))) -> 0 | N15: =_xlfn.XLOOKUP($B15&$C15&$D15&$E15&$F15&$G15,比較表2!$B$2:$B$1001&比較表2!$C$2:$C$1001&比較表2!$O$2:$O$1001&比較表2!$F$2:$F$1001&比較表2!$G$2:$G$1001&比較表2!$H$2:$H$1001,IF($O$1=1,比較表!S$2:S$1001,IF($O$1=2,比較表!U$2:U$1001,IF($O$1=3,比較表!W$2:W$1001,"")))) -> 0 | O15: =_xlfn.XLOOKUP($B15&$C15&$D15&$E15&$F15&$G15,比較表2!$B$2:$B$1001&比較表2!$C$2:$C$1001&比較表2!$O$2:$O$1001&比較表2!$F$2:$F$1001&比較表2!$G$2:$G$1001&比較表2!$H$2:$H$1001,比較表2!AL$2:AL$1001)/10000 -> 0 | P15: =_xlfn.XLOOKUP($B15&$C15&$D15&$E15&$F15&$G15,比較表2!$B$2:$B$1001&比較表2!$C$2:$C$1001&比較表2!$O$2:$O$1001&比較表2!$F$2:$F$1001&比較表2!$G$2:$G$1001&比較表2!$H$2:$H$1001,比較表2!AN$2:AN$1001)/10000 -> 0 | Q15: =_xlfn.XLOOKUP($B15&$C15&$D15&$E15&$F15&$G15,比較表2!$B$2:$B$1001&比較表2!$C$2:$C$1001&比較表2!$O$2:$O$1001&比較表2!$F$2:$F$1001&比較表2!$G$2:$G$1001&比較表2!$H$2:$H$1001,IF($O$1=1,比較表2!AO$2:AO$1001,IF($O$1=2,比較表2!AP$2:AP$1001,IF($O$1=3,比較表2!AQ$2:AQ$1001,""))))/10000 -> 0

Sheet 諸費用並び替え (hidden)
A1: =COUNTIF(資金調達!M11:M16,">0") -> 0 | C1: 270 | D1: 271 | E1: 280 | F1: 281 | G1: 290 | H1: 291 | I1: 1070 | J1: 1071 | K1: 260 | L1: 261 | M1: 350 | N1: 351 | O1: 200 | P1: 201 | Q1: 210 | R1: 211 | S1: 220 | T1: 221 | U1: 790 | V1: 791 | W1: 10 | X1: 11 | Y1: 20 | Z1: 21 | AA1: 490 | AB1: 491 | AC1: 120 | AD1: 121 | AE1: 190 | AF1: 121 | AG1: 190 | AH1: 191 | AI1: 390 | AJ1: 391 | AK1: 400 | AL1: 401 | AM1: 890 | AN1: 891 | AO1: 900 | AP1: 901 | AQ1: 1040 | AR1: 1041 | AS1: 910 | AT1: 911 | AU1: 920 | AV1: 921 | AW1: 930 | AX1: 931 | AY1: 940 | AZ1: 941 | BA1: 950 | BB1: 951 | BC1: 960 | BD1: 961 | BE1: 800 | BF1: 801 | BG1: 810 | BH1: 811 | BI1: 820 | BJ1: 821 | BK1: 830 | BL1: 831 | BM1: 840 | BN1: 841 | BO1: 970 | BP1: 971 | BQ1: 980 | BR1: 981 | BS1: 30 | BT1: 31 | BU1: 40 | BV1: 41 | BW1: 50 | BX1: 51 | BY1: 60 | BZ1: 61 | CA1: 460 | CB1: 461 | CC1: 470 | CD1: 471 | CE1: 860 | CF1: 861 | CG1: 870 | CH1: 871 | CI1: 880 | CJ1: 881 | CK1: 850 | CL1: 851 | CM1: 990 | CN1: 991 | CO1: 1000 | CP1: 1001 | CQ1: 1020 | CR1: 1021 | CS1: 1030 | CT1: 1031 | CU1: 570 | CV1: 571 | CW1: 572 | CX1: 573 | CY1: 610 | CZ1: 611 | DA1: 612 | DB1: 613 | DC1: 660 | DD1: 661 | DE1: 662 | DF1: 663
C2: 金融機関名 | D2: =諸費用!C28 -> みずほ銀行 | E2: 金融機関名 | F2: =$D2 -> みずほ銀行 | G2: 金融機関名 | H2: =$D2 -> みずほ銀行 | I2: 金融機関名 | J2: =$D2 -> みずほ銀行 | K2: 金融機関名 | L2: =諸費用!C27 -> 三菱UFJ銀行 | M2: 金融機関名 | N2: =諸費用!C37 -> 三井住友銀行 | O2: 金融機関名 | P2: =諸費用!C21 -> りそな銀行 | Q2: 金融機関名 | R2: =諸費用!C22 -> りそな銀行 | S2: 金融機関名 | T2: =諸費用!C23 -> りそな銀行 | U2: 金融機関名 | V2: =諸費用!C81 -> PayPay銀行 | W2: 金融機関名 | X2: =諸費用!C2 -> ソニー銀行 | Y2: 金融機関名 | Z2: =諸費用!C3 -> ソニー銀行 | AA2: 金融機関名 | AB2: =諸費用!C51 -> 楽天銀行 | AC2: 金融機関名 | AD2: =諸費用!C13 -> 住信SBIネット銀行 | AE2: 金融機関名 | AF2: =諸費用!C5 -> 三井住友信託銀行 | AG2: 金融機関名 | AH2: =諸費用!C20 -> auじぶん銀行 | AI2: 金融機関名 | AJ2: =諸費用!C41 -> イオン銀行 | AK2: 金融機関名 | AL2: =諸費用!C42 -> イオン銀行 | AM2: 金融機関名 | AN2: =諸費用!C92 -> 常陽銀行 | AO2: 金融機関名 | AP2: =諸費用!C93 -> 常陽銀行 | AQ2: 金融機関名 | AR2: =諸費用!C94 -> 常陽銀行 | AS2: 金融機関名 | AT2: =諸費用!C95 -> 横浜銀行 | AU2: 金融機関名 | AV2: =諸費用!C96 -> 横浜銀行 | AW2: 金融機関名 | AX2: =諸費用!C97 -> 横浜銀行 | AY2: 金融機関名 | AZ2: =諸費用!C98 -> 横浜銀行 | BA2: 金融機関名 | BB2: =諸費用!C99 -> 横浜銀行 | BC2: 金融機関名 | BD2: =諸費用!C100 -> 横浜銀行 | BE2: 金融機関名 | BF2: =諸費用!C82 -> 北陸銀行 | BG2: 金融機関名 | BH2: =諸費用!C83 -> 北陸銀行 | BI2: 金融機関名 | BJ2: =諸費用!C84 -> 北陸銀行 | BK2: 金融機関名 | BL2: =諸費用!C85 -> 北陸銀行 | BM2: 金融機関名 | BN2: =諸費用!C86 -> 北國銀行 | BO2: 金融機関名 | BP2: =諸費用!C101 -> 静岡銀行 | BQ2: 金融機関名 | BR2: =諸費用!C102 -> 静岡銀行 | BS2: 金融機関名 | BT2: =諸費用!C4 -> 三菱UFJ信託銀行 | BU2: 金融機関名 | BV2: =諸費用!C5 -> 三井住友信託銀行 | BW2: 金融機関名 | BX2: =諸費用!C6 -> 三井住友信託銀行 | BY2: 金融機関名 | BZ2: =諸費用!C7 -> 三井住友信託銀行 | CA2: 金融機関名 | CB2: =諸費用!C48 -> SBI新生銀行 | CC2: 金融機関名 | CD2: =諸費用!C49 -> SBI新生銀行 | CE2: 金融機関名 | CF2: =諸費用!C89 -> 中央ろうきん | CG2: 金融機関名 | CH2: =諸費用!C90 -> 中央ろうきん | CI2: 金融機関名 | CJ2: =諸費用!C91 -> 中央ろうきん | CK2: 金融機関名 | CL2: =諸費用!C87 -> 北陸ろうきん | CM2: 金融機関名 | CN2: =諸費用!C105 -> 北洋銀行 | CO2: 金融機関名 | CP2: =諸費用!C106 -> 北洋銀行 | CQ2: 金融機関名 | CR2: =諸費用!C108 -> 群馬銀行 | CS2: 金融機関名 | CT2: =諸費用!C109 -> 群馬銀行 | CU2: 金融機関名 | CV2: =諸費用!C59 -> 優良住宅ローン | CW2: =CV2 -> 優良住宅ローン | CX2: =CW2 -> 優良住宅ローン | CY2: 金融機関名 | CZ2: =諸費用!C63 -> SBIアルヒ | DA2: =諸費用!C63 -> SBIアルヒ | DB2: =諸費用!D63 -> フラット35 | DC2: 金融機関名 | DD2: =諸費用!C68 -> カシワバラ・アシスト | DE2: =DD2 -> カシワバラ・アシスト | DF2: =DE2 -> カシワバラ・アシスト
C3: 商品名 | D3: =諸費用!E28 -> みずほネット住宅ローン | E3: 商品名 | F3: =諸費用!E28 -> みずほネット住宅ローン | G3: 商品名 | H3: =諸費用!E28 -> みずほネット住宅ローン | I3: 商品名 | J3: =諸費用!E31 -> みずほネット住宅ローン | K3: 商品名 | M3: 商品名 | N3: =諸費用!E37 -> WEB申込専用住宅ローン | O3: 商品名 | P3: =諸費用!E21 -> りそな住宅ローン | Q3: 商品名 | R3: =諸費用!E22 -> りそな住宅ローン | S3: 商品名 | T3: =諸費用!E23 -> りそな住宅ローン | U3: 商品名 | V3: =諸費用!E81 -> 住宅ローン | W3: 商品名 | X3: =諸費用!E2 -> 変動セレクト／固定セレクト | Y3: 商品名 | Z3: =諸費用!E3 -> 住宅ローン | AA3: 商品名 | AB3: =諸費用!E51 -> 楽天銀行住宅ローン（金利選択型） | AC3: 商品名 | AD3: =諸費用!E13 -> WEB申込コース | AE3: 商品名 | AF3: =諸費用!G13 -> 1 | AG3: 商品名 | AH3: =諸費用!E20 -> 住宅ローン | AI3: 商品名 | AJ3: =諸費用!E41 -> イオン銀行住宅ローン | AK3: 商品名 | AL3: =諸費用!E42 -> イオン銀行住宅ローン | AM3: 商品名 | AN3: =諸費用!E92 -> 常陽住宅ローン | AO3: 商品名 | AP3: =諸費用!E93 -> 常陽住宅ローン | AQ3: 商品名 | AR3: =諸費用!E94 -> 常陽住宅ローン | AS3: 商品名 | AT3: 標準型金利プラン+変動金利 | AU3: 商品名 | AV3: =諸費用!E96 -> 標準型金利プラン | AW3: 商品名 | AX3: 標準型金利プラン+変動金利 | AY3: 商品名 | AZ3: =諸費用!E97 -> 標準型金利プラン+変動金利 | BA3: 商品名 | BB3: =諸費用!E99 -> 融資手数料型金利プラン+変動金利 | BC3: 商品名 | BD3: 融資手数料型金利プラン＋変動金利 | BE3: 商品名 | BF3: =諸費用!E82 -> ほくぎん住宅ローン | BG3: 商品名 | BH3: =諸費用!E83 -> ほくぎん住宅ローン | BI3: 商品名 | BJ3: =諸費用!E84 -> 0 | BK3: 商品名 | BL3: =諸費用!E85 -> 0 | BM3: 商品名 | BN3: =諸費用!E86 -> 北國住宅ローン | BO3: 商品名 | BP3: =諸費用!E101 -> カスタムFLEX | BQ3: 商品名 | BR3: =諸費用!E102 -> カスタムFLEX | BS3: 商品名 | BT3: =諸費用!E4 -> 三菱UFJネット住宅ローン | BU3: 商品名 | BV3: =諸費用!E5 -> 住まいのアシスト | BW3: 商品名 | BX3: =諸費用!E6 -> 住まいのアシスト | BY3: 商品名 | BZ3: =諸費用!E7 -> 住まいのアシスト | CA3: 商品名 | CB3: =諸費用!E48 -> パワースマート住宅ローン | CC3: 商品名 | CD3: =諸費用!E49 -> パワースマート住宅ローン | CE3: 商品名 | CF3: =諸費用!E89 -> 住宅ローン【手数料定率型】 | CG3: 商品名 | CH3: =諸費用!E90 -> 住宅ローン【手数料定額型】 | CI3: 商品名 | CJ3: =諸費用!E91 -> 住宅ローン【手数料定額型】 | CK3: 商品名 | CL3: =諸費用!E87 -> まるっと500 | CM3: 商品名 | CN3: =諸費用!E105 -> ほくようスペシャル住宅ローンα | CO3: 商品名 | CP3: =諸費用!E106 -> ほくようスペシャル住宅ローンα定率型 | CQ3: 商品名 | CR3: =諸費用!E108 -> 住宅ローン「金利選択プラン」 | CS3: 商品名 | CT3: =諸費用!E109 -> 住宅ローン「金利選択プラン」 | CU3: 商品名 | CV3: =諸費用!E59 -> フラット35 | CW3: フラット35+ローン | CX3: フラット35+アプラス | CY3: 商品名 | CZ3: =諸費用!E63 -> フラット35 | DA3: フラット35+ローン | DB3: フラット35+アプラス | DC3: 商品名 | DD3: =諸費用!E68 -> フラット35 | DE3: フラット35+ローン | DF3: フラット35+アプラス
C4: 手数料タイプ | D4: =諸費用!B28 -> 手数料定率 | E4: 手数料タイプ | F4: =諸費用!B29 -> 保証料前払い | G4: 手数料タイプ | H4: =諸費用!B30 -> 保証料後払い | I4: 手数料タイプ | J4: 手数料定額 | K4: 手数料タイプ | L4: =諸費用!B27 -> 手数料定率 | M4: 手数料タイプ | N4: =諸費用!B37 -> 手数料定率 | O4: 手数料タイプ | P4: =諸費用!B21 -> 手数料定率 | Q4: 手数料タイプ | R4: =諸費用!B22 -> 保証料前払い | S4: 手数料タイプ | T4: =諸費用!B23 -> 保証料後払い | U4: 手数料タイプ | V4: =諸費用!B81 -> 手数料定率 | W4: 手数料タイプ | X4: =諸費用!B2 -> 手数料定率 | Y4: 手数料タイプ | Z4: =諸費用!B3 -> 手数料定額 | AA4: 手数料タイプ | AB4: =諸費用!B51 -> 手数料定額 | AC4: 手数料タイプ | AD4: =諸費用!B13 -> 手数料定率 | AE4: 手数料タイプ | AF4: =諸費用!D13 -> 0 | AG4: 手数料タイプ | AH4: =諸費用!B20 -> 手数料定率 | AI4: 手数料タイプ | AJ4: =諸費用!B41 -> 手数料定率 | AK4: 手数料タイプ | AL4: =諸費用!B42 -> 手数料定額 | AM4: 手数料タイプ | AN4: =諸費用!B92 -> 保証料前払い | AO4: 手数料タイプ | AP4: =諸費用!B93 -> 保証料後払い | AQ4: 手数料タイプ | AR4: =諸費用!B94 -> 手数料定率 | AS4: 手数料タイプ | AT4: =諸費用!B95 -> 保証料前払い | AU4: 手数料タイプ | AV4: =諸費用!B96 -> 保証料前払い | AW4: 手数料タイプ | AX4: =諸費用!B97 -> 保証料後払い | AY4: 手数料タイプ | AZ4: =諸費用!B98 -> 保証料後払い | BA4: 手数料タイプ | BB4: =諸費用!B99 -> 手数料定率 | BC4: 手数料タイプ | BD4: =諸費用!B100 -> 手数料定率 | BE4: 手数料タイプ | BF4: =諸費用!B82 -> 保証料前払い | BG4: 手数料タイプ | BH4: =諸費用!B83 -> 保証料後払い | BI4: 手数料タイプ | BJ4: =諸費用!B84 -> 手数料定率 | BK4: 手数料タイプ | BL4: =諸費用!B85 -> 手数料定率 | BM4: 手数料タイプ | BN4: =諸費用!B86 -> 手数料定額 | BO4: 手数料タイプ | BP4: =諸費用!B101 -> 手数料定率 | BQ4: 手数料タイプ | BR4: =諸費用!B102 -> 手数料定額 | BS4: 手数料タイプ | BT4: =諸費用!B4 -> 手数料定率 | BU4: 手数料タイプ | BV4: =諸費用!B5 -> 手数料定率 | BW4: 手数料タイプ | BX4: =諸費用!B6 -> 保証料前払い | BY4: 手数料タイプ | BZ4: =諸費用!B7 -> 保証料後払い | CA4: 手数料タイプ | CB4: =諸費用!B48 -> 手数料定率 | CC4: 手数料タイプ | CD4: =諸費用!B49 -> 手数料定額 | CE4: 手数料タイプ | CF4: =諸費用!B89 -> 手数料定率 | CG4: 手数料タイプ | CH4: =諸費用!B90 -> 保証料前払い | CI4: 手数料タイプ | CJ4: =諸費用!B91 -> 保証料後払い | CK4: 手数料タイプ | CL4: =諸費用!B87 -> 手数料定額 | CM4: 手数料タイプ | CN4: =諸費用!B105 -> 手数料定額 | CO4: 手数料タイプ | CP4: =諸費用!B106 -> 手数料定率 | CQ4: 手数料タイプ | CR4: =諸費用!B108 -> 保証料前払い | CS4: 手数料タイプ | CT4: =諸費用!B109 -> 保証料後払い | CU4: 手数料タイプ | CV4: =諸費用!B59 -> 手数料定率 | CW4: =CV4 -> 手数料定率 | CX4: =CW4 -> 手数料定率 | CY4: 手数料タイプ | CZ4: =諸費用!B63 -> 手数料定率 | DA4: =CZ4 -> 手数料定率 | DB4: =DA4 -> 手数料定率 | DC4: 手数料タイプ | DD4: =諸費用!B68 -> 手数料定率 | DE4: =DD4 -> 手数料定率 | DF4: =DE4 -> 手数料定率
C5: 融資タイプ | D5: =諸費用!F28 -> 分割4回 | E5: 融資タイプ | F5: =諸費用!F29 -> 分割4回 | G5: 融資タイプ | H5: =諸費用!F30 -> 分割4回 | I5: 融資タイプ | J5: =諸費用!F31 -> 分割4回 | K5: 融資タイプ | L5: =諸費用!F27 -> 最終一括 | M5: 融資タイプ | N5: 分割3回 | O5: 融資タイプ | P5: 分割3回 | Q5: 融資タイプ | R5: 分割3回 | S5: 融資タイプ | T5: 分割3回 | U5: 融資タイプ | V5: =諸費用!F81 -> 最終一括 | W5: 融資タイプ | X5: =諸費用!F2 -> 最終一括 | Y5: 融資タイプ | Z5: =諸費用!F3 -> 最終一括 | AA5: 融資タイプ | AB5: =諸費用!F51 -> 最終一括 | AC5: 融資タイプ | AD5: =諸費用!F13 -> 最終一括 | AE5: 融資タイプ | AF5: =諸費用!F13 -> 最終一括 | AG5: 融資タイプ | AH5: =諸費用!F20 -> 最終一括 | AI5: 融資タイプ | AJ5: =諸費用!F41 -> 最終一括 | AK5: 融資タイプ | AL5: =諸費用!F42 -> 最終一括 | AM5: 融資タイプ | AN5: =諸費用!F92 -> 当初一括 | AO5: 融資タイプ | AP5: =諸費用!F93 -> 当初一括 | AQ5: 融資タイプ | AR5: =諸費用!F94 -> 当初一括 | AS5: 融資タイプ | AT5: 分割4回 | AU5: 融資タイプ | AV5: =諸費用!F96 -> 最終一括 | AW5: 融資タイプ | AX5: 分割4回 | AY5: 融資タイプ | AZ5: =諸費用!F100 -> 最終一括 | BA5: 融資タイプ | BB5: 分割4回 | BC5: 融資タイプ | BD5: =諸費用!F100 -> 最終一括 | BE5: 融資タイプ | BF5: 当初一括 | BG5: 融資タイプ | BH5: 当初一括 | BI5: 融資タイプ | BJ5: 当初一括 | BK5: 融資タイプ | BL5: 当初一括 | BM5: 融資タイプ | BN5: =諸費用!F86 -> 当初一括 | BO5: 融資タイプ | BP5: 分割4回 | BQ5: 融資タイプ | BR5: 分割4回 | BS5: 融資タイプ | BT5: =諸費用!F4 -> 最終一括 | BU5: 融資タイプ | BV5: =諸費用!F5 -> 最終一括 | BW5: 融資タイプ | BX5: =諸費用!F6 -> 最終一括 | BY5: 融資タイプ | BZ5: =諸費用!F7 -> 最終一括 | CA5: 融資タイプ | CB5: =諸費用!F48 -> 最終一括 | CC5: 融資タイプ | CD5: =諸費用!F49 -> 最終一括 | CE5: 融資タイプ | CF5: =諸費用!F89 -> 最終一括 | CG5: 融資タイプ | CH5: =諸費用!F90 -> 最終一括 | CI5: 融資タイプ | CJ5: =諸費用!F91 -> 最終一括 | CK5: 融資タイプ | CL5: 分割3回 | CM5: 融資タイプ | CN5: =諸費用!F105 -> 最終一括 | CO5: 融資タイプ | CP5: =諸費用!F106 -> 最終一括 | CQ5: 融資タイプ | CR5: =諸費用!F108 -> 最終一括 | CS5: 融資タイプ | CT5: =諸費用!F109 -> 最終一括 | CU5: 融資タイプ | CV5: =諸費用!F59 -> 最終一括 | CW5: =CV5 -> 最終一括 | CX5: =CW5 -> 最終一括 | CY5: 融資タイプ | CZ5: =諸費用!F63 -> 最終一括 | DA5: =CZ5 -> 最終一括 | DB5: =DA5 -> 最終一括 | DC5: 融資タイプ | DD5: =諸費用!F68 -> 最終一括 | DE5: =DD5 -> 最終一括 | DF5: =DE5 -> 最終一括
C6: 総予算 | D6: =D7+D8+D9+D10 -> 12.33 | E6: 総予算 | F6: =F7+F8+F9+F10 -> 12.33 | G6: 総予算 | H6: =H7+H8+H9+H10 -> 12.33 | I6: 総予算 | J6: =J7+J8+J9+J10 -> 12.33 | K6: 総予算 | L6: =L7+L8+L9+L10 ->  | M6: 総予算 | N6: =N7+N8+N9+N10 -> 20.33 | O6: 総予算 | P6: =P7+P8+P9+P10 -> 20.33 | Q6: 総予算 | R6: =R7+R8+R9+R10 ->  | S6: 総予算 | T6: =T7+T8+T9+T10 -> 20.33 | U6: 総予算 | V6: =V7+V8+V9+V10 -> 18 | W6: 総予算 | X6: =X7+X8+X9+X10 -> 18 | Y6: 総予算 | Z6: =Z7+Z8+Z9+Z10 -> 18 | AA6: 総予算 | AB6: =AB7+AB8+AB9+AB10 -> 12 | AC6: 総予算 | AD6: =AD7+AD8+AD9+AD10 ->  | AE6: 総予算 | AF6: =AF7+AF8+AF9+AF10 ->  | AG6: 総予算 | AH6: =AH7+AH8+AH9+AH10 -> 16 | AI6: 総予算 | AJ6: =AJ7+AJ8+AJ9+AJ10 ->  | AK6: 総予算 | AL6: =AL7+AL8+AL9+AL10 ->  | AM6: 総予算 | AN6: =AN7+AN8+AN9+AN10 -> 12.33 | AO6: 総予算 | AP6: =AP7+AP8+AP9+AP10 -> 12.33 | AQ6: 総予算 | AR6: =AR7+AR8+AR9+AR10 -> 12.33 | AS6: 総予算 | AT6: =AT7+AT8+AT9+AT10 -> 12.33 | AU6: 総予算 | AV6: =AV7+AV8+AV9+AV10 -> 18 | AW6: 総予算 | AX6: =AX7+AX8+AX9+AX10 -> 12.33 | AY6: 総予算 | AZ6: =AZ7+AZ8+AZ9+AZ10 -> 18 | BA6: 総予算 | BB6: =BB7+BB8+BB9+BB10 -> 12.33 | BC6: 総予算 | BD6: =BD7+BD8+BD9+BD10 -> 18 | BE6: 総予算 | BF6: =BF7+BF8+BF9+BF10 -> 12.33 | BG6: 総予算 | BH6: =BH7+BH8+BH9+BH10 -> 12.33 | BI6: 総予算 | BJ6: =BJ7+BJ8+BJ9+BJ10 -> 12.33 | BK6: 総予算 | BL6: =BL7+BL8+BL9+BL10 -> 12.33 | BM6: 総予算 | BN6: =BN7+BN8+BN9+BN10 -> 12 | BO6: 総予算 | BP6: =BP7+BP8+BP9+BP10 -> 12.33 | BQ6: 総予算 | BR6: =BR7+BR8+BR9+BR10 -> 26.3 | BS6: 総予算 | BT6: =BT7+BT8+BT9+BT10 ->  | BU6: 総予算 | BV6: =BV7+BV8+BV9+BV10 ->  | BW6: 総予算 | BX6: =BX7+BX8+BX9+BX10 ->  | BY6: 総予算 | BZ6: =BZ7+BZ8+BZ9+BZ10 ->  | CA6: 総予算 | CB6: =CB7+CB8+CB9+CB10 -> 16 | CC6: 総予算 | CD6: =CD7+CD8+CD9+CD10 -> 16 | CE6: 総予算 | CF6: =CF7+CF8+CF9+CF10 -> 12 | CG6: 総予算 | CH6: =CH7+CH8+CH9+CH10 -> 12 | CI6: 総予算 | CJ6: =CJ7+CJ8+CJ9+CJ10 -> 12 | CK6: 総予算 | CL6: =CL7+CL8+CL9+CL10 -> 12.33 | CM6: 総予算 | CN6: =CN7+CN8+CN9+CN10 -> 18 | CO6: 総予算 | CP6: =CP7+CP8+CP9+CP10 -> 18 | CQ6: 総予算 | CR6: =CR7+CR8+CR9+CR10 ->  | CS6: 総予算 | CT6: =CT7+CT8+CT9+CT10 ->  | CU6: 総予算 | CV6: =CV7+CV8+CV9+CV10 -> 12 | CW6: =CW7+CW8+CW9+CW10 -> 12 | CX6: =CX7+CX8+CX9+CX10 -> 12 | CY6: 総予算 | CZ6: =CZ7+CZ8+CZ9+CZ10 -> 17.5 | DA6: =DA7+DA8+DA9+DA10 -> 17.5 | DB6: =DB7+DB8+DB9+DB10 -> 17.5 | DC6: 総予算 | DD6: =DD7+DD8+DD9+DD10 -> 12 | DE6: =DE7+DE8+DE9+DE10 -> 12 | DF6: =DF7+DF8+DF9+DF10 -> 12
C7: 不動産 | D7: =資金調達!$E11+資金調達!$E12 -> 0 | E7: 不動産 | F7: =資金調達!$E11+資金調達!$E12 -> 0 | G7: 不動産 | H7: =資金調達!$E11+資金調達!$E12 -> 0 | I7: 不動産 | J7: =資金調達!$E11+資金調達!$E12 -> 0 | K7: 不動産 | L7: =資金調達!$E11+資金調達!$E12 -> 0 | M7: 不動産 | N7: =資金調達!$E11+資金調達!$E12 -> 0 | O7: 不動産 | P7: =資金調達!$E11+資金調達!$E12 -> 0 | Q7: 不動産 | R7: =資金調達!$E11+資金調達!$E12 -> 0 | S7: 不動産 | T7: =資金調達!$E11+資金調達!$E12 -> 0 | U7: 不動産 | V7: =資金調達!$E11+資金調達!$E12 -> 0 | W7: 不動産 | X7: =資金調達!$E11+資金調達!$E12 -> 0 | Y7: 不動産 | Z7: =資金調達!$E11+資金調達!$E12 -> 0 | AA7: 不動産 | AB7: =資金調達!$E11+資金調達!$E12 -> 0 | AC7: 不動産 | AD7: =資金調達!$E11+資金調達!$E12 -> 0 | AE7: 不動産 | AF7: =資金調達!$E11+資金調達!$E12 -> 0 | AG7: 不動産 | AH7: =資金調達!$E11+資金調達!$E12 -> 0 | AI7: 不動産 | AJ7: =資金調達!$E11+資金調達!$E12 -> 0 | AK7: 不動産 | AL7: =資金調達!$E11+資金調達!$E12 -> 0 | AM7: 不動産 | AN7: =資金調達!$E11+資金調達!$E12 -> 0 | AO7: 不動産 | AP7: =資金調達!$E11+資金調達!$E12 -> 0 | AQ7: 不動産 | AR7: =資金調達!$E11+資金調達!$E12 -> 0 | AS7: 不動産 | AT7: =資金調達!$E11+資金調達!$E12 -> 0 | AU7: 不動産 | AV7: =資金調達!$E11+資金調達!$E12 -> 0 | AW7: 不動産 | AX7: =資金調達!$E11+資金調達!$E12 -> 0 | AY7: 不動産 | AZ7: =資金調達!$E11+資金調達!$E12 -> 0 | BA7: 不動産 | BB7: =資金調達!$E11+資金調達!$E12 -> 0 | BC7: 不動産 | BD7: =資金調達!$E11+資金調達!$E12 -> 0 | BE7: 不動産 | BF7: =資金調達!$E11+資金調達!$E12 -> 0 | BG7: 不動産 | BH7: =資金調達!$E11+資金調達!$E12 -> 0 | BI7: 不動産 | BJ7: =資金調達!$E11+資金調達!$E12 -> 0 | BK7: 不動産 | BL7: =資金調達!$E11+資金調達!$E12 -> 0 | BM7: 不動産 | BN7: =資金調達!$E11+資金調達!$E12 -> 0 | BO7: 不動産 | BP7: =資金調達!$E11+資金調達!$E12 -> 0 | BQ7: 不動産 | BR7: =資金調達!$E11+資金調達!$E12 -> 0 | BS7: 不動産 | BT7: =資金調達!$E11+資金調達!$E12 -> 0 | BU7: 不動産 | BV7: =資金調達!$E11+資金調達!$E12 -> 0 | BW7: 不動産 | BX7: =資金調達!$E11+資金調達!$E12 -> 0 | BY7: 不動産 | BZ7: =資金調達!$E11+資金調達!$E12 -> 0 | CA7: 不動産 | CB7: =資金調達!$E11+資金調達!$E12 -> 0 | CC7: 不動産 | CD7: =資金調達!$E11+資金調達!$E12 -> 0 | CE7: 不動産 | CF7: =資金調達!$E11+資金調達!$E12 -> 0 | CG7: 不動産 | CH7: =資金調達!$E11+資金調達!$E12 -> 0 | CI7: 不動産 | CJ7: =資金調達!$E11+資金調達!$E12 -> 0 | CK7: 不動産 | CL7: =資金調達!$E11+資金調達!$E12 -> 0 | CM7: 不動産 | CN7: =資金調達!$E11+資金調達!$E12 -> 0 | CO7: 不動産 | CP7: =資金調達!$E11+資金調達!$E12 -> 0 | CQ7: 不動産 | CR7: =資金調達!$E11+資金調達!$E12 -> 0 | CS7: 不動産 | CT7: =資金調達!$E11+資金調達!$E12 -> 0 | CU7: 不動産 | CV7: =資金調達!$E11+資金調達!$E12 -> 0 | CW7: =資金調達!$E11+資金調達!$E12 -> 0 | CX7: =資金調達!$E11+資金調達!$E12 -> 0 | CY7: 不動産 | CZ7: =資金調達!$E11+資金調達!$E12 -> 0 | DA7: =資金調達!$E11+資金調達!$E12 -> 0 | DB7: =資金調達!$E11+資金調達!$E12 -> 0 | DC7: 不動産 | DD7: =資金調達!$E11+資金調達!$E12 -> 0 | DE7: =資金調達!$E11+資金調達!$E12 -> 0 | DF7: =資金調達!$E11+資金調達!$E12 -> 0
C8: 工事費用 | D8: =資金調達!$E14+資金調達!$E15 -> 0 | E8: 工事費用 | F8: =資金調達!$E14+資金調達!$E15 -> 0 | G8: 工事費用 | H8: =資金調達!$E14+資金調達!$E15 -> 0 | I8: 工事費用 | J8: =資金調達!$E14+資金調達!$E15 -> 0 | K8: 工事費用 | L8: =資金調達!$E14+資金調達!$E15 -> 0 | M8: 工事費用 | N8: =資金調達!$E14+資金調達!$E15 -> 0 | O8: 工事費用 | P8: =資金調達!$E14+資金調達!$E15 -> 0 | Q8: 工事費用 | R8: =資金調達!$E14+資金調達!$E15 -> 0 | S8: 工事費用 | T8: =資金調達!$E14+資金調達!$E15 -> 0 | U8: 工事費用 | V8: =資金調達!$E14+資金調達!$E15 -> 0 | W8: 工事費用 | X8: =資金調達!$E14+資金調達!$E15 -> 0 | Y8: 工事費用 | Z8: =資金調達!$E14+資金調達!$E15 -> 0 | AA8: 工事費用 | AB8: =資金調達!$E14+資金調達!$E15 -> 0 | AC8: 工事費用 | AD8: =資金調達!$E14+資金調達!$E15 -> 0 | AE8: 工事費用 | AF8: =資金調達!$E14+資金調達!$E15 -> 0 | AG8: 工事費用 | AH8: =資金調達!$E14+資金調達!$E15 -> 0 | AI8: 工事費用 | AJ8: =資金調達!$E14+資金調達!$E15 -> 0 | AK8: 工事費用 | AL8: =資金調達!$E14+資金調達!$E15 -> 0 | AM8: 工事費用 | AN8: =資金調達!$E14+資金調達!$E15 -> 0 | AO8: 工事費用 | AP8: =資金調達!$E14+資金調達!$E15 -> 0 | AQ8: 工事費用 | AR8: =資金調達!$E14+資金調達!$E15 -> 0 | AS8: 工事費用 | AT8: =資金調達!$E14+資金調達!$E15 -> 0 | AU8: 工事費用 | AV8: =資金調達!$E14+資金調達!$E15 -> 0 | AW8: 工事費用 | AX8: =資金調達!$E14+資金調達!$E15 -> 0 | AY8: 工事費用 | AZ8: =資金調達!$E14+資金調達!$E15 -> 0 | BA8: 工事費用 | BB8: =資金調達!$E14+資金調達!$E15 -> 0 | BC8: 工事費用 | BD8: =資金調達!$E14+資金調達!$E15 -> 0 | BE8: 工事費用 | BF8: =資金調達!$E14+資金調達!$E15 -> 0 | BG8: 工事費用 | BH8: =資金調達!$E14+資金調達!$E15 -> 0 | BI8: 工事費用 | BJ8: =資金調達!$E14+資金調達!$E15 -> 0 | BK8: 工事費用 | BL8: =資金調達!$E14+資金調達!$E15 -> 0 | BM8: 工事費用 | BN8: =資金調達!$E14+資金調達!$E15 -> 0 | BO8: 工事費用 | BP8: =資金調達!$E14+資金調達!$E15 -> 0 | BQ8: 工事費用 | BR8: =資金調達!$E14+資金調達!$E15 -> 0 | BS8: 工事費用 | BT8: =資金調達!$E14+資金調達!$E15 -> 0 | BU8: 工事費用 | BV8: =資金調達!$E14+資金調達!$E15 -> 0 | BW8: 工事費用 | BX8: =資金調達!$E14+資金調達!$E15 -> 0 | BY8: 工事費用 | BZ8: =資金調達!$E14+資金調達!$E15 -> 0 | CA8: 工事費用 | CB8: =資金調達!$E14+資金調達!$E15 -> 0 | CC8: 工事費用 | CD8: =資金調達!$E14+資金調達!$E15 -> 0 | CE8: 工事費用 | CF8: =資金調達!$E14+資金調達!$E15 -> 0 | CG8: 工事費用 | CH8: =資金調達!$E14+資金調達!$E15 -> 0 | CI8: 工事費用 | CJ8: =資金調達!$E14+資金調達!$E15 -> 0 | CK8: 工事費用 | CL8: =資金調達!$E14+資金調達!$E15 -> 0 | CM8: 工事費用 | CN8: =資金調達!$E14+資金調達!$E15 -> 0 | CO8: 工事費用 | CP8: =資金調達!$E14+資金調達!$E15 -> 0 | CQ8: 工事費用 | CR8: =資金調達!$E14+資金調達!$E15 -> 0 | CS8: 工事費用 | CT8: =資金調達!$E14+資金調達!$E15 -> 0 | CU8: 工事費用 | CV8: =資金調達!$E14+資金調達!$E15 -> 0 | CW8: =資金調達!$E14+資金調達!$E15 -> 0 | CX8: =資金調達!$E14+資金調達!$E15 -> 0 | CY8: 工事費用 | CZ8: =資金調達!$E14+資金調達!$E15 -> 0 | DA8: =資金調達!$E14+資金調達!$E15 -> 0 | DB8: =資金調達!$E14+資金調達!$E15 -> 0 | DC8: 工事費用 | DD8: =資金調達!$E14+資金調達!$E15 -> 0 | DE8: =資金調達!$E14+資金調達!$E15 -> 0 | DF8: =資金調達!$E14+資金調達!$E15 -> 0
C9: 残債 | D9: =資金調達!$E16 -> 0 | E9: 残債 | F9: =資金調達!$E16 -> 0 | G9: 残債 | H9: =資金調達!$E16 -> 0 | I9: 残債 | J9: =資金調達!$E16 -> 0 | K9: 残債 | L9: =資金調達!$E16 -> 0 | M9: 残債 | N9: =資金調達!$E16 -> 0 | O9: 残債 | P9: =資金調達!$E16 -> 0 | Q9: 残債 | R9: =資金調達!$E16 -> 0 | S9: 残債 | T9: =資金調達!$E16 -> 0 | U9: 残債 | V9: =資金調達!$E16 -> 0 | W9: 残債 | X9: =資金調達!$E16 -> 0 | Y9: 残債 | Z9: =資金調達!$E16 -> 0 | AA9: 残債 | AB9: =資金調達!$E16 -> 0 | AC9: 残債 | AD9: =資金調達!$E16 -> 0 | AE9: 残債 | AF9: =資金調達!$E16 -> 0 | AG9: 残債 | AH9: =資金調達!$E16 -> 0 | AI9: 残債 | AJ9: =資金調達!$E16 -> 0 | AK9: 残債 | AL9: =資金調達!$E16 -> 0 | AM9: 残債 | AN9: =資金調達!$E16 -> 0 | AO9: 残債 | AP9: =資金調達!$E16 -> 0 | AQ9: 残債 | AR9: =資金調達!$E16 -> 0 | AS9: 残債 | AT9: =資金調達!$E16 -> 0 | AU9: 残債 | AV9: =資金調達!$E16 -> 0 | AW9: 残債 | AX9: =資金調達!$E16 -> 0 | AY9: 残債 | AZ9: =資金調達!$E16 -> 0 | BA9: 残債 | BB9: =資金調達!$E16 -> 0 | BC9: 残債 | BD9: =資金調達!$E16 -> 0 | BE9: 残債 | BF9: =資金調達!$E16 -> 0 | BG9: 残債 | BH9: =資金調達!$E16 -> 0 | BI9: 残債 | BJ9: =資金調達!$E16 -> 0 | BK9: 残債 | BL9: =資金調達!$E16 -> 0 | BM9: 残債 | BN9: =資金調達!$E16 -> 0 | BO9: 残債 | BP9: =資金調達!$E16 -> 0 | BQ9: 残債 | BR9: =資金調達!$E16 -> 0 | BS9: 残債 | BT9: =資金調達!$E16 -> 0 | BU9: 残債 | BV9: =資金調達!$E16 -> 0 | BW9: 残債 | BX9: =資金調達!$E16 -> 0 | BY9: 残債 | BZ9: =資金調達!$E16 -> 0 | CA9: 残債 | CB9: =資金調達!$E16 -> 0 | CC9: 残債 | CD9: =資金調達!$E16 -> 0 | CE9: 残債 | CF9: =資金調達!$E16 -> 0 | CG9: 残債 | CH9: =資金調達!$E16 -> 0 | CI9: 残債 | CJ9: =資金調達!$E16 -> 0 | CK9: 残債 | CL9: =資金調達!$E16 -> 0 | CM9: 残債 | CN9: =資金調達!$E16 -> 0 | CO9: 残債 | CP9: =資金調達!$E16 -> 0 | CQ9: 残債 | CR9: =資金調達!$E16 -> 0 | CS9: 残債 | CT9: =資金調達!$E16 -> 0 | CU9: 残債 | CV9: =資金調達!$E16 -> 0 | CW9: =資金調達!$E16 -> 0 | CX9: =資金調達!$E16 -> 0 | CY9: その他 | CZ9: =資金調達!$E16 -> 0 | DA9: =資金調達!$E16 -> 0 | DB9: =資金調達!$E16 -> 0 | DC9: その他 | DD9: =資金調達!$E16 -> 0 | DE9: =資金調達!$E16 -> 0 | DF9: =資金調達!$E16 -> 0
C10: 諸費用 | D10: =D21+D29+D30+D31+D32+D40+D41+D50+D51+D52+D61+D62+D72+D73+D81+D82+D91+D92+D93+D94 -> 12.33 | E10: 諸費用 | F10: =F29+F21+F30+F31+F32+F40+F41+F50+F51+F52+F61+F62+F72+F73+F81+F82+F91+F92+F93+F94 -> 12.33 | G10: 諸費用 | H10: =H29+H21+H30+H31+H32+H40+H41+H50+H51+H52+H61+H62+H72+H73+H81+H82+H91+H92+H93+H94 -> 12.33 | I10: 諸費用 | J10: =J29+J21+J30+J31+J32+J40+J41+J50+J51+J52+J61+J62+J72+J73+J81+J82+J91+J92+J93+J94 -> 12.33 | K10: 諸費用 | L10: =L29+L21+L30+L31+L32+L40+L41+L50+L51+L52+L61+L62+L72+L73+L81+L82+L91+L92+L93+L94 ->  | M10: 諸費用 | N10: =N29+N21+N30+N31+N32+N40+N41+N50+N51+N52+N61+N62+N72+N73+N81+N82+N91+N92+N93+N94 -> 20.33 | O10: 諸費用 | P10: =P29+P21+P30+P31+P32+P40+P41+P50+P51+P52+P61+P62+P72+P73+P81+P82+P91+P92+P93+P94 -> 20.33 | Q10: 諸費用 | R10: =R29+R21+R30+R31+R32+R40+R41+R50+R51+R52+R61+R62+R72+R73+R81+R82+R91+R92+R93+R94 ->  | S10: 諸費用 | T10: =T29+T21+T30+T31+T32+T40+T41+T50+T51+T52+T61+T62+T72+T73+T81+T82+T91+T92+T93+T94 -> 20.33 | U10: 諸費用 | V10: =V29+V21+V30+V31+V32+V40+V41+V50+V51+V52+V61+V62+V72+V73+V81+V82+V91+V92+V93+V94 -> 18 | W10: 諸費用 | X10: =X29+X21+X30+X31+X32+X40+X41+X50+X51+X52+X61+X62+X72+X73+X81+X82+X91+X92+X93+X94 -> 18 | Y10: 諸費用 | Z10: =Z29+Z21+Z30+Z31+Z32+Z40+Z41+Z50+Z51+Z52+Z61+Z62+Z72+Z73+Z81+Z82+Z91+Z92+Z93+Z94 -> 18 | AA10: 諸費用 | AB10: =AB29+AB21+AB30+AB31+AB32+AB40+AB41+AB50+AB51+AB52+AB61+AB62+AB72+AB73+AB81+AB82+AB91+AB92+AB93+AB94 -> 12 | AC10: 諸費用 | AD10: =AD29+AD21+AD30+AD31+AD32+AD40+AD41+AD50+AD51+AD52+AD61+AD62+AD72+AD73+AD81+AD82+AD91+AD92+AD93+AD94 ->  | AE10: 諸費用 | AF10: =AF29+AF21+AF30+AF31+AF32+AF40+AF41+AF50+AF51+AF52+AF61+AF62+AF72+AF73+AF81+AF82+AF91+AF92+AF93+AF94 ->  | AG10: 諸費用 | AH10: =AH29+AH21+AH30+AH31+AH32+AH40+AH41+AH50+AH51+AH52+AH61+AH62+AH72+AH73+AH81+AH82+AH91+AH92+AH93+AH94 -> 16 | AI10: 諸費用 | AJ10: =AJ29+AJ21+AJ30+AJ31+AJ32+AJ40+AJ41+AJ50+AJ51+AJ52+AJ61+AJ62+AJ72+AJ73+AJ81+AJ82+AJ91+AJ92+AJ93+AJ94 ->  | AK10: 諸費用 | AL10: =AL29+AL21+AL30+AL31+AL32+AL40+AL41+AL50+AL51+AL52+AL61+AL62+AL72+AL73+AL81+AL82+AL91+AL92+AL93+AL94 ->  | AM10: 諸費用 | AN10: =AN29+AN21+AN30+AN31+AN32+AN40+AN41+AN50+AN51+AN52+AN61+AN62+AN72+AN73+AN81+AN82+AN91+AN92+AN93+AN94 -> 12.33 | AO10: 諸費用 | AP10: =AP29+AP21+AP30+AP31+AP32+AP40+AP41+AP50+AP51+AP52+AP61+AP62+AP72+AP73+AP81+AP82+AP91+AP92+AP93+AP94 -> 12.33 | AQ10: 諸費用 | AR10: =AR29+AR21+AR30+AR31+AR32+AR40+AR41+AR50+AR51+AR52+AR61+AR62+AR72+AR73+AR81+AR82+AR91+AR92+AR93+AR94 -> 12.33 | AS10: 諸費用 | AT10: =AT29+AT21+AT30+AT31+AT32+AT40+AT41+AT50+AT51+AT52+AT61+AT62+AT72+AT73+AT81+AT82+AT91+AT92+AT93+AT94 -> 12.33 | AU10: 諸費用 | AV10: =AV29+AV21+AV30+AV31+AV32+AV40+AV41+AV50+AV51+AV52+AV61+AV62+AV72+AV73+AV81+AV82+AV91+AV92+AV93+AV94 -> 18 | AW10: 諸費用 | AX10: =AX29+AX21+AX30+AX31+AX32+AX40+AX41+AX50+AX51+AX52+AX61+AX62+AX72+AX73+AX81+AX82+AX91+AX92+AX93+AX94 -> 12.33 | AY10: 諸費用 | AZ10: =AZ29+AZ21+AZ30+AZ31+AZ32+AZ40+AZ41+AZ50+AZ51+AZ52+AZ61+AZ62+AZ72+AZ73+AZ81+AZ82+AZ91+AZ92+AZ93+AZ94 -> 18 | BA10: 諸費用 | BB10: =BB29+BB21+BB30+BB31+BB32+BB40+BB41+BB50+BB51+BB52+BB61+BB62+BB72+BB73+BB81+BB82+BB91+BB92+BB93+BB94 -> 12.33 | BC10: 諸費用 | BD10: =BD29+BD21+BD30+BD31+BD32+BD40+BD41+BD50+BD51+BD52+BD61+BD62+BD72+BD73+BD81+BD82+BD91+BD92+BD93+BD94 -> 18 | BE10: 諸費用 | BF10: =BF29+BF21+BF30+BF31+BF32+BF40+BF41+BF50+BF51+BF52+BF61+BF62+BF72+BF73+BF81+BF82+BF91+BF92+BF93+BF94 -> 12.33 | BG10: 諸費用 | BH10: =BH29+BH21+BH30+BH31+BH32+BH40+BH41+BH50+BH51+BH52+BH61+BH62+BH72+BH73+BH81+BH82+BH91+BH92+BH93+BH94 -> 12.33 | BI10: 諸費用 | BJ10: =BJ29+BJ21+BJ30+BJ31+BJ32+BJ40+BJ41+BJ50+BJ51+BJ52+BJ61+BJ62+BJ72+BJ73+BJ81+BJ82+BJ91+BJ92+BJ93+BJ94 -> 12.33 | BK10: 諸費用 | BL10: =BL29+BL21+BL30+BL31+BL32+BL40+BL41+BL50+BL51+BL52+BL61+BL62+BL72+BL73+BL81+BL82+BL91+BL92+BL93+BL94 -> 12.33 | BM10: 諸費用 | BN10: =BN29+BN21+BN30+BN31+BN32+BN40+BN41+BN50+BN51+BN52+BN61+BN62+BN72+BN73+BN81+BN82+BN91+BN92+BN93+BN94 -> 12 | BO10: 諸費用 | BP10: =BP29+BP21+BP30+BP31+BP32+BP40+BP41+BP50+BP51+BP52+BP61+BP62+BP72+BP73+BP81+BP82+BP91+BP92+BP93+BP94 -> 12.33 | BQ10: 諸費用 | BR10: =BR29+BR21+BR30+BR31+BR32+BR40+BR41+BR50+BR51+BR52+BR61+BR62+BR72+BR73+BR81+BR82+BR91+BR92+BR93+BR94 -> 26.3 | BS10: 諸費用 | BT10: =BT29+BT21+BT30+BT31+BT32+BT40+BT41+BT50+BT51+BT52+BT61+BT62+BT72+BT73+BT81+BT82+BT91+BT92+BT93+BT94 ->  | BU10: 諸費用 | BV10: =BV29+BV21+BV30+BV31+BV32+BV40+BV41+BV50+BV51+BV52+BV61+BV62+BV72+BV73+BV81+BV82+BV91+BV92+BV93+BV94 ->  | BW10: 諸費用 | BX10: =BX29+BX21+BX30+BX31+BX32+BX40+BX41+BX50+BX51+BX52+BX61+BX62+BX72+BX73+BX81+BX82+BX91+BX92+BX93+BX94 ->  | BY10: 諸費用 | BZ10: =BZ29+BZ21+BZ30+BZ31+BZ32+BZ40+BZ41+BZ50+BZ51+BZ52+BZ61+BZ62+BZ72+BZ73+BZ81+BZ82+BZ91+BZ92+BZ93+BZ94 ->  | CA10: 諸費用 | CB10: =CB29+CB21+CB30+CB31+CB32+CB40+CB41+CB50+CB51+CB52+CB61+CB62+CB72+CB73+CB81+CB82+CB91+CB92+CB93+CB94 -> 16 | CC10: 諸費用 | CD10: =CD29+CD21+CD30+CD31+CD32+CD40+CD41+CD50+CD51+CD52+CD61+CD62+CD72+CD73+CD81+CD82+CD91+CD92+CD93+CD94 -> 16 | CE10: 諸費用 | CF10: =CF29+CF21+CF30+CF31+CF32+CF40+CF41+CF50+CF51+CF52+CF61+CF62+CF72+CF73+CF81+CF82+CF91+CF92+CF93+CF94 -> 12 | CG10: 諸費用 | CH10: =CH29+CH21+CH30+CH31+CH32+CH40+CH41+CH50+CH51+CH52+CH61+CH62+CH72+CH73+CH81+CH82+CH91+CH92+CH93+CH94 -> 12 | CI10: 諸費用 | CJ10: =CJ29+CJ21+CJ30+CJ31+CJ32+CJ40+CJ41+CJ50+CJ51+CJ52+CJ61+CJ62+CJ72+CJ73+CJ81+CJ82+CJ91+CJ92+CJ93+CJ94 -> 12 | CK10: 諸費用 | CL10: =CL29+CL21+CL30+CL31+CL32+CL40+CL41+CL50+CL51+CL52+CL61+CL62+CL72+CL73+CL81+CL82+CL91+CL92+CL93+CL94 -> 12.33 | CM10: 諸費用 | CN10: =CN29+CN21+CN30+CN31+CN32+CN40+CN41+CN50+CN51+CN52+CN61+CN62+CN72+CN73+CN81+CN82+CN91+CN92+CN93+CN94 -> 18 | CO10: 諸費用 | CP10: =CP29+CP21+CP30+CP31+CP32+CP40+CP41+CP50+CP51+CP52+CP61+CP62+CP72+CP73+CP81+CP82+CP91+CP92+CP93+CP94 -> 18 | CQ10: 諸費用 | CR10: =CR29+CR21+CR30+CR31+CR32+CR40+CR41+CR50+CR51+CR52+CR61+CR62+CR72+CR73+CR81+CR82+CR91+CR92+CR93+CR94 ->  | CS10: 諸費用 | CT10: =CT29+CT21+CT30+CT31+CT32+CT40+CT41+CT50+CT51+CT52+CT61+CT62+CT72+CT73+CT81+CT82+CT91+CT92+CT93+CT94 ->  | CU10: 諸費用 | CV10: =CV29+CV21+CV30+CV31+CV32+CV40+CV41+CV50+CV51+CV52+CV61+CV62+CV72+CV73+CV81+CV82+CV91+CV92+CV93+CV94 -> 12 | CW10: =CW29+CW21+CW30+CW31+CW32+CW40+CW41+CW50+CW51+CW52+CW61+CW62+CW72+CW73+CW81+CW82+CW91+CW92+CW93+CW94 -> 12 | CX10: =CX29+CX21+CX30+CX31+CX32+CX40+CX41+CX50+CX51+CX52+CX61+CX62+CX72+CX73+CX81+CX82+CX91+CX92+CX93+CX94 -> 12 | CY10: 諸費用 | CZ10: =CZ29+CZ21+CZ30+CZ31+CZ32+CZ40+CZ41+CZ50+CZ51+CZ52+CZ61+CZ62+CZ72+CZ73+CZ81+CZ82+CZ91+CZ92+CZ93+CZ94 -> 17.5 | DA10: =DA29+DA21+DA30+DA31+DA32+DA40+DA41+DA50+DA51+DA52+DA61+DA62+DA72+DA73+DA81+DA82+DA91+DA92+DA93+DA94 -> 17.5 | DB10: =DB29+DB21+DB30+DB31+DB32+DB40+DB41+DB50+DB51+DB52+DB61+DB62+DB72+DB73+DB81+DB82+DB91+DB92+DB93+DB94 -> 17.5 | DC10: 諸費用 | DD10: =DD29+DD21+DD30+DD31+DD32+DD40+DD41+DD50+DD51+DD52+DD61+DD62+DD72+DD73+DD81+DD82+DD91+DD92+DD93+DD94 -> 12 | DE10: =DE29+DE21+DE30+DE31+DE32+DE40+DE41+DE50+DE51+DE52+DE61+DE62+DE72+DE73+DE81+DE82+DE91+DE92+DE93+DE94 -> 12 | DF10: =DF29+DF21+DF30+DF31+DF32+DF40+DF41+DF50+DF51+DF52+DF61+DF62+DF72+DF73+DF81+DF82+DF91+DF92+DF93+DF94 -> 12
C11: 住宅ローン | D11: =資金調達!$F18 -> 0 | E11: 住宅ローン | F11: =資金調達!$F18 -> 0 | G11: 住宅ローン | H11: =資金調達!$F18 -> 0 | I11: 住宅ローン | J11: =資金調達!$F18 -> 0 | K11: 住宅ローン | L11: =資金調達!$F18 -> 0 | M11: 住宅ローン | N11: =資金調達!$F18 -> 0 | O11: 住宅ローン | P11: =資金調達!$F18 -> 0 | Q11: 住宅ローン | R11: =資金調達!$F18 -> 0 | S11: 住宅ローン | T11: =資金調達!$F18 -> 0 | U11: 住宅ローン | V11: =資金調達!$F18 -> 0 | W11: 住宅ローン | X11: =資金調達!$F18 -> 0 | Y11: 住宅ローン | Z11: =資金調達!$F18 -> 0 | AA11: 住宅ローン | AB11: =資金調達!$F18 -> 0 | AC11: 住宅ローン | AD11: =資金調達!$F18 -> 0 | AE11: 住宅ローン | AF11: =資金調達!$F18 -> 0 | AG11: 住宅ローン | AH11: =資金調達!$F18 -> 0 | AI11: 住宅ローン | AJ11: =資金調達!$F18 -> 0 | AK11: 住宅ローン | AL11: =資金調達!$F18 -> 0 | AM11: 住宅ローン | AN11: =資金調達!$F18 -> 0 | AO11: 住宅ローン | AP11: =資金調達!$F18 -> 0 | AQ11: 住宅ローン | AR11: =資金調達!$F18 -> 0 | AS11: 住宅ローン | AT11: =資金調達!$F18 -> 0 | AU11: 住宅ローン | AV11: =資金調達!$F18 -> 0 | AW11: 住宅ローン | AX11: =資金調達!$F18 -> 0 | AY11: 住宅ローン | AZ11: =資金調達!$F18 -> 0 | BA11: 住宅ローン | BB11: =資金調達!$F18 -> 0 | BC11: 住宅ローン | BD11: =資金調達!$F18 -> 0 | BE11: 住宅ローン | BF11: =資金調達!$F18 -> 0 | BG11: 住宅ローン | BH11: =資金調達!$F18 -> 0 | BI11: 住宅ローン | BJ11: =資金調達!$F18 -> 0 | BK11: 住宅ローン | BL11: =資金調達!$F18 -> 0 | BM11: 住宅ローン | BN11: =資金調達!$F18 -> 0 | BO11: 住宅ローン | BP11: =資金調達!$F18 -> 0 | BQ11: 住宅ローン | BR11: =資金調達!$F18 -> 0 | BS11: 住宅ローン | BT11: =資金調達!$F18 -> 0 | BU11: 住宅ローン | BV11: =資金調達!$F18 -> 0 | BW11: 住宅ローン | BX11: =資金調達!$F18 -> 0 | BY11: 住宅ローン | BZ11: =資金調達!$F18 -> 0 | CA11: 住宅ローン | CB11: =資金調達!$F18 -> 0 | CC11: 住宅ローン | CD11: =資金調達!$F18 -> 0 | CE11: 住宅ローン | CF11: =資金調達!$F18 -> 0 | CG11: 住宅ローン | CH11: =資金調達!$F18 -> 0 | CI11: 住宅ローン | CJ11: =資金調達!$F18 -> 0 | CK11: 住宅ローン | CL11: =資金調達!$F18 -> 0 | CM11: 住宅ローン | CN11: =資金調達!$F18 -> 0 | CO11: 住宅ローン | CP11: =資金調達!$F18 -> 0 | CQ11: 住宅ローン | CR11: =資金調達!$F18 -> 0 | CS11: 住宅ローン | CT11: =資金調達!$F18 -> 0 | CU11: 住宅ローン | CV11: =資金調達!$F18 -> 0 | CW11: =資金調達!$F18 -> 0 | CX11: =資金調達!$F18 -> 0 | CY11: 住宅ローン | CZ11: =資金調達!$F18 -> 0 | DA11: =資金調達!$F18 -> 0 | DB11: =資金調達!$F18 -> 0 | DC11: 住宅ローン | DD11: =資金調達!$F18 -> 0 | DE11: =資金調達!$F18 -> 0 | DF11: =資金調達!$F18 -> 0
C12: つなぎ融資 | D12: 0 | E12: つなぎ融資 | F12: 0 | G12: つなぎ融資 | H12: 0 | I12: つなぎ融資 | J12: 0 | K12: つなぎ融資 | L12: =資金調達!$M14+資金調達!$M15 -> 0 | M12: つなぎ融資 | N12: =IF(資金調達!$N21>2,N68,0) -> 0 | O12: つなぎ融資 | P12: =IF(資金調達!$N21>2,P68,0) -> 0 | Q12: つなぎ融資 | R12: =IF(資金調達!$N21>2,R68,0) -> 0 | S12: つなぎ融資 | T12: =IF(資金調達!$N21>2,T68,0) -> 0 | U12: つなぎ融資 | V12: =IF(資金調達!$D4=1,0,資金調達!$M11+資金調達!$M14+資金調達!$M15) -> 0 | W12: つなぎ融資 | X12: =IF(資金調達!$D4=1,0,資金調達!$M11+資金調達!$M14+資金調達!$M15) -> 0 | Y12: つなぎ融資 | Z12: =IF(資金調達!$D4=1,0,資金調達!$M11+資金調達!$M14+資金調達!$M15) -> 0 | AA12: つなぎ融資 | AB12: =IF(資金調達!$D4=1,0,資金調達!$M11+資金調達!$M14+資金調達!$M15) -> 0 | AC12: つなぎ融資 | AD12: =資金調達!$M14+資金調達!$M15 -> 0 | AE12: つなぎ融資 | AF12: =資金調達!$M14+資金調達!$M15 -> 0 | AG12: つなぎ融資 | AH12: =IF(資金調達!$D4=1,0,資金調達!$M11+資金調達!$M14+資金調達!$M15) -> 0 | AI12: つなぎ融資 | AJ12: =資金調達!$M14+資金調達!$M15 -> 0 | AK12: つなぎ融資 | AL12: =資金調達!$M14+資金調達!$M15 -> 0 | AM12: つなぎ融資 | AN12: 0 | AO12: つなぎ融資 | AP12: 0 | AQ12: つなぎ融資 | AR12: 0 | AS12: つなぎ融資 | AT12: 0 | AU12: つなぎ融資 | AV12: =IF(資金調達!$D4=1,0,資金調達!$M11+資金調達!$M14+資金調達!$M15) -> 0 | AW12: つなぎ融資 | AX12: 0 | AY12: つなぎ融資 | AZ12: =IF(資金調達!$D4=1,0,資金調達!$M11+資金調達!$M14+資金調達!$M15) -> 0 | BA12: つなぎ融資 | BB12: 0 | BC12: つなぎ融資 | BD12: =IF(資金調達!$D4=1,0,資金調達!$M11+資金調達!$M14+資金調達!$M15) -> 0 | BE12: つなぎ融資 | BF12: 0 | BG12: つなぎ融資 | BH12: 0 | BI12: つなぎ融資 | BJ12: 0 | BK12: つなぎ融資 | BL12: 0 | BM12: つなぎ融資 | BN12: 0 | BO12: つなぎ融資 | BP12: =IF(資金調達!$N21>2,BP68,0) -> 0 | BQ12: つなぎ融資 | BR12: =IF(資金調達!$N21>2,BR68,0) -> 0 | BS12: つなぎ融資 | BT12: =資金調達!$M14+資金調達!$M15 -> 0 | BU12: つなぎ融資 | BV12: =資金調達!$M14+資金調達!$M15 -> 0 | BW12: つなぎ融資 | BX12: =資金調達!$M14+資金調達!$M15 -> 0 | BY12: つなぎ融資 | BZ12: =資金調達!$M14+資金調達!$M15 -> 0 | CA12: つなぎ融資 | CB12: =IF(資金調達!$D4=1,0,資金調達!$M11+資金調達!$M14+資金調達!$M15) -> 0 | CC12: つなぎ融資 | CD12: =IF(資金調達!$D4=1,0,資金調達!$M11+資金調達!$M14+資金調達!$M15) -> 0 | CE12: つなぎ融資 | CF12: =IF(資金調達!$D4=1,0,資金調達!$M11+資金調達!$M14+資金調達!$M15) -> 0 | CG12: つなぎ融資 | CH12: =IF(資金調達!$D4=1,0,資金調達!$M11+資金調達!$M14+資金調達!$M15) -> 0 | CI12: つなぎ融資 | CJ12: =IF(資金調達!$D4=1,0,資金調達!$M11+資金調達!$M14+資金調達!$M15) -> 0 | CK12: つなぎ融資 | CL12: =IF(資金調達!$N21>2,CL68,0) -> 0 | CM12: つなぎ融資 | CN12: =IF(資金調達!$D4=1,0,資金調達!$M11+資金調達!$M14+資金調達!$M15) -> 0 | CO12: つなぎ融資 | CP12: =IF(資金調達!$D4=1,0,資金調達!$M11+資金調達!$M14+資金調達!$M15) -> 0 | CQ12: つなぎ融資 | CR12: =資金調達!$M14+資金調達!$M15 -> 0 | CS12: つなぎ融資 | CT12: =資金調達!$M14+資金調達!$M15 -> 0 | CU12: つなぎ融資 | CV12: =IF(資金調達!$D4=1,0,資金調達!$M11+資金調達!$M14+資金調達!$M15) -> 0 | CW12: =IF(資金調達!$D4=1,0,資金調達!$M11+資金調達!$M14+資金調達!$M15) -> 0 | CX12: =IF(資金調達!$D4=1,0,資金調達!$M11+資金調達!$M14+資金調達!$M15) -> 0 | CY12: つなぎ融資 | CZ12: =IF(資金調達!$D4=1,0,資金調達!$M11+資金調達!$M14+資金調達!$M15) -> 0 | DA12: =IF(資金調達!$D4=1,0,資金調達!$M11+資金調達!$M14+資金調達!$M15) -> 0 | DB12: =IF(資金調達!$D4=1,0,資金調達!$M11+資金調達!$M14+資金調達!$M15) -> 0 | DC12: つなぎ融資 | DD12: =IF(資金調達!$D4=1,0,資金調達!$M11+資金調達!$M14+資金調達!$M15) -> 0 | DE12: =IF(資金調達!$D4=1,0,資金調達!$M11+資金調達!$M14+資金調達!$M15) -> 0 | DF12: =IF(資金調達!$D4=1,0,資金調達!$M11+資金調達!$M14+資金調達!$M15) -> 0
C13: 自己資金 | D13: =D6-D11 -> 12.33 | E13: 自己資金 | F13: =F6-F11 -> 12.33 | G13: 自己資金 | H13: =H6-H11 -> 12.33 | I13: 自己資金 | J13: =J6-J11 -> 12.33 | K13: 自己資金 | L13: =L6-L11 ->  | M13: 自己資金 | N13: =N6-N11 -> 20.33 | O13: 自己資金 | P13: =P6-P11 -> 20.33 | Q13: 自己資金 | R13: =R6-R11 ->  | S13: 自己資金 | T13: =T6-T11 -> 20.33 | U13: 自己資金 | V13: =V6-V11 -> 18 | W13: 自己資金 | X13: =X6-X11 -> 18 | Y13: 自己資金 | Z13: =Z6-Z11 -> 18 | AA13: 自己資金 | AB13: =AB6-AB11 -> 12 | AC13: 自己資金 | AD13: =AD6-AD11 ->  | AE13: 自己資金 | AF13: =AF6-AF11 ->  | AG13: 自己資金 | AH13: =AH6-AH11 -> 16 | AI13: 自己資金 | AJ13: =AJ6-AJ11 ->  | AK13: 自己資金 | AL13: =AL6-AL11 ->  | AM13: 自己資金 | AN13: =AN6-AN11 -> 12.33 | AO13: 自己資金 | AP13: =AP6-AP11 -> 12.33 | AQ13: 自己資金 | AR13: =AR6-AR11 -> 12.33 | AS13: 自己資金 | AT13: =AT6-AT11 -> 12.33 | AU13: 自己資金 | AV13: =AV6-AV11 -> 18 | AW13: 自己資金 | AX13: =AX6-AX11 -> 12.33 | AY13: 自己資金 | AZ13: =AZ6-AZ11 -> 18 | BA13: 自己資金 | BB13: =BB6-BB11 -> 12.33 | BC13: 自己資金 | BD13: =BD6-BD11 -> 18 | BE13: 自己資金 | BF13: =BF6-BF11 -> 12.33 | BG13: 自己資金 | BH13: =BH6-BH11 -> 12.33 | BI13: 自己資金 | BJ13: =BJ6-BJ11 -> 12.33 | BK13: 自己資金 | BL13: =BL6-BL11 -> 12.33 | BM13: 自己資金 | BN13: =BN6-BN11 -> 12 | BO13: 自己資金 | BP13: =BP6-BP11 -> 12.33 | BQ13: 自己資金 | BR13: =BR6-BR11 -> 26.3 | BS13: 自己資金 | BT13: =BT6-BT11 ->  | BU13: 自己資金 | BV13: =BV6-BV11 ->  | BW13: 自己資金 | BX13: =BX6-BX11 ->  | BY13: 自己資金 | BZ13: =BZ6-BZ11 ->  | CA13: 自己資金 | CB13: =CB6-CB11 -> 16 | CC13: 自己資金 | CD13: =CD6-CD11 -> 16 | CE13: 自己資金 | CF13: =CF6-CF11 -> 12 | CG13: 自己資金 | CH13: =CH6-CH11 -> 12 | CI13: 自己資金 | CJ13: =CJ6-CJ11 -> 12 | CK13: 自己資金 | CL13: =CL6-CL11 -> 12.33 | CM13: 自己資金 | CN13: =CN6-CN11 -> 18 | CO13: 自己資金 | CP13: =CP6-CP11 -> 18 | CQ13: 自己資金 | CR13: =CR6-CR11 ->  | CS13: 自己資金 | CT13: =CT6-CT11 ->  | CU13: 自己資金 | CV13: =CV6-CV11 -> 12 | CW13: =CW6-CW11 -> 12 | CX13: =CX6-CX11 -> 12 | CY13: 自己資金 | CZ13: =CZ6-CZ11 -> 17.5 | DA13: =DA6-DA11 -> 17.5 | DB13: =DB6-DB11 -> 17.5 | DC13: 自己資金 | DD13: =DD6-DD11 -> 12 | DE13: =DE6-DE11 -> 12 | DF13: =DF6-DF11 -> 12
A15: 不動産契約 | B15: 契約時 | C15: 支払合計 | D15: =+D20+D21 -> 0 | E15: 支払合計 | F15: =+F20+F21 -> 0 | G15: 支払合計 | H15: =+H20+H21 -> 0 | I15: 支払合計 | J15: =+J20+J21 -> 0 | K15: 支払合計 | L15: =+L20+L21 -> 0 | M15: 支払合計 | N15: =+N20+N21 -> 0 | O15: 支払合計 | P15: =+P20+P21 -> 0 | Q15: 支払合計 | R15: =+R20+R21 -> 0 | S15: 支払合計 | T15: =+T20+T21 -> 0 | U15: 支払合計 | V15: =+V20+V21 -> 0 | W15: 支払合計 | X15: =+X20+X21 -> 0 | Y15: 支払合計 | Z15: =+Z20+Z21 -> 0 | AA15: 支払合計 | AB15: =+AB20+AB21 -> 0 | AC15: 支払合計 | AD15: =+AD20+AD21 -> 0 | AE15: 支払合計 | AF15: =+AF20+AF21 -> 0 | AG15: 支払合計 | AH15: =+AH20+AH21 -> 0 | AI15: 支払合計 | AJ15: =+AJ20+AJ21 -> 0 | AK15: 支払合計 | AL15: =+AL20+AL21 -> 0 | AM15: 支払合計 | AN15: =+AN20+AN21 -> 0 | AO15: 支払合計 | AP15: =+AP20+AP21 -> 0 | AQ15: 支払合計 | AR15: =+AR20+AR21 -> 0 | AS15: 支払合計 | AT15: =+AT20+AT21 -> 0 | AU15: 支払合計 | AV15: =+AV20+AV21 -> 0 | AW15: 支払合計 | AX15: =+AX20+AX21 -> 0 | AY15: 支払合計 | AZ15: =+AZ20+AZ21 -> 0 | BA15: 支払合計 | BB15: =+BB20+BB21 -> 0 | BC15: 支払合計 | BD15: =+BD20+BD21 -> 0 | BE15: 支払合計 | BF15: =+BF20+BF21 -> 0 | BG15: 支払合計 | BH15: =+BH20+BH21 -> 0 | BI15: 支払合計 | BJ15: =+BJ20+BJ21 -> 0 | BK15: 支払合計 | BL15: =+BL20+BL21 -> 0 | BM15: 支払合計 | BN15: =+BN20+BN21 -> 0 | BO15: 支払合計 | BP15: =+BP20+BP21 -> 0 | BQ15: 支払合計 | BR15: =+BR20+BR21 -> 0 | BS15: 支払合計 | BT15: =+BT20+BT21 -> 0 | BU15: 支払合計 | BV15: =+BV20+BV21 -> 0 | BW15: 支払合計 | BX15: =+BX20+BX21 -> 0 | BY15: 支払合計 | BZ15: =+BZ20+BZ21 -> 0 | CA15: 支払合計 | CB15: =+CB20+CB21 -> 0 | CC15: 支払合計 | CD15: =+CD20+CD21 -> 0 | CE15: 支払合計 | CF15: =+CF20+CF21 -> 0 | CG15: 支払合計 | CH15: =+CH20+CH21 -> 0 | CI15: 支払合計 | CJ15: =+CJ20+CJ21 -> 0 | CK15: 支払合計 | CL15: =+CL20+CL21 -> 0 | CM15: 支払合計 | CN15: =+CN20+CN21 -> 0 | CO15: 支払合計 | CP15: =+CP20+CP21 -> 0 | CQ15: 支払合計 | CR15: =+CR20+CR21 -> 0 | CS15: 支払合計 | CT15: =+CT20+CT21 -> 0 | CU15: 支払合計 | CV15: =+CV20+CV21 -> 0 | CW15: =+CW20+CW21 -> 0 | CX15: =+CX20+CX21 -> 0 | CY15: 手付金 | CZ15: =+CZ20+CZ21 -> 0 | DA15: =+DA20+DA21 -> 0 | DB15: =+DB20+DB21 -> 0 | DC15: 手付金 | DD15: =+DD20+DD21 -> 0 | DE15: =+DE20+DE21 -> 0 | DF15: =+DF20+DF21 -> 0
C18: 自己資金 | D18: =D15 -> 0 | E18: 自己資金 | F18: =F15 -> 0 | G18: 自己資金 | H18: =H15 -> 0 | I18: 自己資金 | J18: =J15 -> 0 | K18: 自己資金 | L18: =L15 -> 0 | M18: 自己資金 | N18: =N15 -> 0 | O18: 自己資金 | P18: =P15 -> 0 | Q18: 自己資金 | R18: =R15 -> 0 | S18: 自己資金 | T18: =T15 -> 0 | U18: 自己資金 | V18: =V15 -> 0 | W18: 自己資金 | X18: =X15 -> 0 | Y18: 自己資金 | Z18: =Z15 -> 0 | AA18: 自己資金 | AB18: =AB15 -> 0 | AC18: 自己資金 | AD18: =AD15 -> 0 | AE18: 自己資金 | AF18: =AF15 -> 0 | AG18: 自己資金 | AH18: =AH15 -> 0 | AI18: 自己資金 | AJ18: =AJ15 -> 0 | AK18: 自己資金 | AL18: =AL15 -> 0 | AM18: 自己資金 | AN18: =AN15 -> 0 | AO18: 自己資金 | AP18: =AP15 -> 0 | AQ18: 自己資金 | AR18: =AR15 -> 0 | AS18: 自己資金 | AT18: =AT15 -> 0 | AU18: 自己資金 | AV18: =AV15 -> 0 | AW18: 自己資金 | AX18: =AX15 -> 0 | AY18: 自己資金 | AZ18: =AZ15 -> 0 | BA18: 自己資金 | BB18: =BB15 -> 0 | BC18: 自己資金 | BD18: =BD15 -> 0 | BE18: 自己資金 | BF18: =BF15 -> 0 | BG18: 自己資金 | BH18: =BH15 -> 0 | BI18: 自己資金 | BJ18: =BJ15 -> 0 | BK18: 自己資金 | BL18: =BL15 -> 0 | BM18: 自己資金 | BN18: =BN15 -> 0 | BO18: 自己資金 | BP18: =BP15 -> 0 | BQ18: 自己資金 | BR18: =BR15 -> 0 | BS18: 自己資金 | BT18: =BT15 -> 0 | BU18: 自己資金 | BV18: =BV15 -> 0 | BW18: 自己資金 | BX18: =BX15 -> 0 | BY18: 自己資金 | BZ18: =BZ15 -> 0 | CA18: 自己資金 | CB18: =CB15 -> 0 | CC18: 自己資金 | CD18: =CD15 -> 0 | CE18: 自己資金 | CF18: =CF15 -> 0 | CG18: 自己資金 | CH18: =CH15 -> 0 | CI18: 自己資金 | CJ18: =CJ15 -> 0 | CK18: 自己資金 | CL18: =CL15 -> 0 | CM18: 自己資金 | CN18: =CN15 -> 0 | CO18: 自己資金 | CP18: =CP15 -> 0 | CQ18: 自己資金 | CR18: =CR15 -> 0 | CS18: 自己資金 | CT18: =CT15 -> 0 | CU18: 自己資金 | CV18: =CV15 -> 0 | CW18: =CW15 -> 0 | CX18: =CX15 -> 0 | CY18: 自己資金 | CZ18: =CZ15 -> 0 | DA18: =DA15 -> 0 | DB18: =DB15 -> 0 | DC18: 自己資金 | DD18: =DD15 -> 0 | DE18: =DE15 -> 0 | DF18: =DF15 -> 0
C20: 手付金 | D20: =予算計画!$F4 -> 0 | E20: 手付金 | F20: =予算計画!$F4 -> 0 | G20: 手付金 | H20: =予算計画!$F4 -> 0 | I20: 手付金 | J20: =予算計画!$F4 -> 0 | K20: 手付金 | L20: =予算計画!$F4 -> 0 | M20: 手付金 | N20: =予算計画!$F4 -> 0 | O20: 手付金 | P20: =予算計画!$F4 -> 0 | Q20: 手付金 | R20: =予算計画!$F4 -> 0 | S20: 手付金 | T20: =予算計画!$F4 -> 0 | U20: 手付金 | V20: =予算計画!$F4 -> 0 | W20: 手付金 | X20: =予算計画!$F4 -> 0 | Y20: 手付金 | Z20: =予算計画!$F4 -> 0 | AA20: 手付金 | AB20: =予算計画!$F4 -> 0 | AC20: 手付金 | AD20: =予算計画!$F4 -> 0 | AE20: 手付金 | AF20: =予算計画!$F4 -> 0 | AG20: 手付金 | AH20: =予算計画!$F4 -> 0 | AI20: 手付金 | AJ20: =予算計画!$F4 -> 0 | AK20: 手付金 | AL20: =予算計画!$F4 -> 0 | AM20: 手付金 | AN20: =予算計画!$F4 -> 0 | AO20: 手付金 | AP20: =予算計画!$F4 -> 0 | AQ20: 手付金 | AR20: =予算計画!$F4 -> 0 | AS20: 手付金 | AT20: =予算計画!$F4 -> 0 | AU20: 手付金 | AV20: =予算計画!$F4 -> 0 | AW20: 手付金 | AX20: =予算計画!$F4 -> 0 | AY20: 手付金 | AZ20: =予算計画!$F4 -> 0 | BA20: 手付金 | BB20: =予算計画!$F4 -> 0 | BC20: 手付金 | BD20: =予算計画!$F4 -> 0 | BE20: 手付金 | BF20: =予算計画!$F4 -> 0 | BG20: 手付金 | BH20: =予算計画!$F4 -> 0 | BI20: 手付金 | BJ20: =予算計画!$F4 -> 0 | BK20: 手付金 | BL20: =予算計画!$F4 -> 0 | BM20: 手付金 | BN20: =予算計画!$F4 -> 0 | BO20: 手付金 | BP20: =予算計画!$F4 -> 0 | BQ20: 手付金 | BR20: =予算計画!$F4 -> 0 | BS20: 手付金 | BT20: =予算計画!$F4 -> 0 | BU20: 手付金 | BV20: =予算計画!$F4 -> 0 | BW20: 手付金 | BX20: =予算計画!$F4 -> 0 | BY20: 手付金 | BZ20: =予算計画!$F4 -> 0 | CA20: 手付金 | CB20: =予算計画!$F4 -> 0 | CC20: 手付金 | CD20: =予算計画!$F4 -> 0 | CE20: 手付金 | CF20: =予算計画!$F4 -> 0 | CG20: 手付金 | CH20: =予算計画!$F4 -> 0 | CI20: 手付金 | CJ20: =予算計画!$F4 -> 0 | CK20: 手付金 | CL20: =予算計画!$F4 -> 0 | CM20: 手付金 | CN20: =予算計画!$F4 -> 0 | CO20: 手付金 | CP20: =予算計画!$F4 -> 0 | CQ20: 手付金 | CR20: =予算計画!$F4 -> 0 | CS20: 手付金 | CT20: =予算計画!$F4 -> 0 | CU20: 手付金 | CV20: =予算計画!$F4 -> 0 | CW20: =予算計画!$F4 -> 0 | CX20: =予算計画!$F4 -> 0 | CZ20: =予算計画!$F4 -> 0 | DA20: =予算計画!$F4 -> 0 | DB20: =予算計画!$F4 -> 0 | DD20: =予算計画!$F4 -> 0 | DE20: =予算計画!$F4 -> 0 | DF20: =予算計画!$F4 -> 0
C21: 収入印紙（不動産契約） | D21: =予算計画!$F5 -> 0 | E21: 収入印紙（不動産契約） | F21: =予算計画!$F5 -> 0 | G21: 収入印紙（不動産契約） | H21: =予算計画!$F5 -> 0 | I21: 収入印紙（不動産契約） | J21: =予算計画!$F5 -> 0 | K21: 収入印紙（不動産契約） | L21: =予算計画!$F5 -> 0 | M21: 収入印紙（不動産契約） | N21: =予算計画!$F5 -> 0 | O21: 収入印紙（不動産契約） | P21: =予算計画!$F5 -> 0 | Q21: 収入印紙（不動産契約） | R21: =予算計画!$F5 -> 0 | S21: 収入印紙（不動産契約） | T21: =予算計画!$F5 -> 0 | U21: 収入印紙（不動産契約） | V21: =予算計画!$F5 -> 0 | W21: 収入印紙（不動産契約） | X21: =予算計画!$F5 -> 0 | Y21: 収入印紙（不動産契約） | Z21: =予算計画!$F5 -> 0 | AA21: 収入印紙（不動産契約） | AB21: =予算計画!$F5 -> 0 | AC21: 収入印紙（不動産契約） | AD21: =予算計画!$F5 -> 0 | AE21: 収入印紙（不動産契約） | AF21: =予算計画!$F5 -> 0 | AG21: 収入印紙（不動産契約） | AH21: =予算計画!$F5 -> 0 | AI21: 収入印紙（不動産契約） | AJ21: =予算計画!$F5 -> 0 | AK21: 収入印紙（不動産契約） | AL21: =予算計画!$F5 -> 0 | AM21: 収入印紙（不動産契約） | AN21: =予算計画!$F5 -> 0 | AO21: 収入印紙（不動産契約） | AP21: =予算計画!$F5 -> 0 | AQ21: 収入印紙（不動産契約） | AR21: =予算計画!$F5 -> 0 | AS21: 収入印紙（不動産契約） | AT21: =予算計画!$F5 -> 0 | AU21: 収入印紙（不動産契約） | AV21: =予算計画!$F5 -> 0 | AW21: 収入印紙（不動産契約） | AX21: =予算計画!$F5 -> 0 | AY21: 収入印紙（不動産契約） | AZ21: =予算計画!$F5 -> 0 | BA21: 収入印紙（不動産契約） | BB21: =予算計画!$F5 -> 0 | BC21: 収入印紙（不動産契約） | BD21: =予算計画!$F5 -> 0 | BE21: 収入印紙（不動産契約） | BF21: =予算計画!$F5 -> 0 | BG21: 収入印紙（不動産契約） | BH21: =予算計画!$F5 -> 0 | BI21: 収入印紙（不動産契約） | BJ21: =予算計画!$F5 -> 0 | BK21: 収入印紙（不動産契約） | BL21: =予算計画!$F5 -> 0 | BM21: 収入印紙（不動産契約） | BN21: =予算計画!$F5 -> 0 | BO21: 収入印紙（不動産契約） | BP21: =予算計画!$F5 -> 0 | BQ21: 収入印紙（不動産契約） | BR21: =予算計画!$F5 -> 0 | BS21: 収入印紙（不動産契約） | BT21: =予算計画!$F5 -> 0 | BU21: 収入印紙（不動産契約） | BV21: =予算計画!$F5 -> 0 | BW21: 収入印紙（不動産契約） | BX21: =予算計画!$F5 -> 0 | BY21: 収入印紙（不動産契約） | BZ21: =予算計画!$F5 -> 0 | CA21: 収入印紙（不動産契約） | CB21: =予算計画!$F5 -> 0 | CC21: 収入印紙（不動産契約） | CD21: =予算計画!$F5 -> 0 | CE21: 収入印紙（不動産契約） | CF21: =予算計画!$F5 -> 0 | CG21: 収入印紙（不動産契約） | CH21: =予算計画!$F5 -> 0 | CI21: 収入印紙（不動産契約） | CJ21: =予算計画!$F5 -> 0 | CK21: 収入印紙（不動産契約） | CL21: =予算計画!$F5 -> 0 | CM21: 収入印紙（不動産契約） | CN21: =予算計画!$F5 -> 0 | CO21: 収入印紙（不動産契約） | CP21: =予算計画!$F5 -> 0 | CQ21: 収入印紙（不動産契約） | CR21: =予算計画!$F5 -> 0 | CS21: 収入印紙（不動産契約） | CT21: =予算計画!$F5 -> 0 | CU21: 収入印紙（不動産契約） | CV21: =予算計画!$F5 -> 0 | CW21: =予算計画!$F5 -> 0 | CX21: =予算計画!$F5 -> 0 | CY21: 収入印紙 | CZ21: =予算計画!$F5 -> 0 | DA21: =予算計画!$F5 -> 0 | DB21: =予算計画!$F5 -> 0 | DC21: 収入印紙 | DD21: =予算計画!$F5 -> 0 | DE21: =予算計画!$F5 -> 0 | DF21: =予算計画!$F5 -> 0
B23: 決済時 | C23: 支払合計 | D23: =SUM(D28:D32) -> 0 | E23: 支払合計 | F23: =SUM(F28:F32) -> 0 | G23: 支払合計 | H23: =SUM(H28:H32) -> 0 | I23: 支払合計 | J23: =SUM(J28:J32) -> 0 | K23: 支払合計 | L23: =SUM(L28:L32) -> 0 | M23: 支払合計 | N23: =SUM(N28:N32) -> 0 | O23: 支払合計 | P23: =SUM(P28:P32) -> 0 | Q23: 支払合計 | R23: =SUM(R28:R32) -> 0 | S23: 支払合計 | T23: =SUM(T28:T32) -> 0 | U23: 支払合計 | V23: =SUM(V28:V32) -> 0 | W23: 支払合計 | X23: =SUM(X28:X32) -> 0 | Y23: 支払合計 | Z23: =SUM(Z28:Z32) -> 0 | AA23: 支払合計 | AB23: =SUM(AB28:AB32) -> 0 | AC23: 支払合計 | AD23: =SUM(AD28:AD32) -> 0 | AE23: 支払合計 | AF23: =SUM(AF28:AF32) -> 0 | AG23: 支払合計 | AH23: =SUM(AH28:AH32) -> 0 | AI23: 支払合計 | AJ23: =SUM(AJ28:AJ32) -> 0 | AK23: 支払合計 | AL23: =SUM(AL28:AL32) -> 0 | AM23: 支払合計 | AN23: =SUM(AN28:AN32) -> 0 | AO23: 支払合計 | AP23: =SUM(AP28:AP32) -> 0 | AQ23: 支払合計 | AR23: =SUM(AR28:AR32) -> 0 | AS23: 支払合計 | AT23: =SUM(AT28:AT32) -> 0 | AU23: 支払合計 | AV23: =SUM(AV28:AV32) -> 0 | AW23: 支払合計 | AX23: =SUM(AX28:AX32) -> 0 | AY23: 支払合計 | AZ23: =SUM(AZ28:AZ32) -> 0 | BA23: 支払合計 | BB23: =SUM(BB28:BB32) -> 0 | BC23: 支払合計 | BD23: =SUM(BD28:BD32) -> 0 | BE23: 支払合計 | BF23: =SUM(BF28:BF32) -> 0 | BG23: 支払合計 | BH23: =SUM(BH28:BH32) -> 0 | BI23: 支払合計 | BJ23: =SUM(BJ28:BJ32) -> 0 | BK23: 支払合計 | BL23: =SUM(BL28:BL32) -> 0 | BM23: 支払合計 | BN23: =SUM(BN28:BN32) -> 0 | BO23: 支払合計 | BP23: =SUM(BP28:BP32) -> 0 | BQ23: 支払合計 | BR23: =SUM(BR28:BR32) -> 0 | BS23: 支払合計 | BT23: =SUM(BT28:BT32) -> 0 | BU23: 支払合計 | BV23: =SUM(BV28:BV32) -> 0 | BW23: 支払合計 | BX23: =SUM(BX28:BX32) -> 0 | BY23: 支払合計 | BZ23: =SUM(BZ28:BZ32) -> 0 | CA23: 支払合計 | CB23: =SUM(CB28:CB32) -> 0 | CC23: 支払合計 | CD23: =SUM(CD28:CD32) -> 0 | CE23: 支払合計 | CF23: =SUM(CF28:CF32) -> 0 | CG23: 支払合計 | CH23: =SUM(CH28:CH32) -> 0 | CI23: 支払合計 | CJ23: =SUM(CJ28:CJ32) -> 0 | CK23: 支払合計 | CL23: =SUM(CL28:CL32) -> 0 | CM23: 支払合計 | CN23: =SUM(CN28:CN32) -> 0 | CO23: 支払合計 | CP23: =SUM(CP28:CP32) -> 0 | CQ23: 支払合計 | CR23: =SUM(CR28:CR32) -> 0 | CS23: 支払合計 | CT23: =SUM(CT28:CT32) -> 0 | CU23: 支払合計 | CV23: =SUM(CV28:CV32) -> 0 | CW23: =SUM(CW28:CW32) -> 0 | CX23: =SUM(CX28:CX32) -> 0 | CY23: 残代金と費用 | CZ23: =SUM(CZ28:CZ32) -> 0 | DA23: =SUM(DA28:DA32) -> 0 | DB23: =SUM(DB28:DB32) -> 0 | DC23: 残代金と費用 | DD23: =SUM(DD28:DD32) -> 0 | DE23: =SUM(DE28:DE32) -> 0 | DF23: =SUM(DF28:DF32) -> 0
C25: 住宅ローン | D25: =資金調達!$M11 -> 0 | E25: 住宅ローン | F25: =資金調達!$M11 -> 0 | G25: 住宅ローン | H25: =資金調達!$M11 -> 0 | I25: 住宅ローン | J25: =資金調達!$M11 -> 0 | K25: 住宅ローン | L25: =資金調達!$M11 -> 0 | M25: 住宅ローン | N25: =資金調達!$M11 -> 0 | O25: 住宅ローン | P25: =資金調達!$M11 -> 0 | Q25: 住宅ローン | R25: =資金調達!$M11 -> 0 | S25: 住宅ローン | T25: =資金調達!$M11 -> 0 | U25: つなぎ融資（東光商事） | V25: =資金調達!$M11 -> 0 | W25: つなぎ融資（東光商事） | X25: =資金調達!$M11 -> 0 | Y25: つなぎ融資（東光商事） | Z25: =資金調達!$M11 -> 0 | AA25: つなぎ融資（東光商事） | AB25: =資金調達!$M11 -> 0 | AC25: 住宅ローン | AD25: =資金調達!$M11 -> 0 | AE25: つなぎ融資（アプラス） | AF25: =資金調達!$M11 -> 0 | AG25: つなぎ融資（アプラス） | AH25: =資金調達!$M11 -> 0 | AI25: 住宅ローン | AJ25: =資金調達!$M11 -> 0 | AK25: 住宅ローン | AL25: =資金調達!$M11 -> 0 | AM25: 住宅ローン | AN25: =IF(AN15>0,AN11,0) -> 0 | AO25: 住宅ローン | AP25: =IF(AP15>0,AP11,0) -> 0 | AQ25: 住宅ローン | AR25: =IF(AR15>0,AR11,0) -> 0 | AS25: 住宅ローン | AT25: =資金調達!$M11 -> 0 | AU25: つなぎ融資（東光商事） | AV25: =資金調達!$M11 -> 0 | AW25: 住宅ローン | AX25: =資金調達!$M11 -> 0 | AY25: つなぎ融資（東光商事） | AZ25: =資金調達!$M11 -> 0 | BA25: 住宅ローン | BB25: =資金調達!$M11 -> 0 | BC25: つなぎ融資（東光商事） | BD25: =資金調達!$M11 -> 0 | BE25: 住宅ローン | BF25: =IF(BF15>0,BF11,0) -> 0 | BG25: 住宅ローン | BH25: =IF(BH15>0,BH11,0) -> 0 | BI25: 住宅ローン | BJ25: =IF(BJ15>0,BJ11,0) -> 0 | BK25: 住宅ローン | BL25: =IF(BL15>0,BL11,0) -> 0 | BM25: 住宅ローン | BN25: =IF(BN15>0,BN11,0) -> 0 | BO25: 住宅ローン | BP25: =資金調達!$M11 -> 0 | BQ25: 住宅ローン | BR25: =資金調達!$M11 -> 0 | BS25: 住宅ローン | BT25: =資金調達!$M11 -> 0 | BU25: 住宅ローン | BV25: =資金調達!$M11 -> 0 | BW25: 住宅ローン | BX25: =資金調達!$M11 -> 0 | BY25: 住宅ローン | BZ25: =資金調達!$M11 -> 0 | CA25: つなぎ融資（アプラス） | CB25: =資金調達!$M11 -> 0 | CC25: つなぎ融資（アプラス） | CD25: =資金調達!$M11 -> 0 | CE25: つなぎ融資 | CF25: =資金調達!$M11 -> 0 | CG25: つなぎ融資 | CH25: =資金調達!$M11 -> 0 | CI25: つなぎ融資 | CJ25: =資金調達!$M11 -> 0 | CK25: 住宅ローン | CL25: =資金調達!$M11 -> 0 | CM25: つなぎ融資（東光商事） | CN25: =資金調達!$M11 -> 0 | CO25: つなぎ融資（東光商事） | CP25: =資金調達!$M11 -> 0 | CQ25: 住宅ローン | CR25: =資金調達!$M11 -> 0 | CS25: 住宅ローン | CT25: =資金調達!$M11 -> 0 | CU25: =IF(資金調達!$D4=1,"住宅ローン","") ->  | CV25: =資金調達!$M11 -> 0 | CW25: =資金調達!$M11 -> 0 | CX25: =資金調達!$M11 -> 0 | CY25: =IF(資金調達!$D4=1,"住宅ローン","") ->  | CZ25: =資金調達!$M11 -> 0 | DA25: =資金調達!$M11 -> 0 | DB25: =資金調達!$M11 -> 0 | DC25: =IF(資金調達!$D4=1,"住宅ローン","") ->  | DD25: =資金調達!$M11 -> 0 | DE25: =資金調達!$M11 -> 0 | DF25: =資金調達!$M11 -> 0
C26: 自己資金 | D26: =D23-D25 -> 0 | E26: 自己資金 | F26: =F23-F25 -> 0 | G26: 自己資金 | H26: =H23-H25 -> 0 | I26: 自己資金 | J26: =J23-J25 -> 0 | K26: 自己資金 | L26: =L23-L25 -> 0 | M26: 自己資金 | N26: =N23-N25 -> 0 | O26: 自己資金 | P26: =P23-P25 -> 0 | Q26: 自己資金 | R26: =R23-R25 -> 0 | S26: 自己資金 | T26: =T23-T25 -> 0 | U26: 自己資金 | V26: =V23-V25 -> 0 | W26: 自己資金 | X26: =X23-X25 -> 0 | Y26: 自己資金 | Z26: =Z23-Z25 -> 0 | AA26: 自己資金 | AB26: =AB23-AB25 -> 0 | AC26: 自己資金 | AD26: =AD23-AD25 -> 0 | AE26: 自己資金 | AF26: =AF23-AF25 -> 0 | AG26: 自己資金 | AH26: =AH23-AH25 -> 0 | AI26: 自己資金 | AJ26: =AJ23-AJ25 -> 0 | AK26: 自己資金 | AL26: =AL23-AL25 -> 0 | AM26: 自己資金 | AN26: =AN23-AN25 -> 0 | AO26: 自己資金 | AP26: =AP23-AP25 -> 0 | AQ26: 自己資金 | AR26: =AR23-AR25 -> 0 | AS26: 自己資金 | AT26: =AT23-AT25 -> 0 | AU26: 自己資金 | AV26: =AV23-AV25 -> 0 | AW26: 自己資金 | AX26: =AX23-AX25 -> 0 | AY26: 自己資金 | AZ26: =AZ23-AZ25 -> 0 | BA26: 自己資金 | BB26: =BB23-BB25 -> 0 | BC26: 自己資金 | BD26: =BD23-BD25 -> 0 | BE26: 自己資金 | BF26: =BF23-BF25 -> 0 | BG26: 自己資金 | BH26: =BH23-BH25 -> 0 | BI26: 自己資金 | BJ26: =BJ23-BJ25 -> 0 | BK26: 自己資金 | BL26: =BL23-BL25 -> 0 | BM26: 自己資金 | BN26: =BN23-BN25 -> 0 | BO26: 自己資金 | BP26: =BP23-BP25 -> 0 | BQ26: 自己資金 | BR26: =BR23-BR25 -> 0 | BS26: 自己資金 | BT26: =BT23-BT25 -> 0 | BU26: 自己資金 | BV26: =BV23-BV25 -> 0 | BW26: 自己資金 | BX26: =BX23-BX25 -> 0 | BY26: 自己資金 | BZ26: =BZ23-BZ25 -> 0 | CA26: 自己資金 | CB26: =CB23-CB25 -> 0 | CC26: 自己資金 | CD26: =CD23-CD25 -> 0 | CE26: 自己資金 | CF26: =CF23-CF25 -> 0 | CG26: 自己資金 | CH26: =CH23-CH25 -> 0 | CI26: 自己資金 | CJ26: =CJ23-CJ25 -> 0 | CK26: 自己資金 | CL26: =CL23-CL25 -> 0 | CM26: 自己資金 | CN26: =CN23-CN25 -> 0 | CO26: 自己資金 | CP26: =CP23-CP25 -> 0 | CQ26: 自己資金 | CR26: =CR23-CR25 -> 0 | CS26: 自己資金 | CT26: =CT23-CT25 -> 0 | CU26: 自己資金 | CV26: =CV23-CV25 -> 0 | CW26: =CW23-CW25 -> 0 | CX26: =CX23-CX25 -> 0 | CY26: 自己資金 | CZ26: =CZ23-CZ25 -> 0 | DA26: =DA23-DA25 -> 0 | DB26: =DB23-DB25 -> 0 | DD26: =DD23-DD25 -> 0 | DE26: =DE23-DE25 -> 0 | DF26: =DF23-DF25 -> 0
C28: 残代金 | D28: =D7-D20 -> 0 | E28: 残代金 | F28: =F7-F20 -> 0 | G28: 残代金 | H28: =H7-H20 -> 0 | I28: 残代金 | J28: =J7-J20 -> 0 | K28: 残代金 | L28: =L7-L20 -> 0 | M28: 残代金 | N28: =N7-N20 -> 0 | O28: 残代金 | P28: =P7-P20 -> 0 | Q28: 残代金 | R28: =R7-R20 -> 0 | S28: 残代金 | T28: =T7-T20 -> 0 | U28: 残代金 | V28: =V7-V20 -> 0 | W28: 残代金 | X28: =X7-X20 -> 0 | Y28: 残代金 | Z28: =Z7-Z20 -> 0 | AA28: 残代金 | AB28: =AB7-AB20 -> 0 | AC28: 残代金 | AD28: =AD7-AD20 -> 0 | AE28: 残代金 | AF28: =AF7-AF20 -> 0 | AG28: 残代金 | AH28: =AH7-AH20 -> 0 | AI28: 残代金 | AJ28: =AJ7-AJ20 -> 0 | AK28: 残代金 | AL28: =AL7-AL20 -> 0 | AM28: 残代金 | AN28: =AN7-AN20 -> 0 | AO28: 残代金 | AP28: =AP7-AP20 -> 0 | AQ28: 残代金 | AR28: =AR7-AR20 -> 0 | AS28: 残代金 | AT28: =AT7-AT20 -> 0 | AU28: 残代金 | AV28: =AV7-AV20 -> 0 | AW28: 残代金 | AX28: =AX7-AX20 -> 0 | AY28: 残代金 | AZ28: =AZ7-AZ20 -> 0 | BA28: 残代金 | BB28: =BB7-BB20 -> 0 | BC28: 残代金 | BD28: =BD7-BD20 -> 0 | BE28: 残代金 | BF28: =BF7-BF20 -> 0 | BG28: 残代金 | BH28: =BH7-BH20 -> 0 | BI28: 残代金 | BJ28: =BJ7-BJ20 -> 0 | BK28: 残代金 | BL28: =BL7-BL20 -> 0 | BM28: 残代金 | BN28: =BN7-BN20 -> 0 | BO28: 残代金 | BP28: =BP7-BP20 -> 0 | BQ28: 残代金 | BR28: =BR7-BR20 -> 0 | BS28: 残代金 | BT28: =BT7-BT20 -> 0 | BU28: 残代金 | BV28: =BV7-BV20 -> 0 | BW28: 残代金 | BX28: =BX7-BX20 -> 0 | BY28: 残代金 | BZ28: =BZ7-BZ20 -> 0 | CA28: 残代金 | CB28: =CB7-CB20 -> 0 | CC28: 残代金 | CD28: =CD7-CD20 -> 0 | CE28: 残代金 | CF28: =CF7-CF20 -> 0 | CG28: 残代金 | CH28: =CH7-CH20 -> 0 | CI28: 残代金 | CJ28: =CJ7-CJ20 -> 0 | CK28: 残代金 | CL28: =CL7-CL20 -> 0 | CM28: 残代金 | CN28: =CN7-CN20 -> 0 | CO28: 残代金 | CP28: =CP7-CP20 -> 0 | CQ28: 残代金 | CR28: =CR7-CR20 -> 0 | CS28: 残代金 | CT28: =CT7-CT20 -> 0 | CU28: 残代金 | CV28: =CV7-CV20 -> 0 | CW28: =CW7-CW20 -> 0 | CX28: =CX7-CX20 -> 0 | CZ28: =CZ7-CZ20 -> 0 | DA28: =DA7-DA20 -> 0 | DB28: =DB7-DB20 -> 0 | DD28: =DD7-DD20 -> 0 | DE28: =DE7-DE20 -> 0 | DF28: =DF7-DF20 -> 0
C29: 仲介報酬 | D29: =IF(D7=0,0,予算計画!F6) -> 0 | E29: 仲介報酬 | F29: =IF(F7=0,0,予算計画!$F6) -> 0 | G29: 仲介報酬 | H29: =IF(H7=0,0,予算計画!$F6) -> 0 | I29: 仲介報酬 | J29: =IF(J7=0,0,予算計画!$F6) -> 0 | K29: 仲介報酬 | L29: =IF(L7=0,0,予算計画!$F6) -> 0 | M29: 仲介報酬 | N29: =IF(N7=0,0,予算計画!$F6) -> 0 | O29: 仲介報酬 | P29: =IF(P7=0,0,予算計画!$F6) -> 0 | Q29: 仲介報酬 | R29: =IF(R7=0,0,予算計画!$F6) -> 0 | S29: 仲介報酬 | T29: =IF(T7=0,0,予算計画!$F6) -> 0 | U29: 仲介報酬 | V29: =IF(V7=0,0,予算計画!$F6) -> 0 | W29: 仲介報酬 | X29: =IF(X7=0,0,予算計画!$F6) -> 0 | Y29: 仲介報酬 | Z29: =IF(Z7=0,0,予算計画!$F6) -> 0 | AA29: 仲介報酬 | AB29: =IF(AB7=0,0,予算計画!$F6) -> 0 | AC29: 仲介報酬 | AD29: =IF(AD7=0,0,予算計画!$F6) -> 0 | AE29: 仲介報酬 | AF29: =IF(AF7=0,0,予算計画!$F6) -> 0 | AG29: 仲介報酬 | AH29: =IF(AH7=0,0,予算計画!$F6) -> 0 | AI29: 仲介報酬 | AJ29: =IF(AJ7=0,0,予算計画!$F6) -> 0 | AK29: 仲介報酬 | AL29: =IF(AL7=0,0,予算計画!$F6) -> 0 | AM29: 仲介報酬 | AN29: =IF(AN7=0,0,予算計画!$F6) -> 0 | AO29: 仲介報酬 | AP29: =IF(AP7=0,0,予算計画!$F6) -> 0 | AQ29: 仲介報酬 | AR29: =IF(AR7=0,0,予算計画!$F6) -> 0 | AS29: 仲介報酬 | AT29: =IF(AT7=0,0,予算計画!$F6) -> 0 | AU29: 仲介報酬 | AV29: =IF(AV7=0,0,予算計画!$F6) -> 0 | AW29: 仲介報酬 | AX29: =IF(AX7=0,0,予算計画!$F6) -> 0 | AY29: 仲介報酬 | AZ29: =IF(AZ7=0,0,予算計画!$F6) -> 0 | BA29: 仲介報酬 | BB29: =IF(BB7=0,0,予算計画!$F6) -> 0 | BC29: 仲介報酬 | BD29: =IF(BD7=0,0,予算計画!$F6) -> 0 | BE29: 仲介報酬 | BF29: =IF(BF7=0,0,予算計画!$F6) -> 0 | BG29: 仲介報酬 | BH29: =IF(BH7=0,0,予算計画!$F6) -> 0 | BI29: 仲介報酬 | BJ29: =IF(BJ7=0,0,予算計画!$F6) -> 0 | BK29: 仲介報酬 | BL29: =IF(BL7=0,0,予算計画!$F6) -> 0 | BM29: 仲介報酬 | BN29: =IF(BN7=0,0,予算計画!$F6) -> 0 | BO29: 仲介報酬 | BP29: =IF(BP7=0,0,予算計画!$F6) -> 0 | BQ29: 仲介報酬 | BR29: =IF(BR7=0,0,予算計画!$F6) -> 0 | BS29: 仲介報酬 | BT29: =IF(BT7=0,0,予算計画!$F6) -> 0 | BU29: 仲介報酬 | BV29: =IF(BV7=0,0,予算計画!$F6) -> 0 | BW29: 仲介報酬 | BX29: =IF(BX7=0,0,予算計画!$F6) -> 0 | BY29: 仲介報酬 | BZ29: =IF(BZ7=0,0,予算計画!$F6) -> 0 | CA29: 仲介報酬 | CB29: =IF(CB7=0,0,予算計画!$F6) -> 0 | CC29: 仲介報酬 | CD29: =IF(CD7=0,0,予算計画!$F6) -> 0 | CE29: 仲介報酬 | CF29: =IF(CF7=0,0,予算計画!$F6) -> 0 | CG29: 仲介報酬 | CH29: =IF(CH7=0,0,予算計画!$F6) -> 0 | CI29: 仲介報酬 | CJ29: =IF(CJ7=0,0,予算計画!$F6) -> 0 | CK29: 仲介報酬 | CL29: =IF(CL7=0,0,予算計画!$F6) -> 0 | CM29: 仲介報酬 | CN29: =IF(CN7=0,0,予算計画!$F6) -> 0 | CO29: 仲介報酬 | CP29: =IF(CP7=0,0,予算計画!$F6) -> 0 | CQ29: 仲介報酬 | CR29: =IF(CR7=0,0,予算計画!$F6) -> 0 | CS29: 仲介報酬 | CT29: =IF(CT7=0,0,予算計画!$F6) -> 0 | CU29: 仲介報酬 | CV29: =IF(CV7=0,0,予算計画!$F6) -> 0 | CW29: =IF(CW7=0,0,予算計画!$F6) -> 0 | CX29: =IF(CX7=0,0,予算計画!$F6) -> 0 | CY29: 仲介報酬 | CZ29: =IF(CZ7=0,0,予算計画!$F6) -> 0 | DA29: =IF(DA7=0,0,予算計画!$F6) -> 0 | DB29: =IF(DB7=0,0,予算計画!$F6) -> 0 | DC29: 仲介報酬 | DD29: =IF(DD7=0,0,予算計画!$F6) -> 0 | DE29: =IF(DE7=0,0,予算計画!$F6) -> 0 | DF29: =IF(DF7=0,0,予算計画!$F6) -> 0
C30: その他費用 | D30: =IF(資金調達!$D4=1,予算計画!$F63+SUM(予算計画!$F67:$F72),0) -> 0 | E30: その他費用 | F30: =IF(資金調達!$D4=1,予算計画!$F63+SUM(予算計画!$F67:$F72),0) -> 0 | G30: その他費用 | H30: =IF(資金調達!$D4=1,予算計画!$F63+SUM(予算計画!$F67:$F72),0) -> 0 | I30: その他費用 | J30: =IF(資金調達!$D4=1,予算計画!$F63+SUM(予算計画!$F67:$F72),0) -> 0 | K30: その他費用 | L30: =IF(資金調達!$D4=1,予算計画!$F63+SUM(予算計画!$F67:$F72),0) -> 0 | M30: その他費用 | N30: =IF(資金調達!$D4=1,予算計画!$F63+SUM(予算計画!$F67:$F72),0) -> 0 | O30: その他費用 | P30: =IF(資金調達!$D4=1,予算計画!$F63+SUM(予算計画!$F67:$F72),0) -> 0 | Q30: その他費用 | R30: =IF(資金調達!$D4=1,予算計画!$F63+SUM(予算計画!$F67:$F72),0) -> 0 | S30: その他費用 | T30: =IF(資金調達!$D4=1,予算計画!$F63+SUM(予算計画!$F67:$F72),0) -> 0 | U30: その他費用 | V30: =IF(資金調達!$D4=1,予算計画!$F63+SUM(予算計画!$F67:$F72),0) -> 0 | W30: その他費用 | X30: =IF(資金調達!$D4=1,予算計画!$F63+SUM(予算計画!$F67:$F72),0) -> 0 | Y30: その他費用 | Z30: =IF(資金調達!$D4=1,予算計画!$F63+SUM(予算計画!$F67:$F72),0) -> 0 | AA30: その他費用 | AB30: =IF(資金調達!$D4=1,予算計画!$F63+SUM(予算計画!$F67:$F72),0) -> 0 | AC30: その他費用 | AD30: =IF(資金調達!$D4=1,予算計画!$F63+SUM(予算計画!$F67:$F72),0) -> 0 | AE30: その他費用 | AF30: =IF(資金調達!$D4=1,予算計画!$F63+SUM(予算計画!$F67:$F72),0) -> 0 | AG30: その他費用 | AH30: =IF(資金調達!$D4=1,予算計画!$F63+SUM(予算計画!$F67:$F72),0) -> 0 | AI30: その他費用 | AJ30: =IF(資金調達!$D4=1,予算計画!$F63+SUM(予算計画!$F67:$F72),0) -> 0 | AK30: その他費用 | AL30: =IF(資金調達!$D4=1,予算計画!$F63+SUM(予算計画!$F67:$F72),0) -> 0 | AM30: その他費用 | AN30: =IF(資金調達!$D4=1,予算計画!$F63+SUM(予算計画!$F67:$F72),0) -> 0 | AO30: その他費用 | AP30: =IF(資金調達!$D4=1,予算計画!$F63+SUM(予算計画!$F67:$F72),0) -> 0 | AQ30: その他費用 | AR30: =IF(資金調達!$D4=1,予算計画!$F63+SUM(予算計画!$F67:$F72),0) -> 0 | AS30: その他費用 | AT30: =IF(資金調達!$D4=1,予算計画!$F63+SUM(予算計画!$F67:$F72),0) -> 0 | AU30: その他費用 | AV30: =IF(資金調達!$D4=1,予算計画!$F63+SUM(予算計画!$F67:$F72),0) -> 0 | AW30: その他費用 | AX30: =IF(資金調達!$D4=1,予算計画!$F63+SUM(予算計画!$F67:$F72),0) -> 0 | AY30: その他費用 | AZ30: =IF(資金調達!$D4=1,予算計画!$F63+SUM(予算計画!$F67:$F72),0) -> 0 | BA30: その他費用 | BB30: =IF(資金調達!$D4=1,予算計画!$F63+SUM(予算計画!$F67:$F72),0) -> 0 | BC30: その他費用 | BD30: =IF(資金調達!$D4=1,予算計画!$F63+SUM(予算計画!$F67:$F72),0) -> 0 | BE30: その他費用 | BF30: =IF(資金調達!$D4=1,予算計画!$F63+SUM(予算計画!$F67:$F72),0) -> 0 | BG30: その他費用 | BH30: =IF(資金調達!$D4=1,予算計画!$F63+SUM(予算計画!$F67:$F72),0) -> 0 | BI30: その他費用 | BJ30: =IF(資金調達!$D4=1,予算計画!$F63+SUM(予算計画!$F67:$F72),0) -> 0 | BK30: その他費用 | BL30: =IF(資金調達!$D4=1,予算計画!$F63+SUM(予算計画!$F67:$F72),0) -> 0 | BM30: その他費用 | BN30: =IF(資金調達!$D4=1,予算計画!$F63+SUM(予算計画!$F67:$F72),0) -> 0 | BO30: その他費用 | BP30: =IF(資金調達!$D4=1,予算計画!$F63+SUM(予算計画!$F67:$F72),0) -> 0 | BQ30: その他費用 | BR30: =IF(資金調達!$D4=1,予算計画!$F63+SUM(予算計画!$F67:$F72),0) -> 0 | BS30: その他費用 | BT30: =IF(資金調達!$D4=1,予算計画!$F63+SUM(予算計画!$F67:$F72),0) -> 0 | BU30: その他費用 | BV30: =IF(資金調達!$D4=1,予算計画!$F63+SUM(予算計画!$F67:$F72),0) -> 0 | BW30: その他費用 | BX30: =IF(資金調達!$D4=1,予算計画!$F63+SUM(予算計画!$F67:$F72),0) -> 0 | BY30: その他費用 | BZ30: =IF(資金調達!$D4=1,予算計画!$F63+SUM(予算計画!$F67:$F72),0) -> 0 | CA30: その他費用 | CB30: =IF(資金調達!$D4=1,予算計画!$F63+SUM(予算計画!$F67:$F72),0) -> 0 | CC30: その他費用 | CD30: =IF(資金調達!$D4=1,予算計画!$F63+SUM(予算計画!$F67:$F72),0) -> 0 | CE30: その他費用 | CF30: =IF(資金調達!$D4=1,予算計画!$F63+SUM(予算計画!$F67:$F72),0) -> 0 | CG30: その他費用 | CH30: =IF(資金調達!$D4=1,予算計画!$F63+SUM(予算計画!$F67:$F72),0) -> 0 | CI30: その他費用 | CJ30: =IF(資金調達!$D4=1,予算計画!$F63+SUM(予算計画!$F67:$F72),0) -> 0 | CK30: その他費用 | CL30: =IF(資金調達!$D4=1,予算計画!$F63+SUM(予算計画!$F67:$F72),0) -> 0 | CM30: その他費用 | CN30: =IF(資金調達!$D4=1,予算計画!$F63+SUM(予算計画!$F67:$F72),0) -> 0 | CO30: その他費用 | CP30: =IF(資金調達!$D4=1,予算計画!$F63+SUM(予算計画!$F67:$F72),0) -> 0 | CQ30: その他費用 | CR30: =IF(資金調達!$D4=1,予算計画!$F63+SUM(予算計画!$F67:$F72),0) -> 0 | CS30: その他費用 | CT30: =IF(資金調達!$D4=1,予算計画!$F63+SUM(予算計画!$F67:$F72),0) -> 0 | CU30: その他費用 | CV30: =IF(資金調達!$D4=1,予算計画!$F63+SUM(予算計画!$F67:$F72),0) -> 0 | CW30: =IF(資金調達!$D4=1,予算計画!$F63+SUM(予算計画!$F67:$F72),0) -> 0 | CX30: =IF(資金調達!$D4=1,予算計画!$F63+SUM(予算計画!$F67:$F72),0) -> 0 | CY30: その他費用 | CZ30: =IF(資金調達!$D4=1,予算計画!$F63+SUM(予算計画!$F67:$F72),0) -> 0 | DA30: =IF(資金調達!$D4=1,予算計画!$F63+SUM(予算計画!$F67:$F72),0) -> 0 | DB30: =IF(資金調達!$D4=1,予算計画!$F63+SUM(予算計画!$F67:$F72),0) -> 0 | DC30: その他費用 | DD30: =IF(資金調達!$D4=1,予算計画!$F63+SUM(予算計画!$F67:$F72),0) -> 0 | DE30: =IF(資金調達!$D4=1,予算計画!$F63+SUM(予算計画!$F67:$F72),0) -> 0 | DF30: =IF(資金調達!$D4=1,予算計画!$F63+SUM(予算計画!$F67:$F72),0) -> 0
C31: 登記関係費用 | D31: =IF(D7=0,0,IF(資金調達!$D4=1,SUM(予算計画!$F52:$F53),予算計画!$F$7+D11*0.4%)) -> 0 | E31: 登記関係費用 | F31: =IF(F7=0,0,IF(資金調達!$D4=1,SUM(予算計画!$F52:$F53),予算計画!$F$7+F11*0.4%)) -> 0 | G31: 登記関係費用 | H31: =IF(H7=0,0,IF(資金調達!$D4=1,SUM(予算計画!$F52:$F53),予算計画!$F$7+H11*0.4%)) -> 0 | I31: 登記関係費用 | J31: =IF(J7=0,0,IF(資金調達!$D4=1,SUM(予算計画!$F52:$F53),予算計画!$F$7+J11*0.4%)) -> 0 | K31: 登記関係費用 | L31: =IF(L7=0,0,IF(資金調達!$D4=1,SUM(予算計画!$F52:$F53),予算計画!F$7+L28*0.4%)) -> 0 | M31: 登記関係費用 | N31: =IF(N7=0,0,IF(資金調達!$D4=1,SUM(予算計画!$F52:$F53),予算計画!F$7+N11*0.4%)) -> 0 | O31: 登記関係費用 | P31: =IF(P7=0,0,IF(資金調達!$D4=1,SUM(予算計画!$F52:$F53),予算計画!F$7+P11*0.4%)) -> 0 | Q31: 登記関係費用 | R31: =IF(R7=0,0,IF(資金調達!$D4=1,SUM(予算計画!$F52:$F53),予算計画!F$7+R11*0.4%)) -> 0 | S31: 登記関係費用 | T31: =IF(T7=0,0,IF(資金調達!$D4=1,SUM(予算計画!$F52:$F53),予算計画!F$7+T11*0.4%)) -> 0 | U31: 登記関係費用 | V31: =IF(V7=0,0,IF(資金調達!$D4=1,SUM(予算計画!$F52:$F53),予算計画!F$7)) -> 0 | W31: 登記関係費用 | X31: =IF(X7=0,0,IF(資金調達!$D4=1,SUM(予算計画!$F52:$F53),予算計画!F$7)) -> 0 | Y31: 登記関係費用 | Z31: =IF(Z7=0,0,IF(資金調達!$D4=1,SUM(予算計画!$F52:$F53),予算計画!F$7)) -> 0 | AA31: 登記関係費用 | AB31: =IF(AB7=0,0,IF(資金調達!$D4=1,SUM(予算計画!$F52:$F53),予算計画!F$7)) -> 0 | AC31: 登記関係費用 | AD31: =IF(AD7=0,0,IF(資金調達!$D4=1,SUM(予算計画!$F52:$F53),予算計画!F$7)) -> 0 | AE31: 登記関係費用 | AF31: =IF(AF7=0,0,IF(資金調達!$D4=1,SUM(予算計画!$F52:$F53),予算計画!H$7)) -> 0 | AG31: 登記関係費用 | AH31: =IF(AH7=0,0,IF(資金調達!$D4=1,SUM(予算計画!$F52:$F53),予算計画!F$7)) -> 0 | AI31: 登記関係費用 | AJ31: =IF(AJ7=0,0,IF(資金調達!$D4=1,SUM(予算計画!$F52:$F53),予算計画!F$7)) -> 0 | AK31: 登記関係費用 | AL31: =IF(AL7=0,0,IF(資金調達!$D4=1,SUM(予算計画!$F52:$F53),予算計画!F$7)) -> 0 | AM31: 登記関係費用 | AN31: =IF(AN7=0,0,IF(資金調達!$D4=1,SUM(予算計画!$F52:$F53),予算計画!$F7)) -> 0 | AO31: 登記関係費用 | AP31: =IF(AP7=0,0,IF(資金調達!$D4=1,SUM(予算計画!$F52:$F53),予算計画!$F7)) -> 0 | AQ31: 登記関係費用 | AR31: =IF(AR7=0,0,IF(資金調達!$D4=1,SUM(予算計画!$F52:$F53),予算計画!$F7)) -> 0 | AS31: 登記関係費用 | AT31: =IF(AT7=0,0,IF(資金調達!$D4=1,SUM(予算計画!$F52:$F53),予算計画!F$7+AT11*0.4%)) -> 0 | AU31: 登記関係費用 | AV31: =IF(AV7=0,0,IF(資金調達!$D4=1,SUM(予算計画!$F52:$F53),予算計画!F$7)) -> 0 | AW31: 登記関係費用 | AX31: =IF(AX7=0,0,IF(資金調達!$D4=1,SUM(予算計画!$F52:$F53),予算計画!F$7+AX11*0.4%)) -> 0 | AY31: 登記関係費用 | AZ31: =IF(AZ7=0,0,IF(資金調達!$D4=1,SUM(予算計画!$F52:$F53),予算計画!F$7)) -> 0 | BA31: 登記関係費用 | BB31: =IF(BB7=0,0,IF(資金調達!$D4=1,SUM(予算計画!$F52:$F53),予算計画!F$7+BB11*0.4%)) -> 0 | BC31: 登記関係費用 | BD31: =IF(BD7=0,0,IF(資金調達!$D4=1,SUM(予算計画!$F52:$F53),予算計画!F$7)) -> 0 | BE31: 登記関係費用 | BF31: =IF(BF7=0,0,IF(資金調達!$D4=1,SUM(予算計画!$F52:$F53),予算計画!F$7+BF11*0.4%)) -> 0 | BG31: 登記関係費用 | BH31: =IF(BH7=0,0,IF(資金調達!$D4=1,SUM(予算計画!$F52:$F53),予算計画!F$7+BH11*0.4%)) -> 0 | BI31: 登記関係費用 | BJ31: =IF(BJ7=0,0,IF(資金調達!$D4=1,SUM(予算計画!$F52:$F53),予算計画!F$7+BJ11*0.4%)) -> 0 | BK31: 登記関係費用 | BL31: =IF(BL7=0,0,IF(資金調達!$D4=1,SUM(予算計画!$F52:$F53),予算計画!F$7+BL11*0.4%)) -> 0 | BM31: 登記関係費用 | BN31: =IF(BN7=0,0,IF(資金調達!$D4=1,SUM(予算計画!$F52:$F53),予算計画!$F7)) -> 0 | BO31: 登記関係費用 | BP31: =IF(BP7=0,0,IF(資金調達!$D4=1,SUM(予算計画!$F52:$F53),予算計画!F$7+BP11*0.4%)) -> 0 | BQ31: 登記関係費用 | BR31: =IF(BR7=0,0,IF(資金調達!$D4=1,SUM(予算計画!$F52:$F53),予算計画!F$7+BR11*0.4%)) -> 0 | BS31: 登記関係費用 | BT31: =IF(BT7=0,0,IF(資金調達!$D4=1,SUM(予算計画!$F52:$F53),予算計画!F$7+BT28*0.4%)) -> 0 | BU31: 登記関係費用 | BV31: =IF(BV7=0,0,IF(資金調達!$D4=1,SUM(予算計画!$F52:$F53),予算計画!F$7+BV28*0.4%)) -> 0 | BW31: 登記関係費用 | BX31: =IF(BX7=0,0,IF(資金調達!$D4=1,SUM(予算計画!$F52:$F53),予算計画!F$7+BX28*0.4%)) -> 0 | BY31: 登記関係費用 | BZ31: =IF(BZ7=0,0,IF(資金調達!$D4=1,SUM(予算計画!$F52:$F53),予算計画!F$7+BZ28*0.4%)) -> 0 | CA31: 登記関係費用 | CB31: =IF(CB7=0,0,IF(資金調達!$D4=1,SUM(予算計画!$F52:$F53),予算計画!F$7)) -> 0 | CC31: 登記関係費用 | CD31: =IF(CD7=0,0,IF(資金調達!$D4=1,SUM(予算計画!$F52:$F53),予算計画!F$7)) -> 0 | CE31: 登記関係費用 | CF31: =IF(CF7=0,0,IF(資金調達!$D4=1,SUM(予算計画!$F52:$F53),予算計画!F$7)) -> 0 | CG31: 登記関係費用 | CH31: =IF(CH7=0,0,IF(資金調達!$D4=1,SUM(予算計画!$F52:$F53),予算計画!F$7)) -> 0 | CI31: 登記関係費用 | CJ31: =IF(CJ7=0,0,IF(資金調達!$D4=1,SUM(予算計画!$F52:$F53),予算計画!F$7)) -> 0 | CK31: 登記関係費用 | CL31: =IF(CL7=0,0,IF(資金調達!$D4=1,SUM(予算計画!$F52:$F53),予算計画!F$7+CL11*0.4%)) -> 0 | CM31: 登記関係費用 | CN31: =IF(CN7=0,0,IF(資金調達!$D4=1,SUM(予算計画!$F52:$F53),予算計画!F$7)) -> 0 | CO31: 登記関係費用 | CP31: =IF(CP7=0,0,IF(資金調達!$D4=1,SUM(予算計画!$F52:$F53),予算計画!F$7)) -> 0 | CQ31: 登記関係費用 | CR31: =IF(CR7=0,0,IF(資金調達!$D4=1,SUM(予算計画!$F52:$F53),予算計画!F$7+CR28*0.4%)) -> 0 | CS31: 登記関係費用 | CT31: =IF(CT7=0,0,IF(資金調達!$D4=1,SUM(予算計画!$F52:$F53),予算計画!F$7+CT28*0.4%)) -> 0 | CU31: 登記関係費用 | CV31: =IF(CV7=0,0,IF(資金調達!$D4=1,SUM(予算計画!$F52:$F53),予算計画!F$7)) -> 0 | CW31: =IF(CW7=0,0,IF(資金調達!$D4=1,SUM(予算計画!$F52:$F53),予算計画!F$7)) -> 0 | CX31: =IF(CX7=0,0,IF(資金調達!$D4=1,SUM(予算計画!$F52:$F53),予算計画!F$7)) -> 0 | CY31: 登記関係費用 | CZ31: =IF(CZ7=0,0,IF(資金調達!$D4=1,SUM(予算計画!$F52:$F53),予算計画!F$7)) -> 0 | DA31: =IF(DA7=0,0,IF(資金調達!$D4=1,SUM(予算計画!$F52:$F53),予算計画!F$7)) -> 0 | DB31: =IF(DB7=0,0,IF(資金調達!$D4=1,SUM(予算計画!$F52:$F53),予算計画!F$7)) -> 0 | DC31: 登記関係費用 | DD31: =IF(DD7=0,0,IF(資金調達!$D4=1,SUM(予算計画!$F52:$F53),予算計画!F$7)) -> 0 | DE31: =IF(DE7=0,0,IF(資金調達!$D4=1,SUM(予算計画!$F52:$F53),予算計画!F$7)) -> 0 | DF31: =IF(DF7=0,0,IF(資金調達!$D4=1,SUM(予算計画!$F52:$F53),予算計画!F$7)) -> 0
C32: 融資関係費用 | D32: =IF(D25>0,D11*諸費用!$Q28+IF(資金調達!$G6=5,2,1)*諸費用!$V28/10000+諸費用!$S28/10000,0) -> 0 | E32: 融資関係費用 | F32: =IF(F25>0,F11*諸費用!$Q29+IF(資金調達!$G6=5,2,1)*諸費用!$V29/10000+諸費用!$S29/10000,0) -> 0 | G32: 融資関係費用 | H32: =IF(H25>0,諸費用!$R30/10000+IF(資金調達!$G6=5,2,1)*諸費用!$V30/10000+諸費用!$S30/10000,0) -> 0 | I32: 融資関係費用 | J32: =IF(J25>0,IF(資金調達!$G6=5,2,1)*諸費用!$V31/10000+諸費用!$S31/10000,0) -> 0 | K32: 融資関係費用 | L32: =IF(L25>0,L25*諸費用!$Q27+IF(資金調達!$G6=5,2,1)*諸費用!$V27/10000+諸費用!$S27/10000,0) -> 0 | M32: 融資関係費用 | N32: =IF(N25>0,N25*諸費用!$Q37+IF(資金調達!$G6=5,2,1)*諸費用!$V37/10000+諸費用!$S37/10000,0) -> 0 | O32: 融資関係費用 | P32: =IF(P25>0,P25*諸費用!$Q21+IF(資金調達!$G6=5,2,1)*諸費用!$V21/10000+諸費用!$S21/10000,0) -> 0 | Q32: 融資関係費用 | R32: =IF(R25>0,R25*諸費用!$Q22+IF(資金調達!$G6=5,2,1)*諸費用!$V22/10000+諸費用!$S22/10000,0) -> 0 | S32: 融資関係費用 | T32: =IF(T25>0,IF(資金調達!$G6=5,2,1)*諸費用!$V23/10000+諸費用!$S23/10000,0) -> 0 | U32: 融資関係費用 | V32: =IF(V25>0,IF(資金調達!$D4=1,V25*諸費用!Q81,(諸費用!$AD81+諸費用!$AF81)/10000),0) -> 0 | W32: 融資関係費用 | X32: =IF(X25>0,IF(資金調達!$D4=1,X25*諸費用!Q2,(諸費用!$AD2+諸費用!$AF2)/10000),0) -> 0 | Y32: 融資関係費用 | Z32: =IF(Z25>0,IF(資金調達!$D4=1,諸費用!R3/10000,(諸費用!$AD3+諸費用!$AF3)/10000),0) -> 0 | AA32: 融資関係費用 | AB32: =IF(AB25>0,IF(資金調達!$D4=1,諸費用!R51/10000,(諸費用!$AD51+諸費用!$AF51)/10000),0) -> 0 | AC32: 融資関係費用 | AD32: =IF(AD25>0,AD25*諸費用!$Q13+IF(資金調達!$G6=5,2,1)*諸費用!$V13/10000+諸費用!$S13/10000,0) -> 0 | AE32: 融資関係費用 | AF32: =IF(AF25>0,AF25*諸費用!$Q13+IF(資金調達!$G6=5,2,1)*諸費用!$V13/10000+諸費用!$S13/10000,0) -> 0 | AG32: 融資関係費用 | AH32: =IF(AH25>0,IF(資金調達!$D4=1,AH25*諸費用!Q20,(諸費用!$AD20+諸費用!$AF20)/10000),0) -> 0 | AI32: 融資関係費用 | AJ32: =IF(AJ25>0,IF(資金調達!$D4=1,AJ25*諸費用!Q41,AJ25*諸費用!$Q41+IF(資金調達!$G6=5,2,1)*諸費用!$V41/10000+諸費用!$S41/10000),0) -> 0 | AK32: 融資関係費用 | AL32: =IF(AL25>0,IF(資金調達!$D4=1,諸費用!R42/10000,諸費用!$R42/10000+IF(資金調達!$G6=5,2,1)*諸費用!$V42/10000+諸費用!$S42/10000),0) -> 0 | AM32: 融資関係費用 | AN32: =IF(AN25>0,AN11*諸費用!$Q92+IF(資金調達!$G6=5,2,1)*諸費用!$V92/10000+諸費用!$S92/10000,0) -> 0 | AO32: 融資関係費用 | AP32: =IF(AP25>0,諸費用!$R93/10000+IF(資金調達!$G6=5,2,1)*諸費用!$V93/10000+諸費用!$S93/10000,0) -> 0 | AQ32: 融資関係費用 | AR32: =IF(AR25>0,AR11*諸費用!$Q94+IF(資金調達!$G6=5,2,1)*諸費用!$V94/10000+諸費用!$S94/10000,0) -> 0 | AS32: 融資関係費用 | AT32: =IF(AT25>0,AT11*諸費用!$Q95+VLOOKUP(AT25*10000,table!B3:D11,2,TRUE)/10000+諸費用!$S95/10000,0) -> 0 | AU32: 融資関係費用 | AV32: =IF(AV25>0,IF(資金調達!$D4=1,AV25*諸費用!Q96,(諸費用!$AD96+諸費用!$AF96)/10000),0) -> 0 | AW32: 融資関係費用 | AX32: =IF(AX25>0,VLOOKUP(AT25*10000,table!B3:D11,2,TRUE)/10000+諸費用!$S97/10000,0) -> 0 | AY32: 融資関係費用 | AZ32: =IF(AZ25>0,(諸費用!$AD98+諸費用!$AF98)/10000,0) -> 0 | BA32: 融資関係費用 | BB32: =IF(BB25>0,BB11*諸費用!$Q99+VLOOKUP(AT25*10000,table!B3:D11,2,TRUE)/10000+諸費用!$S99/10000,0) -> 0 | BC32: 融資関係費用 | BD32: =IF(BD25>0,(諸費用!$AD100+諸費用!$AF100)/10000,0) -> 0 | BE32: 融資関係費用 | BF32: =IF(BF25>0,BF11*諸費用!$Q82+VLOOKUP(BF25*10000,table!$B3:$D11,2,TRUE)/10000+諸費用!$S82/10000,0) -> 0 | BG32: 融資関係費用 | BH32: =IF(BH25>0,VLOOKUP(BH25*10000,table!$B3:$D11,2,TRUE)/10000+諸費用!$S83/10000,0) -> 0 | BI32: 融資関係費用 | BJ32: =IF(BJ25>0,BJ11*諸費用!$Q84+VLOOKUP(BJ25*10000,table!$B3:$D11,2,TRUE)/10000+諸費用!$S84/10000,0) -> 0 | BK32: 融資関係費用 | BL32: =IF(BL25>0,BL11*諸費用!$Q85+VLOOKUP(BL25*10000,table!$B3:$D11,2,TRUE)/10000+諸費用!$S85/10000,0) -> 0 | BM32: 融資関係費用 | BN32: =IF(BN25>0,諸費用!$R86/10000+IF(資金調達!$G6=5,2,1)*諸費用!$V86/10000+諸費用!$S86/10000,0) -> 0 | BO32: 融資関係費用 | BP32: =IF(BP25>0,BP11*諸費用!$Q101+IF(資金調達!$G6=5,2,1)*諸費用!$V101/10000+諸費用!$S101/10000,0) -> 0 | BQ32: 融資関係費用 | BR32: =IF(BR25>0,諸費用!$R102/10000+IF(資金調達!$G6=5,2,1)*諸費用!$V102/10000+諸費用!$S102/10000,0) -> 0 | BS32: 融資関係費用 | BT32: =IF(BT25>0,BT25*諸費用!$Q4+IF(資金調達!$G6=5,2,1)*諸費用!$V4/10000+諸費用!$S4/10000,0) -> 0 | BU32: 融資関係費用 | BV32: =IF(BV25>0,BV25*諸費用!$Q5+IF(資金調達!$G6=5,2,1)*諸費用!$V5/10000+諸費用!$S5/10000,0) -> 0 | BW32: 融資関係費用 | BX32: =IF(BX25>0,BX25*諸費用!$Q6+IF(資金調達!$G6=5,2,1)*諸費用!$V6/10000+諸費用!$S6/10000,0) -> 0 | BY32: 融資関係費用 | BZ32: =IF(BZ25>0,BZ25*諸費用!$Q7+IF(資金調達!$G6=5,2,1)*諸費用!$V7/10000+諸費用!$S7/10000,0) -> 0 | CA32: 融資関係費用 | CB32: =IF(CB25>0,IF(資金調達!$D4=1,CB25*諸費用!Q48,(諸費用!$AD48+諸費用!$AF48)/10000),0) -> 0 | CC32: 融資関係費用 | CD32: =IF(CD25>0,IF(資金調達!$D4=1,諸費用!R49/10000,(諸費用!$AD49+諸費用!$AF49)/10000),0) -> 0 | CE32: 融資関係費用 | CF32: =IF(CF25>0,IF(資金調達!$D4=1,CF28*諸費用!Q89,(諸費用!$AD89+諸費用!$AF89)/10000),0) -> 0 | CG32: 融資関係費用 | CH32: =IF(CH25>0,IF(資金調達!$D4=1,CH25*諸費用!Q90,(諸費用!$AD90+諸費用!$AF90)/10000),0) -> 0 | CI32: 融資関係費用 | CJ32: =IF(CJ25>0,(諸費用!$AD91+諸費用!$AF91)/10000,0) -> 0 | CK32: 融資関係費用 | CL32: =IF(CL25>0,諸費用!$R87/10000+IF(資金調達!$G6=5,2,1)*諸費用!$V87/10000+諸費用!$S87/10000,0) -> 0 | CM32: 融資関係費用 | CN32: =IF(CN25>0,IF(資金調達!$D4=1,諸費用!R105/10000,(諸費用!$AD105+諸費用!$AF105)/10000),0) -> 0 | CO32: 融資関係費用 | CP32: =IF(CP25>0,IF(資金調達!$D4=1,CP25*諸費用!Q106,(諸費用!$AD106+諸費用!$AF106)/10000),0) -> 0 | CQ32: 融資関係費用 | CR32: =IF(CR25>0,CR25*諸費用!$Q108+IF(資金調達!$G6=5,2,1)*諸費用!$V108/10000+諸費用!$S108/10000,0) -> 0 | CS32: 融資関係費用 | CT32: =IF(CT25>0,諸費用!$R109/10000+IF(資金調達!$G6=5,2,1)*諸費用!$V109/10000+諸費用!$S109/10000,0) -> 0 | CU32: 融資関係費用 | CV32: =IF(CV25>0,IF(資金調達!$D4=1,IF(中間処理!$I18>0.9,諸費用!$T60,諸費用!$T59)/10000+IF(資金調達!$G6=5,2,1)*諸費用!$V59/10000+諸費用!$S59/10000,(諸費用!$AD59+諸費用!$AF59)/10000),0) -> 0 | CW32: =IF(CW25>0,IF(資金調達!$D4=1,IF(中間処理!$I18>0.9,諸費用!$T60,諸費用!$T59)/10000+(諸費用!$AG61-諸費用!$V61)/10000+IF(資金調達!$G6=5,2,1)*諸費用!$V59/10000+諸費用!$S59/10000,(諸費用!$AD59+諸費用!$AF59)/10000),0) -> 0 | CX32: =IF(CX25>0,IF(資金調達!$D4=1,IF(中間処理!$I18>0.9,諸費用!$T60,諸費用!$T59)/10000+IF(CX11>10000,諸費用!$AG$77-諸費用!$V77,諸費用!$AG$74-諸費用!$V74)/10000+IF(資金調達!$G6=5,2,1)*諸費用!$V59/10000+諸費用!$S59/10000,(諸費用!$AD59+諸費用!$AF59)/10000),0) -> 0 | CY32: 融資関係費用 | CZ32: =IF(CZ25>0,IF(資金調達!$D4=1,CZ25*諸費用!$Q63,(諸費用!$AD63+諸費用!$AF63)/10000),0)+諸費用!$S63/10000 -> 0 | DA32: =IF(DA25>0,IF(資金調達!$D4=1,IF(中間処理!$I18>0.9,諸費用!$T64,諸費用!$T63)/10000+(諸費用!$AG66-諸費用!$V66)/10000+IF(資金調達!$G6=5,2,1)*諸費用!$V63/10000+諸費用!$S63/10000,(諸費用!$AD63+諸費用!$AF63)/10000),0) -> 0 | DB32: =IF(DB25>0,IF(資金調達!$D4=1,IF(中間処理!$I18>0.9,諸費用!$T64,諸費用!$T63)/10000+IF(DB11>10000,諸費用!$AG$77-諸費用!$V77,諸費用!$AG$74-諸費用!$V74)/10000+IF(資金調達!$G6=5,2,1)*諸費用!$V63/10000+諸費用!$S63/10000,(諸費用!$AD63+諸費用!$AF63)/10000),0) -> 0 | DC32: 融資関係費用 | DD32: =IF(DD25>0,IF(資金調達!$D4=1,DD25*諸費用!$Q100,(諸費用!$AD100+諸費用!$AF100)/10000),0) -> 0 | DE32: =IF(DE25>0,IF(資金調達!$D4=1,IF(中間処理!$I18>0.9,諸費用!$T69,諸費用!$T68)/10000+(諸費用!$AG70-諸費用!$V70)/10000+IF(資金調達!$G6=5,2,1)*諸費用!$V68/10000+諸費用!$S68/10000,(諸費用!$AD68+諸費用!$AF68)/10000),0) -> 0 | DF32: =IF(DF25>0,IF(資金調達!$D4=1,IF(中間処理!$I18>0.9,諸費用!$T69,諸費用!$T68)/10000+IF(DF11>10000,諸費用!$AG$77-諸費用!$V77,諸費用!$AG$74-諸費用!$V74)/10000+IF(資金調達!$G6=5,2,1)*諸費用!$V68/10000+諸費用!$S68/10000,(諸費用!$AD68+諸費用!$AF68)/10000),0) -> 0
B34: 着工前 | C34: 支払合計 | D34: =SUM(D39:D41) -> 0 | E34: 支払合計 | F34: =SUM(F39:F41) -> 0 | G34: 支払合計 | H34: =SUM(H39:H41) -> 0 | I34: 支払合計 | J34: =SUM(J39:J41) -> 0 | K34: 支払合計 | L34: =SUM(L39:L41) -> 0 | M34: 支払合計 | N34: =SUM(N39:N41) -> 0 | O34: 支払合計 | P34: =SUM(P39:P41) -> 0 | Q34: 支払合計 | R34: =SUM(R39:R41) -> 0 | S34: 支払合計 | T34: =SUM(T39:T41) -> 0 | V34: =IF(資金調達!E16>0,"Error",0) -> 0 | X34: =IF(資金調達!E16>0,"Error",0) -> 0 | Z34: =IF(資金調達!E16>0,"Error",0) -> 0 | AB34: =IF(資金調達!E16>0,"Error",0) -> 0 | AD34: =IF(資金調達!E16>0,"Error",0) -> 0 | AF34: =IF(資金調達!E16>0,"Error",0) -> 0 | AH34: =IF(資金調達!E16>0,"Error",0) -> 0 | AJ34: =IF(資金調達!E16>0,"Error",0) -> 0 | AL34: =IF(資金調達!E16>0,"Error",0) -> 0 | AN34: =SUM(AN39:AN41) -> 0 | AO34: 支払合計 | AP34: =SUM(AP39:AP41) -> 0 | AQ34: 支払合計 | AR34: =SUM(AR39:AR41) -> 0 | AS34: 支払合計 | AT34: =SUM(AT39:AT41) -> 0 | AU34: 支払合計 | AW34: 支払合計 | AX34: =SUM(AX39:AX41) -> 0 | AY34: 支払合計 | BA34: 支払合計 | BB34: =SUM(BB39:BB41) -> 0 | BC34: 支払合計 | BE34: 支払合計 | BF34: =SUM(BF39:BF41) -> 0 | BG34: 支払合計 | BH34: =SUM(BH39:BH41) -> 0 | BI34: 支払合計 | BJ34: =SUM(BJ39:BJ41) -> 0 | BK34: 支払合計 | BL34: =SUM(BL39:BL41) -> 0 | BM34: 支払合計 | BN34: =SUM(BN39:BN41) -> 0 | BO34: 支払合計 | BP34: =SUM(BP39:BP41) -> 0 | BQ34: 支払合計 | BR34: =SUM(BR39:BR41) -> 0 | BS34: 支払合計 | BT34: =SUM(BT39:BT41) -> 0 | BU34: 支払合計 | BV34: =SUM(BV39:BV41) -> 0 | BW34: 支払合計 | BX34: =SUM(BX39:BX41) -> 0 | BY34: 支払合計 | BZ34: =SUM(BZ39:BZ41) -> 0 | CA34: 支払合計 | CB34: =SUM(CB39:CB41) -> 0 | CC34: 支払合計 | CD34: =SUM(CD39:CD41) -> 0 | CE34: 支払合計 | CF34: =SUM(CF39:CF41) -> 0 | CG34: 支払合計 | CH34: =SUM(CH39:CH41) -> 0 | CI34: 支払合計 | CJ34: =SUM(CJ39:CJ41) -> 0 | CK34: 支払合計 | CL34: =SUM(CL39:CL41) -> 0 | CM34: 支払合計 | CN34: =SUM(CN39:CN41) -> 0 | CO34: 支払合計 | CP34: =SUM(CP39:CP41) -> 0 | CQ34: 支払合計 | CR34: =SUM(CR39:CR41) -> 0 | CS34: 支払合計 | CT34: =SUM(CT39:CT41) -> 0 | CU34: 支払合計 | CV34: =SUM(CV39:CV41) -> 0 | CW34: =SUM(CW39:CW41) -> 0 | CX34: =SUM(CX39:CX41) -> 0 | CY34: 支払合計 | CZ34: =SUM(CZ39:CZ41) -> 0 | DA34: =SUM(DA39:DA41) -> 0 | DB34: =SUM(DB39:DB41) -> 0 | DC34: 支払合計 | DD34: =SUM(DD39:DD41) -> 0 | DE34: =SUM(DE39:DE41) -> 0 | DF34: =SUM(DF39:DF41) -> 0
C36: 住宅ローン | D36: =資金調達!$F16 -> 0 | E36: 住宅ローン | F36: =資金調達!$F16 -> 0 | G36: 住宅ローン | H36: =資金調達!$F16 -> 0 | I36: 住宅ローン | J36: =資金調達!$F16 -> 0 | K36: 住宅ローン | L36: =資金調達!$F16 -> 0 | M36: 住宅ローン | N36: =資金調達!$F16 -> 0 | O36: 住宅ローン | P36: =資金調達!$F16 -> 0 | Q36: 住宅ローン | R36: =資金調達!$F16 -> 0 | S36: 住宅ローン | T36: =資金調達!$F16 -> 0 | AN36: =IF(AN39>0,AN11,0) -> 0 | AO36: 住宅ローン | AP36: =IF(AP39>0,AP11,0) -> 0 | AQ36: 住宅ローン | AR36: =IF(AR39>0,AR11,0) -> 0 | AS36: 住宅ローン | AT36: =資金調達!$F16 -> 0 | AW36: 住宅ローン | AX36: =資金調達!$F16 -> 0 | BA36: 住宅ローン | BB36: =資金調達!$F16 -> 0 | BE36: 住宅ローン | BF36: =資金調達!$F16 -> 0 | BG36: 住宅ローン | BH36: =資金調達!$F16 -> 0 | BI36: 住宅ローン | BJ36: =資金調達!$F16 -> 0 | BK36: 住宅ローン | BL36: =資金調達!$F16 -> 0 | BN36: =IF(BN39>0,BN11,0) -> 0 | BO36: 住宅ローン | BP36: =資金調達!$F16 -> 0 | BQ36: 住宅ローン | BR36: =資金調達!$F16 -> 0 | BS36: 住宅ローン | BT36: =資金調達!$F16 -> 0 | BU36: 住宅ローン | BV36: =資金調達!$F16 -> 0 | BW36: 住宅ローン | BX36: =資金調達!$F16 -> 0 | BY36: 住宅ローン | BZ36: =資金調達!$F16 -> 0
C37: 自己資金 | D37: =D34-D36 -> 0 | E37: 自己資金 | F37: =F34-F36 -> 0 | G37: 自己資金 | H37: =H34-H36 -> 0 | I37: 自己資金 | J37: =J34-J36 -> 0 | K37: 自己資金 | L37: =L34-L36 -> 0 | M37: 自己資金 | N37: =N34-N36 -> 0 | O37: 自己資金 | P37: =P34-P36 -> 0 | Q37: 自己資金 | R37: =R34-R36 -> 0 | S37: 自己資金 | T37: =T34-T36 -> 0 | AN37: =AN34-AN36 -> 0 | AO37: 自己資金 | AP37: =AP34-AP36 -> 0 | AQ37: 自己資金 | AR37: =AR34-AR36 -> 0 | AS37: 自己資金 | AT37: =AT34-AT36 -> 0 | AU37: 自己資金 | AW37: 自己資金 | AX37: =AX34-AX36 -> 0 | AY37: 自己資金 | BA37: 自己資金 | BB37: =BB34-BB36 -> 0 | BC37: 自己資金 | BE37: 自己資金 | BF37: =BF34-BF36 -> 0 | BG37: 自己資金 | BH37: =BH34-BH36 -> 0 | BI37: 自己資金 | BJ37: =BJ34-BJ36 -> 0 | BK37: 自己資金 | BL37: =BL34-BL36 -> 0 | BM37: 自己資金 | BN37: =BN34-BN36 -> 0 | BO37: 自己資金 | BP37: =BP34-BP36 -> 0 | BQ37: 自己資金 | BR37: =BR34-BR36 -> 0 | BS37: 自己資金 | BT37: =BT34-BT36 -> 0 | BU37: 自己資金 | BV37: =BV34-BV36 -> 0 | BW37: 自己資金 | BX37: =BX34-BX36 -> 0 | BY37: 自己資金 | BZ37: =BZ34-BZ36 -> 0 | CA37: 自己資金 | CB37: =CB34-CB36 -> 0 | CC37: 自己資金 | CD37: =CD34-CD36 -> 0 | CE37: 自己資金 | CF37: =CF34-CF36 -> 0 | CG37: 自己資金 | CH37: =CH34-CH36 -> 0 | CI37: 自己資金 | CJ37: =CJ34-CJ36 -> 0 | CK37: 自己資金 | CL37: =CL34-CL36 -> 0 | CM37: 自己資金 | CN37: =CN34-CN36 -> 0 | CO37: 自己資金 | CP37: =CP34-CP36 -> 0 | CQ37: 自己資金 | CR37: =CR34-CR36 -> 0 | CS37: 自己資金 | CT37: =CT34-CT36 -> 0 | CU37: 自己資金 | CV37: =CV34-CV36 -> 0 | CW37: =CW34-CW36 -> 0 | CX37: =CX34-CX36 -> 0 | CY37: 自己資金 | CZ37: =CZ34-CZ36 -> 0 | DA37: =DA34-DA36 -> 0 | DB37: =DB34-DB36 -> 0 | DC37: 自己資金 | DD37: =DD34-DD36 -> 0 | DE37: =DE34-DE36 -> 0 | DF37: =DF34-DF36 -> 0
C39: 残債 | D39: =資金調達!$E16 -> 0 | E39: 残債 | F39: =資金調達!$E16 -> 0 | G39: 残債 | H39: =資金調達!$E16 -> 0 | I39: 残債 | J39: =資金調達!$E16 -> 0 | K39: 残債 | L39: =資金調達!$E16 -> 0 | M39: 残債 | N39: =資金調達!$E16 -> 0 | O39: 残債 | P39: =資金調達!$E16 -> 0 | Q39: 残債 | R39: =資金調達!$E16 -> 0 | S39: 残債 | T39: =資金調達!$E16 -> 0 | AN39: =資金調達!$E16 -> 0 | AO39: 残債 | AP39: =資金調達!$E16 -> 0 | AQ39: 残債 | AR39: =資金調達!$E16 -> 0 | AS39: 残債 | AT39: =資金調達!$E16 -> 0 | AU39: 残債 | AW39: 残債 | AX39: =資金調達!$E16 -> 0 | AY39: 残債 | BA39: 残債 | BB39: =資金調達!$E16 -> 0 | BC39: 残債 | BE39: 残債 | BF39: =資金調達!$E16 -> 0 | BG39: 残債 | BH39: =資金調達!$E16 -> 0 | BI39: 残債 | BJ39: =資金調達!$E16 -> 0 | BK39: 残債 | BL39: =資金調達!$E16 -> 0 | BM39: 残債 | BN39: =資金調達!$E16 -> 0 | BO39: 残債 | BP39: =資金調達!$E16 -> 0 | BQ39: 残債 | BR39: =資金調達!$E16 -> 0 | BS39: 残債 | BT39: =資金調達!$E16 -> 0 | BU39: 残債 | BV39: =資金調達!$E16 -> 0 | BW39: 残債 | BX39: =資金調達!$E16 -> 0 | BY39: 残債 | BZ39: =資金調達!$E16 -> 0 | CA39: 残債 | CB39: =資金調達!$E16 -> 0 | CC39: 残債 | CD39: =資金調達!$E16 -> 0 | CE39: 残債 | CF39: =資金調達!$E16 -> 0 | CG39: 残債 | CH39: =資金調達!$E16 -> 0 | CI39: 残債 | CJ39: =資金調達!$E16 -> 0 | CK39: 残債 | CL39: =資金調達!$E16 -> 0 | CM39: 残債 | CN39: =資金調達!$E16 -> 0 | CO39: 残債 | CP39: =資金調達!$E16 -> 0 | CQ39: 残債 | CR39: =資金調達!$E16 -> 0 | CS39: 残債 | CT39: =資金調達!$E16 -> 0 | CU39: 残債 | CV39: =資金調達!$E16 -> 0 | CW39: =資金調達!$E16 -> 0 | CX39: =資金調達!$E16 -> 0 | CY39: 残債 | CZ39: =資金調達!$E16 -> 0 | DA39: =資金調達!$E16 -> 0 | DB39: =資金調達!$E16 -> 0 | DC39: 残債 | DD39: =資金調達!$E16 -> 0 | DE39: =資金調達!$E16 -> 0 | DF39: =資金調達!$E16 -> 0
C40: 融資関係手数料 | D40: =IF(AND(D25=0,D36>0),D11*諸費用!$Q28+諸費用!$S28/10000,0) -> 0 | E40: 融資関係手数料 | F40: =IF(AND(F25=0,F36>0),F11*諸費用!$Q29+諸費用!$S29/10000,0) -> 0 | G40: 融資関係手数料 | H40: =IF(AND(H25=0,H36>0),諸費用!$R30+諸費用!$S30/10000,0) -> 0 | I40: 融資関係手数料 | J40: =IF(AND(J25=0,J36>0),諸費用!$S31/10000,0) -> 0 | K40: 融資関係手数料 | L40: =IF(L36=0,0,L36*諸費用!$Q27+IF(資金調達!$G6=5,2,1)*諸費用!$V27/10000)+IF(AND(L25=0,L36>0),諸費用!$S27/10000,0) -> 0 | M40: 融資関係手数料 | N40: =IF(N36=0,0,N36*諸費用!$Q37)+IF(AND(N25=0,N36>0),諸費用!$S37/10000,0) -> 0 | O40: 融資関係手数料 | P40: =IF(P36=0,0,P36*諸費用!$Q21)+IF(AND(P25=0,P36>0),諸費用!$S21/10000,0) -> 0 | Q40: 融資関係手数料 | R40: =IF(R36=0,0,R36*諸費用!$Q22)+IF(AND(R25=0,R36>0),諸費用!$S22/10000,0) -> 0 | S40: 融資関係手数料 | T40: =IF(T36=0,0,T36*諸費用!$Q23)+IF(AND(T25=0,T36>0),諸費用!$S23/10000,0) -> 0 | AN40: =IF(AN36=0,0,IF(資金調達!$G6=5,2,1)*諸費用!$V92/10000)+IF(AND(AN25=0,AN36>0),AN11*諸費用!$Q92+諸費用!$S92/10000,0) -> 0 | AO40: 融資関係手数料 | AP40: =IF(AP36=0,0,+IF(資金調達!$G6=5,2,1)*諸費用!$V93/10000)+IF(AND(AP25=0,AP36>0),諸費用!$S93/10000,0) -> 0 | AQ40: 融資関係手数料 | AR40: =IF(AR36=0,0,AR36*諸費用!$Q94+IF(資金調達!$G6=5,2,1)*諸費用!$V94/10000)+IF(AND(AR25=0,AR36>0),諸費用!$S94/10000,0) -> 0 | AS40: 融資関係手数料 | AT40: =IF(AND(AT25=0,AT36>0),AT11*諸費用!$Q95+諸費用!$S95/10000,0) -> 0 | AU40: 融資関係手数料 | AW40: 融資関係手数料 | AX40: =IF(AND(AX25=0,AX36>0),諸費用!$S97/10000,0) -> 0 | AY40: 融資関係手数料 | BA40: 融資関係手数料 | BB40: =IF(AND(BB25=0,BB36>0),BB11*諸費用!$Q99+諸費用!$S99/10000,0) -> 0 | BC40: 融資関係手数料 | BE40: 融資関係手数料 | BF40: =IF(BF36=0,0,IF(AND(BF25=0,BF36>0),BF11*諸費用!$Q82+諸費用!$S82/10000,0)) -> 0 | BG40: 融資関係手数料 | BH40: =IF(BH36=0,0,IF(AND(BH25=0,BH36>0),BH11*諸費用!$R83/10000+諸費用!$S83/10000,0)) -> 0 | BI40: 融資関係手数料 | BJ40: =IF(BJ36=0,0,IF(AND(BJ25=0,BJ36>0),BJ11*諸費用!$Q84+諸費用!$S84/10000,0)) -> 0 | BK40: 融資関係手数料 | BL40: =IF(BL36=0,0,IF(AND(BL25=0,BL36>0),BL11*諸費用!$Q85+諸費用!$S85/10000,0)) -> 0 | BM40: 融資関係手数料 | BN40: =IF(BN36=0,0,諸費用!$R86/10000+IF(AND(BN25=0,BN36>0),諸費用!$S86/10000,0)) -> 0 | BO40: 融資関係手数料 | BP40: =IF(AND(BP25=0,BP36>0),BP11*諸費用!$Q101+諸費用!$S101/10000,0) -> 0 | BQ40: 融資関係手数料 | BR40: =IF(AND(BR25=0,BR36>0),(諸費用!$R102+諸費用!$S102)/10000,0) -> 0 | BS40: 融資関係手数料 | BT40: =IF(BT36=0,0,BT36*諸費用!$Q4+IF(資金調達!$G6=5,2,1)*諸費用!$V4/10000)+IF(AND(BT25=0,BT36>0),諸費用!$S4/10000,0) -> 0 | BU40: 融資関係手数料 | BV40: =IF(BV36=0,0,BV36*諸費用!$Q5+IF(資金調達!$G6=5,2,1)*諸費用!$V5/10000)+IF(AND(BV25=0,BV36>0),諸費用!$S5/10000,0) -> 0 | BW40: 融資関係手数料 | BX40: =IF(BX36=0,0,BX36*諸費用!$Q6+IF(資金調達!$G6=5,2,1)*諸費用!$V6/10000)+IF(AND(BX25=0,BX36>0),諸費用!$S6/10000,0) -> 0 | BY40: 融資関係手数料 | BZ40: =IF(BZ36=0,0,IF(AND(BZ25=0,BZ36>0),諸費用!$S7/10000,0)) -> 0 | CA40: 融資関係手数料 | CB40: =IF(AND(CB25=0,CB36>0),諸費用!$AD48/10000,0) -> 0 | CC40: 融資関係手数料 | CD40: =IF(AND(CD25=0,CD36>0),諸費用!$AD49/10000,0) -> 0 | CE40: 融資関係手数料 | CF40: =IF(AND(CF25=0,CF36>0),諸費用!$AD89/10000,0) -> 0 | CG40: 融資関係手数料 | CH40: =IF(AND(CH25=0,CH36>0),諸費用!$AD90/10000,0) -> 0 | CI40: 融資関係手数料 | CJ40: =IF(AND(CJ25=0,CJ36>0),諸費用!$AD90/10000,0) -> 0 | CK40: 融資関係手数料 | CL40: =IF(CL36=0,0,CL36*諸費用!$Q37)+IF(AND(CL25=0,CL36>0),諸費用!$S37/10000,0) -> 0 | CM40: 融資関係手数料 | CN40: =IF(AND(CN25=0,CN36>0),諸費用!$AD105/10000,0) -> 0 | CO40: 融資関係手数料 | CP40: =IF(AND(CP25=0,CP36>0),諸費用!$AD106/10000,0) -> 0 | CQ40: 融資関係手数料 | CR40: =IF(AND(CR25=0,CR36>0),CR36*諸費用!$Q108+IF(資金調達!$G6=5,2,1)*諸費用!$V108/10000+諸費用!$S108/10000,0) -> 0 | CS40: 融資関係手数料 | CT40: =IF(AND(CT25=0,CT36>0),IF(資金調達!$G6=5,2,1)*諸費用!$V109/10000+諸費用!$S109/10000,0) -> 0 | CU40: 融資関係手数料 | CV40: =IF(AND(CV25=0,CV36>0),諸費用!$AD106/10000,0) -> 0 | CW40: =IF(AND(CW25=0,CW36>0),諸費用!$AD106/10000,0) -> 0 | CX40: =IF(AND(CX25=0,CX36>0),諸費用!$AD106/10000,0) -> 0 | CY40: 融資関係手数料 | CZ40: =IF(AND(CZ25=0,CZ36>0),諸費用!$AD106/10000,0) -> 0 | DA40: =IF(AND(DA25=0,DA36>0),諸費用!$AD106/10000,0) -> 0 | DB40: =IF(AND(DB25=0,DB36>0),諸費用!$AD106/10000,0) -> 0 | DC40: 融資関係手数料 | DD40: =IF(AND(DD25=0,DD36>0),諸費用!$AD106/10000,0) -> 0 | DE40: =IF(AND(DE25=0,DE36>0),諸費用!$AD106/10000,0) -> 0 | DF40: =IF(AND(DF25=0,DF36>0),諸費用!$AD106/10000,0) -> 0
C41: 収入印紙（融資契約） | D41: =IF(D36>0,IF(資金調達!$G6=5,2,1)*諸費用!$V28/10000,0) -> 0 | E41: 収入印紙 | F41: =IF(F36>0,IF(資金調達!$G6=5,2,1)*諸費用!$V29/10000,0) -> 0 | G41: 収入印紙 | H41: =IF(H36>0,IF(資金調達!$G6=5,2,1)*諸費用!$V30/10000,0) -> 0 | I41: 収入印紙 | J41: =IF(J36>0,IF(資金調達!$G6=5,2,1)*諸費用!$V31/10000,0) -> 0 | K41: 収入印紙 | L41: =IF(AND(L25=0,L36>0),VLOOKUP(L36*10000,table!$B3:$D11,2,TRUE)/10000,0) -> 0 | M41: 収入印紙 | N41: =IF(N36>0,IF(資金調達!$G6=5,2,1)*諸費用!$V37/10000,0) -> 0 | O41: 収入印紙 | P41: =IF(P36>0,IF(資金調達!$G6=5,2,1)*諸費用!$V21/10000,0) -> 0 | Q41: 収入印紙 | R41: =IF(R36>0,IF(資金調達!$G6=5,2,1)*諸費用!$V22/10000,0) -> 0 | S41: 収入印紙 | T41: =IF(T36>0,IF(資金調達!$G6=5,2,1)*諸費用!$V23/10000,0) -> 0 | AN41: =IF(AND(AN25=0,AN36>0),諸費用!V92/10000,0) -> 0 | AO41: 収入印紙 | AP41: 0 | AQ41: 収入印紙 | AR41: 0 | AS41: 収入印紙 | AT41: =IF(AT36>0,VLOOKUP(AT36*10000,table!B3:D11,2,TRUE)/10000,0) -> 0 | AU41: 収入印紙 | AW41: 収入印紙 | AX41: =IF(AX36>0,VLOOKUP(AX36*10000,table!B3:D11,2,TRUE)/10000,0) -> 0 | AY41: 収入印紙 | BA41: 収入印紙 | BB41: =IF(BB36>0,VLOOKUP(BB36*10000,table!B3:D11,2,TRUE)/10000,0) -> 0 | BC41: 収入印紙 | BE41: 収入印紙 | BF41: =IF(BF36>0,IF(資金調達!$G6=5,2,1)*諸費用!$V37/10000,0) -> 0 | BG41: 収入印紙 | BH41: =IF(BH36>0,IF(資金調達!$G6=5,2,1)*諸費用!$V37/10000,0) -> 0 | BI41: 収入印紙 | BJ41: =IF(BJ36>0,IF(資金調達!$G6=5,2,1)*諸費用!$V37/10000,0) -> 0 | BK41: 収入印紙 | BL41: =IF(BL36>0,IF(資金調達!$G6=5,2,1)*諸費用!$V37/10000,0) -> 0 | BM41: 収入印紙 | BN41: =IF(AND(BN25=0,BN36>0),VLOOKUP(BN36*10000,table!$B3:$D11,2,TRUE)/10000,0) -> 0 | BO41: 収入印紙 | BP41: =IF(BP36>0,IF(資金調達!$G6=5,2,1)*諸費用!$V101/10000,0) -> 0 | BQ41: 収入印紙 | BR41: =IF(BR36>0,IF(資金調達!$G6=5,2,1)*諸費用!$V102/10000,0) -> 0 | BS41: 収入印紙 | BT41: =IF(AND(BT25=0,BT36>0),VLOOKUP(BT36*10000,table!$B3:$D11,2,TRUE)/10000,0) -> 0 | BU41: 収入印紙 | BV41: =IF(AND(BV25=0,BV36>0),VLOOKUP(BV36*10000,table!$B3:$D11,2,TRUE)/10000,0) -> 0 | BW41: 収入印紙 | BX41: =IF(AND(BX25=0,BX36>0),VLOOKUP(BX36*10000,table!$B3:$D11,2,TRUE)/10000,0) -> 0 | BY41: 収入印紙 | BZ41: =IF(AND(BZ25=0,BZ36>0),VLOOKUP(BZ36*10000,table!$B3:$D11,2,TRUE)/10000,0) -> 0 | CA41: 収入印紙 | CB41: =IF(AND(CB25=0,CB36>0),諸費用!$AF48/10000,0) -> 0 | CC41: 収入印紙 | CD41: =IF(AND(CD25=0,CD36>0),諸費用!$AF49/10000,0) -> 0 | CE41: 収入印紙 | CF41: =IF(AND(CF25=0,CF36>0),諸費用!$AF89/10000,0) -> 0 | CG41: 収入印紙 | CH41: =IF(AND(CH25=0,CH36>0),諸費用!$AF90/10000,0) -> 0 | CI41: 収入印紙 | CJ41: =IF(AND(CJ25=0,CJ36>0),諸費用!$AF90/10000,0) -> 0 | CK41: 収入印紙 | CL41: =IF(CL36>0,IF(資金調達!$G6=5,2,1)*諸費用!$V37/10000,0) -> 0 | CM41: 収入印紙 | CN41: =IF(AND(CN25=0,CN36>0),諸費用!$AF105/10000,0) -> 0 | CO41: 収入印紙 | CP41: =IF(AND(CP25=0,CP36>0),諸費用!$AF106/10000,0) -> 0 | CQ41: 収入印紙 | CR41: =IF(AND(CR25=0,CR36>0),VLOOKUP(CR36*10000,table!$B3:$D11,2,TRUE)/10000,0) -> 0 | CS41: 収入印紙 | CT41: =IF(AND(CT25=0,CT36>0),VLOOKUP(CT36*10000,table!$B3:$D11,2,TRUE)/10000,0) -> 0 | CU41: 収入印紙 | CV41: =IF(AND(CV25=0,CV36>0),諸費用!$AF106/10000,0) -> 0 | CW41: =IF(AND(CW25=0,CW36>0),諸費用!$AF106/10000,0) -> 0 | CX41: =IF(AND(CX25=0,CX36>0),諸費用!$AF106/10000,0) -> 0 | CY41: 収入印紙 | CZ41: =IF(AND(CZ25=0,CZ36>0),諸費用!$AF106/10000,0) -> 0 | DA41: =IF(AND(DA25=0,DA36>0),諸費用!$AF106/10000,0) -> 0 | DB41: =IF(AND(DB25=0,DB36>0),諸費用!$AF106/10000,0) -> 0 | DC41: 収入印紙 | DD41: =IF(AND(DD25=0,DD36>0),諸費用!$AF106/10000,0) -> 0 | DE41: =IF(AND(DE25=0,DE36>0),諸費用!$AF106/10000,0) -> 0 | DF41: =IF(AND(DF25=0,DF36>0),諸費用!$AF106/10000,0) -> 0
C42: 登記関係費用 | D42: =IF(AND(D25=0,D36>0),D11*0.4%+12,0) -> 0 | E42: 登記関係費用 | F42: =IF(AND(F25=0,F36>0),F11*0.4%+12,0) -> 0 | G42: 登記関係費用 | H42: =IF(AND(H25=0,H36>0),H11*0.4%+12,0) -> 0 | I42: 登記関係費用 | J42: =IF(AND(J25=0,J36>0),J11*0.4%+12,0) -> 0 | K42: 登記関係費用 | L42: =IF(AND(L25=0,L36>0),L39*0.4%+12,0) -> 0 | M42: 登記関係費用 | N42: =IF(AND(N25=0,N36>0),N11*0.4%+12,0) -> 0 | O42: 登記関係費用 | P42: =IF(AND(P25=0,P36>0),P11*0.4%+12,0) -> 0 | Q42: 登記関係費用 | R42: =IF(AND(R25=0,R36>0),R11*0.4%+12,0) -> 0 | S42: 登記関係費用 | T42: =IF(AND(T25=0,T36>0),T11*0.4%+12,0) -> 0 | AN42: =IF(AN18=0,0,SUM(予算計画!$F112:$F113)+AN11*0.4%) -> 0 | AO42: 登記関係費用 | AP42: =IF(AP18=0,0,SUM(予算計画!$F112:$F113)+AP11*0.4%) -> 0 | AQ42: 登記関係費用 | AR42: =IF(AR18=0,0,SUM(予算計画!$F112:$F113)+AR11*0.4%) -> 0 | AS42: 登記関係費用 | AT42: =IF(AND(AT25=0,AT36>0),AT11*0.4%+12,0) -> 0 | AU42: 登記関係費用 | AW42: 登記関係費用 | AX42: =IF(AND(AX25=0,AX36>0),AX11*0.4%+12,0) -> 0 | AY42: 登記関係費用 | BA42: 登記関係費用 | BB42: =IF(AND(BB25=0,BB36>0),BB11*0.4%+12,0) -> 0 | BC42: 登記関係費用 | BE42: 登記関係費用 | BF42: =IF(AND(BF25=0,BF36>0),BF11*0.4%,0) -> 0 | BG42: 登記関係費用 | BH42: =IF(AND(BH25=0,BH36>0),BH11*0.4%,0) -> 0 | BI42: 登記関係費用 | BJ42: =IF(AND(BJ25=0,BJ36>0),BJ11*0.4%,0) -> 0 | BK42: 登記関係費用 | BL42: =IF(AND(BL25=0,BL36>0),BL11*0.4%,0) -> 0 | BM42: 登記関係費用 | BN42: =IF(BN18=0,0,SUM(予算計画!$F122:$F124)) -> 0 | BO42: 登記関係費用 | BP42: =IF(AND(BP25=0,BP36>0),BP11*0.4%+12,0) -> 0 | BQ42: 登記関係費用 | BR42: =IF(AND(BR25=0,BR36>0),BR11*0.4%+12,0) -> 0 | BS42: 登記関係費用 | BT42: =IF(AND(BT25=0,BT36>0),BT39*0.4%+12,0) -> 0 | BU42: 登記関係費用 | BV42: =IF(AND(BV25=0,BV36>0),BV39*0.4%+12,0) -> 0 | BW42: 登記関係費用 | BX42: =IF(AND(BX25=0,BX36>0),BX39*0.4%+12,0) -> 0 | BY42: 登記関係費用 | BZ42: =IF(AND(BZ25=0,BZ36>0),BZ39*0.4%+12,0) -> 0 | CK42: 登記関係費用 | CL42: =IF(AND(CL25=0,CL36>0),CL11*0.4%,0) -> 0 | CQ42: 登記関係費用 | CR42: =IF(AND(CR25=0,CR36>0),CR39*0.4%+12,0) -> 0 | CS42: 登記関係費用 | CT42: =IF(AND(CT25=0,CT36>0),CT39*0.4%+12,0) -> 0
A44: 工事請負契約時 | B44: 契約時 | C44: 支払合計 | D44: =SUM(D49:D53) -> 0 | E44: 支払合計 | F44: =SUM(F49:F53) -> 0 | G44: 支払合計 | H44: =SUM(H49:H53) -> 0 | I44: 支払合計 | J44: =SUM(J49:J53) -> 0 | K44: 支払合計 | L44: =SUM(L49:L53) -> 0 | M44: 支払合計 | N44: =SUM(N49:N53) -> 0 | O44: 支払合計 | P44: =SUM(P49:P53) -> 0 | Q44: 支払合計 | R44: =SUM(R49:R53) -> 0 | S44: 支払合計 | T44: =SUM(T49:T53) -> 0 | U44: 支払合計 | V44: =SUM(V49:V53) -> 0 | W44: 支払合計 | X44: =SUM(X49:X53) -> 0 | Y44: 支払合計 | Z44: =SUM(Z49:Z53) -> 0 | AA44: 支払合計 | AB44: =SUM(AB49:AB53) -> 0 | AC44: 支払合計 | AD44: =SUM(AD49:AD53) -> 0 | AE44: 支払合計 | AF44: =SUM(AF49:AF53) -> 0 | AG44: 支払合計 | AH44: =SUM(AH49:AH53) -> 0 | AI44: 支払合計 | AJ44: =SUM(AJ49:AJ53) -> 0 | AK44: 支払合計 | AL44: =SUM(AL49:AL53) -> 0 | AM44: 支払合計 | AN44: =SUM(AN49:AN53) -> 0 | AO44: 支払合計 | AP44: =SUM(AP49:AP53) -> 0 | AQ44: 支払合計 | AR44: =SUM(AR49:AR53) -> 0 | AS44: 支払合計 | AT44: =SUM(AT49:AT52) -> 0 | AU44: 支払合計 | AV44: =SUM(AV49:AV52) -> 0 | AW44: 支払合計 | AX44: =SUM(AX49:AX52) -> 0 | AY44: 支払合計 | AZ44: =SUM(AZ49:AZ52) -> 0 | BA44: 支払合計 | BB44: =SUM(BB49:BB52) -> 0 | BC44: 支払合計 | BD44: =SUM(BD49:BD52) -> 0 | BE44: 支払合計 | BF44: =SUM(BF49:BF53) -> 0 | BG44: 支払合計 | BH44: =SUM(BH49:BH53) -> 0 | BI44: 支払合計 | BJ44: =SUM(BJ49:BJ53) -> 0 | BK44: 支払合計 | BL44: =SUM(BL49:BL53) -> 0 | BM44: 支払合計 | BN44: =SUM(BN49:BN53) -> 0 | BO44: 支払合計 | BP44: =SUM(BP49:BP53) -> 0 | BQ44: 支払合計 | BR44: =SUM(BR49:BR53) -> 0 | BS44: 支払合計 | BT44: =SUM(BT49:BT53) -> 0 | BU44: 支払合計 | BV44: =SUM(BV49:BV53) -> 0 | BW44: 支払合計 | BX44: =SUM(BX49:BX53) -> 0 | BY44: 支払合計 | BZ44: =SUM(BZ49:BZ53) -> 0 | CA44: 支払合計 | CB44: =SUM(CB49:CB53) -> 0 | CC44: 支払合計 | CD44: =SUM(CD49:CD53) -> 0 | CE44: 支払合計 | CF44: =SUM(CF49:CF53) -> 0 | CG44: 支払合計 | CH44: =SUM(CH49:CH53) -> 0 | CI44: 支払合計 | CJ44: =SUM(CJ49:CJ53) -> 0 | CK44: 支払合計 | CL44: =SUM(CL49:CL53) -> 0 | CM44: 支払合計 | CN44: =SUM(CN49:CN53) -> 0 | CO44: 支払合計 | CP44: =SUM(CP49:CP53) -> 0 | CQ44: 支払合計 | CR44: =SUM(CR49:CR53) -> 0 | CS44: 支払合計 | CT44: =SUM(CT49:CT53) -> 0 | CU44: 支払合計 | CV44: =SUM(CV49:CV53) -> 0 | CW44: =SUM(CW49:CW53) -> 0 | CX44: =SUM(CX49:CX53) -> 0 | CY44: 支払合計 | CZ44: =SUM(CZ49:CZ53) -> 0 | DA44: =SUM(DA49:DA53) -> 0 | DB44: =SUM(DB49:DB53) -> 0 | DC44: 支払合計 | DD44: =SUM(DD49:DD53) -> 0 | DE44: =SUM(DE49:DE53) -> 0 | DF44: =SUM(DF49:DF53) -> 0
C46: 住宅ローン | D46: =資金調達!$M13 -> 0 | E46: 住宅ローン | F46: =資金調達!$M13 -> 0 | G46: 住宅ローン | H46: =資金調達!$M13 -> 0 | I46: 住宅ローン | J46: =資金調達!$M13 -> 0 | K46: 住宅ローン | L46: 0 | BB46: =資金調達!$M13 -> 0
C47: 自己資金 | D47: =D44-D46 -> 0 | E47: 自己資金 | F47: =F44-F46 -> 0 | G47: 自己資金 | H47: =H44-H46 -> 0 | I47: 自己資金 | J47: =J44-J46 -> 0 | K47: 自己資金 | L47: =L44-L46 -> 0 | M47: 自己資金 | N47: =N44-N46 -> 0 | O47: 自己資金 | P47: =P44-P46 -> 0 | Q47: 自己資金 | R47: =R44-R46 -> 0 | S47: 自己資金 | T47: =T44-T46 -> 0 | U47: 自己資金 | V47: =V44-V46 -> 0 | W47: 自己資金 | X47: =X44-X46 -> 0 | Y47: 自己資金 | Z47: =Z44-Z46 -> 0 | AA47: 自己資金 | AB47: =AB44-AB46 -> 0 | AC47: 自己資金 | AD47: =AD44-AD46 -> 0 | AE47: 自己資金 | AF47: =AF44-AF46 -> 0 | AG47: 自己資金 | AH47: =AH44-AH46 -> 0 | AI47: 自己資金 | AJ47: =AJ44-AJ46 -> 0 | AK47: 自己資金 | AL47: =AL44-AL46 -> 0 | AM47: 自己資金 | AN47: =AN44-AN46 -> 0 | AO47: 自己資金 | AP47: =AP44-AP46 -> 0 | AQ47: 自己資金 | AR47: =AR44-AR46 -> 0 | AS47: 自己資金 | AT47: =AT44-AT46 -> 0 | AU47: 自己資金 | AV47: =AV44-AV46 -> 0 | AW47: 自己資金 | AX47: =AX44-AX46 -> 0 | AY47: 自己資金 | AZ47: =AZ44-AZ46 -> 0 | BA47: 自己資金 | BB47: =BB44-BB46 -> 0 | BC47: 自己資金 | BD47: =BD44-BD46 -> 0 | BE47: 自己資金 | BF47: =BF44-BF46 -> 0 | BG47: 自己資金 | BH47: =BH44-BH46 -> 0 | BI47: 自己資金 | BJ47: =BJ44-BJ46 -> 0 | BK47: 自己資金 | BL47: =BL44-BL46 -> 0 | BM47: 自己資金 | BN47: =BN44-BN46 -> 0 | BO47: 自己資金 | BP47: =BP44-BP46 -> 0 | BQ47: 自己資金 | BR47: =BR44-BR46 -> 0 | BS47: 自己資金 | BT47: =BT44-BT46 -> 0 | BU47: 自己資金 | BV47: =BV44-BV46 -> 0 | BW47: 自己資金 | BX47: =BX44-BX46 -> 0 | BY47: 自己資金 | BZ47: =BZ44-BZ46 -> 0 | CA47: 自己資金 | CB47: =CB44-CB46 -> 0 | CC47: 自己資金 | CD47: =CD44-CD46 -> 0 | CE47: 自己資金 | CF47: =CF44-CF46 -> 0 | CG47: 自己資金 | CH47: =CH44-CH46 -> 0 | CI47: 自己資金 | CJ47: =CJ44-CJ46 -> 0 | CK47: 自己資金 | CL47: =CL44-CL46 -> 0 | CM47: 自己資金 | CN47: =CN44-CN46 -> 0 | CO47: 自己資金 | CP47: =CP44-CP46 -> 0 | CQ47: 自己資金 | CR47: =CR44-CR46 -> 0 | CS47: 自己資金 | CT47: =CT44-CT46 -> 0 | CU47: 自己資金 | CV47: =CV44-CV46 -> 0 | CW47: =CW44-CW46 -> 0 | CX47: =CX44-CX46 -> 0 | CY47: 自己資金 | CZ47: =CZ44-CZ46 -> 0 | DA47: =DA44-DA46 -> 0 | DB47: =DB44-DB46 -> 0 | DC47: 自己資金 | DD47: =DD44-DD46 -> 0 | DE47: =DE44-DE46 -> 0 | DF47: =DF44-DF46 -> 0
C49: 契約金 | D49: =資金調達!$L13 -> 0 | E49: 契約金 | F49: =資金調達!$L13 -> 0 | G49: 契約金 | H49: =資金調達!$L13 -> 0 | I49: 契約金 | J49: =資金調達!$L13 -> 0 | K49: 契約金 | L49: =資金調達!$L13 -> 0 | M49: 契約金 | N49: =資金調達!$L13 -> 0 | O49: 契約金 | P49: =資金調達!$L13 -> 0 | Q49: 契約金 | R49: =資金調達!$L13 -> 0 | S49: 契約金 | T49: =資金調達!$L13 -> 0 | U49: 契約金 | V49: =資金調達!$L13 -> 0 | W49: 契約金 | X49: =資金調達!$L13 -> 0 | Y49: 契約金 | Z49: =資金調達!$L13 -> 0 | AA49: 契約金 | AB49: =資金調達!$L13 -> 0 | AC49: 契約金 | AD49: =資金調達!$L13 -> 0 | AE49: 契約金 | AF49: =資金調達!$L13 -> 0 | AG49: 契約金 | AH49: =資金調達!$L13 -> 0 | AI49: 契約金 | AJ49: =資金調達!$L13 -> 0 | AK49: 契約金 | AL49: =資金調達!$L13 -> 0 | AM49: 契約金 | AN49: =資金調達!$L13 -> 0 | AO49: 契約金 | AP49: =資金調達!$L13 -> 0 | AQ49: 契約金 | AR49: =資金調達!$L13 -> 0 | AS49: 契約金 | AT49: =資金調達!$L13 -> 0 | AU49: 契約金 | AV49: =資金調達!$L13 -> 0 | AW49: 契約金 | AX49: =資金調達!$L13 -> 0 | AY49: 契約金 | AZ49: =資金調達!$L13 -> 0 | BA49: 契約金 | BB49: =資金調達!$L13 -> 0 | BC49: 契約金 | BD49: =資金調達!$L13 -> 0 | BE49: 契約金 | BF49: =資金調達!$L13 -> 0 | BG49: 契約金 | BH49: =資金調達!$L13 -> 0 | BI49: 契約金 | BJ49: =資金調達!$L13 -> 0 | BK49: 契約金 | BL49: =資金調達!$L13 -> 0 | BM49: 契約金 | BN49: =資金調達!$L13 -> 0 | BO49: 契約金 | BP49: =資金調達!$L13 -> 0 | BQ49: 契約金 | BR49: =資金調達!$L13 -> 0 | BS49: 契約金 | BT49: =資金調達!$L13 -> 0 | BU49: 契約金 | BV49: =資金調達!$L13 -> 0 | BW49: 契約金 | BX49: =資金調達!$L13 -> 0 | BY49: 契約金 | BZ49: =資金調達!$L13 -> 0 | CA49: 契約金 | CB49: =資金調達!$L13 -> 0 | CC49: 契約金 | CD49: =資金調達!$L13 -> 0 | CE49: 契約金 | CF49: =資金調達!$L13 -> 0 | CG49: 契約金 | CH49: =資金調達!$L13 -> 0 | CI49: 契約金 | CJ49: =資金調達!$L13 -> 0 | CK49: 契約金 | CL49: =資金調達!$L13 -> 0 | CM49: 契約金 | CN49: =資金調達!$L13 -> 0 | CO49: 契約金 | CP49: =資金調達!$L13 -> 0 | CQ49: 契約金 | CR49: =資金調達!$L13 -> 0 | CS49: 契約金 | CT49: =資金調達!$L13 -> 0 | CU49: 契約金 | CV49: =資金調達!$L13 -> 0 | CW49: =資金調達!$L13 -> 0 | CX49: =資金調達!$L13 -> 0 | CY49: 契約金 | CZ49: =資金調達!$L13 -> 0 | DA49: =資金調達!$L13 -> 0 | DB49: =資金調達!$L13 -> 0 | DC49: 契約金 | DD49: =資金調達!$L13 -> 0 | DE49: =資金調達!$L13 -> 0 | DF49: =資金調達!$L13 -> 0
C50: 収入印紙（工事契約） | D50: =IFERROR(VLOOKUP(D8*10000,table!$B3:$D11,2,TRUE)/10000,0) -> 0 | E50: 収入印紙 | F50: =IFERROR(VLOOKUP(F8*10000,table!$B3:$D11,2,TRUE)/10000,0) -> 0 | G50: 収入印紙 | H50: =IFERROR(VLOOKUP(H8*10000,table!$B3:$D11,2,TRUE)/10000,0) -> 0 | I50: 収入印紙 | J50: =IFERROR(VLOOKUP(J8*10000,table!$B3:$D11,2,TRUE)/10000,0) -> 0 | K50: 収入印紙 | L50: =IFERROR(VLOOKUP(L8*10000,table!$B3:$D11,2,TRUE)/10000,0) -> 0 | M50: 収入印紙 | N50: =IFERROR(VLOOKUP(N8*10000,table!$B3:$D11,2,TRUE)/10000,0) -> 0 | O50: 収入印紙 | P50: =IFERROR(VLOOKUP(P8*10000,table!$B3:$D11,2,TRUE)/10000,0) -> 0 | Q50: 収入印紙 | R50: =IFERROR(VLOOKUP(R8*10000,table!$B3:$D11,2,TRUE)/10000,0) -> 0 | S50: 収入印紙 | T50: =IFERROR(VLOOKUP(T8*10000,table!$B3:$D11,2,TRUE)/10000,0) -> 0 | U50: 収入印紙 | V50: =IFERROR(VLOOKUP(V8*10000,table!$B3:$D11,2,TRUE)/10000,0) -> 0 | W50: 収入印紙 | X50: =IFERROR(VLOOKUP(X8*10000,table!$B3:$D11,2,TRUE)/10000,0) -> 0 | Y50: 収入印紙 | Z50: =IFERROR(VLOOKUP(Z8*10000,table!$B3:$D11,2,TRUE)/10000,0) -> 0 | AA50: 収入印紙 | AB50: =IFERROR(VLOOKUP(AB8*10000,table!$B3:$D11,2,TRUE)/10000,0) -> 0 | AC50: 収入印紙 | AD50: =IFERROR(VLOOKUP(AD8*10000,table!$B3:$D11,2,TRUE)/10000,0) -> 0 | AE50: 収入印紙 | AF50: =IFERROR(VLOOKUP(AF8*10000,table!$B3:$D11,2,TRUE)/10000,0) -> 0 | AG50: 収入印紙 | AH50: =IFERROR(VLOOKUP(AH8*10000,table!$B3:$D11,2,TRUE)/10000,0) -> 0 | AI50: 収入印紙 | AJ50: =IFERROR(VLOOKUP(AJ8*10000,table!$B3:$D11,2,TRUE)/10000,0) -> 0 | AK50: 収入印紙 | AL50: =IFERROR(VLOOKUP(AL8*10000,table!$B3:$D11,2,TRUE)/10000,0) -> 0 | AM50: 収入印紙 | AN50: =IFERROR(VLOOKUP(AN8*10000,table!$B3:$D11,2,TRUE)/10000,0) -> 0 | AO50: 収入印紙 | AP50: =IFERROR(VLOOKUP(AP8*10000,table!$B3:$D11,2,TRUE)/10000,0) -> 0 | AQ50: 収入印紙 | AR50: =IFERROR(VLOOKUP(AR8*10000,table!$B3:$D11,2,TRUE)/10000,0) -> 0 | AS50: 収入印紙 | AU50: 収入印紙 | AV50: =IFERROR(VLOOKUP(AV8*10000,table!$B3:$D11,2,TRUE)/10000,0) -> 0 | AW50: 収入印紙 | AY50: 収入印紙 | AZ50: =IFERROR(VLOOKUP(AZ8*10000,table!$B3:$D11,2,TRUE)/10000,0) -> 0 | BA50: 収入印紙 | BB50: =IFERROR(VLOOKUP(BB46*10000,table!$B3:$D11,2,TRUE)/10000,0) -> 0 | BC50: 収入印紙 | BD50: =IFERROR(VLOOKUP(BD8*10000,table!$B3:$D11,2,TRUE)/10000,0) -> 0 | BE50: 収入印紙 | BF50: =IFERROR(VLOOKUP(BF8*10000,table!$B3:$D11,2,TRUE)/10000,0) -> 0 | BG50: 収入印紙 | BH50: =IFERROR(VLOOKUP(BH8*10000,table!$B3:$D11,2,TRUE)/10000,0) -> 0 | BI50: 収入印紙 | BJ50: =IFERROR(VLOOKUP(BJ8*10000,table!$B3:$D11,2,TRUE)/10000,0) -> 0 | BK50: 収入印紙 | BL50: =IFERROR(VLOOKUP(BL8*10000,table!$B3:$D11,2,TRUE)/10000,0) -> 0 | BM50: 収入印紙 | BN50: =IFERROR(VLOOKUP(BN8*10000,table!$B3:$D11,2,TRUE)/10000,0) -> 0 | BO50: 収入印紙 | BP50: =IFERROR(VLOOKUP(BP8*10000,table!$B3:$D11,2,TRUE)/10000,0) -> 0 | BQ50: 収入印紙 | BR50: =IFERROR(VLOOKUP(BR8*10000,table!$B3:$D11,2,TRUE)/10000,0) -> 0 | BS50: 収入印紙 | BT50: =IFERROR(VLOOKUP(BT8*10000,table!$B3:$D11,2,TRUE)/10000,0) -> 0 | BU50: 収入印紙 | BV50: =IFERROR(VLOOKUP(BV8*10000,table!$B3:$D11,2,TRUE)/10000,0) -> 0 | BW50: 収入印紙 | BX50: =IFERROR(VLOOKUP(BX8*10000,table!$B3:$D11,2,TRUE)/10000,0) -> 0 | BY50: 収入印紙 | BZ50: =IFERROR(VLOOKUP(BZ8*10000,table!$B3:$D11,2,TRUE)/10000,0) -> 0 | CA50: 収入印紙 | CB50: =IFERROR(VLOOKUP(CB8*10000,table!$B3:$D11,2,TRUE)/10000,0) -> 0 | CC50: 収入印紙 | CD50: =IFERROR(VLOOKUP(CD8*10000,table!$B3:$D11,2,TRUE)/10000,0) -> 0 | CE50: 収入印紙 | CF50: =IFERROR(VLOOKUP(CF8*10000,table!$B3:$D11,2,TRUE)/10000,0) -> 0 | CG50: 収入印紙 | CH50: =IFERROR(VLOOKUP(CH8*10000,table!$B3:$D11,2,TRUE)/10000,0) -> 0 | CI50: 収入印紙 | CJ50: =IFERROR(VLOOKUP(CJ8*10000,table!$B3:$D11,2,TRUE)/10000,0) -> 0 | CK50: 収入印紙 | CM50: 収入印紙 | CN50: =IFERROR(VLOOKUP(CN8*10000,table!$B3:$D11,2,TRUE)/10000,0) -> 0 | CO50: 収入印紙 | CP50: =IFERROR(VLOOKUP(CP8*10000,table!$B3:$D11,2,TRUE)/10000,0) -> 0 | CQ50: 収入印紙 | CR50: =IFERROR(VLOOKUP(CR8*10000,table!$B3:$D11,2,TRUE)/10000,0) -> 0 | CS50: 収入印紙 | CT50: =IFERROR(VLOOKUP(CT8*10000,table!$B3:$D11,2,TRUE)/10000,0) -> 0 | CU50: 収入印紙 | CV50: =IFERROR(VLOOKUP(CV8*10000,table!$B3:$D11,2,TRUE)/10000,0) -> 0 | CW50: =IFERROR(VLOOKUP(CW8*10000,table!$B3:$D11,2,TRUE)/10000,0) -> 0 | CX50: =IFERROR(VLOOKUP(CX8*10000,table!$B3:$D11,2,TRUE)/10000,0) -> 0 | CY50: 収入印紙 | CZ50: =IFERROR(VLOOKUP(CZ8*10000,table!$B3:$D11,2,TRUE)/10000,0) -> 0 | DA50: =IFERROR(VLOOKUP(DA8*10000,table!$B3:$D11,2,TRUE)/10000,0) -> 0 | DB50: =IFERROR(VLOOKUP(DB8*10000,table!$B3:$D11,2,TRUE)/10000,0) -> 0 | DC50: 収入印紙 | DD50: =IFERROR(VLOOKUP(DD8*10000,table!$B3:$D11,2,TRUE)/10000,0) -> 0 | DE50: =IFERROR(VLOOKUP(DE8*10000,table!$B3:$D11,2,TRUE)/10000,0) -> 0 | DF50: =IFERROR(VLOOKUP(DF8*10000,table!$B3:$D11,2,TRUE)/10000,0) -> 0
C51: 融資関係手数料 | D51: =IF(AND(D25=0,D36=0,D46>0),D11*諸費用!$Q28+諸費用!$S28/10000,0) -> 0 | E51: 融資関係手数料 | F51: =IF(AND(F25=0,F36=0,F46>0),F11*諸費用!$Q29+IF(資金調達!$G6=5,2,1)*諸費用!$V29/10000+諸費用!$S29/10000,0) -> 0 | G51: 融資関係手数料 | H51: =IF(AND(H25=0,H36=0,H46>0),諸費用!$R30/10000+IF(資金調達!$G6=5,2,1)*諸費用!$V30/10000+諸費用!$S30/10000,0) -> 0 | I51: 融資関係手数料 | J51: =IF(AND(J25=0,J36=0,J46>0),IF(資金調達!$G6=5,2,1)*諸費用!$V31/10000+諸費用!$S31/10000,0) -> 0 | K51: 融資関係手数料 | M51: 融資関係手数料 | O51: 融資関係手数料 | Q51: 融資関係手数料 | S51: 融資関係手数料 | U51: 融資関係手数料 | V51: =IF(AND(V25=0,V36=0,V46>0),諸費用!$AD81/10000,0) -> 0 | W51: 融資関係手数料 | X51: =IF(AND(X25=0,X36=0,X46>0),諸費用!$AD2/10000,0) -> 0 | Y51: 融資関係手数料 | Z51: =IF(AND(Z25=0,Z36=0,Z46>0),諸費用!$AD3/10000,0) -> 0 | AA51: 融資関係手数料 | AB51: =IF(AND(AB25=0,AB36=0,AB46>0),諸費用!$AD51/10000,0) -> 0 | AC51: 融資関係手数料 | AD51: =IF(AD36>0,諸費用!$V13/10000,0) -> 0 | AE51: 融資関係手数料 | AF51: =IF(AF36>0,諸費用!$V13/10000,0) -> 0 | AG51: 融資関係手数料 | AH51: =IF(AND(AH25=0,AH36=0,AH46>0),諸費用!$AD20/10000,0) -> 0 | AI51: 融資関係手数料 | AK51: 融資関係手数料 | AM51: 融資関係手数料 | AO51: 融資関係手数料 | AQ51: 融資関係手数料 | AS51: 融資関係手数料 | AU51: 融資関係手数料 | AV51: =IF(AND(AV25=0,AV36=0,AV46>0),諸費用!$AD96/10000,0) -> 0 | AW51: 融資関係手数料 | AY51: 融資関係手数料 | BA51: 融資関係手数料 | BB51: =IF(AND(BB25=0,BB36=0,BB46>0),BB11*諸費用!$Q99+諸費用!$S99/10000,0) -> 0 | BC51: 融資関係手数料 | BD51: =IF(AND(BD25=0,BD36=0,BD46>0),諸費用!$AD100/10000,0) -> 0 | BE51: 融資関係手数料 | BG51: 融資関係手数料 | BI51: 融資関係手数料 | BK51: 融資関係手数料 | BM51: 融資関係手数料 | BO51: 融資関係手数料 | BQ51: 融資関係手数料 | BS51: 融資関係手数料 | BU51: 融資関係手数料 | BW51: 融資関係手数料 | BY51: 融資関係手数料 | CA51: 融資関係手数料 | CC51: 融資関係手数料 | CD51: 0 | CE51: 融資関係手数料 | CG51: 融資関係手数料 | CI51: 融資関係手数料 | CK51: 融資関係手数料 | CM51: 融資関係手数料 | CN51: 0 | CO51: 融資関係手数料 | CQ51: 融資関係手数料 | CS51: 融資関係手数料 | CU51: 融資関係手数料 | CY51: 融資関係手数料 | DC51: 融資関係手数料
C52: 収入印紙（融資契約） | D52: =IF(D46>0,IF(資金調達!$G6=5,2,1)*諸費用!$V28/10000,0) -> 0 | E52: 収入印紙 | F52: =IF(F46>0,IF(資金調達!$G6=5,2,1)*諸費用!$V29/10000,0) -> 0 | G52: 収入印紙 | H52: =IF(H46>0,IF(資金調達!$G6=5,2,1)*諸費用!$V30/10000,0) -> 0 | I52: 収入印紙 | J52: =IF(J46>0,IF(資金調達!$G6=5,2,1)*諸費用!$V31/10000,0) -> 0 | K52: 収入印紙 | M52: 収入印紙 | O52: 収入印紙 | Q52: 収入印紙 | S52: 収入印紙 | U52: 収入印紙 | V52: =IF(AND(V25=0,V36=0,V46>0),諸費用!$AF81/10000,0) -> 0 | W52: 収入印紙 | X52: =IF(AND(X25=0,X36=0,X46>0),諸費用!$AF2/10000,0) -> 0 | Y52: 収入印紙 | Z52: =IF(AND(Z25=0,Z36=0,Z46>0),諸費用!$AF3/10000,0) -> 0 | AA52: 収入印紙 | AB52: =IF(AND(AB25=0,AB36=0,AB46>0),諸費用!$AF51/10000,0) -> 0 | AC52: 収入印紙 | AD52: =IF(AD36>0,諸費用!$V13/10000,0) -> 0 | AE52: 収入印紙 | AF52: =IF(AF36>0,諸費用!$V13/10000,0) -> 0 | AG52: 収入印紙 | AH52: =IF(AND(AH25=0,AH36=0,AH46>0),諸費用!$AF20/10000,0) -> 0 | AI52: 収入印紙 | AK52: 収入印紙 | AM52: 収入印紙 | AO52: 収入印紙 | AQ52: 収入印紙 | AS52: 収入印紙 | AU52: 収入印紙 | AV52: =IF(AV46=0,0,VLOOKUP(AV46*10000,table!$B3:$D11,2,TRUE)/10000) -> 0 | AW52: 収入印紙 | AY52: 収入印紙 | BA52: 収入印紙 | BB52: =IF(BB46>0,IF(資金調達!$G6=5,2,1)*諸費用!$V99/10000,0) -> 0 | BC52: 収入印紙 | BD52: =IF(BD46=0,0,VLOOKUP(BD46*10000,table!$B3:$D11,2,TRUE)/10000) -> 0 | BE52: 収入印紙 | BG52: 収入印紙 | BI52: 収入印紙 | BK52: 収入印紙 | BM52: 収入印紙 | BO52: 収入印紙 | BQ52: 収入印紙 | BS52: 収入印紙 | BU52: 収入印紙 | BW52: 収入印紙 | BY52: 収入印紙 | CA52: 収入印紙 | CC52: 収入印紙 | CD52: 0 | CE52: 収入印紙 | CG52: 収入印紙 | CI52: 収入印紙 | CK52: 収入印紙 | CM52: 収入印紙 | CN52: 0 | CO52: 収入印紙 | CQ52: 収入印紙 | CS52: 収入印紙 | CU52: 収入印紙 | CY52: 収入印紙 | DC52: 収入印紙
C53: 登記関係費用 | D53: =IF(AND(D17,D25=0,D36=0,D46>0),D17*0.4%,0) -> 0 | E53: 登記関係費用 | F53: =IF(AND(F17,F25=0,F36=0,F46>0),F17*0.4%,0) -> 0 | G53: 登記関係費用 | H53: =IF(AND(H17,H25=0,H36=0,H46>0),H17*0.4%,0) -> 0 | I53: 登記関係費用 | J53: =IF(AND(J17,J25=0,J36=0,J46>0),J17*0.4%,0) -> 0 | M53: 登記関係費用 | O53: 登記関係費用 | Q53: 登記関係費用 | S53: 登記関係費用 | BA53: 登記関係費用 | BB53: =IF(AND(BB17,BB25=0,BB36=0,BB46>0),BB17*0.4%,0) -> 0 | BE53: 登記関係費用 | BG53: 登記関係費用 | BI53: 登記関係費用 | BK53: 登記関係費用 | BO53: 登記関係費用 | BQ53: 登記関係費用 | CK53: 登記関係費用
B55: =資金調達!J14 -> 着工時 | C55: 支払合計 | D55: =SUM(D60:D64) -> 0 | E55: 支払合計 | F55: =SUM(F60:F64) -> 0 | G55: 支払合計 | H55: =SUM(H60:H64) -> 0 | I55: 支払合計 | J55: =SUM(J60:J64) -> 0 | K55: 支払合計 | L55: =SUM(L60:L64) -> 0 | M55: 支払合計 | N55: =SUM(N60:N64) -> 0 | O55: 支払合計 | P55: =SUM(P60:P64) -> 0 | Q55: 支払合計 | R55: =SUM(R60:R64) -> 0 | S55: 支払合計 | T55: =SUM(T60:T64) -> 0 | U55: 支払合計 | V55: =SUM(V60:V64) -> 0 | W55: 支払合計 | X55: =SUM(X60:X64) -> 0 | Y55: 支払合計 | Z55: =SUM(Z60:Z64) -> 0 | AA55: 支払合計 | AB55: =SUM(AB60:AB64) -> 0 | AC55: 支払合計 | AD55: =SUM(AD60:AD64) -> 0 | AE55: 支払合計 | AF55: =SUM(AF60:AF64) -> 0 | AG55: 支払合計 | AH55: =SUM(AH60:AH64) -> 0 | AI55: 支払合計 | AJ55: =SUM(AJ60:AJ64) -> 0 | AK55: 支払合計 | AL55: =SUM(AL60:AL64) -> 0 | AM55: 支払合計 | AN55: =SUM(AN60:AN64) -> 0 | AO55: 支払合計 | AP55: =SUM(AP60:AP64) -> 0 | AQ55: 支払合計 | AR55: =SUM(AR60:AR64) -> 0 | AS55: 支払合計 | AT55: =SUM(AT60:AT64) -> 2 | AU55: 支払合計 | AV55: =SUM(AV60:AV64) -> 2 | AW55: 支払合計 | AX55: =SUM(AX60:AX64) -> 2 | AY55: 支払合計 | AZ55: =SUM(AZ60:AZ64) -> 2 | BA55: 支払合計 | BB55: =SUM(BB60:BB64) -> 2 | BC55: 支払合計 | BD55: =SUM(BD60:BD64) -> 2 | BE55: 支払合計 | BF55: =SUM(BF60:BF64) -> 0 | BG55: 支払合計 | BH55: =SUM(BH60:BH64) -> 0 | BI55: 支払合計 | BJ55: =SUM(BJ60:BJ64) -> 0 | BK55: 支払合計 | BL55: =SUM(BL60:BL64) -> 0 | BM55: 支払合計 | BN55: =SUM(BN60:BN64) -> 0 | BO55: 支払合計 | BP55: =SUM(BP60:BP64) -> 0 | BQ55: 支払合計 | BR55: =SUM(BR60:BR64) -> 0 | BS55: 支払合計 | BT55: =SUM(BT60:BT64) -> 0 | BU55: 支払合計 | BV55: =SUM(BV60:BV64) -> 0 | BW55: 支払合計 | BX55: =SUM(BX60:BX64) -> 0 | BY55: 支払合計 | BZ55: =SUM(BZ60:BZ64) -> 0 | CA55: 支払合計 | CB55: =SUM(CB60:CB64) -> 0 | CC55: 支払合計 | CD55: =SUM(CD60:CD64) -> 0 | CE55: 支払合計 | CF55: =SUM(CF60:CF64) -> 0 | CG55: 支払合計 | CH55: =SUM(CH60:CH64) -> 0 | CI55: 支払合計 | CJ55: =SUM(CJ60:CJ64) -> 0 | CK55: 支払合計 | CL55: =SUM(CL60:CL64) -> 0 | CM55: 支払合計 | CN55: =SUM(CN60:CN64) -> 0 | CO55: 支払合計 | CP55: =SUM(CP60:CP64) -> 0 | CQ55: 支払合計 | CR55: =SUM(CR60:CR64) -> 0 | CS55: 支払合計 | CT55: =SUM(CT60:CT64) -> 0 | CU55: 支払合計 | CV55: =SUM(CV60:CV64) -> 0 | CW55: =SUM(CW60:CW64) -> 0 | CX55: =SUM(CX60:CX64) -> 0 | CY55: 支払合計 | CZ55: =SUM(CZ60:CZ64) -> 0 | DA55: =SUM(DA60:DA64) -> 0 | DB55: =SUM(DB60:DB64) -> 0 | DC55: 支払合計 | DD55: =SUM(DD60:DD64) -> 0 | DE55: =SUM(DE60:DE64) -> 0 | DF55: =SUM(DF60:DF64) -> 0
C57: 住宅ローン | D57: =資金調達!$M14 -> 0 | E57: 住宅ローン | F57: =資金調達!$M14 -> 0 | G57: 住宅ローン | H57: =資金調達!$M14 -> 0 | I57: 住宅ローン | J57: =資金調達!$M14 -> 0 | K57: つなぎ融資（東光商事） | L57: =資金調達!$M14 -> 0 | M57: 住宅ローン | N57: =資金調達!$M14 -> 0 | O57: 住宅ローン | P57: =資金調達!$M14 -> 0 | Q57: 住宅ローン | R57: =資金調達!$M14 -> 0 | S57: 住宅ローン | T57: =資金調達!$M14 -> 0 | U57: つなぎ融資（東光商事） | V57: =資金調達!$M14 -> 0 | W57: つなぎ融資（東光商事） | X57: =資金調達!$M14 -> 0 | Y57: つなぎ融資（東光商事） | Z57: =資金調達!$M14 -> 0 | AA57: つなぎ融資（東光商事） | AB57: =資金調達!$M14 -> 0 | AC57: つなぎ融資（東光商事） | AD57: =資金調達!$M14 -> 0 | AE57: つなぎ融資（アプラス） | AF57: =資金調達!$M14 -> 0 | AG57: つなぎ融資（アプラス） | AH57: =資金調達!$M14 -> 0 | AI57: つなぎ融資 | AJ57: =資金調達!$M14 -> 0 | AK57: つなぎ融資 | AL57: =資金調達!$M14 -> 0 | AM57: 住宅ローン | AN57: =IF(AND(AN28=0,AN39=0,AN60>0),AN11,0) -> 0 | AO57: 住宅ローン | AP57: =IF(AND(AP28=0,AP39=0,AP60>0),AP11,0) -> 0 | AQ57: 住宅ローン | AR57: =IF(AND(AR28=0,AR39=0,AR60>0),AR11,0) -> 0 | AS57: 住宅ローン | AT57: =資金調達!$M14 -> 0 | AU57: つなぎ融資（東光商事） | AV57: =資金調達!$M14 -> 0 | AW57: 住宅ローン | AX57: =資金調達!$M14 -> 0 | AY57: つなぎ融資（東光商事） | AZ57: =資金調達!$M14 -> 0 | BA57: 住宅ローン | BB57: =資金調達!$M14 -> 0 | BC57: つなぎ融資（東光商事） | BD57: =資金調達!$M14 -> 0 | BE57: 住宅ローン | BF57: =IF(AND(BF28=0,BF39=0,BF60>0),BF11,0) -> 0 | BG57: 住宅ローン | BH57: =IF(AND(BH28=0,BH39=0,BH60>0),BH11,0) -> 0 | BI57: 住宅ローン | BJ57: =IF(AND(BJ28=0,BJ39=0,BJ60>0),BJ11,0) -> 0 | BK57: 住宅ローン | BL57: =IF(AND(BL28=0,BL39=0,BL60>0),BL11,0) -> 0 | BN57: =IF(AND(BN28=0,BN39=0,BN60>0),BN11,0) -> 0 | BO57: 住宅ローン | BP57: =資金調達!$M14 -> 0 | BQ57: 住宅ローン | BR57: =資金調達!$M14 -> 0 | BS57: つなぎ融資（東光商事） | BT57: =資金調達!$M14 -> 0 | BU57: つなぎ融資（東光商事） | BV57: =資金調達!$M14 -> 0 | BW57: つなぎ融資（東光商事） | BX57: =資金調達!$M14 -> 0 | BY57: つなぎ融資（東光商事） | BZ57: =資金調達!$M14 -> 0 | CA57: つなぎ融資（アプラス） | CB57: =資金調達!$M14 -> 0 | CC57: つなぎ融資（アプラス） | CD57: =資金調達!$M14 -> 0 | CE57: つなぎ融資 | CF57: =資金調達!$M14 -> 0 | CG57: つなぎ融資 | CH57: =資金調達!$M14 -> 0 | CI57: つなぎ融資 | CJ57: =資金調達!$M14 -> 0 | CK57: 住宅ローン | CL57: =資金調達!$M14 -> 0 | CM57: つなぎ融資（東光商事） | CN57: =資金調達!$M14 -> 0 | CO57: つなぎ融資（東光商事） | CP57: =資金調達!$M14 -> 0 | CQ57: つなぎ融資（東光商事） | CR57: =資金調達!$M14 -> 0 | CS57: つなぎ融資（東光商事） | CT57: =資金調達!$M14 -> 0 | CU57: つなぎ融資 | CV57: =資金調達!$M14 -> 0 | CW57: =資金調達!$M14 -> 0 | CX57: =資金調達!$M14 -> 0 | CY57: つなぎ融資 | CZ57: =資金調達!$M14 -> 0 | DA57: =資金調達!$M14 -> 0 | DB57: =資金調達!$M14 -> 0 | DC57: つなぎ融資 | DD57: =資金調達!$M14 -> 0 | DE57: =資金調達!$M14 -> 0 | DF57: =資金調達!$M14 -> 0
C58: 自己資金 | D58: =D55-D57 -> 0 | E58: 自己資金 | F58: =F55-F57 -> 0 | G58: 自己資金 | H58: =H55-H57 -> 0 | I58: 自己資金 | J58: =J55-J57 -> 0 | K58: 自己資金 | L58: =L55-L57 -> 0 | M58: 自己資金 | N58: =N55-N57 -> 0 | O58: 自己資金 | P58: =P55-P57 -> 0 | Q58: 自己資金 | R58: =R55-R57 -> 0 | S58: 自己資金 | T58: =T55-T57 -> 0 | U58: 自己資金 | V58: =V55-V57 -> 0 | W58: 自己資金 | X58: =X55-X57 -> 0 | Y58: 自己資金 | Z58: =Z55-Z57 -> 0 | AA58: 自己資金 | AB58: =AB55-AB57 -> 0 | AC58: 自己資金 | AD58: =AD55-AD57 -> 0 | AE58: 自己資金 | AF58: =AF55-AF57 -> 0 | AG58: 自己資金 | AH58: =AH55-AH57 -> 0 | AI58: 自己資金 | AJ58: =AJ55-AJ57 -> 0 | AK58: 自己資金 | AL58: =AL55-AL57 -> 0 | AM58: 自己資金 | AN58: =AN55-AN57 -> 0 | AO58: 自己資金 | AP58: =AP55-AP57 -> 0 | AQ58: 自己資金 | AR58: =AR55-AR57 -> 0 | AS58: 自己資金 | AT58: =AT55-AT57 -> 2 | AU58: 自己資金 | AV58: =AV55-AV57 -> 2 | AW58: 自己資金 | AX58: =AX55-AX57 -> 2 | AY58: 自己資金 | AZ58: =AZ55-AZ57 -> 2 | BA58: 自己資金 | BB58: =BB55-BB57 -> 2 | BC58: 自己資金 | BD58: =BD55-BD57 -> 2 | BE58: 自己資金 | BF58: =BF55-BF57 -> 0 | BG58: 自己資金 | BH58: =BH55-BH57 -> 0 | BI58: 自己資金 | BJ58: =BJ55-BJ57 -> 0 | BK58: 自己資金 | BL58: =BL55-BL57 -> 0 | BM58: 自己資金 | BN58: =BN55-BN57 -> 0 | BO58: 自己資金 | BP58: =BP55-BP57 -> 0 | BQ58: 自己資金 | BR58: =BR55-BR57 -> 0 | BS58: 自己資金 | BT58: =BT55-BT57 -> 0 | BU58: 自己資金 | BV58: =BV55-BV57 -> 0 | BW58: 自己資金 | BX58: =BX55-BX57 -> 0 | BY58: 自己資金 | BZ58: =BZ55-BZ57 -> 0 | CA58: 自己資金 | CB58: =CB55-CB57 -> 0 | CC58: 自己資金 | CD58: =CD55-CD57 -> 0 | CE58: 自己資金 | CF58: =CF55-CF57 -> 0 | CG58: 自己資金 | CH58: =CH55-CH57 -> 0 | CI58: 自己資金 | CJ58: =CJ55-CJ57 -> 0 | CK58: 自己資金 | CL58: =CL55-CL57 -> 0 | CM58: 自己資金 | CN58: =CN55-CN57 -> 0 | CO58: 自己資金 | CP58: =CP55-CP57 -> 0 | CQ58: 自己資金 | CR58: =CR55-CR57 -> 0 | CS58: 自己資金 | CT58: =CT55-CT57 -> 0 | CU58: 自己資金 | CV58: =CV55-CV57 -> 0 | CW58: =CW55-CW57 -> 0 | CX58: =CX55-CX57 -> 0 | CY58: 自己資金 | CZ58: =CZ55-CZ57 -> 0 | DA58: =DA55-DA57 -> 0 | DB58: =DB55-DB57 -> 0 | DC58: 自己資金 | DD58: =DD55-DD57 -> 0 | DE58: =DE55-DE57 -> 0 | DF58: =DF55-DF57 -> 0
C60: 着工金 | D60: =資金調達!$L14 -> 0 | E60: 着工金 | F60: =資金調達!$L14 -> 0 | G60: 着工金 | H60: =資金調達!$L14 -> 0 | I60: 着工金 | J60: =資金調達!$L14 -> 0 | K60: 着工金 | L60: =資金調達!$L14 -> 0 | M60: 着工金 | N60: =資金調達!$L14 -> 0 | O60: 着工金 | P60: =資金調達!$L14 -> 0 | Q60: 着工金 | R60: =資金調達!$L14 -> 0 | S60: 着工金 | T60: =資金調達!$L14 -> 0 | U60: 着工金 | V60: =資金調達!$L14 -> 0 | W60: 着工金 | X60: =資金調達!$L14 -> 0 | Y60: 着工金 | Z60: =資金調達!$L14 -> 0 | AA60: 着工金 | AB60: =資金調達!$L14 -> 0 | AC60: 着工金 | AD60: =資金調達!$L14 -> 0 | AE60: 着工金 | AF60: =資金調達!$L14 -> 0 | AG60: 着工金 | AH60: =資金調達!$L14 -> 0 | AI60: 着工金 | AJ60: =資金調達!$L14 -> 0 | AK60: 着工金 | AL60: =資金調達!$L14 -> 0 | AM60: 着工金 | AN60: =資金調達!$L14 -> 0 | AO60: 着工金 | AP60: =資金調達!$L14 -> 0 | AQ60: 着工金 | AR60: =資金調達!$L14 -> 0 | AS60: 着工金 | AT60: =資金調達!$L14 -> 0 | AU60: 着工金 | AV60: =資金調達!$L14 -> 0 | AW60: 着工金 | AX60: =資金調達!$L14 -> 0 | AY60: 着工金 | AZ60: =資金調達!$L14 -> 0 | BA60: 着工金 | BB60: =資金調達!$L14 -> 0 | BC60: 着工金 | BD60: =資金調達!$L14 -> 0 | BE60: 着工金 | BF60: =資金調達!$L14 -> 0 | BG60: 着工金 | BH60: =資金調達!$L14 -> 0 | BI60: 着工金 | BJ60: =資金調達!$L14 -> 0 | BK60: 着工金 | BL60: =資金調達!$L14 -> 0 | BM60: 着工金 | BN60: =資金調達!$L14 -> 0 | BO60: 着工金 | BP60: =資金調達!$L14 -> 0 | BQ60: 着工金 | BR60: =資金調達!$L14 -> 0 | BS60: 着工金 | BT60: =資金調達!$L14 -> 0 | BU60: 着工金 | BV60: =資金調達!$L14 -> 0 | BW60: 着工金 | BX60: =資金調達!$L14 -> 0 | BY60: 着工金 | BZ60: =資金調達!$L14 -> 0 | CA60: 着工金 | CB60: =資金調達!$L14 -> 0 | CC60: 着工金 | CD60: =資金調達!$L14 -> 0 | CE60: 着工金 | CF60: =資金調達!$L14 -> 0 | CG60: 着工金 | CH60: =資金調達!$L14 -> 0 | CI60: 着工金 | CJ60: =資金調達!$L14 -> 0 | CK60: 着工金 | CL60: =資金調達!$L14 -> 0 | CM60: 着工金 | CN60: =資金調達!$L14 -> 0 | CO60: 着工金 | CP60: =資金調達!$L14 -> 0 | CQ60: 着工金 | CR60: =資金調達!$L14 -> 0 | CS60: 着工金 | CT60: =資金調達!$L14 -> 0 | CU60: 着工金 | CV60: =資金調達!$L14 -> 0 | CW60: =資金調達!$L14 -> 0 | CX60: =資金調達!$L14 -> 0 | CY60: 着工金 | CZ60: =資金調達!$L14 -> 0 | DA60: =資金調達!$L14 -> 0 | DB60: =資金調達!$L14 -> 0 | DC60: 着工金 | DD60: =資金調達!$L14 -> 0 | DE60: =資金調達!$L14 -> 0 | DF60: =資金調達!$L14 -> 0
C61: 融資関係手数料 | D61: =IF(D57=0,0,IF(AND(D25=0,D36=0,D46=0,D57>0),D11*諸費用!$Q28+IF(資金調達!$G6=5,2,1)*諸費用!$V28/10000+諸費用!$S28/10000,0)) -> 0 | E61: 融資関係手数料 | F61: =IF(F57=0,0,IF(AND(F25=0,F36=0,F46=0,F57>0),F11*諸費用!$Q29+IF(資金調達!$G6=5,2,1)*諸費用!$V29/10000+諸費用!$S29/10000,0)) -> 0 | G61: 融資関係手数料 | H61: =IF(H57=0,0,IF(AND(H25=0,H36=0,H46=0,H57>0),諸費用!$R30/10000+IF(資金調達!$G6=5,2,1)*諸費用!$V30/10000+諸費用!$S30/10000,0)) -> 0 | I61: 融資関係手数料 | J61: =IF(J57=0,0,IF(AND(J25=0,J36=0,J46=0,J57>0),IF(資金調達!$G6=5,2,1)*諸費用!$V31/10000+諸費用!$S31/10000,0)) -> 0 | K61: 融資関係手数料 | L61: =IF(L57=0,0,諸費用!$AD27/10000) -> 0 | M61: 融資関係手数料 | N61: =IF(N57=0,0,N57*諸費用!$Q37)+IF(AND(N25=0,N36=0,N46=0,N57>0),諸費用!$S37/10000,0) -> 0 | O61: 融資関係手数料 | P61: =IF(P57=0,0,P57*諸費用!$Q21)+IF(AND(P25=0,P36=0,P46=0,P57>0),諸費用!$S21/10000,0) -> 0 | Q61: 融資関係手数料 | R61: =IF(R57=0,0,R57*諸費用!$Q22)+IF(AND(R25=0,R36=0,R46=0,R57>0),諸費用!$S22/10000,0) -> 0 | S61: 融資関係手数料 | T61: =IF(T57=0,0,諸費用!$R23)+IF(AND(T25=0,T36=0,T46=0,T57>0),諸費用!$S23/10000,0) -> 0 | U61: 融資関係手数料 | V61: =IF(AND(V25=0,V36=0,V46=0,V57>0),諸費用!$AD81/10000,0) -> 0 | W61: 融資関係手数料 | X61: =IF(AND(X25=0,X36=0,X46=0,X57>0),諸費用!$AD2/10000,0) -> 0 | Y61: 融資関係手数料 | Z61: =IF(AND(Z25=0,Z36=0,Z46=0,Z57>0),諸費用!$AD3/10000,0) -> 0 | AA61: 融資関係手数料 | AB61: =IF(AND(AB25=0,AB36=0,AB46=0,AB57>0),諸費用!$AD51/10000,0) -> 0 | AC61: 融資関係手数料 | AD61: =IF(AD57=0,0,諸費用!$AD13/10000) -> 0 | AE61: 融資関係手数料 | AF61: =IF(AF57=0,0,諸費用!$AD13/10000) -> 0 | AG61: 融資関係手数料 | AH61: =IF(AND(AH25=0,AH36=0,AH46=0,AH57>0),(諸費用!$AD20+諸費用!$AF20)/10000,0) -> 0 | AI61: 融資関係手数料 | AJ61: =IF(AJ57=0,0,諸費用!$AD41/10000) -> 0 | AK61: 融資関係手数料 | AL61: =IF(AL57=0,0,諸費用!$AD42/10000) -> 0 | AM61: 融資関係手数料 | AN61: =IF(AN57=0,0,IF(AND(AN25=0,AN36=0,AN57>0),AN11*諸費用!$Q92+IF(AND(AN25=0,AN36=0,AN57>0),諸費用!$V92/10000,0)+諸費用!$S92/10000,0)) -> 0 | AO61: 融資関係手数料 | AP61: =IF(AP57=0,0,IF(AND(AP25=0,AP36=0,AP57>0),AP11*諸費用!$Q93+IF(AND(AP25=0,AP36=0,AP57>0),諸費用!$V93/10000,0)+諸費用!$S93/10000,0)) -> 0 | AQ61: 融資関係手数料 | AR61: =IF(AR57=0,0,IF(AND(AR25=0,AR36=0,AR57>0),AR11*諸費用!$Q94+IF(AND(AR25=0,AR36=0,AR57>0),諸費用!$V94/10000,0)+諸費用!$S94/10000,0)) -> 0 | AS61: 融資関係手数料 | AT61: =IF(AND(AT25=0,AT36=0,AT46=0,AT57>0),AT11*諸費用!$Q95+諸費用!$S95/10000,0) -> 0 | AU61: 融資関係手数料 | AV61: =IF(AND(AV25=0,AV36=0,AV57>0),諸費用!$AD96/10000,0) -> 0 | AW61: 融資関係手数料 | AX61: =IF(AND(AT25=0,AT36=0,AT46=0,AT57>0),諸費用!$S97/10000,0) -> 0 | AY61: 融資関係手数料 | AZ61: =IF(AND(AZ25=0,AZ36=0,AZ57>0),諸費用!$AD98/10000,0) -> 0 | BA61: 融資関係手数料 | BB61: =IF(AND(AT25=0,AT36=0,AT46=0,AT57>0),AT11*諸費用!$Q99+諸費用!$S99/10000,0) -> 0 | BC61: 融資関係手数料 | BD61: =IF(AND(BD25=0,BD36=0,BD57>0),諸費用!$AD96/10000,0) -> 0 | BE61: 融資関係手数料 | BF61: =IF(BF57=0,0,BF57*諸費用!$Q37)+IF(AND(BF25=0,BF36=0,BF46=0,BF57>0),諸費用!$S37/10000,0) -> 0 | BG61: 融資関係手数料 | BH61: =IF(BH57=0,0,BH57*諸費用!$Q37)+IF(AND(BH25=0,BH36=0,BH46=0,BH57>0),諸費用!$S37/10000,0) -> 0 | BI61: 融資関係手数料 | BJ61: =IF(BJ57=0,0,BJ57*諸費用!$Q37)+IF(AND(BJ25=0,BJ36=0,BJ46=0,BJ57>0),諸費用!$S37/10000,0) -> 0 | BK61: 融資関係手数料 | BL61: =IF(BL57=0,0,BL57*諸費用!$Q37)+IF(AND(BL25=0,BL36=0,BL46=0,BL57>0),諸費用!$S37/10000,0) -> 0 | BM61: 融資関係手数料 | BN61: =IF(BN57=0,0,IF(AND(BN25=0,BN36=0,BN57>0),諸費用!$R86/10000+IF(AND(BN25=0,BN36=0,BN57>0),諸費用!$V86/10000,0)+諸費用!$S86/10000,0)) -> 0 | BO61: 融資関係手数料 | BP61: =IF(AND(BP25=0,BP36=0,BP46=0,BP57>0),BP11*諸費用!$Q101+諸費用!$S101/10000,0) -> 0 | BQ61: 融資関係手数料 | BR61: =IF(AND(BR25=0,BR36=0,BR46=0,BR57>0),BR11*諸費用!$Q102+諸費用!$S102/10000,0) -> 0 | BS61: 融資関係手数料 | BT61: =IF(BT57=0,0,諸費用!$AD4/10000) -> 0 | BU61: 融資関係手数料 | BV61: =IF(BV57=0,0,諸費用!$AD5/10000) -> 0 | BW61: 融資関係手数料 | BX61: =IF(BX57=0,0,諸費用!$AD6/10000) -> 0 | BY61: 融資関係手数料 | BZ61: =IF(BZ57=0,0,諸費用!$AD7/10000) -> 0 | CA61: 融資関係手数料 | CB61: =IF(AND(CB25=0,CB36=0,CB57>0),諸費用!$AD48/10000,0) -> 0 | CC61: 融資関係手数料 | CD61: =IF(AND(CD25=0,CD36=0,CD46=0,CD57>0),諸費用!$AD49/10000,0) -> 0 | CE61: 融資関係手数料 | CF61: =IF(AND(CF25=0,CF36=0,CF57>0),諸費用!$AD89/10000,0) -> 0 | CG61: 融資関係手数料 | CH61: =IF(AND(CH25=0,CH36=0,CH57>0),諸費用!$AD90/10000,0) -> 0 | CI61: 融資関係手数料 | CJ61: =IF(AND(CJ25=0,CJ36=0,CJ57>0),諸費用!$AD90/10000,0) -> 0 | CK61: 融資関係手数料 | CL61: =IF(CL57=0,0,CL57*諸費用!$Q37)+IF(AND(CL25=0,CL36=0,CL46=0,CL57>0),諸費用!$S37/10000,0) -> 0 | CM61: 融資関係手数料 | CN61: =IF(AND(CN25=0,CN36=0,CN46=0,CN57>0),諸費用!$AD105/10000,0) -> 0 | CO61: 融資関係手数料 | CP61: =IF(AND(CP25=0,CP36=0,CP57>0),諸費用!$AD106/10000,0) -> 0 | CQ61: 融資関係手数料 | CR61: =IF(CR57=0,0,諸費用!$AD108/10000) -> 0 | CS61: 融資関係手数料 | CT61: =IF(CT57=0,0,諸費用!$AD109/10000) -> 0 | CU61: 融資関係手数料 | CV61: 0 | CW61: 0 | CX61: 0 | CY61: 融資関係手数料 | CZ61: 0 | DA61: 0 | DB61: 0 | DC61: 融資関係手数料 | DD61: =IF(AND(DD25=0,DD57>0),諸費用!$AD68/10000,0) -> 0 | DE61: =IF(AND(DE25=0,DE57>0),諸費用!$AD68/10000,0) -> 0 | DF61: =IF(AND(DF25=0,DF57>0),諸費用!$AD68/10000,0) -> 0
C62: 収入印紙（融資契約） | D62: =IF(D57>0,IF(資金調達!$G6=5,2,1)*諸費用!$V28/10000,0) -> 0 | E62: 収入印紙 | F62: =IF(F57>0,IF(資金調達!$G6=5,2,1)*諸費用!$V29/10000,0) -> 0 | G62: 収入印紙 | H62: =IF(H57>0,IF(資金調達!$G6=5,2,1)*諸費用!$V30/10000,0) -> 0 | I62: 収入印紙 | J62: =IF(J57>0,IF(資金調達!$G6=5,2,1)*諸費用!$V31/10000,0) -> 0 | K62: 収入印紙 | L62: =IF(L57=0,0,諸費用!$AF27/10000) -> 0 | M62: 収入印紙 | N62: =IF(N60>0,IF(資金調達!$G6=5,2,1)*諸費用!$V37/10000,0) -> 0 | O62: 収入印紙 | P62: =IF(P60>0,IF(資金調達!$G6=5,2,1)*諸費用!$V21/10000,0) -> 0 | Q62: 収入印紙 | R62: =IF(R60>0,IF(資金調達!$G6=5,2,1)*諸費用!$V22/10000,0) -> 0 | S62: 収入印紙 | T62: =IF(T60>0,IF(資金調達!$G6=5,2,1)*諸費用!$V23/10000,0) -> 0 | U62: 収入印紙 | V62: =IF(AND(V25=0,V36=0,V46=0,V57>0),諸費用!$AF81/10000,0) -> 0 | W62: 収入印紙 | X62: =IF(AND(X25=0,X36=0,X46=0,X57>0),諸費用!$AF2/10000,0) -> 0 | Y62: 収入印紙 | Z62: =IF(AND(Z25=0,Z36=0,Z46=0,Z57>0),諸費用!$AF3/10000,0) -> 0 | AA62: 収入印紙 | AB62: =IF(AND(AB25=0,AB36=0,AB46=0,AB57>0),諸費用!$AF51/10000,0) -> 0 | AC62: 収入印紙 | AD62: =IF(AD57=0,0,諸費用!$AF13/10000) -> 0 | AE62: 収入印紙 | AF62: =IF(AF57=0,0,諸費用!$AF13/10000) -> 0 | AG62: 収入印紙 | AH62: =IF(AND(AH25=0,AH36=0,AH46=0,AH57>0),諸費用!$AF20/10000,0) -> 0 | AI62: 収入印紙 | AJ62: =IF(AJ57=0,0,諸費用!$AF41/10000) -> 0 | AK62: 収入印紙 | AL62: =IF(AL57=0,0,諸費用!$AF42/10000) -> 0 | AM62: 収入印紙 | AN62: =IF(AN61>0,IF(資金調達!$G6=5,2,1)*諸費用!$V92/10000,0) -> 0 | AO62: 収入印紙 | AP62: =IF(AP61>0,IF(資金調達!$G6=5,2,1)*諸費用!$V93/10000,0) -> 0 | AQ62: 収入印紙 | AR62: =IF(AR61>0,IF(資金調達!$G6=5,2,1)*諸費用!$V94/10000,0) -> 0 | AS62: 収入印紙 | AT62: =IF(AT60>0,VLOOKUP(AT60*10000,table!B3:D11,2,TRUE)/10000,0) -> 0 | AU62: 収入印紙 | AV62: =IF(AND(AV25=0,AV36=0,AV57>0),VLOOKUP(AV57*10000,table!$B3:$D11,2,TRUE)/10000,0) -> 0 | AW62: 収入印紙 | AX62: =IF(AX60>0,VLOOKUP(AX60*10000,table!B3:D11,2,TRUE)/10000,0) -> 0 | AY62: 収入印紙 | AZ62: =IF(AND(AZ25=0,AZ36=0,AZ57>0),VLOOKUP(AZ57*10000,table!$B3:$D11,2,TRUE)/10000,0) -> 0 | BA62: 収入印紙 | BB62: =IF(BB60>0,VLOOKUP(BB60*10000,table!B3:D11,2,TRUE)/10000,0) -> 0 | BC62: 収入印紙 | BD62: =IF(AND(BD25=0,BD36=0,BD57>0),VLOOKUP(BD57*10000,table!$B3:$D11,2,TRUE)/10000,0) -> 0 | BE62: 収入印紙 | BF62: =IF(BF60>0,IF(資金調達!$G6=5,2,1)*諸費用!$V37/10000,0) -> 0 | BG62: 収入印紙 | BH62: =IF(BH60>0,IF(資金調達!$G6=5,2,1)*諸費用!$V37/10000,0) -> 0 | BI62: 収入印紙 | BJ62: =IF(BJ60>0,IF(資金調達!$G6=5,2,1)*諸費用!$V37/10000,0) -> 0 | BK62: 収入印紙 | BL62: =IF(BL60>0,IF(資金調達!$G6=5,2,1)*諸費用!$V37/10000,0) -> 0 | BM62: 収入印紙 | BN62: =IF(BN61>0,IF(資金調達!$G6=5,2,1)*諸費用!$V94/10000,0) -> 0 | BO62: 収入印紙 | BP62: =IF(BP60>0,IF(資金調達!$G6=5,2,1)*諸費用!$V101/10000,0) -> 0 | BQ62: 収入印紙 | BR62: =IF(BR60>0,IF(資金調達!$G6=5,2,1)*諸費用!$V102/10000,0) -> 0 | BS62: 収入印紙 | BT62: =IF(BT57=0,0,諸費用!$AF4/10000) -> 0 | BU62: 収入印紙 | BV62: =IF(BV57=0,0,諸費用!$AF5/10000) -> 0 | BW62: 収入印紙 | BX62: =IF(BX57=0,0,諸費用!$AF6/10000) -> 0 | BY62: 収入印紙 | BZ62: =IF(BZ57=0,0,諸費用!$AF7/10000) -> 0 | CA62: 収入印紙 | CB62: =IF(AND(CB25=0,CB36=0,CB57>0),諸費用!$AF48/10000,0) -> 0 | CC62: 収入印紙 | CD62: =IF(AND(CD25=0,CD36=0,CD46=0,CD57>0),諸費用!$AF49/10000,0) -> 0 | CE62: 収入印紙 | CF62: =IF(AND(CF25=0,CF36=0,CF57>0),諸費用!$AF89/10000,0) -> 0 | CG62: 収入印紙 | CH62: =IF(AND(CH25=0,CH36=0,CH57>0),諸費用!$AF90/10000,0) -> 0 | CI62: 収入印紙 | CJ62: =IF(AND(CJ25=0,CJ36=0,CJ57>0),諸費用!$AF90/10000,0) -> 0 | CK62: 収入印紙 | CL62: =IF(CL60>0,IF(資金調達!$G6=5,2,1)*諸費用!$V37/10000,0) -> 0 | CM62: 収入印紙 | CN62: =IF(AND(CN25=0,CN36=0,CN46=0,CN57>0),諸費用!$AF105/10000,0) -> 0 | CO62: 収入印紙 | CP62: =IF(AND(CP25=0,CP36=0,CP57>0),諸費用!$AF106/10000,0) -> 0 | CQ62: 収入印紙 | CR62: =IF(CR57=0,0,諸費用!$AF108/10000) -> 0 | CS62: 収入印紙 | CT62: =IF(CT57=0,0,諸費用!$AF109/10000) -> 0 | CU62: 収入印紙 | CV62: =IF(CV57>0,0.02,0) -> 0 | CW62: =IF(CW57>0,0.02,0) -> 0 | CX62: =IF(CX57>0,0.02,0) -> 0 | CY62: 収入印紙 | CZ62: =IF(AND(CZ25=0,CZ57>0),VLOOKUP(CZ12*10000,table!$B$3:$D$11,2,TRUE)/10000,0) -> 0 | DA62: =IF(AND(DA25=0,DA57>0),VLOOKUP(DA12*10000,table!$B$3:$D$11,2,TRUE)/10000,0) -> 0 | DB62: =IF(AND(DB25=0,DB57>0),VLOOKUP(DB12*10000,table!$B$3:$D$11,2,TRUE)/10000,0) -> 0 | DC62: 収入印紙 | DD62: =IF(AND(DD25=0,DD57>0),VLOOKUP(DD12*10000,table!$B$3:$D$11,2,TRUE)/10000,0) -> 0 | DE62: =IF(AND(DE25=0,DE57>0),VLOOKUP(DE12*10000,table!$B$3:$D$11,2,TRUE)/10000,0) -> 0 | DF62: =IF(AND(DF25=0,DF57>0),VLOOKUP(DF12*10000,table!$B$3:$D$11,2,TRUE)/10000,0) -> 0
C63: 登記関係費用 | D63: =IF(AND(D17,D25=0,D36=0,D46=0,D57>0),D17*0.4%,0) -> 0 | E63: 登記関係費用 | F63: =IF(AND(F17,F25=0,F36=0,F46=0,F57>0),F17*0.4%,0) -> 0 | G63: 登記関係費用 | H63: =IF(AND(H17,H25=0,H36=0,H46=0,H57>0),H17*0.4%,0) -> 0 | I63: 登記関係費用 | J63: =IF(AND(J17,J25=0,J36=0,J46=0,J57>0),J17*0.4%,0) -> 0 | K63: 登記関係費用 | L63: =IF(L57>0,8,0) -> 0 | M63: 登記関係費用 | N63: =IF(AND(N25=0,N36=0,N57>0),N11*0.4%+12,0) -> 0 | O63: 登記関係費用 | P63: =IF(AND(P25=0,P36=0,P57>0),P11*0.4%+12,0) -> 0 | Q63: 登記関係費用 | R63: =IF(AND(R25=0,R36=0,R57>0),R11*0.4%+12,0) -> 0 | S63: 登記関係費用 | T63: =IF(AND(T25=0,T36=0,T57>0),T11*0.4%+12,0) -> 0 | AD63: =IF(AD57>0,8,0) -> 0 | AF63: =IF(AF57>0,8,0) -> 0 | AJ63: =IF(AJ57>0,8,0) -> 0 | AL63: =IF(AL57>0,8,0) -> 0 | AM63: 登記関係費用 | AN63: =IF(AND(AN25=0,AN36=0,AN57>0),AN11*0.4%+12,0) -> 0 | AO63: 登記関係費用 | AP63: =IF(AND(AP25=0,AP36=0,AP57>0),AP11*0.4%+12,0) -> 0 | AQ63: 登記関係費用 | AR63: =IF(AND(AR25=0,AR36=0,AR57>0),AR11*0.4%+12,0) -> 0 | AS63: 登記関係費用 | AT63: =IF(AND(AT25=0,AT36=0,AT57>0),AT11*0.4%+12,0) -> 0 | AW63: 登記関係費用 | AX63: =IF(AND(AX25=0,AX36=0,AX57>0),AX11*0.4%+12,0) -> 0 | BA63: 登記関係費用 | BB63: =IF(AND(BB25=0,BB36=0,BB57>0),BB11*0.4%+12,0) -> 0 | BE63: 登記関係費用 | BF63: =IF(AND(BF25=0,BF36=0,BF57>0),BF11*0.4%+12,0) -> 0 | BG63: 登記関係費用 | BH63: =IF(AND(BH25=0,BH36=0,BH57>0),BH11*0.4%+12,0) -> 0 | BI63: 登記関係費用 | BJ63: =IF(AND(BJ25=0,BJ36=0,BJ57>0),BJ11*0.4%+12,0) -> 0 | BK63: 登記関係費用 | BL63: =IF(AND(BL25=0,BL36=0,BL57>0),BL11*0.4%+12,0) -> 0 | BO63: 登記関係費用 | BP63: =IF(AND(BP25=0,BP36=0,BP57>0),BP11*0.4%+12,0) -> 0 | BQ63: 登記関係費用 | BR63: =IF(AND(BR25=0,BR36=0,BR57>0),BR11*0.4%+12,0) -> 0 | BT63: =IF(BT57>0,8,0) -> 0 | BV63: =IF(BV57>0,8,0) -> 0 | BX63: =IF(BX57>0,8,0) -> 0 | BZ63: =IF(BZ57>0,8,0) -> 0 | CK63: 登記関係費用 | CL63: =IF(AND(CL25=0,CL36=0,CL57>0),CL11*0.4%+12,0) -> 0 | CR63: =IF(CR57>0,8,0) -> 0 | CT63: =IF(CT57>0,8,0) -> 0
C64: その他費用 | D64: =IF(D60>0,SUM(予算計画!$F70:$F71),0) -> 0 | E64: その他費用 | F64: =IF(F60>0,SUM(予算計画!$F70:$F71),0) -> 0 | G64: その他費用 | H64: =IF(H60>0,SUM(予算計画!$F70:$F71),0) -> 0 | I64: その他費用 | J64: =IF(J60>0,SUM(予算計画!$F70:$F71),0) -> 0 | K64: その他費用 | L64: =IF(L60>0,SUM(予算計画!$F70:$F71),0) -> 0 | M64: その他費用 | N64: =IF(N60>0,SUM(予算計画!$F70:$F71),0) -> 0 | O64: その他費用 | P64: =IF(P60>0,SUM(予算計画!$F70:$F71),0) -> 0 | Q64: その他費用 | R64: =IF(R60>0,SUM(予算計画!$F70:$F71),0) -> 0 | S64: その他費用 | T64: =IF(T60>0,SUM(予算計画!$F70:$F71),0) -> 0 | U64: その他費用 | V64: =IF(V60>0,SUM(予算計画!$F70:$F71),0) -> 0 | W64: その他費用 | X64: =IF(X60>0,SUM(予算計画!$F70:$F71),0) -> 0 | Y64: その他費用 | Z64: =IF(Z60>0,SUM(予算計画!$F70:$F71),0) -> 0 | AA64: その他費用 | AB64: =IF(AB60>0,SUM(予算計画!$F70:$F71),0) -> 0 | AC64: その他費用 | AD64: =IF(AD60>0,SUM(予算計画!$F70:$F71),0) -> 0 | AE64: その他費用 | AF64: =IF(AF60>0,SUM(予算計画!$F70:$F71),0) -> 0 | AG64: その他費用 | AH64: =IF(AH60>0,SUM(予算計画!$F70:$F71),0) -> 0 | AI64: その他費用 | AJ64: =IF(AJ60>0,SUM(予算計画!$F70:$F71),0) -> 0 | AK64: その他費用 | AL64: =IF(AL60>0,SUM(予算計画!$F70:$F71),0) -> 0 | AM64: その他費用 | AN64: =IF(AN60>0,SUM(予算計画!$F70:$F71),0) -> 0 | AO64: その他費用 | AP64: =IF(AP60>0,SUM(予算計画!$F70:$F71),0) -> 0 | AQ64: その他費用 | AR64: =IF(AR60>0,SUM(予算計画!$F70:$F71),0) -> 0 | AS64: その他費用 | AT64: =IF(AT60>0,SUM(予算計画!$F70:$F71),2) -> 2 | AU64: その他費用 | AV64: =IF(AV60>0,SUM(予算計画!$F70:$F71),2) -> 2 | AW64: その他費用 | AX64: =IF(AX60>0,SUM(予算計画!$F70:$F71),2) -> 2 | AY64: その他費用 | AZ64: =IF(AZ60>0,SUM(予算計画!$F70:$F71),2) -> 2 | BA64: その他費用 | BB64: =IF(BB60>0,SUM(予算計画!$F70:$F71),2) -> 2 | BC64: その他費用 | BD64: =IF(BD60>0,SUM(予算計画!$F70:$F71),2) -> 2 | BE64: その他費用 | BF64: =IF(BF60>0,SUM(予算計画!$F70:$F71),0) -> 0 | BG64: その他費用 | BH64: =IF(BH60>0,SUM(予算計画!$F70:$F71),0) -> 0 | BI64: その他費用 | BJ64: =IF(BJ60>0,SUM(予算計画!$F70:$F71),0) -> 0 | BK64: その他費用 | BL64: =IF(BL60>0,SUM(予算計画!$F70:$F71),0) -> 0 | BM64: その他費用 | BN64: =IF(BN60>0,SUM(予算計画!$F70:$F71),0) -> 0 | BO64: その他費用 | BP64: =IF(BP60>0,SUM(予算計画!$F70:$F71),0) -> 0 | BQ64: その他費用 | BR64: =IF(BR60>0,SUM(予算計画!$F70:$F71),0) -> 0 | BS64: その他費用 | BT64: =IF(BT60>0,SUM(予算計画!$F70:$F71),0) -> 0 | BU64: その他費用 | BV64: =IF(BV60>0,SUM(予算計画!$F70:$F71),0) -> 0 | BW64: その他費用 | BX64: =IF(BX60>0,SUM(予算計画!$F70:$F71),0) -> 0 | BY64: その他費用 | BZ64: =IF(BZ60>0,SUM(予算計画!$F70:$F71),0) -> 0 | CA64: その他費用 | CB64: =IF(CB60>0,SUM(予算計画!$F70:$F71),0) -> 0 | CC64: その他費用 | CD64: =IF(CD60>0,SUM(予算計画!$F70:$F71),0) -> 0 | CE64: その他費用 | CF64: =IF(CF60>0,SUM(予算計画!$F70:$F71),0) -> 0 | CG64: その他費用 | CH64: =IF(CH60>0,SUM(予算計画!$F70:$F71),0) -> 0 | CI64: その他費用 | CJ64: =IF(CJ60>0,SUM(予算計画!$F70:$F71),0) -> 0 | CK64: その他費用 | CL64: =IF(CL60>0,SUM(予算計画!$F70:$F71),0) -> 0 | CM64: その他費用 | CN64: =IF(CN60>0,SUM(予算計画!$F70:$F71),0) -> 0 | CO64: その他費用 | CP64: =IF(CP60>0,SUM(予算計画!$F70:$F71),0) -> 0 | CQ64: その他費用 | CR64: =IF(CR60>0,SUM(予算計画!$F70:$F71),0) -> 0 | CS64: その他費用 | CT64: =IF(CT60>0,SUM(予算計画!$F70:$F71),0) -> 0 | CU64: その他費用 | CV64: =IF(CV60>0,SUM(予算計画!$F70:$F71),0) -> 0 | CW64: =IF(CW60>0,SUM(予算計画!$F70:$F71),0) -> 0 | CX64: =IF(CX60>0,SUM(予算計画!$F70:$F71),0) -> 0 | CY64: その他費用 | CZ64: =IF(CZ60>0,SUM(予算計画!$F70:$F71),0) -> 0 | DA64: =IF(DA60>0,SUM(予算計画!$F70:$F71),0) -> 0 | DB64: =IF(DB60>0,SUM(予算計画!$F70:$F71),0) -> 0 | DC64: その他費用 | DD64: =IF(DD60>0,SUM(予算計画!$F70:$F71),0) -> 0 | DE64: =IF(DE60>0,SUM(予算計画!$F70:$F71),0) -> 0 | DF64: =IF(DF60>0,SUM(予算計画!$F70:$F71),0) -> 0
B66: =資金調達!J15 -> 中間時 | C66: 支払合計 | D66: =SUM(D71:D74) -> 0 | E66: 支払合計 | F66: =SUM(F71:F74) -> 0 | G66: 支払合計 | H66: =SUM(H71:H74) -> 0 | I66: 支払合計 | J66: =SUM(J71:J74) -> 0 | K66: 支払合計 | L66: =SUM(L71:L74) -> 0 | M66: 支払合計 | N66: =SUM(N71:N74) -> 0 | O66: 支払合計 | P66: =SUM(P71:P74) -> 0 | Q66: 支払合計 | R66: =SUM(R71:R74) ->  | S66: 支払合計 | T66: =SUM(T71:T74) -> 0 | U66: 支払合計 | V66: =SUM(V71:V74) -> 0 | W66: 支払合計 | X66: =SUM(X71:X74) -> 0 | Y66: 支払合計 | Z66: =SUM(Z71:Z74) -> 0 | AA66: 支払合計 | AB66: =SUM(AB71:AB74) -> 0 | AC66: 支払合計 | AD66: =SUM(AD71:AD74) -> 0 | AE66: 支払合計 | AF66: =SUM(AF71:AF74) -> 0 | AG66: 支払合計 | AH66: =SUM(AH71:AH74) -> 0 | AI66: 支払合計 | AJ66: =SUM(AJ71:AJ74) -> 0 | AK66: 支払合計 | AL66: =SUM(AL71:AL74) -> 0 | AM66: 支払合計 | AN66: =SUM(AN71:AN74) -> 0 | AO66: 支払合計 | AP66: =SUM(AP71:AP74) -> 0 | AQ66: 支払合計 | AR66: =SUM(AR71:AR74) -> 0 | AS66: 支払合計 | AT66: =SUM(AT71:AT73) -> 0 | AU66: 支払合計 | AV66: =SUM(AV71:AV73) -> 0 | AW66: 支払合計 | AX66: =SUM(AX71:AX73) -> 0 | AY66: 支払合計 | AZ66: =SUM(AZ71:AZ73) -> 0 | BA66: 支払合計 | BB66: =SUM(BB71:BB73) -> 0 | BC66: 支払合計 | BD66: =SUM(BD71:BD73) -> 0 | BE66: 支払合計 | BF66: =SUM(BF71:BF74) -> 0 | BG66: 支払合計 | BH66: =SUM(BH71:BH74) -> 0 | BI66: 支払合計 | BJ66: =SUM(BJ71:BJ74) -> 0 | BK66: 支払合計 | BL66: =SUM(BL71:BL74) -> 0 | BM66: 支払合計 | BN66: =SUM(BN71:BN74) -> 0 | BO66: 支払合計 | BP66: =SUM(BP71:BP74) -> 0 | BQ66: 支払合計 | BR66: =SUM(BR71:BR74) -> 0 | BS66: 支払合計 | BT66: =SUM(BT71:BT74) -> 0 | BU66: 支払合計 | BV66: =SUM(BV71:BV74) -> 0 | BW66: 支払合計 | BX66: =SUM(BX71:BX74) -> 0 | BY66: 支払合計 | BZ66: =SUM(BZ71:BZ74) -> 0 | CA66: 支払合計 | CB66: =SUM(CB71:CB74) -> 0 | CC66: 支払合計 | CD66: =SUM(CD71:CD74) -> 0 | CE66: 支払合計 | CF66: =SUM(CF71:CF74) -> 0 | CG66: 支払合計 | CH66: =SUM(CH71:CH74) -> 0 | CI66: 支払合計 | CJ66: =SUM(CJ71:CJ74) -> 0 | CK66: 支払合計 | CL66: =SUM(CL71:CL74) -> 0 | CM66: 支払合計 | CN66: =SUM(CN71:CN74) -> 0 | CO66: 支払合計 | CP66: =SUM(CP71:CP74) -> 0 | CQ66: 支払合計 | CR66: =SUM(CR71:CR74) -> 0 | CS66: 支払合計 | CT66: =SUM(CT71:CT74) -> 0 | CU66: 支払合計 | CV66: =SUM(CV71:CV74) -> 0 | CW66: =SUM(CW71:CW74) -> 0 | CX66: =SUM(CX71:CX74) -> 0 | CY66: 支払合計 | CZ66: =SUM(CZ71:CZ74) -> 0 | DA66: =SUM(DA71:DA74) -> 0 | DB66: =SUM(DB71:DB74) -> 0 | DC66: 支払合計 | DD66: =SUM(DD71:DD74) -> 0 | DE66: =SUM(DE71:DE74) -> 0 | DF66: =SUM(DF71:DF74) -> 0
C68: 住宅ローン | D68: =資金調達!$M15 -> 0 | E68: 住宅ローン | F68: =資金調達!$M15 -> 0 | G68: 住宅ローン | H68: =資金調達!$M15 -> 0 | I68: 住宅ローン | J68: =資金調達!$M15 -> 0 | K68: つなぎ融資（東光商事） | L68: =資金調達!$M15 -> 0 | M68: =IF(N12>0,"つなぎ融資","住宅ローン") -> 住宅ローン | N68: =資金調達!$M15 -> 0 | O68: =IF(P57=0,"住宅ローン","つなぎ融資") -> 住宅ローン | P68: =資金調達!$M15 -> 0 | Q68: =IF(R57=0,"住宅ローン","つなぎ融資") -> 住宅ローン | R68: =資金調達!$M15 -> 0 | S68: =IF(T57=0,"住宅ローン","つなぎ融資") -> 住宅ローン | T68: =資金調達!$M15 -> 0 | U68: つなぎ融資（東光商事） | V68: =資金調達!$M15 -> 0 | W68: つなぎ融資（東光商事） | X68: =資金調達!$M15 -> 0 | Y68: つなぎ融資（東光商事） | Z68: =資金調達!$M15 -> 0 | AA68: つなぎ融資（東光商事） | AB68: =資金調達!$M15 -> 0 | AC68: つなぎ融資（東光商事） | AD68: =資金調達!$M15 -> 0 | AE68: つなぎ融資（アプラス） | AF68: =資金調達!$M15 -> 0 | AG68: つなぎ融資（アプラス） | AH68: =資金調達!$M15 -> 0 | AI68: つなぎ融資（東光商事） | AJ68: =資金調達!$M15 -> 0 | AK68: つなぎ融資（東光商事） | AL68: =資金調達!$M15 -> 0 | AM68: 住宅ローン | AN68: =IF(AND(AN28=0,AN39=0,AN60=0,AN71>0),AN11,0) -> 0 | AO68: 住宅ローン | AP68: =IF(AND(AP28=0,AP39=0,AP60=0,AP71>0),AP11,0) -> 0 | AQ68: 住宅ローン | AR68: =IF(AND(AR28=0,AR39=0,AR60=0,AR71>0),AR11,0) -> 0 | AS68: 住宅ローン | AT68: =資金調達!$M15 -> 0 | AU68: つなぎ融資（東光商事） | AV68: =資金調達!$M15 -> 0 | AW68: 住宅ローン | AX68: =資金調達!$M15 -> 0 | AY68: つなぎ融資（東光商事） | AZ68: =資金調達!$M15 -> 0 | BA68: 住宅ローン | BB68: =資金調達!$M15 -> 0 | BC68: つなぎ融資（東光商事） | BD68: =資金調達!$M15 -> 0 | BE68: 住宅ローン | BF68: =資金調達!$M15 -> 0 | BG68: 住宅ローン | BH68: =資金調達!$M15 -> 0 | BI68: 住宅ローン | BJ68: =資金調達!$M15 -> 0 | BK68: 住宅ローン | BL68: =資金調達!$M15 -> 0 | BM68: 住宅ローン | BN68: =IF(AND(BN28=0,BN39=0,BN60=0,BN71>0),BN11,0) -> 0 | BO68: =IF(BP57=0,"住宅ローン","つなぎ融資") -> 住宅ローン | BP68: =資金調達!$M15 -> 0 | BQ68: =IF(BR57=0,"住宅ローン","つなぎ融資") -> 住宅ローン | BR68: =資金調達!$M15 -> 0 | BS68: つなぎ融資（東光商事） | BT68: =資金調達!$M15 -> 0 | BU68: つなぎ融資（東光商事） | BV68: =資金調達!$M15 -> 0 | BW68: つなぎ融資（東光商事） | BX68: =資金調達!$M15 -> 0 | BY68: つなぎ融資（東光商事） | BZ68: =資金調達!$M15 -> 0 | CA68: つなぎ融資（アプラス） | CB68: =資金調達!$M15 -> 0 | CC68: つなぎ融資（アプラス） | CD68: =資金調達!$M15 -> 0 | CE68: つなぎ融資 | CF68: =資金調達!$M15 -> 0 | CG68: つなぎ融資 | CH68: =資金調達!$M15 -> 0 | CI68: つなぎ融資 | CJ68: =資金調達!$M15 -> 0 | CK68: =IF(CL57=0,"住宅ローン","つなぎ融資") -> 住宅ローン | CL68: =資金調達!$M15 -> 0 | CM68: つなぎ融資（東光商事） | CN68: =資金調達!$M15 -> 0 | CO68: つなぎ融資（東光商事） | CP68: =資金調達!$M15 -> 0 | CQ68: つなぎ融資（東光商事） | CR68: =資金調達!$M15 -> 0 | CS68: つなぎ融資（東光商事） | CT68: =資金調達!$M15 -> 0 | CU68: つなぎ融資 | CV68: =資金調達!$M15 -> 0 | CW68: =資金調達!$M15 -> 0 | CX68: =資金調達!$M15 -> 0 | CY68: つなぎ融資 | CZ68: =資金調達!$M15 -> 0 | DA68: =資金調達!$M15 -> 0 | DB68: =資金調達!$M15 -> 0 | DC68: つなぎ融資 | DD68: =資金調達!$M15 -> 0 | DE68: =資金調達!$M15 -> 0 | DF68: =資金調達!$M15 -> 0
C69: 自己資金 | D69: =D66-D68 -> 0 | E69: 自己資金 | F69: =F66-F68 -> 0 | G69: 自己資金 | H69: =H66-H68 -> 0 | I69: 自己資金 | J69: =J66-J68 -> 0 | K69: 自己資金 | L69: =L66-L68 -> 0 | M69: 自己資金 | N69: =N66-N68 -> 0 | O69: 自己資金 | P69: =P66-P68 -> 0 | Q69: 自己資金 | R69: =R66-R68 ->  | S69: 自己資金 | T69: =T66-T68 -> 0 | U69: 自己資金 | V69: =V66-V68 -> 0 | W69: 自己資金 | X69: =X66-X68 -> 0 | Y69: 自己資金 | Z69: =Z66-Z68 -> 0 | AA69: 自己資金 | AB69: =AB66-AB68 -> 0 | AC69: 自己資金 | AD69: =AD66-AD68 -> 0 | AE69: 自己資金 | AF69: =AF66-AF68 -> 0 | AG69: 自己資金 | AH69: =AH66-AH68 -> 0 | AI69: 自己資金 | AJ69: =AJ66-AJ68 -> 0 | AK69: 自己資金 | AL69: =AL66-AL68 -> 0 | AM69: 自己資金 | AN69: =AN66-AN68 -> 0 | AO69: 自己資金 | AP69: =AP66-AP68 -> 0 | AQ69: 自己資金 | AR69: =AR66-AR68 -> 0 | AS69: 自己資金 | AT69: =AT66-AT68 -> 0 | AU69: 自己資金 | AV69: =AV66-AV68 -> 0 | AW69: 自己資金 | AX69: =AX66-AX68 -> 0 | AY69: 自己資金 | AZ69: =AZ66-AZ68 -> 0 | BA69: 自己資金 | BB69: =BB66-BB68 -> 0 | BC69: 自己資金 | BD69: =BD66-BD68 -> 0 | BE69: 自己資金 | BF69: =BF66-BF68 -> 0 | BG69: 自己資金 | BH69: =BH66-BH68 -> 0 | BI69: 自己資金 | BJ69: =BJ66-BJ68 -> 0 | BK69: 自己資金 | BL69: =BL66-BL68 -> 0 | BM69: 自己資金 | BN69: =BN66-BN68 -> 0 | BO69: 自己資金 | BP69: =BP66-BP68 -> 0 | BQ69: 自己資金 | BR69: =BR66-BR68 -> 0 | BS69: 自己資金 | BT69: =BT66-BT68 -> 0 | BU69: 自己資金 | BV69: =BV66-BV68 -> 0 | BW69: 自己資金 | BX69: =BX66-BX68 -> 0 | BY69: 自己資金 | BZ69: =BZ66-BZ68 -> 0 | CA69: 自己資金 | CB69: =CB66-CB68 -> 0 | CC69: 自己資金 | CD69: =CD66-CD68 -> 0 | CE69: 自己資金 | CF69: =CF66-CF68 -> 0 | CG69: 自己資金 | CH69: =CH66-CH68 -> 0 | CI69: 自己資金 | CJ69: =CJ66-CJ68 -> 0 | CK69: 自己資金 | CL69: =CL66-CL68 -> 0 | CM69: 自己資金 | CN69: =CN66-CN68 -> 0 | CO69: 自己資金 | CP69: =CP66-CP68 -> 0 | CQ69: 自己資金 | CR69: =CR66-CR68 -> 0 | CS69: 自己資金 | CT69: =CT66-CT68 -> 0 | CU69: 自己資金 | CV69: =CV66-CV68 -> 0 | CW69: =CW66-CW68 -> 0 | CX69: =CX66-CX68 -> 0 | CY69: 自己資金 | CZ69: =CZ66-CZ68 -> 0 | DA69: =DA66-DA68 -> 0 | DB69: =DB66-DB68 -> 0 | DC69: 自己資金 | DD69: =DD66-DD68 -> 0 | DE69: =DE66-DE68 -> 0 | DF69: =DF66-DF68 -> 0
C71: 中間金 | D71: =IF(資金調達!$J$15=$B66,資金調達!$L$14,0) -> 0 | E71: 中間金 | F71: =IF(資金調達!$J$15=$B66,資金調達!$L$14,0) -> 0 | G71: 中間金 | H71: =IF(資金調達!$J$15=$B66,資金調達!$L$14,0) -> 0 | I71: 中間金 | J71: =IF(資金調達!$J$15=$B66,資金調達!$L$14,0) -> 0 | K71: 中間金 | L71: =IF(資金調達!$J$15=$B66,資金調達!$L$14,0) -> 0 | M71: 中間金 | N71: =IF(資金調達!$J$15=$B66,資金調達!$L$14,0) -> 0 | O71: 中間金 | P71: =IF(資金調達!$J$15=$B66,資金調達!$L$14,0) -> 0 | Q71: 中間金 | R71: =IF(資金調達!$J$15=$B66,資金調達!$L$14,0) -> 0 | S71: 中間金 | T71: =IF(資金調達!$J$15=$B66,資金調達!$L$14,0) -> 0 | U71: 中間金 | V71: =IF(資金調達!$J$15=$B66,資金調達!$L$14,0) -> 0 | W71: 中間金 | X71: =IF(資金調達!$J$15=$B66,資金調達!$L$14,0) -> 0 | Y71: 中間金 | Z71: =IF(資金調達!$J$15=$B66,資金調達!$L$14,0) -> 0 | AA71: 中間金 | AB71: =IF(資金調達!$J$15=$B66,資金調達!$L$14,0) -> 0 | AC71: 中間金 | AD71: =IF(資金調達!$J$15=$B66,資金調達!$L$14,0) -> 0 | AE71: 中間金 | AF71: =IF(資金調達!$J$15=$B66,資金調達!$L$14,0) -> 0 | AG71: 中間金 | AH71: =IF(資金調達!$J$15=$B66,資金調達!$L$14,0) -> 0 | AI71: 中間金 | AJ71: =IF(資金調達!$J$15=$B66,資金調達!$L$14,0) -> 0 | AK71: 中間金 | AL71: =IF(資金調達!$J$15=$B66,資金調達!$L$14,0) -> 0 | AM71: 中間金 | AN71: =IF(資金調達!$J$15=$B66,資金調達!$L$14,0) -> 0 | AO71: 中間金 | AP71: =IF(資金調達!$J$15=$B66,資金調達!$L$14,0) -> 0 | AQ71: 中間金 | AR71: =IF(資金調達!$J$15=$B66,資金調達!$L$14,0) -> 0 | AS71: 中間金 | AT71: =IF(資金調達!$J$15=$B66,資金調達!$L$14,0) -> 0 | AU71: 中間金 | AV71: =IF(資金調達!$J$15=$B66,資金調達!$L$14,0) -> 0 | AW71: 中間金 | AX71: =IF(資金調達!$J$15=$B66,資金調達!$L$14,0) -> 0 | AY71: 中間金 | AZ71: =IF(資金調達!$J$15=$B66,資金調達!$L$14,0) -> 0 | BA71: 中間金 | BB71: =IF(資金調達!$J$15=$B66,資金調達!$L$14,0) -> 0 | BC71: 中間金 | BD71: =IF(資金調達!$J$15=$B66,資金調達!$L$14,0) -> 0 | BE71: 中間金 | BF71: =IF(資金調達!$J$15=$B66,資金調達!$L$14,0) -> 0 | BG71: 中間金 | BH71: =IF(資金調達!$J$15=$B66,資金調達!$L$14,0) -> 0 | BI71: 中間金 | BJ71: =IF(資金調達!$J$15=$B66,資金調達!$L$14,0) -> 0 | BK71: 中間金 | BL71: =IF(資金調達!$J$15=$B66,資金調達!$L$14,0) -> 0 | BM71: 中間金 | BN71: =IF(資金調達!$J$15=$B66,資金調達!$L$14,0) -> 0 | BO71: 中間金 | BP71: =IF(資金調達!$J$15=$B66,資金調達!$L$14,0) -> 0 | BQ71: 中間金 | BR71: =IF(資金調達!$J$15=$B66,資金調達!$L$14,0) -> 0 | BS71: 中間金 | BT71: =IF(資金調達!$J$15=$B66,資金調達!$L$14,0) -> 0 | BU71: 中間金 | BV71: =IF(資金調達!$J$15=$B66,資金調達!$L$14,0) -> 0 | BW71: 中間金 | BX71: =IF(資金調達!$J$15=$B66,資金調達!$L$14,0) -> 0 | BY71: 中間金 | BZ71: =IF(資金調達!$J$15=$B66,資金調達!$L$14,0) -> 0 | CA71: 中間金 | CB71: =IF(資金調達!$J$15=$B66,資金調達!$L$14,0) -> 0 | CC71: 中間金 | CD71: =IF(資金調達!$J$15=$B66,資金調達!$L$14,0) -> 0 | CE71: 中間金 | CF71: =IF(資金調達!$J$15=$B66,資金調達!$L$14,0) -> 0 | CG71: 中間金 | CH71: =IF(資金調達!$J$15=$B66,資金調達!$L$14,0) -> 0 | CI71: 中間金 | CJ71: =IF(資金調達!$J$15=$B66,資金調達!$L$14,0) -> 0 | CK71: 中間金 | CL71: =IF(資金調達!$J$15=$B66,資金調達!$L$14,0) -> 0 | CM71: 中間金 | CN71: =IF(資金調達!$J$15=$B66,資金調達!$L$14,0) -> 0 | CO71: 中間金 | CP71: =IF(資金調達!$J$15=$B66,資金調達!$L$14,0) -> 0 | CQ71: 中間金 | CR71: =IF(資金調達!$J$15=$B66,資金調達!$L$14,0) -> 0 | CS71: 中間金 | CT71: =IF(資金調達!$J$15=$B66,資金調達!$L$14,0) -> 0 | CU71: 中間金 | CV71: =IF(資金調達!$J$15=$B66,資金調達!$L$14,0) -> 0 | CW71: =IF(資金調達!$J$15=$B66,資金調達!$L$14,0) -> 0 | CX71: =IF(資金調達!$J$15=$B66,資金調達!$L$14,0) -> 0 | CY71: 中間金 | CZ71: =IF(資金調達!$J$15=$B66,資金調達!$L$14,0) -> 0 | DA71: =IF(資金調達!$J$15=$B66,資金調達!$L$14,0) -> 0 | DB71: =IF(資金調達!$J$15=$B66,資金調達!$L$14,0) -> 0 | DC71: 中間金 | DD71: =IF(資金調達!$J$15=$B66,資金調達!$L$14,0) -> 0 | DE71: =IF(資金調達!$J$15=$B66,資金調達!$L$14,0) -> 0 | DF71: =IF(資金調達!$J$15=$B66,資金調達!$L$14,0) -> 0
C72: 融資関係手数料 | D72: =IF(AND(D25=0,D36=0,D46=0,D57=0,D68>0),D11*諸費用!$Q28+諸費用!$S28/10000,0) -> 0 | E72: 融資関係手数料 | F72: =IF(AND(F25=0,F36=0,F46=0,F57=0,F68>0),F11*諸費用!$Q29+諸費用!$S29/10000,0) -> 0 | G72: 融資関係手数料 | H72: =IF(AND(H25=0,H36=0,H46=0,H57=0,H68>0),諸費用!$R30/10000+諸費用!$S30/10000,0) -> 0 | I72: 融資関係手数料 | J72: =IF(AND(J25=0,J36=0,J46=0,J57=0,J68>0),諸費用!$S31/10000,0) -> 0 | K72: 融資関係手数料 | L72: =IF(AND(L57=0,L71>0),諸費用!$AD27/10000,0) -> 0 | M72: 融資関係手数料 | N72: =IF(M68="住宅ローン",N68*諸費用!$Q37,IF(N68>0,諸費用!$AD37/10000,0)) -> 0 | O72: 融資関係手数料 | P72: =IF(O68="住宅ローン",P68*諸費用!$Q21,IF(P68>0,諸費用!$AD21/10000,0)) -> 0 | Q72: 融資関係手数料 | R72: =IF(Q68="住宅ローン",R68*諸費用!$Q22,IF(R68>0,諸費用!$AD22/10000,0)) ->  | S72: 融資関係手数料 | T72: =IF(S68="住宅ローン",T68*諸費用!$Q23,IF(T68>0,諸費用!$AD23/10000,0)) -> 0 | U72: 融資関係手数料 | V72: =IF(AND(V25=0,V36=0,V46=0,V57=0,V68>0),諸費用!$AD81/10000,0) -> 0 | W72: 融資関係手数料 | X72: =IF(AND(X25=0,X36=0,X46=0,X57=0,X68>0),諸費用!$AD2/10000,0) -> 0 | Y72: 融資関係手数料 | Z72: =IF(AND(Z25=0,Z36=0,Z46=0,Z57=0,Z68>0),諸費用!$AD3/10000,0) -> 0 | AA72: 融資関係手数料 | AB72: =IF(AND(AB25=0,AB36=0,AB46=0,AB57=0,AB68>0),諸費用!$AD51/10000,0) -> 0 | AC72: 融資関係手数料 | AD72: =IF(AND(AD57=0,AD71>0),諸費用!$AD13/10000,0) -> 0 | AE72: 融資関係手数料 | AF72: =IF(AND(AF57=0,AF71>0),諸費用!$AD13/10000,0) -> 0 | AG72: 融資関係手数料 | AH72: =IF(AND(AH25=0,AH36=0,AH46=0,AH57=0,AH68>0),(諸費用!$AD20+諸費用!$AF20)/10000,0) -> 0 | AI72: 融資関係手数料 | AJ72: =IF(AND(AJ57=0,AJ71>0),諸費用!$AD41/10000,0) -> 0 | AK72: 融資関係手数料 | AL72: =IF(AND(AL57=0,AL71>0),諸費用!$AD42/10000,0) -> 0 | AM72: 融資関係手数料 | AN72: =IF(AN68=0,0,IF(AND(AN25=0,AN36=0,AN57=0,AN68>0),AN11*諸費用!$Q92+諸費用!$S92/10000,0)) -> 0 | AO72: 融資関係手数料 | AP72: =IF(AP68=0,0,IF(AND(AP25=0,AP36=0,AP57=0,AP68>0),AP11*諸費用!$Q93+諸費用!$S93/10000,0)) -> 0 | AQ72: 融資関係手数料 | AR72: =IF(AR68=0,0,IF(AND(AR25=0,AR36=0,AR57=0,AR68>0),AR11*諸費用!$Q93+諸費用!$S93/10000,0)) -> 0 | AS72: 融資関係手数料 | AT72: =IF(AND(AT25=0,AT36=0,AT46=0,AT57=0,AT68>0),AT11*諸費用!$Q95+諸費用!$S95/10000,0) -> 0 | AU72: 融資関係手数料 | AV72: =IF(AND(AV25=0,AV36=0,AV57=0,AV68>0),諸費用!$AD96/10000,0) -> 0 | AW72: 融資関係手数料 | AX72: =IF(AND(AX25=0,AX36=0,AX46=0,AX57=0,AX68>0),諸費用!$S97/10000,0) -> 0 | AY72: 融資関係手数料 | AZ72: =IF(AND(AZ25=0,AZ36=0,AZ57=0,AZ68>0),諸費用!$AD98/10000,0) -> 0 | BA72: 融資関係手数料 | BB72: =IF(AND(BB25=0,BB36=0,BB46=0,BB57=0,BB68>0),BB11*諸費用!$Q99+諸費用!$S99/10000,0) -> 0 | BC72: 融資関係手数料 | BD72: =IF(AND(BD25=0,BD36=0,BD57=0,BD68>0),諸費用!$AD100/10000,0) -> 0 | BE72: 融資関係手数料 | BF72: =IF(BE68="住宅ローン",BF68*諸費用!$Q37,IF(BF68>0,諸費用!$AD37/10000,0)) -> 0 | BG72: 融資関係手数料 | BH72: =IF(BG68="住宅ローン",BH68*諸費用!$Q37,IF(BH68>0,諸費用!$AD37/10000,0)) -> 0 | BI72: 融資関係手数料 | BJ72: =IF(BI68="住宅ローン",BJ68*諸費用!$Q37,IF(BJ68>0,諸費用!$AD37/10000,0)) -> 0 | BK72: 融資関係手数料 | BL72: =IF(BK68="住宅ローン",BL68*諸費用!$Q37,IF(BL68>0,諸費用!$AD37/10000,0)) -> 0 | BM72: 融資関係手数料 | BN72: =IF(BN68=0,0,IF(AND(BN25=0,BN36=0,BN57=0,BN68>0),諸費用!$R86/10000+諸費用!$S86/10000,0)) -> 0 | BO72: 融資関係手数料 | BP72: =IF(BO68="住宅ローン",BP68*諸費用!$Q37,IF(BP68>0,諸費用!$AD37/10000,0)) -> 0 | BQ72: 融資関係手数料 | BR72: =IF(BQ68="住宅ローン",BR68*諸費用!$Q37,IF(BR68>0,諸費用!$AD37/10000,0)) -> 0 | BS72: 融資関係手数料 | BT72: =IF(AND(BT57=0,BT71>0),諸費用!$AD4/10000,0) -> 0 | BU72: 融資関係手数料 | BV72: =IF(AND(BV57=0,BV71>0),諸費用!$AD5/10000,0) -> 0 | BW72: 融資関係手数料 | BX72: =IF(AND(BX57=0,BX71>0),諸費用!$AD6/10000,0) -> 0 | BY72: 融資関係手数料 | BZ72: =IF(AND(BZ57=0,BZ71>0),諸費用!$AD7/10000,0) -> 0 | CA72: 融資関係手数料 | CB72: =IF(AND(CB25=0,CB36=0,CB57=0,CB68>0),諸費用!$AD48/10000,0) -> 0 | CC72: 融資関係手数料 | CD72: =IF(AND(CD25=0,CD36=0,CD46=0,CD57=0,CD68>0),諸費用!$AD49/10000,0) -> 0 | CE72: 融資関係手数料 | CF72: =IF(AND(CF25=0,CF36=0,CF57=0,CF68>0),諸費用!$AD89/10000,0) -> 0 | CG72: 融資関係手数料 | CH72: =IF(AND(CH25=0,CH36=0,CH57=0,CH68>0),諸費用!$AD90/10000,0) -> 0 | CI72: 融資関係手数料 | CJ72: =IF(AND(CJ25=0,CJ36=0,CJ57=0,CJ68>0),諸費用!$AD90/10000,0) -> 0 | CK72: 融資関係手数料 | CL72: =IF(CK68="住宅ローン",CL68*諸費用!$Q37,IF(CL68>0,諸費用!$AD37/10000,0)) -> 0 | CM72: 融資関係手数料 | CN72: =IF(AND(CN25=0,CN36=0,CN46=0,CN57=0,CN68>0),諸費用!$AD105/10000,0) -> 0 | CO72: 融資関係手数料 | CP72: =IF(AND(CP25=0,CP36=0,CP57=0,CP68>0),諸費用!$AD106/10000,0) -> 0 | CQ72: 融資関係手数料 | CR72: =IF(AND(CR57=0,CR71>0),諸費用!$AD108/10000,0) -> 0 | CS72: 融資関係手数料 | CT72: =IF(AND(CT57=0,CT71>0),諸費用!$AD109/10000,0) -> 0 | CU72: 融資関係手数料 | CV72: 0 | CW72: 0 | CX72: 0 | CY72: 融資関係手数料 | CZ72: 0 | DA72: 0 | DB72: 0 | DC72: 融資関係手数料 | DD72: 0 | DE72: 0 | DF72: 0
C73: 収入印紙（融資契約） | D73: =IF(D68>0,IF(資金調達!$G6=5,2,1)*諸費用!$V28/10000,0) -> 0 | E73: 収入印紙 | F73: =IF(F68>0,IF(資金調達!$G6=5,2,1)*諸費用!$V29/10000,0) -> 0 | G73: 収入印紙 | H73: =IF(H68>0,IF(資金調達!$G6=5,2,1)*諸費用!$V30/10000,0) -> 0 | I73: 収入印紙 | J73: =IF(J68>0,IF(資金調達!$G6=5,2,1)*諸費用!$V31/10000,0) -> 0 | K73: 収入印紙 | L73: =IF(AND(L68>0,L57=0),諸費用!$AF27/10000,0) -> 0 | M73: 収入印紙 | N73: =IF(M68="住宅ローン",IF(N60>0,IF(資金調達!$G6=5,2,1)*諸費用!$V37/10000,0),IF(N68>0,諸費用!$AF37/10000,0)) -> 0 | O73: 収入印紙 | P73: =IF(O68="住宅ローン",IF(P60>0,IF(資金調達!$G6=5,2,1)*諸費用!$V21/10000,0),IF(P68>0,諸費用!$AF21/10000,0)) -> 0 | Q73: 収入印紙 | R73: =IF(Q68="住宅ローン",IF(R60>0,IF(資金調達!$G6=5,2,1)*諸費用!$V22/10000,0),IF(R68>0,諸費用!$AF22/10000,0)) -> 0 | S73: 収入印紙 | T73: =IF(S68="住宅ローン",IF(T60>0,IF(資金調達!$G6=5,2,1)*諸費用!$V23/10000,0),IF(T68>0,諸費用!$AF23/10000,0)) -> 0 | U73: 収入印紙 | V73: =IF(AND(V25=0,V36=0,V46=0,V57=0,V68>0),諸費用!$AF81/10000,0) -> 0 | W73: 収入印紙 | X73: =IF(AND(X25=0,X36=0,X46=0,X57=0,X68>0),諸費用!$AF2/10000,0) -> 0 | Y73: 収入印紙 | Z73: =IF(AND(Z25=0,Z36=0,Z46=0,Z57=0,Z68>0),諸費用!$AF3/10000,0) -> 0 | AA73: 収入印紙 | AB73: =IF(AND(AB25=0,AB36=0,AB46=0,AB57=0,AB68>0),諸費用!$AF51/10000,0) -> 0 | AC73: 収入印紙 | AD73: =IF(AND(L68>0,L57=0),諸費用!$AF13/10000,0) -> 0 | AE73: 収入印紙 | AF73: =IF(AND(N68>0,N57=0),諸費用!$AF13/10000,0) -> 0 | AG73: 収入印紙 | AH73: =IF(AND(AH25=0,AH36=0,AH46=0,AH57=0,AH68>0),諸費用!$AF20/10000,0) -> 0 | AI73: 収入印紙 | AJ73: =IF(AND(AJ68>0,AJ57=0),諸費用!$AF41/10000,0) -> 0 | AK73: 収入印紙 | AL73: =IF(AND(AL68>0,AL57=0),諸費用!$AF42/10000,0) -> 0 | AM73: 収入印紙 | AN73: =IF(AN71=0,0,IF(資金調達!$G6=5,2,1)*諸費用!$AF92/10000) -> 0 | AO73: 収入印紙 | AP73: =IF(AP71=0,0,IF(資金調達!$G6=5,2,1)*諸費用!$AF93/10000) -> 0 | AQ73: 収入印紙 | AR73: =IF(AR71=0,0,IF(資金調達!$G6=5,2,1)*諸費用!$AF94/10000) -> 0 | AS73: 収入印紙 | AT73: =IF(AT68>0,VLOOKUP(AT68*10000,table!B3:D11,2,TRUE)/10000,0) -> 0 | AU73: 収入印紙 | AV73: =IF(AND(AV25=0,AV36=0,AV57=0,AV68>0),VLOOKUP(AV68*10000,table!$B3:$D11,2,TRUE)/10000,0) -> 0 | AW73: 収入印紙 | AX73: =IF(AX68>0,VLOOKUP(AX68*10000,table!B3:D11,2,TRUE)/10000,0) -> 0 | AY73: 収入印紙 | AZ73: =IF(AND(AZ25=0,AZ36=0,AZ57=0,AZ68>0),VLOOKUP(AZ68*10000,table!$B3:$D11,2,TRUE)/10000,0) -> 0 | BA73: 収入印紙 | BB73: =IF(BB68>0,VLOOKUP(BB68*10000,table!B3:D11,2,TRUE)/10000,0) -> 0 | BC73: 収入印紙 | BD73: =IF(AND(BD25=0,BD36=0,BD57=0,BD68>0),VLOOKUP(BD68*10000,table!$B3:$D11,2,TRUE)/10000,0) -> 0 | BE73: 収入印紙 | BF73: =IF(BE68="住宅ローン",IF(BF60>0,IF(資金調達!$G6=5,2,1)*諸費用!$V37/10000,0),IF(BF68>0,諸費用!$AF37/10000,0)) -> 0 | BG73: 収入印紙 | BH73: =IF(BG68="住宅ローン",IF(BH60>0,IF(資金調達!$G6=5,2,1)*諸費用!$V37/10000,0),IF(BH68>0,諸費用!$AF37/10000,0)) -> 0 | BI73: 収入印紙 | BJ73: =IF(BI68="住宅ローン",IF(BJ60>0,IF(資金調達!$G6=5,2,1)*諸費用!$V37/10000,0),IF(BJ68>0,諸費用!$AF37/10000,0)) -> 0 | BK73: 収入印紙 | BL73: =IF(BK68="住宅ローン",IF(BL60>0,IF(資金調達!$G6=5,2,1)*諸費用!$V37/10000,0),IF(BL68>0,諸費用!$AF37/10000,0)) -> 0 | BM73: 収入印紙 | BN73: =IF(BN71=0,0,IF(資金調達!$G6=5,2,1)*諸費用!$AF86/10000) -> 0 | BO73: 収入印紙 | BP73: =IF(BO68="住宅ローン",IF(BP60>0,IF(資金調達!$G6=5,2,1)*諸費用!$V37/10000,0),IF(BP68>0,諸費用!$AF37/10000,0)) -> 0 | BQ73: 収入印紙 | BR73: =IF(BQ68="住宅ローン",IF(BR60>0,IF(資金調達!$G6=5,2,1)*諸費用!$V37/10000,0),IF(BR68>0,諸費用!$AF37/10000,0)) -> 0 | BS73: 収入印紙 | BT73: =IF(AND(BT68>0,BT57=0),諸費用!$AF4/10000,0) -> 0 | BU73: 収入印紙 | BV73: =IF(AND(BV68>0,BV57=0),諸費用!$AF5/10000,0) -> 0 | BW73: 収入印紙 | BX73: =IF(AND(BX68>0,BX57=0),諸費用!$AF6/10000,0) -> 0 | BY73: 収入印紙 | BZ73: =IF(AND(BZ68>0,BZ57=0),諸費用!$AF7/10000,0) -> 0 | CA73: =IF(AND(CA25=0,CA36=0,CA46=0,CA57=0,CA68>0),諸費用!$AF42/10000,0) -> 0 | CB73: =IF(AND(CB25=0,CB36=0,CB46=0,CB57=0,CB68>0),諸費用!$AF42/10000,0) -> 0 | CC73: =IF(AND(CC25=0,CC36=0,CC46=0,CC57=0,CC68>0),諸費用!$AF42/10000,0) -> 0 | CD73: =IF(AND(CD25=0,CD36=0,CD46=0,CD57=0,CD68>0),諸費用!$AF42/10000,0) -> 0 | CE73: =IF(AND(CE25=0,CE36=0,CE46=0,CE57=0,CE68>0),諸費用!$AF42/10000,0) -> 0 | CF73: =IF(AND(CF25=0,CF36=0,CF46=0,CF57=0,CF68>0),諸費用!$AF42/10000,0) -> 0 | CG73: =IF(AND(CG25=0,CG36=0,CG46=0,CG57=0,CG68>0),諸費用!$AF42/10000,0) -> 0 | CH73: =IF(AND(CH25=0,CH36=0,CH46=0,CH57=0,CH68>0),諸費用!$AF42/10000,0) -> 0 | CI73: =IF(AND(CI25=0,CI36=0,CI46=0,CI57=0,CI68>0),諸費用!$AF42/10000,0) -> 0 | CJ73: =IF(AND(CJ25=0,CJ36=0,CJ46=0,CJ57=0,CJ68>0),諸費用!$AF42/10000,0) -> 0 | CK73: =IF(AND(CK25=0,CK36=0,CK46=0,CK57=0,CK68>0),諸費用!$AF42/10000,0) -> 0 | CL73: =IF(CK68="住宅ローン",IF(CL60>0,IF(資金調達!$G6=5,2,1)*諸費用!$V37/10000,0),IF(CL68>0,諸費用!$AF37/10000,0)) -> 0 | CM73: =IF(AND(CM25=0,CM36=0,CM46=0,CM57=0,CM68>0),諸費用!$AF42/10000,0) -> 0 | CN73: =IF(AND(CN25=0,CN36=0,CN46=0,CN57=0,CN68>0),諸費用!$AF42/10000,0) -> 0 | CO73: =IF(AND(CO25=0,CO36=0,CO46=0,CO57=0,CO68>0),諸費用!$AF42/10000,0) -> 0 | CP73: =IF(AND(CP25=0,CP36=0,CP46=0,CP57=0,CP68>0),諸費用!$AF42/10000,0) -> 0 | CQ73: 収入印紙 | CR73: =IF(AND(CR68>0,CR57=0),諸費用!$AF108/10000,0) -> 0 | CS73: 収入印紙 | CT73: =IF(AND(CT68>0,CT57=0),諸費用!$AF109/10000,0) -> 0 | CU73: 収入印紙 | CV73: =IF(CV68>0,0.02,0) -> 0 | CW73: =IF(CW68>0,0.02,0) -> 0 | CX73: =IF(CX68>0,0.02,0) -> 0 | CY73: 収入印紙 | CZ73: =IF(AND(CZ25=0,CZ57=0,CZ68>0),VLOOKUP(CZ12*10000,table!$B$3:$D$11,2,TRUE)/10000,0) -> 0 | DA73: =IF(AND(DA25=0,DA57=0,DA68>0),VLOOKUP(DA12*10000,table!$B$3:$D$11,2,TRUE)/10000,0) -> 0 | DB73: =IF(AND(DB25=0,DB57=0,DB68>0),VLOOKUP(DB12*10000,table!$B$3:$D$11,2,TRUE)/10000,0) -> 0 | DC73: 収入印紙 | DD73: =IF(AND(DD25=0,DD57=0,DD68>0),VLOOKUP(DD12*10000,table!$B$3:$D$11,2,TRUE)/10000,0) -> 0 | DE73: =IF(AND(DE25=0,DE57=0,DE68>0),VLOOKUP(DE12*10000,table!$B$3:$D$11,2,TRUE)/10000,0) -> 0 | DF73: =IF(AND(DF25=0,DF57=0,DF68>0),VLOOKUP(DF12*10000,table!$B$3:$D$11,2,TRUE)/10000,0) -> 0
C74: 登記関係費用 | D74: =IF(AND(D17,D25=0,D36=0,D46=0,D57=0,D68>0),D17*0.4%,0) -> 0 | E74: 登記関係費用 | F74: =IF(AND(F17,F25=0,F36=0,F46=0,F57=0,F68>0),F17*0.4%,0) -> 0 | G74: 登記関係費用 | H74: =IF(AND(H17,H25=0,H36=0,H46=0,H57=0,H68>0),H17*0.4%,0) -> 0 | I74: 登記関係費用 | J74: =IF(AND(J17,J25=0,J36=0,J46=0,J57=0,J68>0),J17*0.4%,0) -> 0 | K74: 登記関係費用 | L74: =IF(AND(L57=0,L68>0),8,0) -> 0 | M74: 登記関係費用 | N74: =IF(M68="住宅ローン",IF(AND(N17,N25=0,N36=0,N46=0,N57=0,N68>0),N17*0.4%,0),8) -> 0 | O74: 登記関係費用 | P74: =IF(O68="住宅ローン",IF(AND(P17,P25=0,P36=0,P46=0,P57=0,P68>0),P17*0.4%,0),8) -> 0 | Q74: 登記関係費用 | R74: =IF(Q68="住宅ローン",IF(AND(R17,R25=0,R36=0,R46=0,R57=0,R68>0),R17*0.4%,0),8) -> 0 | S74: 登記関係費用 | T74: =IF(S68="住宅ローン",IF(AND(T17,T25=0,T36=0,T46=0,T57=0,T68>0),T17*0.4%,0),8) -> 0 | U74: 登記関係費用 | V74: =IF(AND(V17,V25=0,V36=0,V46=0,V57=0,V68>0),V17*0.4%,0) -> 0 | AD74: =IF(AND(AD57=0,AD68>0),8,0) -> 0 | AF74: =IF(AND(AF57=0,AF68>0),8,0) -> 0 | AJ74: =IF(AND(AJ57=0,AJ68>0),8,0) -> 0 | AL74: =IF(AND(AL57=0,AL68>0),8,0) -> 0 | AM74: 登記関係費用 | AN74: =IF(AM68="住宅ローン",IF(AND(AN17,AN25=0,AN36=0,AN46=0,AN57=0,AN68>0),AN17*0.4%,0),8) -> 0 | AO74: 登記関係費用 | AP74: =IF(AO68="住宅ローン",IF(AND(AP17,AP25=0,AP36=0,AP46=0,AP57=0,AP68>0),AP17*0.4%,0),8) -> 0 | AQ74: 登記関係費用 | AR74: =IF(AQ68="住宅ローン",IF(AND(AR17,AR25=0,AR36=0,AR46=0,AR57=0,AR68>0),AR17*0.4%,0),8) -> 0 | AS74: 登記関係費用 | AT74: =IF(AS68="住宅ローン",IF(AND(AT17,AT25=0,AT36=0,AT46=0,AT57=0,AT68>0),AT17*0.4%,0),8) -> 0 | AU74: =IF(AND(AU17,AU25=0,AU36=0,AU46=0,AU57=0,AU68>0),AU17*0.4%,0) -> 0 | AW74: 登記関係費用 | AX74: =IF(AW68="住宅ローン",IF(AND(AX17,AX25=0,AX36=0,AX46=0,AX57=0,AX68>0),AX17*0.4%,0),8) -> 0 | AY74: =IF(AND(AY17,AY25=0,AY36=0,AY46=0,AY57=0,AY68>0),AY17*0.4%,0) -> 0 | BA74: 登記関係費用 | BB74: =IF(BA68="住宅ローン",IF(AND(BB17,BB25=0,BB36=0,BB46=0,BB57=0,BB68>0),BB17*0.4%,0),8) -> 0 | BE74: 登記関係費用 | BF74: =IF(BE68="住宅ローン",IF(AND(BF17,BF25=0,BF36=0,BF46=0,BF57=0,BF68>0),BF17*0.4%,0),8) -> 0 | BG74: 登記関係費用 | BH74: =IF(BG68="住宅ローン",IF(AND(BH17,BH25=0,BH36=0,BH46=0,BH57=0,BH68>0),BH17*0.4%,0),8) -> 0 | BI74: 登記関係費用 | BJ74: =IF(BI68="住宅ローン",IF(AND(BJ17,BJ25=0,BJ36=0,BJ46=0,BJ57=0,BJ68>0),BJ17*0.4%,0),8) -> 0 | BK74: 登記関係費用 | BL74: =IF(BK68="住宅ローン",IF(AND(BL17,BL25=0,BL36=0,BL46=0,BL57=0,BL68>0),BL17*0.4%,0),8) -> 0 | BO74: 登記関係費用 | BP74: =IF(BO68="住宅ローン",IF(AND(BP17,BP25=0,BP36=0,BP46=0,BP57=0,BP68>0),BP17*0.4%,0),8) -> 0 | BQ74: 登記関係費用 | BR74: =IF(BQ68="住宅ローン",IF(AND(BR17,BR25=0,BR36=0,BR46=0,BR57=0,BR68>0),BR17*0.4%,0),8) -> 0 | BT74: =IF(AND(BT57=0,BT68>0),8,0) -> 0 | BV74: =IF(AND(BV57=0,BV68>0),8,0) -> 0 | BX74: =IF(AND(BX57=0,BX68>0),8,0) -> 0 | BZ74: =IF(AND(BZ57=0,BZ68>0),8,0) -> 0 | CK74: 登記関係費用 | CL74: =IF(CK68="住宅ローン",IF(AND(CL17,CL25=0,CL36=0,CL46=0,CL57=0,CL68>0),CL17*0.4%,0),8) -> 0 | CR74: =IF(AND(CR57=0,CR68>0),8,0) -> 0 | CT74: =IF(AND(CT57=0,CT68>0),8,0) -> 0
B76: 竣工前 | C76: 支払合計 | D76: =SUM(D81:D82) -> 0 | E76: 支払合計 | F76: =SUM(F81:F82) -> 0 | G76: 支払合計 | H76: =SUM(H81:H82) -> 0 | I76: 支払合計 | J76: =SUM(J81:J82) -> 0 | K76: 支払合計 | L76: =SUM(L81:L82) -> 0 | M76: 支払合計 | N76: =SUM(N81:N82) -> 0 | O76: 支払合計 | P76: =SUM(P81:P82) -> 0 | Q76: 支払合計 | R76: =SUM(R81:R82) -> 0 | S76: 支払合計 | T76: =SUM(T81:T82) -> 0 | U76: 支払合計 | V76: =SUM(V81:V82) -> 0 | W76: 支払合計 | X76: =SUM(X81:X82) -> 0 | Y76: 支払合計 | Z76: =SUM(Z81:Z82) -> 0 | AA76: 支払合計 | AB76: =SUM(AB81:AB82) -> 0 | AC76: 支払合計 | AD76: =SUM(AD81:AD82) -> 0 | AE76: 支払合計 | AF76: =SUM(AF81:AF82) -> 0 | AG76: 支払合計 | AH76: =SUM(AH81:AH82) -> 0 | AI76: 支払合計 | AJ76: =SUM(AJ81:AJ82) -> 0 | AK76: 支払合計 | AL76: =SUM(AL81:AL82) -> 0 | AM76: 支払合計 | AN76: =SUM(AN81:AN82) -> 0 | AO76: 支払合計 | AP76: =SUM(AP81:AP82) -> 0 | AQ76: 支払合計 | AR76: =SUM(AR81:AR82) -> 0 | AS76: 支払合計 | AT76: =SUM(AT81:AT82) -> 0 | AU76: 支払合計 | AV76: =SUM(AV81:AV82) -> 0 | AW76: 支払合計 | AX76: =SUM(AX81:AX82) -> 0 | AY76: 支払合計 | AZ76: =SUM(AZ81:AZ82) -> 0 | BA76: 支払合計 | BB76: =SUM(BB81:BB82) -> 0 | BC76: 支払合計 | BD76: =SUM(BD81:BD82) -> 0 | BE76: 支払合計 | BF76: =SUM(BF81:BF82) -> 0 | BG76: 支払合計 | BH76: =SUM(BH81:BH82) -> 0 | BI76: 支払合計 | BJ76: =SUM(BJ81:BJ82) -> 0 | BK76: 支払合計 | BL76: =SUM(BL81:BL82) -> 0 | BM76: 支払合計 | BN76: =SUM(BN81:BN82) -> 0 | BO76: 支払合計 | BP76: =SUM(BP81:BP82) -> 0 | BQ76: 支払合計 | BR76: =SUM(BR81:BR82) -> 0 | BS76: 支払合計 | BT76: =SUM(BT81:BT82) -> 0 | BU76: 支払合計 | BV76: =SUM(BV81:BV82) -> 0 | BW76: 支払合計 | BX76: =SUM(BX81:BX82) -> 0 | BY76: 支払合計 | BZ76: =SUM(BZ81:BZ82) -> 0 | CA76: 支払合計 | CB76: =SUM(CB81:CB82) -> 0 | CC76: 支払合計 | CD76: =SUM(CD81:CD82) -> 0 | CE76: 支払合計 | CF76: =SUM(CF81:CF82) -> 0 | CG76: 支払合計 | CH76: =SUM(CH81:CH82) -> 0 | CI76: 支払合計 | CJ76: =SUM(CJ81:CJ82) -> 0 | CK76: 支払合計 | CL76: =SUM(CL81:CL82) -> 0 | CM76: 支払合計 | CN76: =SUM(CN81:CN82) -> 0 | CO76: 支払合計 | CP76: =SUM(CP81:CP82) -> 0 | CQ76: 支払合計 | CR76: =SUM(CR81:CR82) -> 0 | CS76: 支払合計 | CT76: =SUM(CT81:CT82) -> 0 | CU76: 支払合計 | CV76: =SUM(CV81:CV82) -> 0 | CW76: =SUM(CW81:CW82) -> 0 | CX76: =SUM(CX81:CX82) -> 0 | CY76: 支払合計 | CZ76: =SUM(CZ81:CZ82) -> 0 | DA76: =SUM(DA81:DA82) -> 0 | DB76: =SUM(DB81:DB82) -> 0 | DC76: 支払合計 | DD76: =SUM(DD81:DD82) -> 0 | DE76: =SUM(DE81:DE82) -> 0 | DF76: =SUM(DF81:DF82) -> 0
CM78: 住宅ローン | CN78: 0 | CO78: 住宅ローン | CP78: 0 | CQ78: 住宅ローン | CR78: 0 | CS78: 住宅ローン | CT78: 0 | CU78: 住宅ローン | CV78: 0 | CW78: 0 | CX78: 0 | CY78: 住宅ローン | CZ78: 0 | DA78: 0 | DB78: 0 | DC78: 住宅ローン | DD78: 0 | DE78: 0 | DF78: 0
C79: 自己資金 | D79: =D81+D82 -> 0 | E79: 自己資金 | F79: =F81+F82 -> 0 | G79: 自己資金 | H79: =H81+H82 -> 0 | I79: 自己資金 | J79: =J81+J82 -> 0 | K79: 自己資金 | L79: =L81+L82 -> 0 | M79: 自己資金 | N79: =N81+N82 -> 0 | O79: 自己資金 | P79: =P81+P82 -> 0 | Q79: 自己資金 | R79: =R81+R82 -> 0 | S79: 自己資金 | T79: =T81+T82 -> 0 | U79: 自己資金 | V79: =V81+V82 -> 0 | W79: 自己資金 | X79: =X81+X82 -> 0 | Y79: 自己資金 | Z79: =Z81+Z82 -> 0 | AA79: 自己資金 | AB79: =AB81+AB82 -> 0 | AC79: 自己資金 | AD79: =AD81+AD82 -> 0 | AE79: 自己資金 | AF79: =AF81+AF82 -> 0 | AG79: 自己資金 | AH79: =AH81+AH82 -> 0 | AI79: 自己資金 | AJ79: =AJ81+AJ82 -> 0 | AK79: 自己資金 | AL79: =AL81+AL82 -> 0 | AM79: 自己資金 | AN79: =AN81+AN82 -> 0 | AO79: 自己資金 | AP79: =AP81+AP82 -> 0 | AQ79: 自己資金 | AR79: =AR81+AR82 -> 0 | AS79: 自己資金 | AT79: =AT81+AT82 -> 0 | AU79: 自己資金 | AV79: =AV81+AV82 -> 0 | AW79: 自己資金 | AX79: =AX81+AX82 -> 0 | AY79: 自己資金 | AZ79: =AZ81+AZ82 -> 0 | BA79: 自己資金 | BB79: =BB81+BB82 -> 0 | BC79: 自己資金 | BD79: =BD81+BD82 -> 0 | BE79: 自己資金 | BF79: =BF81+BF82 -> 0 | BG79: 自己資金 | BH79: =BH81+BH82 -> 0 | BI79: 自己資金 | BJ79: =BJ81+BJ82 -> 0 | BK79: 自己資金 | BL79: =BL81+BL82 -> 0 | BM79: 自己資金 | BN79: =BN81+BN82 -> 0 | BO79: 自己資金 | BP79: =BP81+BP82 -> 0 | BQ79: 自己資金 | BR79: =BR81+BR82 -> 0 | BS79: 自己資金 | BT79: =BT81+BT82 -> 0 | BU79: 自己資金 | BV79: =BV81+BV82 -> 0 | BW79: 自己資金 | BX79: =BX81+BX82 -> 0 | BY79: 自己資金 | BZ79: =BZ81+BZ82 -> 0 | CA79: 自己資金 | CB79: =CB81+CB82 -> 0 | CC79: 自己資金 | CD79: =CD81+CD82 -> 0 | CE79: 自己資金 | CF79: =CF81+CF82 -> 0 | CG79: 自己資金 | CH79: =CH81+CH82 -> 0 | CI79: 自己資金 | CJ79: =CJ81+CJ82 -> 0 | CK79: 自己資金 | CL79: =CL81+CL82 -> 0 | CM79: 自己資金 | CN79: =CN81+CN82 -> 0 | CO79: 自己資金 | CP79: =CP81+CP82 -> 0 | CQ79: 自己資金 | CR79: =CR81+CR82 -> 0 | CS79: 自己資金 | CT79: =CT81+CT82 -> 0 | CU79: 自己資金 | CV79: =CV81+CV82 -> 0 | CW79: =CW81+CW82 -> 0 | CX79: =CX81+CX82 -> 0 | CY79: 自己資金 | CZ79: =CZ81+CZ82 -> 0 | DA79: =DA81+DA82 -> 0 | DB79: =DB81+DB82 -> 0 | DC79: 自己資金 | DD79: =DD81+DD82 -> 0 | DE79: =DE81+DE82 -> 0 | DF79: =DF81+DF82 -> 0
C81: 表題登記費用 | D81: =予算計画!F51 -> 0 | E81: 表題登記費用 | F81: =予算計画!F51 -> 0 | G81: 表題登記費用 | H81: =予算計画!F51 -> 0 | I81: 表題登記費用 | J81: =予算計画!F51 -> 0 | K81: 表題登記費用 | L81: =予算計画!F51 -> 0 | M81: 表題登記費用 | N81: =諸費用!$X37/10000 -> 0 | O81: 表題登記費用 | P81: =諸費用!$X37/10000 -> 0 | Q81: 表題登記費用 | R81: =諸費用!$X37/10000 -> 0 | S81: 表題登記費用 | T81: =諸費用!$X37/10000 -> 0 | U81: 表題登記費用 | V81: =予算計画!F51 -> 0 | W81: 表題登記費用 | X81: =予算計画!F51 -> 0 | Y81: 表題登記費用 | Z81: =予算計画!F51 -> 0 | AA81: 表題登記費用 | AB81: =予算計画!F51 -> 0 | AC81: 表題登記費用 | AD81: =予算計画!F51 -> 0 | AE81: 表題登記費用 | AF81: =予算計画!H51 -> 0 | AG81: 表題登記費用 | AH81: =予算計画!F51 -> 0 | AI81: 表題登記費用 | AJ81: =予算計画!F51 -> 0 | AK81: 表題登記費用 | AL81: =予算計画!F51 -> 0 | AM81: 表題登記費用 | AN81: =予算計画!F51 -> 0 | AO81: 表題登記費用 | AP81: =予算計画!F51 -> 0 | AQ81: 表題登記費用 | AR81: =予算計画!F51 -> 0 | AS81: 表題登記費用 | AT81: =諸費用!$X37/10000 -> 0 | AU81: 表題登記費用 | AV81: =予算計画!F51 -> 0 | AW81: 表題登記費用 | AX81: =諸費用!$X37/10000 -> 0 | AY81: 表題登記費用 | AZ81: =予算計画!F51 -> 0 | BA81: 表題登記費用 | BB81: =諸費用!$X37/10000 -> 0 | BC81: 表題登記費用 | BD81: =予算計画!F51 -> 0 | BE81: 表題登記費用 | BF81: =諸費用!$X37/10000 -> 0 | BG81: 表題登記費用 | BH81: =諸費用!$X37/10000 -> 0 | BI81: 表題登記費用 | BJ81: =諸費用!$X37/10000 -> 0 | BK81: 表題登記費用 | BL81: =諸費用!$X37/10000 -> 0 | BM81: 表題登記費用 | BN81: =予算計画!F51 -> 0 | BO81: 表題登記費用 | BP81: =諸費用!$X37/10000 -> 0 | BQ81: 表題登記費用 | BR81: =諸費用!$X37/10000 -> 0 | BS81: 表題登記費用 | BT81: =予算計画!F51 -> 0 | BU81: 表題登記費用 | BV81: =予算計画!F51 -> 0 | BW81: 表題登記費用 | BX81: =予算計画!F51 -> 0 | BY81: 表題登記費用 | BZ81: =予算計画!F51 -> 0 | CA81: 表題登記費用 | CB81: =予算計画!F51 -> 0 | CC81: 表題登記費用 | CD81: =予算計画!F51 -> 0 | CE81: 表題登記費用 | CF81: =予算計画!F51 -> 0 | CG81: 表題登記費用 | CH81: =予算計画!F51 -> 0 | CI81: 表題登記費用 | CJ81: =予算計画!F51 -> 0 | CK81: 表題登記費用 | CL81: =諸費用!$X37/10000 -> 0 | CM81: 表題登記費用 | CN81: =予算計画!F51 -> 0 | CO81: 表題登記費用 | CP81: =予算計画!F51 -> 0 | CQ81: 表題登記費用 | CR81: =予算計画!F51 -> 0 | CS81: 表題登記費用 | CT81: =予算計画!F51 -> 0 | CU81: 表題登記費用 | CV81: =予算計画!F51 -> 0 | CW81: =予算計画!F51 -> 0 | CX81: =予算計画!F51 -> 0 | CY81: 表題登記費用 | CZ81: =予算計画!F51 -> 0 | DA81: =予算計画!F51 -> 0 | DB81: =予算計画!F51 -> 0 | DC81: 表題登記費用 | DD81: =予算計画!F51 -> 0 | DE81: =予算計画!F51 -> 0 | DF81: =予算計画!F51 -> 0
C82: 火災保険関係費用 | D82: =IF(資金調達!$D4=1,0,予算計画!$F63) -> 0 | E82: 火災保険関係費用 | F82: =IF(資金調達!$D4=1,0,予算計画!$F63) -> 0 | G82: 火災保険関係費用 | H82: =IF(資金調達!$D4=1,0,予算計画!$F63) -> 0 | I82: 火災保険関係費用 | J82: =IF(資金調達!$D4=1,0,予算計画!$F63) -> 0 | K82: 火災保険関係費用 | L82: =IF(資金調達!$D4=1,0,予算計画!$F63) -> 0 | M82: 火災保険関係費用 | N82: =IF(資金調達!$D4=1,0,予算計画!$F63) -> 0 | O82: 火災保険関係費用 | P82: =IF(資金調達!$D4=1,0,予算計画!$F63) -> 0 | Q82: 火災保険関係費用 | R82: =IF(資金調達!$D4=1,0,予算計画!$F63) -> 0 | S82: 火災保険関係費用 | T82: =IF(資金調達!$D4=1,0,予算計画!$F63) -> 0 | U82: 火災保険関係費用 | V82: =IF(資金調達!$D4=1,0,予算計画!$F63) -> 0 | W82: 火災保険関係費用 | X82: =IF(資金調達!$D4=1,0,予算計画!$F63) -> 0 | Y82: 火災保険関係費用 | Z82: =IF(資金調達!$D4=1,0,予算計画!$F63) -> 0 | AA82: 火災保険関係費用 | AB82: =IF(資金調達!$D4=1,0,予算計画!$F63) -> 0 | AC82: 火災保険関係費用 | AD82: =IF(資金調達!$D4=1,0,予算計画!$F63) -> 0 | AE82: 火災保険関係費用 | AF82: =IF(資金調達!$D4=1,0,予算計画!$F63) -> 0 | AG82: 火災保険関係費用 | AH82: =IF(資金調達!$D4=1,0,予算計画!$F63) -> 0 | AI82: 火災保険関係費用 | AJ82: =IF(資金調達!$D4=1,0,予算計画!$F63) -> 0 | AK82: 火災保険関係費用 | AL82: =IF(資金調達!$D4=1,0,予算計画!$F63) -> 0 | AM82: 火災保険関係費用 | AN82: =IF(資金調達!$D4=1,0,予算計画!$F63) -> 0 | AO82: 火災保険関係費用 | AP82: =IF(資金調達!$D4=1,0,予算計画!$F63) -> 0 | AQ82: 火災保険関係費用 | AR82: =IF(資金調達!$D4=1,0,予算計画!$F63) -> 0 | AS82: 火災保険関係費用 | AT82: =IF(資金調達!$D4=1,0,予算計画!$F63) -> 0 | AU82: 火災保険関係費用 | AV82: =IF(資金調達!$D4=1,0,予算計画!$F63) -> 0 | AW82: 火災保険関係費用 | AX82: =IF(資金調達!$D4=1,0,予算計画!$F63) -> 0 | AY82: 火災保険関係費用 | AZ82: =IF(資金調達!$D4=1,0,予算計画!$F63) -> 0 | BA82: 火災保険関係費用 | BB82: =IF(資金調達!$D4=1,0,予算計画!$F63) -> 0 | BC82: 火災保険関係費用 | BD82: =IF(資金調達!$D4=1,0,予算計画!$F63) -> 0 | BE82: 火災保険関係費用 | BF82: =IF(資金調達!$D4=1,0,予算計画!$F63) -> 0 | BG82: 火災保険関係費用 | BH82: =IF(資金調達!$D4=1,0,予算計画!$F63) -> 0 | BI82: 火災保険関係費用 | BJ82: =IF(資金調達!$D4=1,0,予算計画!$F63) -> 0 | BK82: 火災保険関係費用 | BL82: =IF(資金調達!$D4=1,0,予算計画!$F63) -> 0 | BM82: 火災保険関係費用 | BN82: =IF(資金調達!$D4=1,0,予算計画!$F63) -> 0 | BO82: 火災保険関係費用 | BP82: =IF(資金調達!$D4=1,0,予算計画!$F63) -> 0 | BQ82: 火災保険関係費用 | BR82: =IF(資金調達!$D4=1,0,予算計画!$F63) -> 0 | BS82: 火災保険関係費用 | BT82: =IF(資金調達!$D4=1,0,予算計画!$F63) -> 0 | BU82: 火災保険関係費用 | BV82: =IF(資金調達!$D4=1,0,予算計画!$F63) -> 0 | BW82: 火災保険関係費用 | BX82: =IF(資金調達!$D4=1,0,予算計画!$F63) -> 0 | BY82: 火災保険関係費用 | BZ82: =IF(資金調達!$D4=1,0,予算計画!$F63) -> 0 | CA82: 火災保険関係費用 | CB82: =IF(資金調達!$D4=1,0,予算計画!$F63) -> 0 | CC82: 火災保険関係費用 | CD82: =IF(資金調達!$D4=1,0,予算計画!$F63) -> 0 | CE82: 火災保険関係費用 | CF82: =IF(資金調達!$D4=1,0,予算計画!$F63) -> 0 | CG82: 火災保険関係費用 | CH82: =IF(資金調達!$D4=1,0,予算計画!$F63) -> 0 | CI82: 火災保険関係費用 | CJ82: =IF(資金調達!$D4=1,0,予算計画!$F63) -> 0 | CK82: 火災保険関係費用 | CL82: =IF(資金調達!$D4=1,0,予算計画!$F63) -> 0 | CM82: 火災保険関係費用 | CN82: =IF(資金調達!$D4=1,0,予算計画!$F63) -> 0 | CO82: 火災保険関係費用 | CP82: =IF(資金調達!$D4=1,0,予算計画!$F63) -> 0 | CQ82: 火災保険関係費用 | CR82: =IF(資金調達!$D4=1,0,予算計画!$F63) -> 0 | CS82: 火災保険関係費用 | CT82: =IF(資金調達!$D4=1,0,予算計画!$F63) -> 0 | CU82: 火災保険関係費用 | CV82: =IF(資金調達!$D4=1,0,予算計画!$F63) -> 0 | CW82: =IF(資金調達!$D4=1,0,予算計画!$F63) -> 0 | CX82: =IF(資金調達!$D4=1,0,予算計画!$F63) -> 0 | CY82: 火災保険関係費用 | CZ82: =IF(資金調達!$D4=1,0,予算計画!$F63) -> 0 | DA82: =IF(資金調達!$D4=1,0,予算計画!$F63) -> 0 | DB82: =IF(資金調達!$D4=1,0,予算計画!$F63) -> 0 | DC82: 火災保険関係費用 | DD82: =IF(資金調達!$D4=1,0,予算計画!$F63) -> 0 | DE82: =IF(資金調達!$D4=1,0,予算計画!$F63) -> 0 | DF82: =IF(資金調達!$D4=1,0,予算計画!$F63) -> 0
B84: 竣工時 | C84: 支払合計 | D84: =SUM(D89:D96) -> 12.33 | E84: 支払合計 | F84: =SUM(F89:F96) -> 12.33 | G84: 支払合計 | H84: =SUM(H89:H96) -> 12.33 | I84: 支払合計 | J84: =SUM(J89:J96) -> 12.33 | K84: 支払合計 | L84: =SUM(L89:L96) ->  | M84: 支払合計 | N84: =SUM(N89:N96) -> 20.33 | O84: 支払合計 | P84: =SUM(P89:P96) -> 20.33 | Q84: 支払合計 | R84: =SUM(R89:R96) -> 20.33 | S84: 支払合計 | T84: =SUM(T89:T96) -> 20.33 | U84: 支払合計 | V84: =SUM(V89:V96) -> 18 | W84: 支払合計 | X84: =SUM(X89:X96) -> 18 | Y84: 支払合計 | Z84: =SUM(Z89:Z96) -> 18 | AA84: 支払合計 | AB84: =SUM(AB89:AB96) -> 12 | AC84: 支払合計 | AD84: =SUM(AD89:AD96) ->  | AE84: 支払合計 | AF84: =SUM(AF89:AF96) ->  | AG84: 支払合計 | AH84: =SUM(AH89:AH96) -> 16 | AI84: 支払合計 | AJ84: =SUM(AJ89:AJ96) ->  | AK84: 支払合計 | AL84: =SUM(AL89:AL96) ->  | AM84: 支払合計 | AN84: =SUM(AN89:AN96) -> 12.33 | AO84: 支払合計 | AP84: =SUM(AP89:AP96) -> 12.33 | AQ84: 支払合計 | AR84: =SUM(AR89:AR96) -> 12.33 | AS84: 支払合計 | AT84: =SUM(AT89:AT96) -> 12.33 | AU84: 支払合計 | AV84: =SUM(AV89:AV96) -> 18 | AW84: 支払合計 | AX84: =SUM(AX89:AX96) -> 12.33 | AY84: 支払合計 | AZ84: =SUM(AZ89:AZ96) -> 18 | BA84: 支払合計 | BB84: =SUM(BB89:BB96) -> 12.33 | BC84: 支払合計 | BD84: =SUM(BD89:BD96) -> 18 | BE84: 支払合計 | BF84: =SUM(BF89:BF96) -> 12.33 | BG84: 支払合計 | BH84: =SUM(BH89:BH96) -> 12.33 | BI84: 支払合計 | BJ84: =SUM(BJ89:BJ96) -> 12.33 | BK84: 支払合計 | BL84: =SUM(BL89:BL96) -> 12.33 | BM84: 支払合計 | BN84: =SUM(BN89:BN96) -> 12 | BO84: 支払合計 | BP84: =SUM(BP89:BP96) -> 12.33 | BQ84: 支払合計 | BR84: =SUM(BR89:BR96) -> 26.3 | BS84: 支払合計 | BT84: =SUM(BT89:BT96) ->  | BU84: 支払合計 | BV84: =SUM(BV89:BV96) ->  | BW84: 支払合計 | BX84: =SUM(BX89:BX96) ->  | BY84: 支払合計 | BZ84: =SUM(BZ89:BZ96) ->  | CA84: 支払合計 | CB84: =SUM(CB89:CB96) -> 16 | CC84: 支払合計 | CD84: =SUM(CD89:CD96) -> 16 | CE84: 支払合計 | CF84: =SUM(CF89:CF96) -> 12 | CG84: 支払合計 | CH84: =SUM(CH89:CH96) -> 12 | CI84: 支払合計 | CJ84: =SUM(CJ89:CJ96) -> 12 | CK84: 支払合計 | CL84: =SUM(CL89:CL96) -> 12.33 | CM84: 支払合計 | CN84: =SUM(CN89:CN96) -> 18 | CO84: 支払合計 | CP84: =SUM(CP89:CP96) -> 18 | CQ84: 支払合計 | CR84: =SUM(CR89:CR96) ->  | CS84: 支払合計 | CT84: =SUM(CT89:CT96) ->  | CU84: 支払合計 | CV84: =SUM(CV89:CV96) -> 12 | CW84: =SUM(CW89:CW96) -> 12 | CX84: =SUM(CX89:CX96) -> 12 | CY84: 支払合計 | CZ84: =SUM(CZ89:CZ96) -> 17.5 | DA84: =SUM(DA89:DA96) -> 17.5 | DB84: =SUM(DB89:DB96) -> 17.5 | DC84: 支払合計 | DD84: =SUM(DD89:DD96) -> 12 | DE84: =SUM(DE89:DE96) -> 12 | DF84: =SUM(DF89:DF96) -> 12
C86: 住宅ローン | D86: =D11-D25-D36-D57-D71 -> 0 | E86: 住宅ローン | F86: =F11-F25-F36-F57-F71 -> 0 | G86: 住宅ローン | H86: =H11-H25-H36-H57-H71 -> 0 | I86: 住宅ローン | J86: =J11-J25-J36-J57-J71 -> 0 | K86: 住宅ローン | L86: =L11-L25 -> 0 | M86: 住宅ローン | N86: =N11-N25-N36-N57 -> 0 | O86: 住宅ローン | P86: =P11-P25-P36-P57 -> 0 | Q86: 住宅ローン | R86: =R11-R25-R36-R57 -> 0 | S86: 住宅ローン | T86: =T11-T25-T36-T57 -> 0 | U86: 住宅ローン | V86: =IF(資金調達!$D4=1,0,V11) -> 0 | W86: 住宅ローン | X86: =IF(資金調達!$D4=1,0,X11) -> 0 | Y86: 住宅ローン | Z86: =IF(資金調達!$D4=1,0,Z11) -> 0 | AA86: 住宅ローン | AB86: =IF(資金調達!$D4=1,0,AB11) -> 0 | AC86: 住宅ローン | AD86: =AD12 -> 0 | AE86: 住宅ローン | AF86: =AF12 -> 0 | AG86: 住宅ローン | AH86: =IF(資金調達!$D4=1,0,AH11) -> 0 | AI86: 住宅ローン | AJ86: =AJ12 -> 0 | AK86: 住宅ローン | AL86: =AL12 -> 0 | AM86: 住宅ローン | AN86: =IF(AND(AN28=0,AN39=0,AN60=0,AN71=0,AN89>0),AN11,0) -> 0 | AO86: 住宅ローン | AP86: =IF(AND(AP28=0,AP39=0,AP60=0,AP71=0,AP89>0),AP11,0) -> 0 | AQ86: 住宅ローン | AR86: =IF(AND(AR28=0,AR39=0,AR60=0,AR71=0,AR89>0),AR11,0) -> 0 | AS86: 住宅ローン | AT86: =AT11-AT25-AT36-AT57-AT71 -> 0 | AU86: 住宅ローン | AV86: =IF(資金調達!$D4=1,0,AV11) -> 0 | AW86: 住宅ローン | AX86: =AX11-AX25-AX36-AX57-AX71 -> 0 | AY86: 住宅ローン | AZ86: =IF(資金調達!$D4=1,0,AZ11) -> 0 | BA86: 住宅ローン | BB86: =BB11-BB25-BB36-BB57-BB71 -> 0 | BC86: 住宅ローン | BD86: =IF(資金調達!$D4=1,0,BD11) -> 0 | BE86: 住宅ローン | BF86: =IF(BF25+BF36+BF57+BF68=0,BF11,0) -> 0 | BG86: 住宅ローン | BH86: =IF(BH25+BH36+BH57+BH68=0,BH11,0) -> 0 | BI86: 住宅ローン | BJ86: =IF(BJ25+BJ36+BJ57+BJ68=0,BJ11,0) -> 0 | BK86: 住宅ローン | BL86: =IF(BL25+BL36+BL57+BL68=0,BL11,0) -> 0 | BM86: 住宅ローン | BN86: =IF(BN25+BN36+BN57+BN68=0,BN11,0) -> 0 | BO86: 住宅ローン | BP86: =BP11-BP25-BP36-BP57 -> 0 | BQ86: 住宅ローン | BR86: =BR11-BR25-BR36-BR57 -> 0 | BS86: 住宅ローン | BT86: =BT12 -> 0 | BU86: 住宅ローン | BV86: =BV12 -> 0 | BW86: 住宅ローン | BX86: =BX12 -> 0 | BY86: 住宅ローン | BZ86: =BZ12 -> 0 | CA86: 住宅ローン | CB86: =IF(資金調達!$D4=1,0,CB11) -> 0 | CC86: 住宅ローン | CD86: =IF(資金調達!$D4=1,0,CD11) -> 0 | CE86: 住宅ローン | CF86: =IF(資金調達!$D4=1,0,CF11) -> 0 | CG86: 住宅ローン | CH86: =IF(資金調達!$D4=1,0,CH11) -> 0 | CI86: 住宅ローン | CJ86: =IF(資金調達!$D4=1,0,CJ11) -> 0 | CK86: 住宅ローン | CL86: =CL11-CL25-CL36-CL57 -> 0 | CM86: 住宅ローン | CN86: =IF(資金調達!$D4=1,0,CN11) -> 0 | CO86: 住宅ローン | CP86: =IF(資金調達!$D4=1,0,CP11) -> 0 | CQ86: 住宅ローン | CR86: =CR12 -> 0 | CS86: 住宅ローン | CT86: =CT12 -> 0 | CU86: 住宅ローン | CV86: =IF(資金調達!$D4=1,0,CV11) -> 0 | CW86: =IF(資金調達!$D4=1,0,CW11) -> 0 | CX86: =IF(資金調達!$D4=1,0,CX11) -> 0 | CY86: 住宅ローン | CZ86: =IF(資金調達!$D4=1,0,CZ11) -> 0 | DA86: =IF(資金調達!$D4=1,0,DA11) -> 0 | DB86: =IF(資金調達!$D4=1,0,DB11) -> 0 | DC86: 住宅ローン | DD86: =IF(資金調達!$D4=1,0,DD11) -> 0 | DE86: =IF(資金調達!$D4=1,0,DE11) -> 0 | DF86: =IF(資金調達!$D4=1,0,DF11) -> 0
C87: 自己資金 | D87: =D84-D86 -> 12.33 | E87: 自己資金 | F87: =F84-F86 -> 12.33 | G87: 自己資金 | H87: =H84-H86 -> 12.33 | I87: 自己資金 | J87: =J84-J86 -> 12.33 | K87: 自己資金 | L87: =L84+L90-L86 ->  | M87: 自己資金 | N87: =N84-N86 -> 20.33 | O87: 自己資金 | P87: =P84-P86 -> 20.33 | Q87: 自己資金 | R87: =R84-R86 -> 20.33 | S87: 自己資金 | T87: =T84-T86 -> 20.33 | U87: 自己資金 | V87: =V84-V86 -> 18 | W87: 自己資金 | X87: =X84-X86 -> 18 | Y87: 自己資金 | Z87: =Z84-Z86 -> 18 | AA87: 自己資金 | AB87: =AB84-AB86 -> 12 | AC87: 自己資金 | AD87: =AD84-AD86 ->  | AE87: 自己資金 | AF87: =AF84-AF86 ->  | AG87: 自己資金 | AH87: =AH84+AH90-AH86 -> 16 | AI87: 自己資金 | AJ87: =AJ84-AJ86 ->  | AK87: 自己資金 | AL87: =AL84-AL86 ->  | AM87: 自己資金 | AN87: =AN84-AN86 -> 12.33 | AO87: 自己資金 | AP87: =AP84-AP86 -> 12.33 | AQ87: 自己資金 | AR87: =AR84-AR86 -> 12.33 | AS87: 自己資金 | AT87: =AT84-AT86 -> 12.33 | AU87: 自己資金 | AV87: =AV84-AV86 -> 18 | AW87: 自己資金 | AX87: =AX84-AX86 -> 12.33 | AY87: 自己資金 | AZ87: =AZ84-AZ86 -> 18 | BA87: 自己資金 | BB87: =BB84-BB86 -> 12.33 | BC87: 自己資金 | BD87: =BD84-BD86 -> 18 | BE87: 自己資金 | BF87: =BF84-BF86 -> 12.33 | BG87: 自己資金 | BH87: =BH84-BH86 -> 12.33 | BI87: 自己資金 | BJ87: =BJ84-BJ86 -> 12.33 | BK87: 自己資金 | BL87: =BL84-BL86 -> 12.33 | BM87: 自己資金 | BN87: =BN84-BN86 -> 12 | BO87: 自己資金 | BP87: =BP84-BP86 -> 12.33 | BQ87: 自己資金 | BR87: =BR84-BR86 -> 26.3 | BS87: 自己資金 | BT87: =BT84-BT86 ->  | BU87: 自己資金 | BV87: =BV84-BV86 ->  | BW87: 自己資金 | BX87: =BX84-BX86 ->  | BY87: 自己資金 | BZ87: =BZ84-BZ86 ->  | CA87: 自己資金 | CB87: =CB84+CB90-CB86 -> 16 | CC87: 自己資金 | CD87: =CD84+CD90-CD86 -> 16 | CE87: 自己資金 | CF87: =CF84+CF90-CF86 -> 12 | CG87: 自己資金 | CH87: =CH84+CH90-CH86 -> 12 | CI87: 自己資金 | CJ87: =CJ84+CJ90-CJ86 -> 12 | CK87: 自己資金 | CL87: =CL84-CL86 -> 12.33 | CM87: 自己資金 | CN87: =CN84+CN90-CN86 -> 18 | CO87: 自己資金 | CP87: =CP84+CP90-CP86 -> 18 | CQ87: 自己資金 | CR87: =CR84-CR86 ->  | CS87: 自己資金 | CT87: =CT84-CT86 ->  | CU87: 自己資金 | CV87: =CV84+CV90-CV86 -> 12 | CW87: =CW84+CW90-CW86 -> 12 | CX87: =CX84+CX90-CX86 -> 12 | CY87: 自己資金 | CZ87: =CZ84+CZ90-CZ86 -> 17.5 | DA87: =DA84+DA90-DA86 -> 17.5 | DB87: =DB84+DB90-DB86 -> 17.5 | DC87: 自己資金 | DD87: =DD84+DD90-DD86 -> 12 | DE87: =DE84+DE90-DE86 -> 12 | DF87: =DF84+DF90-DF86 -> 12
C89: 最終金 | D89: =資金調達!$L18 -> 0 | E89: 最終金 | F89: =資金調達!$L18 -> 0 | G89: 最終金 | H89: =資金調達!$L18 -> 0 | I89: 最終金 | J89: =資金調達!$L18 -> 0 | K89: 最終金 | L89: =資金調達!$L18 -> 0 | M89: 最終金 | N89: =N8-N49-N60-N71 -> 0 | O89: 最終金 | P89: =P8-P49-P60-P71 -> 0 | Q89: 最終金 | R89: =R8-R49-R60-R71 -> 0 | S89: 最終金 | T89: =T8-T49-T60-T71 -> 0 | U89: 最終金 | V89: =資金調達!$L18 -> 0 | W89: 最終金 | X89: =資金調達!$L18 -> 0 | Y89: 最終金 | Z89: =資金調達!$L18 -> 0 | AA89: 最終金 | AB89: =資金調達!$L18 -> 0 | AC89: 最終金 | AD89: =資金調達!$L18 -> 0 | AE89: 最終金 | AF89: =資金調達!$L18 -> 0 | AG89: 最終金 | AH89: =資金調達!$L18 -> 0 | AI89: 最終金 | AJ89: =資金調達!$L18 -> 0 | AK89: 最終金 | AL89: =資金調達!$L18 -> 0 | AM89: 最終金 | AN89: =資金調達!$L18 -> 0 | AO89: 最終金 | AP89: =資金調達!$L18 -> 0 | AQ89: 最終金 | AR89: =資金調達!$L18 -> 0 | AS89: 最終金 | AT89: =AT8-AT49-AT60-AT71 -> 0 | AU89: 最終金 | AV89: =資金調達!$L18 -> 0 | AW89: 最終金 | AX89: =AX8-AX49-AX60-AX71 -> 0 | AY89: 最終金 | AZ89: =資金調達!$L18 -> 0 | BA89: 最終金 | BB89: =BB8-BB49-BB60-BB71 -> 0 | BC89: 最終金 | BD89: =資金調達!$L18 -> 0 | BE89: 最終金 | BF89: =BF8-BF49-BF60-BF71 -> 0 | BG89: 最終金 | BH89: =BH8-BH49-BH60-BH71 -> 0 | BI89: 最終金 | BJ89: =BJ8-BJ49-BJ60-BJ71 -> 0 | BK89: 最終金 | BL89: =BL8-BL49-BL60-BL71 -> 0 | BM89: 最終金 | BN89: =資金調達!$L18 -> 0 | BO89: 最終金 | BP89: =BP8-BP49-BP60-BP71 -> 0 | BQ89: 最終金 | BR89: =BR8-BR49-BR60-BR71 -> 0 | BS89: 最終金 | BT89: =資金調達!$L18 -> 0 | BU89: 最終金 | BV89: =資金調達!$L18 -> 0 | BW89: 最終金 | BX89: =資金調達!$L18 -> 0 | BY89: 最終金 | BZ89: =資金調達!$L18 -> 0 | CA89: 最終金 | CB89: =資金調達!$L18 -> 0 | CC89: 最終金 | CD89: =資金調達!$L18 -> 0 | CE89: 最終金 | CF89: =資金調達!$L18 -> 0 | CG89: 最終金 | CH89: =資金調達!$L18 -> 0 | CI89: 最終金 | CJ89: =資金調達!$L18 -> 0 | CK89: 最終金 | CL89: =CL8-CL49-CL60-CL71 -> 0 | CM89: 最終金 | CN89: =資金調達!$L18 -> 0 | CO89: 最終金 | CP89: =資金調達!$L18 -> 0 | CQ89: 最終金 | CR89: =資金調達!$L18 -> 0 | CS89: 最終金 | CT89: =資金調達!$L18 -> 0 | CU89: 最終金 | CV89: =資金調達!$L18 -> 0 | CW89: =資金調達!$L18 -> 0 | CX89: =資金調達!$L18 -> 0 | CY89: 最終金 | CZ89: =資金調達!$L18 -> 0 | DA89: =資金調達!$L18 -> 0 | DB89: =資金調達!$L18 -> 0 | DC89: 最終金 | DD89: =資金調達!$L18 -> 0 | DE89: =資金調達!$L18 -> 0 | DF89: =資金調達!$L18 -> 0
C90: つなぎ返済 | E90: つなぎ返済 | G90: つなぎ返済 | I90: つなぎ返済 | K90: つなぎ返済 | L90: =L57+L68 -> 0 | M90: =IF(N12>0,$C90,"") ->  | N90: =N12 -> 0 | O90: =IF(P12>0,$C90,"") ->  | P90: =P12 -> 0 | Q90: =IF(R12>0,$C90,"") ->  | R90: =R12 -> 0 | S90: =IF(T12>0,$C90,"") ->  | T90: =T12 -> 0 | U90: つなぎ返済 | V90: =IF(資金調達!$D4=1,0,V25+V36+V57+V68) -> 0 | W90: つなぎ返済 | X90: =IF(資金調達!$D4=1,0,X25+X36+X57+X68) -> 0 | Y90: つなぎ返済 | Z90: =IF(資金調達!$D4=1,0,Z25+Z36+Z57+Z68) -> 0 | AA90: つなぎ返済 | AB90: =IF(資金調達!$D4=1,0,AB25+AB36+AB57+AB68) -> 0 | AC90: つなぎ返済 | AD90: =AD57+AD68 -> 0 | AF90: =AF57+AF68 -> 0 | AG90: つなぎ返済 | AH90: =IF(資金調達!$D4=1,0,AH25+AH36+AH57+AH68) -> 0 | AI90: つなぎ返済 | AJ90: =AJ57+AJ68 -> 0 | AK90: つなぎ返済 | AL90: =AL57+AL68 -> 0 | AS90: =IF(AT12>0,$C90,"") ->  | AT90: =AT12 -> 0 | AU90: つなぎ返済 | AV90: =IF(資金調達!$D4=1,0,AV12) -> 0 | AW90: =IF(AX12>0,$C90,"") ->  | AX90: =AX12 -> 0 | AY90: つなぎ返済 | AZ90: =AZ12 -> 0 | BA90: =IF(BB12>0,$C90,"") ->  | BB90: =BB12 -> 0 | BC90: つなぎ返済 | BD90: =BD12 -> 0 | BE90: =IF(BF12>0,$C90,"") ->  | BG90: =IF(BH12>0,$C90,"") ->  | BI90: =IF(BJ12>0,$C90,"") ->  | BK90: =IF(BL12>0,$C90,"") ->  | BO90: =IF(BP12>0,$C90,"") ->  | BQ90: =IF(BR12>0,$C90,"") ->  | BS90: つなぎ返済 | BT90: =BT57+BT68 -> 0 | BU90: つなぎ返済 | BV90: =BV57+BV68 -> 0 | BW90: つなぎ返済 | BX90: =BX57+BX68 -> 0 | BY90: つなぎ返済 | BZ90: =BZ57+BZ68 -> 0 | CA90: つなぎ返済 | CB90: =IF(資金調達!$D4=1,0,CB12) -> 0 | CC90: つなぎ返済 | CD90: =IF(資金調達!$D4=1,0,CD12) -> 0 | CE90: つなぎ返済 | CF90: =IF(資金調達!$D4=1,0,CF12) -> 0 | CG90: つなぎ返済 | CH90: =CH12 -> 0 | CI90: つなぎ返済 | CJ90: =CJ12 -> 0 | CK90: =IF(CL12>0,$C90,"") ->  | CL90: =CL12 -> 0 | CN90: =CN12 -> 0 | CO90: つなぎ返済 | CP90: =CP12 -> 0 | CQ90: つなぎ返済 | CR90: =CR57+CR68 -> 0 | CS90: つなぎ返済 | CT90: =CT57+CT68 -> 0 | CU90: つなぎ返済 | CV90: =IF(資金調達!$D4=1,0,CV12) -> 0 | CW90: =IF(資金調達!$D4=1,0,CW12) -> 0 | CX90: =CX12 -> 0 | CY90: つなぎ返済 | CZ90: =CZ12 -> 0 | DA90: =DA12 -> 0 | DB90: =DB12 -> 0 | DC90: つなぎ返済 | DD90: =DD12 -> 0 | DE90: =DE12 -> 0 | DF90: =DF12 -> 0
C91: 融資関係費用 | D91: =IF(D86=0,0,IF(AND(D25=0,D36=0,D46=0,D57=0,D68=0,D86>0),D11*諸費用!$Q29+諸費用!$S29/10000,0)) -> 0 | E91: 融資関係費用 | F91: =IF(F86=0,0,IF(資金調達!$G6=5,2,1)*諸費用!$V29/10000+IF(AND(F25=0,F36=0,F46=0,F57=0,F68=0,F86>0),F11*諸費用!$Q29+諸費用!$S29/10000,0)) -> 0 | G91: 融資関係費用 | H91: =IF(H86=0,0,IF(資金調達!G6=5,2,1)*諸費用!$V30/10000)+IF(AND(H25=0,H36=0,H46=0,H57=0,H68=0,H86>0),諸費用!$R30/10000+諸費用!$S30/10000,0) -> 0 | I91: 融資関係費用 | J91: =IF(J86=0,0,IF(資金調達!G6=5,2,1)*諸費用!$V31/10000) -> 0 | K91: 融資関係費用 | L91: =IF(L86>0,L86*諸費用!$Q27+IF(資金調達!$G6=5,2,1)*諸費用!$V27/10000,0)+IF(AND(L25=0,L36=0,L46=0,L57=0,L68=0,L86>0),諸費用!$S27/10000,0) -> 0 | M91: 融資関係費用 | N91: =IF(N86>0,N86*諸費用!$Q37,0)+IF(AND(N25=0,N36=0,N46=0,N57=0,N68=0,N86>0),諸費用!$S37/10000,0) -> 0 | O91: 融資関係費用 | P91: =IF(P86>0,P86*諸費用!$Q21,0)+IF(AND(P25=0,P36=0,P46=0,P57=0,P68=0,P86>0),諸費用!$S21/10000,0) -> 0 | Q91: 融資関係費用 | R91: =IF(R86>0,R86*諸費用!$Q22,0)+IF(AND(R25=0,R36=0,R46=0,R57=0,R68=0,R86>0),諸費用!$S22/10000,0) -> 0 | S91: 融資関係費用 | T91: =IF(AND(T25=0,T36=0,T46=0,T57=0,T68=0,T86>0),諸費用!$S23/10000,0) -> 0 | U91: 融資関係費用 | V91: =IF(V86>0,V86*諸費用!$Q81+IF(資金調達!$G6=5,2,1)*諸費用!$V81/10000,0)+IF(AND(V25=0,V36=0,V46=0,V57=0,V68=0,V86>0),諸費用!$S81/10000,0) -> 0 | W91: 融資関係費用 | X91: =IF(X86>0,X86*諸費用!$Q2+IF(資金調達!$G6=5,2,1)*諸費用!$V2/10000,0)+IF(AND(X25=0,X36=0,X46=0,X57=0,X68=0,X86>0),諸費用!$S2/10000,0) -> 0 | Y91: 融資関係費用 | Z91: =IF(Z86>0,諸費用!$R3/10000+IF(資金調達!$G6=5,2,1)*諸費用!$V3/10000,0)+IF(AND(Z25=0,Z36=0,Z46=0,Z57=0,Z68=0,Z86>0),諸費用!$S3/10000,0) -> 0 | AA91: 融資関係費用 | AB91: =IF(AB86>0,諸費用!$R51/10000+IF(資金調達!$G6=5,2,1)*諸費用!$V51/10000,0)+IF(AND(AB25=0,AB36=0,AB46=0,AB57=0,AB68=0,AB86>0),諸費用!$S51/10000,0) -> 0 | AC91: 融資関係費用 | AD91: =IF(AD86>0,AD86*諸費用!$Q13)+IF(AND(AD25=0,AD36=0,AD46=0,AD57=0,AD68=0,AD86>0),諸費用!$S13/10000,0) -> 0 | AE91: 融資関係費用 | AF91: =IF(AF86>0,AF86*諸費用!$Q13)+IF(AND(AF25=0,AF36=0,AF46=0,AF57=0,AF68=0,AF86>0),諸費用!$S13/10000,0) -> 0 | AG91: 融資関係費用 | AH91: =IF(AH86>0,AH86*諸費用!$Q20+IF(資金調達!$G6=5,2,1)*諸費用!$V20/10000,0)+IF(AND(AH25=0,AH36=0,AH46=0,AH57=0,AH68=0,AH86>0),諸費用!$S20/10000,0) -> 0 | AI91: 融資関係費用 | AJ91: =IF(AJ86>0,AJ86*諸費用!$Q41+IF(資金調達!$G6=5,2,1)*諸費用!$V41/10000,0)+IF(AND(AJ25=0,AJ36=0,AJ46=0,AJ57=0,AJ68=0,AJ86>0),諸費用!$S41/10000,0) -> 0 | AK91: 融資関係費用 | AL91: =IF(AL86>0,諸費用!$R42/10000+IF(資金調達!$G6=5,2,1)*諸費用!$V42/10000,0)+IF(AND(AL25=0,AL36=0,AL46=0,AL57=0,AL68=0,AL86>0),諸費用!$S42/10000,0) -> 0 | AM91: 融資関係費用 | AO91: 融資関係費用 | AQ91: 融資関係費用 | AS91: 融資関係費用 | AT91: =IF(AT86=0,0,IF(AND(AT25=0,AT36=0,AT46=0,AT57=0,AT68=0,AT86>0),AT11*諸費用!$Q95+諸費用!$S95/10000,0)) -> 0 | AU91: 融資関係費用 | AV91: =IF(AV86>0,AV86*諸費用!$Q96+IF(資金調達!$G6=5,2,1)*諸費用!$V96/10000,0)+IF(AND(AV25=0,AV36=0,AV46=0,AV57=0,AV68=0,AV86>0),諸費用!$S96/10000,0) -> 0 | AW91: 融資関係費用 | AX91: =IF(AND(AX25=0,AX36=0,AX46=0,AX57=0,AX68=0,AX86>0),諸費用!$S97/10000,0) -> 0 | AY91: 融資関係費用 | AZ91: =IF(AZ86>0,IF(資金調達!$G6=5,2,1)*諸費用!$V98/10000,0)+IF(AND(AZ25=0,AZ36=0,AZ46=0,AZ57=0,AZ68=0,AZ86>0),諸費用!$S98/10000,0) -> 0 | BA91: 融資関係費用 | BB91: =IF(BB86=0,0,IF(AND(BB25=0,BB36=0,BB46=0,BB57=0,BB68=0,BB86>0),BB11*諸費用!$Q99+諸費用!$S99/10000,0)) -> 0 | BC91: 融資関係費用 | BD91: =IF(BD86>0,BD86*諸費用!$Q100+IF(資金調達!$G6=5,2,1)*諸費用!$V100/10000,0)+IF(AND(BD25=0,BD36=0,BD46=0,BD57=0,BD68=0,BD86>0),諸費用!$S100/10000,0) -> 0 | BE91: 融資関係費用 | BF91: =IF(BF86>0,BF86*諸費用!$Q37,0)+IF(AND(BF25=0,BF36=0,BF46=0,BF57=0,BF68=0,BF86>0),諸費用!$S37/10000,0) -> 0 | BG91: 融資関係費用 | BH91: =IF(AND(BH25=0,BH36=0,BH46=0,BH57=0,BH68=0,BH86>0),諸費用!$S37/10000,0) -> 0 | BI91: 融資関係費用 | BJ91: =IF(BJ86>0,BJ86*諸費用!$Q37,0)+IF(AND(BJ25=0,BJ36=0,BJ46=0,BJ57=0,BJ68=0,BJ86>0),諸費用!$S37/10000,0) -> 0 | BK91: 融資関係費用 | BL91: =IF(BL86>0,BL86*諸費用!$Q37,0)+IF(AND(BL25=0,BL36=0,BL46=0,BL57=0,BL68=0,BL86>0),諸費用!$S37/10000,0) -> 0 | BM91: 融資関係費用 | BN91: =IF(AND(BN25=0,BN36=0,BN46=0,BN57=0,BN68=0,BN86>0),BN11*諸費用!$Q86+IF(資金調達!$G6=5,2,1)*諸費用!$V86/10000+諸費用!$S86/10000,0) -> 0 | BO91: 融資関係費用 | BP91: =IF(BP86>0,BP86*諸費用!$Q37,0)+IF(AND(BP25=0,BP36=0,BP46=0,BP57=0,BP68=0,BP86>0),諸費用!$S37/10000,0) -> 0 | BQ91: 融資関係費用 | BR91: =IF(資金調達!$D4=1,0,諸費用!$R102/10000)+IF(AND(BR25=0,BR36=0,BR46=0,BR57=0,BR68=0,BR86>0),諸費用!$S102/10000,0) -> 13.97 | BS91: 融資関係費用 | BT91: =IF(BT86>0,BT86*諸費用!$Q4+IF(資金調達!$G6=5,2,1)*諸費用!$V4/10000,0)+IF(AND(BT25=0,BT36=0,BT46=0,BT57=0,BT68=0,BT86>0),諸費用!$S4/10000,0) -> 0 | BU91: 融資関係費用 | BV91: =IF(BV86>0,BV86*諸費用!$Q5+IF(資金調達!$G6=5,2,1)*諸費用!$V5/10000,0)+IF(AND(BV25=0,BV36=0,BV46=0,BV57=0,BV68=0,BV86>0),諸費用!$S5/10000,0) -> 0 | BW91: 融資関係費用 | BX91: =IF(BX86>0,BX86*諸費用!$Q6+IF(資金調達!$G6=5,2,1)*諸費用!$V6/10000,0)+IF(AND(BX25=0,BX36=0,BX46=0,BX57=0,BX68=0,BX86>0),諸費用!$S6/10000,0) -> 0 | BY91: 融資関係費用 | BZ91: =IF(BZ86>0,IF(AND(BZ25=0,BZ36=0,BZ46=0,BZ57=0,BZ68=0,BZ86>0),諸費用!$S7/10000,0),0) -> 0 | CA91: 融資関係費用 | CB91: =IF(CB86>0,CB86*諸費用!$Q48+IF(資金調達!$G6=5,2,1)*諸費用!$V48/10000,0)+IF(AND(CB25=0,CB36=0,CB46=0,CB57=0,CB68=0,CB86>0),諸費用!$S48/10000,0) -> 0 | CC91: 融資関係費用 | CD91: =IF(CD86>0,諸費用!$R49/10000+IF(資金調達!$G6=5,2,1)*諸費用!$V49/10000,0)+IF(AND(CD25=0,CD36=0,CD46=0,CD57=0,CD68=0,CD86>0),諸費用!$S49/10000,0) -> 0 | CE91: 融資関係費用 | CF91: =IF(CF86>0,CF86*諸費用!$Q89+IF(資金調達!$G6=5,2,1)*諸費用!$V89/10000,0)+IF(AND(CF25=0,CF36=0,CF46=0,CF57=0,CF68=0,CF86>0),諸費用!$S89/10000,0) -> 0 | CG91: 融資関係費用 | CH91: =IF(CH86>0,CH86*諸費用!$Q90+IF(資金調達!$G6=5,2,1)*諸費用!$V90/10000,0)+IF(AND(CH25=0,CH36=0,CH46=0,CH57=0,CH68=0,CH86>0),諸費用!$S90/10000,0) -> 0 | CI91: 融資関係費用 | CJ91: =IF(CJ86>0,IF(資金調達!$G6=5,2,1)*諸費用!$V90/10000,0)+IF(AND(CJ25=0,CJ36=0,CJ46=0,CJ57=0,CJ68=0,CJ86>0),諸費用!$S90/10000,0) -> 0 | CK91: 融資関係費用 | CL91: =IF(CL86=0,0,諸費用!R87/10000)+IF(AND(CL25=0,CL36=0,CL46=0,CL57=0,CL68=0,CL86>0),諸費用!$S37/10000,0) -> 0 | CM91: 融資関係費用 | CN91: =IF(CN86>0,諸費用!$R105/10000+IF(資金調達!$G6=5,2,1)*諸費用!$V105/10000,0)+IF(AND(CN25=0,CN36=0,CN46=0,CN57=0,CN68=0,CN86>0),諸費用!$S105/10000,0) -> 0 | CO91: 融資関係費用 | CP91: =IF(CP86>0,CP86*諸費用!$Q106+IF(資金調達!$G6=5,2,1)*諸費用!$V106/10000,0)+IF(AND(CP25=0,CP36=0,CP46=0,CP57=0,CP68=0,CP86>0),諸費用!$S106/10000,0) -> 0 | CQ91: 融資関係費用 | CR91: =IF(CR86>0,CR86*諸費用!$Q108+IF(資金調達!$G6=5,2,1)*諸費用!$V108/10000,0)+IF(AND(CR25=0,CR36=0,CR46=0,CR57=0,CR68=0,CR86>0),諸費用!$S108/10000,0) -> 0 | CS91: 融資関係費用 | CT91: =IF(CT86>0,IF(資金調達!$G6=5,2,1)*諸費用!$V109/10000+諸費用!$S109/10000,0) -> 0 | CU91: 融資関係費用 | CV91: =IF(CV86>0,IF(中間処理!$I18>0.9,諸費用!$T60,諸費用!$T59)/10000+諸費用!$S59/10000,0) -> 0 | CW91: =IF(CV86>0,IF(中間処理!$I18>0.9,諸費用!$T60,諸費用!$T59)/10000+諸費用!$S59/10000+(諸費用!$AG61-諸費用!$V61)/10000,0) -> 0 | CX91: =IF(CV86>0,IF(中間処理!$I18>0.9,諸費用!$T60,諸費用!$T59)/10000+諸費用!$S59/10000+IF(CX11>10000,諸費用!$AG$77-諸費用!$V77,諸費用!$AG$74-諸費用!$V74)/10000,0) -> 0 | CY91: 融資関係費用 | CZ91: =IF(CZ86>0,IF(中間処理!$I18>0.9,諸費用!$T64,諸費用!$T63)/10000+諸費用!$S63/10000,0) -> 0 | DA91: =IF(CZ86>0,IF(中間処理!$I18>0.9,諸費用!$T64,諸費用!$T63)/10000+諸費用!$S63/10000+(諸費用!$AG64-諸費用!$V63)/10000,0) -> 0 | DB91: =IF(CZ86>0,IF(中間処理!$I18>0.9,諸費用!$T64,諸費用!$T63)/10000+諸費用!$S63/10000+IF(DB86>10000,諸費用!$AG$77-諸費用!$V77,諸費用!$AG$74-諸費用!$V74)/10000,0) -> 0 | DC91: 融資関係費用 | DD91: =IF(DD86>0,DD86*諸費用!$Q68+諸費用!$S68/10000,0) -> 0 | DE91: =IF(DD86>0,IF(中間処理!$I18>0.9,諸費用!$T69,諸費用!$T68)/10000+諸費用!$S68/10000+(諸費用!$AG70-諸費用!$V70)/10000,0) -> 0 | DF91: =IF(DD86>0,IF(中間処理!$I18>0.9,諸費用!$T69,諸費用!$T68)/10000+諸費用!$S68/10000+IF(DF86>10000,諸費用!$AG$77-諸費用!$V77,諸費用!$AG$74-諸費用!$V74)/10000,0) -> 0
C92: つなぎ融資関係費用 | D92: 0 | E92: つなぎ融資関係費用 | F92: 0 | G92: つなぎ融資関係費用 | H92: 0 | I92: つなぎ融資関係費用 | J92: 0 | K92: つなぎ融資関係費用 | L92: =諸費用!$AE27/10000 -> 0 | M92: つなぎ融資関係費用 | N92: =諸費用!$AE37/10000 -> 0 | O92: つなぎ融資関係費用 | P92: =諸費用!$AE21/10000 -> 0 | Q92: つなぎ融資関係費用 | R92: =諸費用!$AE22/10000 -> 0 | S92: つなぎ融資関係費用 | T92: =諸費用!$AE23/10000 -> 0 | U92: つなぎ融資関係費用 | V92: =諸費用!$AE81/10000 -> 0 | W92: つなぎ融資関係費用 | X92: =諸費用!$AE2/10000 -> 0 | Y92: つなぎ融資関係費用 | Z92: =諸費用!$AE3/10000 -> 0 | AA92: つなぎ融資関係費用 | AB92: =諸費用!$AE2/10000 -> 0 | AC92: つなぎ融資関係費用 | AD92: =諸費用!$AE13/10000 -> 0 | AE92: つなぎ融資関係費用 | AF92: =諸費用!$AE13/10000 -> 0 | AG92: つなぎ融資関係費用 | AH92: =諸費用!$AE20/10000 -> 0 | AI92: つなぎ融資関係費用 | AJ92: =諸費用!$AE41/10000 -> 0 | AK92: つなぎ融資関係費用 | AL92: =諸費用!$AE42/10000 -> 0 | AM92: つなぎ融資関係費用 | AO92: つなぎ融資関係費用 | AQ92: つなぎ融資関係費用 | AS92: つなぎ融資関係費用 | AT92: 0 | AU92: つなぎ融資関係費用 | AV92: =諸費用!$AE96/10000 -> 0 | AW92: つなぎ融資関係費用 | AX92: 0 | AY92: つなぎ融資関係費用 | AZ92: =諸費用!$AE96/10000 -> 0 | BA92: つなぎ融資関係費用 | BB92: 0 | BC92: つなぎ融資関係費用 | BD92: =諸費用!$AE96/10000 -> 0 | BE92: つなぎ融資関係費用 | BG92: つなぎ融資関係費用 | BI92: つなぎ融資関係費用 | BK92: つなぎ融資関係費用 | BM92: つなぎ融資関係費用 | BO92: つなぎ融資関係費用 | BP92: =SUM(諸費用!$AD37:$AF37)/10000 -> 0 | BQ92: つなぎ融資関係費用 | BR92: =SUM(諸費用!$AD37:$AF37)/10000 -> 0 | BS92: つなぎ融資関係費用 | BT92: =諸費用!$AE4/10000 -> 0 | BU92: つなぎ融資関係費用 | BV92: =諸費用!$AE5/10000 -> 0 | BW92: つなぎ融資関係費用 | BX92: =諸費用!$AE6/10000 -> 0 | BY92: つなぎ融資関係費用 | BZ92: =諸費用!$AE7/10000 -> 0 | CA92: つなぎ融資関係費用 | CB92: =諸費用!$AE48/10000 -> 0 | CC92: つなぎ融資関係費用 | CD92: =諸費用!$AE49/10000 -> 0 | CE92: つなぎ融資関係費用 | CF92: =諸費用!$AE89/10000 -> 0 | CG92: つなぎ融資関係費用 | CH92: =諸費用!$AE90/10000 -> 0 | CI92: つなぎ融資関係費用 | CJ92: =諸費用!$AE90/10000 -> 0 | CK92: つなぎ融資関係費用 | CL92: =SUM(諸費用!$AD37:$AF37)/10000 -> 0 | CM92: つなぎ融資関係費用 | CN92: =諸費用!$AE105/10000 -> 0 | CO92: つなぎ融資関係費用 | CP92: =諸費用!$AE89/10000 -> 0 | CQ92: つなぎ融資関係費用 | CR92: =諸費用!$AE108/10000 -> 0 | CS92: つなぎ融資関係費用 | CT92: =諸費用!$AE109/10000 -> 0 | CU92: つなぎ融資関係費用 | CV92: =(諸費用!$AD59+諸費用!$AE59)/10000 -> 0 | CW92: =(諸費用!$AD59+諸費用!$AE59)/10000 -> 0 | CX92: =(諸費用!$AD59+諸費用!$AE59)/10000 -> 0 | CY92: つなぎ融資関係費用 | CZ92: =(諸費用!$AD63+諸費用!$AE63)/10000 -> 5.5 | DA92: =(諸費用!$AD63+諸費用!$AE63)/10000 -> 5.5 | DB92: =(諸費用!$AD63+諸費用!$AE63)/10000 -> 5.5 | DC92: つなぎ融資関係費用 | DD92: =諸費用!$AE68/10000 -> 0 | DE92: =諸費用!$AE68/10000 -> 0 | DF92: =諸費用!$AE68/10000 -> 0
C93: 登記関係費用 | D93: =IF(資金調達!D4=1,0,SUM(予算計画!F52:F56)+IF(AND(D7=0,D9=0,D46=0,D57=0,D68=0),D11*0.1%)+0.33+12) -> 12.33 | E93: 登記関係費用 | F93: =IF(資金調達!D4=1,0,SUM(予算計画!F52:F56)+IF(AND(F7=0,F9=0,F46=0,F57=0,F68=0),F11*0.1%)+0.33+12) -> 12.33 | G93: 登記関係費用 | H93: =IF(資金調達!D4=1,0,SUM(予算計画!F52:F56)+IF(AND(H7=0,H9=0,H46=0,H57=0,H68=0),H11*0.1%)+0.33+12) -> 12.33 | I93: 登記関係費用 | J93: =IF(資金調達!D4=1,0,SUM(予算計画!F52:F56)+IF(AND(J7=0,J9=0,J46=0,J57=0,J68=0),J11*0.1%)+0.33+12) -> 12.33 | K93: 登記関係費用 | L93: =IF(資金調達!D4=1,0,(諸費用!$X27+諸費用!$Y27)/10000+IF(L25=0,L7*0.1%,諸費用!$AB27/10000)+諸費用!$AC27/10000-L63-L74) ->  | M93: 登記関係費用 | N93: =IF(資金調達!$D4=1,0,諸費用!$Y37/10000+IF(AND(N7=0,N9=0,N57=0,N68=0),N11*0.1%)+0.33+12+8) -> 20.33 | O93: 登記関係費用 | P93: =IF(資金調達!$D4=1,0,諸費用!$Y21/10000+IF(AND(P7=0,P9=0,P57=0,P68=0),P11*0.1%)+0.33+12+8) -> 20.33 | Q93: 登記関係費用 | R93: =IF(資金調達!$D4=1,0,諸費用!$Y22/10000+IF(AND(R7=0,R9=0,R57=0,R68=0),R11*0.1%)+0.33+12+8) -> 20.33 | S93: 登記関係費用 | T93: =IF(資金調達!$D4=1,0,諸費用!$Y23/10000+IF(AND(T7=0,T9=0,T57=0,T68=0),T11*0.1%)+0.33+12+8) -> 20.33 | U93: 登記関係費用 | V93: =IF(資金調達!$D4=1,0,SUM(予算計画!F52:F56)+12+6) -> 18 | W93: 登記関係費用 | X93: =IF(資金調達!$D4=1,0,SUM(予算計画!F52:F56)+12+6) -> 18 | Y93: 登記関係費用 | Z93: =IF(資金調達!$D4=1,0,SUM(予算計画!F52:F56)+12+6) -> 18 | AA93: 登記関係費用 | AB93: =IF(資金調達!$D4=1,0,SUM(予算計画!F52:F56)+12) -> 12 | AC93: 登記関係費用 | AD93: =IF(資金調達!$D4=1,0,(諸費用!$X13+諸費用!$Y13)/10000+IF(AD25=0,AD7*0.1%,諸費用!$AB13/10000)+諸費用!$AC13/10000-AD63-AD74) ->  | AE93: 登記関係費用 | AF93: =IF(資金調達!$D4=1,0,(諸費用!$X13+諸費用!$Y13)/10000+IF(AF25=0,AF7*0.1%,諸費用!$AB13/10000)+諸費用!$AC13/10000-AF63-AF74) ->  | AG93: 登記関係費用 | AH93: =IF(資金調達!$D4=1,0,SUM(予算計画!F52:F56)+12+4) -> 16 | AI93: 登記関係費用 | AJ93: =IF(資金調達!$D4=1,0,(諸費用!$X41+諸費用!$Y41)/10000+IF(AJ25=0,AJ7*0.1%,諸費用!$AB41/10000)+諸費用!$AC41/10000-AJ63-AJ74) ->  | AK93: 登記関係費用 | AL93: =IF(資金調達!$D4=1,0,(諸費用!$X42+諸費用!$Y42)/10000+IF(AL25=0,AL7*0.1%,諸費用!$AB42/10000)+諸費用!$AC42/10000-AL63-AL74) ->  | AM93: 登記関係費用 | AN93: =IF(資金調達!$D4=1,0,SUM(予算計画!F52:F56)+12+0.33) -> 12.33 | AO93: 登記関係費用 | AP93: =IF(資金調達!$D4=1,0,SUM(予算計画!F52:F56)+12+0.33) -> 12.33 | AQ93: 登記関係費用 | AR93: =IF(資金調達!$D4=1,0,SUM(予算計画!F52:F56)+12+0.33) -> 12.33 | AS93: 登記関係費用 | AT93: =IF(資金調達!$D4=1,0,SUM(予算計画!$F52:$F56)+IF(AND(AT7=0,AT9=0,AT57=0,AT68=0),AT11*0.1%)+0.33+12) -> 12.33 | AU93: 登記関係費用 | AV93: =IF(資金調達!$D4=1,0,SUM(予算計画!F52:F56)+12+6) -> 18 | AW93: 登記関係費用 | AX93: =IF(資金調達!$D4=1,0,SUM(予算計画!$F52:$F56)+IF(AND(AX7=0,AX9=0,AX57=0,AX68=0),AX11*0.1%)+0.33+12) -> 12.33 | AY93: 登記関係費用 | AZ93: =IF(資金調達!$D4=1,0,SUM(予算計画!F52:F56)+12+6) -> 18 | BA93: 登記関係費用 | BB93: =IF(資金調達!$D4=1,0,SUM(予算計画!$F52:$F56)+IF(AND(BB7=0,BB9=0,BB57=0,BB68=0),BB11*0.1%)+0.33+12) -> 12.33 | BC93: 登記関係費用 | BD93: =IF(資金調達!$D4=1,0,SUM(予算計画!F52:F56)+12+6) -> 18 | BE93: 登記関係費用 | BF93: =IF(資金調達!$D4=1,0,SUM(予算計画!AU52:AU56)+IF(AND(BF7=0,BF9=0,BF57=0,BF68=0),BF11*0.1%)+0.33+12) -> 12.33 | BG93: 登記関係費用 | BH93: =IF(資金調達!$D4=1,0,SUM(予算計画!AW52:AW56)+IF(AND(BH7=0,BH9=0,BH57=0,BH68=0),BH11*0.1%)+0.33+12) -> 12.33 | BI93: 登記関係費用 | BJ93: =IF(資金調達!$D4=1,0,SUM(予算計画!AY52:AY56)+IF(AND(BJ7=0,BJ9=0,BJ57=0,BJ68=0),BJ11*0.1%)+0.33+12) -> 12.33 | BK93: 登記関係費用 | BL93: =IF(資金調達!$D4=1,0,SUM(予算計画!BA52:BA56)+IF(AND(BL7=0,BL9=0,BL57=0,BL68=0),BL11*0.1%)+0.33+12) -> 12.33 | BM93: 登記関係費用 | BN93: =IF(資金調達!$D4=1,0,諸費用!BB92/10000+12) -> 12 | BO93: 登記関係費用 | BP93: =IF(資金調達!$D4=1,0,SUM(予算計画!BE52:BE56)+IF(AND(BP7=0,BP9=0,BP57=0,BP68=0),BP11*0.1%)+0.33+12) -> 12.33 | BQ93: 登記関係費用 | BR93: =IF(資金調達!$D4=1,0,SUM(予算計画!BG52:BG56)+IF(AND(BR7=0,BR9=0,BR57=0,BR68=0),BR11*0.1%)+0.33+12) -> 12.33 | BS93: 登記関係費用 | BT93: =IF(資金調達!$D4=1,0,(諸費用!$X4+諸費用!$Y4)/10000+IF(BT25=0,BT7*0.1%,諸費用!$AB4/10000)+諸費用!$AC4/10000-BT63-BT74) ->  | BU93: 登記関係費用 | BV93: =IF(資金調達!$D4=1,0,(諸費用!$X5+諸費用!$Y5)/10000+IF(BV25=0,BV7*0.1%,諸費用!$AB5/10000)+諸費用!$AC5/10000-BV63-BV74) ->  | BW93: 登記関係費用 | BX93: =IF(資金調達!$D4=1,0,(諸費用!$X6+諸費用!$Y6)/10000+IF(BX25=0,BX7*0.1%,諸費用!$AB6/10000)+諸費用!$AC6/10000-BX63-BX74) ->  | BY93: 登記関係費用 | BZ93: =IF(資金調達!$D4=1,0,(諸費用!$X7+諸費用!$Y7)/10000+IF(BZ25=0,BZ7*0.1%,諸費用!$AB7/10000)+諸費用!$AC7/10000-BZ63-BZ74) ->  | CA93: 登記関係費用 | CB93: =IF(資金調達!$D4=1,0,SUM(予算計画!F52:F56)+12+4) -> 16 | CC93: 登記関係費用 | CD93: =IF(資金調達!$D4=1,0,SUM(予算計画!F52:F56)+12+4) -> 16 | CE93: 登記関係費用 | CF93: =IF(資金調達!$D4=1,0,SUM(予算計画!F52:F56)+12) -> 12 | CG93: 登記関係費用 | CH93: =IF(資金調達!$D4=1,0,SUM(予算計画!F52:F56)+12) -> 12 | CI93: 登記関係費用 | CJ93: =IF(資金調達!$D4=1,0,SUM(予算計画!F52:F56)+12) -> 12 | CK93: 登記関係費用 | CL93: =IF(資金調達!$D4=1,0,SUM(予算計画!CA52:CA56)+IF(AND(CL7=0,CL9=0,CL57=0,CL68=0),CL11*0.1%)+0.33+12) -> 12.33 | CM93: 登記関係費用 | CN93: =IF(資金調達!$D4=1,0,SUM(予算計画!F52:F56)+12+6) -> 18 | CO93: 登記関係費用 | CP93: =IF(資金調達!$D4=1,0,SUM(予算計画!F52:F56)+12+6) -> 18 | CQ93: 登記関係費用 | CR93: =IF(資金調達!$D4=1,0,(諸費用!$X108+諸費用!$Y108)/10000+IF(CR25=0,CR7*0.1%,諸費用!$AB108/10000)+諸費用!$AC108/10000-CR63-CR74) ->  | CS93: 登記関係費用 | CT93: =IF(資金調達!$D4=1,0,(諸費用!$X109+諸費用!$Y109)/10000+IF(CT25=0,CT7*0.1%,諸費用!$AB109/10000)+諸費用!$AC109/10000-CT63-CT74) ->  | CU93: 登記関係費用 | CV93: =IF(資金調達!$D4=1,0,SUM(予算計画!F52:F56)+12) -> 12 | CW93: =IF(資金調達!$D4=1,0,SUM(予算計画!F52:F56)+12) -> 12 | CX93: =IF(資金調達!$D4=1,0,SUM(予算計画!F52:F56)+12) -> 12 | CY93: 登記関係費用 | CZ93: =IF(資金調達!$D4=1,0,SUM(予算計画!F52:F56)+12) -> 12 | DA93: =IF(資金調達!$D4=1,0,SUM(予算計画!F52:F56)+12) -> 12 | DB93: =IF(資金調達!$D4=1,0,SUM(予算計画!F52:F56)+12) -> 12 | DC93: 登記関係費用 | DD93: =IF(資金調達!$D4=1,0,SUM(予算計画!F52:F56)+12) -> 12 | DE93: =IF(資金調達!$D4=1,0,SUM(予算計画!F52:F56)+12) -> 12 | DF93: =IF(資金調達!$D4=1,0,SUM(予算計画!F52:F56)+12) -> 12
C94: 収入印紙（融資契約） | D94: =IF(D86>0,IF(資金調達!$G6=5,2,1)*諸費用!$V28/10000,0) -> 0 | E94: 収入印紙 | F94: =IF(F86>0,IF(資金調達!$G6=5,2,1)*諸費用!$V29/10000,0) -> 0 | G94: 収入印紙 | H94: =IF(H86>0,IF(資金調達!$G6=5,2,1)*諸費用!$V30/10000,0) -> 0 | I94: 収入印紙 | J94: =IF(J86>0,IF(資金調達!$G6=5,2,1)*諸費用!$V31/10000,0) -> 0 | K94: 収入印紙 | L94: =IF(L86>0,諸費用!$V28/10000,0) -> 0 | M94: 収入印紙 | N94: =IF(資金調達!$G6=5,2,1)*諸費用!$V37/10000 -> 0 | O94: 収入印紙 | P94: =IF(P86=0,0,IF(資金調達!$G6=5,2,1)*諸費用!$V21/10000) -> 0 | Q94: 収入印紙 | R94: =IF(R86=0,0,IF(資金調達!$G6=5,2,1)*諸費用!$V22/10000) -> 0 | S94: 収入印紙 | T94: =IF(T86=0,0,IF(資金調達!$G6=5,2,1)*諸費用!$V23/10000) -> 0 | U94: 収入印紙 | V94: 0 | W94: 収入印紙 | X94: 0 | Y94: 収入印紙 | Z94: 0 | AA94: 収入印紙 | AB94: 0 | AC94: 収入印紙 | AD94: =IF(AD86>0,諸費用!$V13/10000,0) -> 0 | AE94: 収入印紙 | AF94: =IF(AF86>0,諸費用!$V13/10000,0) -> 0 | AG94: 収入印紙 | AH94: 0 | AI94: 収入印紙 | AJ94: =IF(AJ86>0,諸費用!$V41/10000,0) -> 0 | AK94: 収入印紙 | AL94: =IF(AL86>0,諸費用!$V42/10000,0) -> 0 | AM94: 収入印紙 | AN94: 0 | AO94: 収入印紙 | AP94: 0 | AQ94: 収入印紙 | AR94: 0 | AS94: 収入印紙 | AT94: =IF(AT86>0,VLOOKUP(AT86*10000,table!B3:D11,2,TRUE)/10000,0) -> 0 | AU94: 収入印紙 | AV94: =IF(AV86=0,0,VLOOKUP(AV86*10000,table!$B3:$D11,2,TRUE)/10000) -> 0 | AW94: 収入印紙 | AX94: =IF(AX86>0,VLOOKUP(AX86*10000,table!B3:D11,2,TRUE)/10000,0) -> 0 | AY94: 収入印紙 | AZ94: =IF(AZ86=0,0,VLOOKUP(AZ86*10000,table!$B3:$D11,2,TRUE)/10000) -> 0 | BA94: 収入印紙 | BB94: =IF(BB86>0,VLOOKUP(BB86*10000,table!B3:D11,2,TRUE)/10000,0) -> 0 | BC94: 収入印紙 | BD94: =IF(BD86=0,0,VLOOKUP(BD86*10000,table!$B3:$D11,2,TRUE)/10000) -> 0 | BE94: 収入印紙 | BF94: =IF(資金調達!$G6=5,2,1)*諸費用!$V37/10000 -> 0 | BG94: 収入印紙 | BH94: =IF(資金調達!$G6=5,2,1)*諸費用!$V37/10000 -> 0 | BI94: 収入印紙 | BJ94: =IF(資金調達!$G6=5,2,1)*諸費用!$V37/10000 -> 0 | BK94: 収入印紙 | BL94: =IF(資金調達!$G6=5,2,1)*諸費用!$V37/10000 -> 0 | BM94: 収入印紙 | BN94: 0 | BO94: 収入印紙 | BP94: =IF(資金調達!$G6=5,2,1)*諸費用!$V37/10000 -> 0 | BQ94: 収入印紙 | BR94: =IF(資金調達!$G6=5,2,1)*諸費用!$V37/10000 -> 0 | BS94: 収入印紙 | BT94: 0 | BU94: 収入印紙 | BV94: =IF(AND(BV25=0,BV36=0),諸費用!$V5/10000,0) -> 0 | BW94: 収入印紙 | BX94: =IF(AND(BX25=0,BX36=0),諸費用!$V6/10000,0) -> 0 | BY94: 収入印紙 | BZ94: =IF(AND(BZ25=0,BZ36=0),諸費用!$V6/10000,0) -> 0 | CA94: 収入印紙 | CB94: 0 | CC94: 収入印紙 | CD94: 0 | CE94: 収入印紙 | CF94: =IF(CF86=0,0,VLOOKUP(CF86*10000,table!$B2:$D11,2,TRUE)/10000) -> 0 | CG94: 収入印紙 | CH94: =IF(CH86=0,0,VLOOKUP(CH86*10000,table!$B2:$D11,2,TRUE)/10000) -> 0 | CI94: 収入印紙 | CJ94: =IF(CJ86=0,0,VLOOKUP(CJ86*10000,table!$B2:$D11,2,TRUE)/10000) -> 0 | CK94: 収入印紙 | CL94: =IF(資金調達!$G6=5,2,1)*諸費用!$V37/10000 -> 0 | CM94: 収入印紙 | CN94: 0 | CO94: 収入印紙 | CP94: =IF(CP86=0,0,VLOOKUP(CP86*10000,table!$B3:$D11,2,TRUE)/10000) -> 0 | CQ94: 収入印紙 | CR94: =IF(CR86>0,諸費用!$V108/10000,0) -> 0 | CS94: 収入印紙 | CT94: =IF(CT86>0,諸費用!$V109/10000,0) -> 0 | CU94: 収入印紙 | CV94: =IF(CV86=0,0,VLOOKUP(CV86*10000,table!$B3:$D11,2,TRUE)/10000) -> 0 | CW94: =IF(CW86=0,0,VLOOKUP(CW86*10000,table!$B3:$D11,2,TRUE)/10000+諸費用!$V61/10000) -> 0 | CX94: =IF(CX86=0,0,VLOOKUP(CX86*10000,table!$B3:$D11,2,TRUE)/10000+IF(CX86>10000,諸費用!$V77,諸費用!$V74)/10000) -> 0 | CY94: 収入印紙 | CZ94: =IF(CZ86=0,0,VLOOKUP(CZ86*10000,table!$B3:$D11,2,TRUE)/10000) -> 0 | DA94: =IF(DA86=0,0,VLOOKUP(DA86*10000,table!$B3:$D11,2,TRUE)/10000)+諸費用!$V66/10000 -> 0 | DB94: =IF(DB86=0,0,VLOOKUP(DB86*10000,table!$B3:$D11,2,TRUE)/10000+IF(DB86>10000,諸費用!$V77,諸費用!$V74)/10000) -> 0 | DC94: 収入印紙 | DD94: =IF(DD86=0,0,VLOOKUP(DD86*10000,table!$B3:$D11,2,TRUE)/10000) -> 0 | DE94: =IF(DE86=0,0,VLOOKUP(DE86*10000,table!$B3:$D11,2,TRUE)/10000+諸費用!$V70/10000) -> 0 | DF94: =IF(DF86=0,0,VLOOKUP(DF86*10000,table!$B3:$D11,2,TRUE)/10000+IF(DF86>10000,諸費用!$V77,諸費用!$V74)/10000) -> 0
C95: その他費用 | D95: =IF(資金調達!D4=1,0,SUM(予算計画!$F67:$F72)-SUM(予算計画!$F70:$F71)) -> 0 | E95: その他費用 | F95: =IF(資金調達!F4=1,0,SUM(予算計画!$F67:$F72)-SUM(予算計画!$F70:$F71)) -> 0 | G95: その他費用 | H95: =IF(資金調達!H4=1,0,SUM(予算計画!$F67:$F72)-SUM(予算計画!$F70:$F71)) -> 0 | I95: その他費用 | J95: =IF(資金調達!J4=1,0,SUM(予算計画!$F67:$F72)-SUM(予算計画!$F70:$F71)) -> 0 | K95: その他費用 | L95: =IF(資金調達!L4=1,0,SUM(予算計画!$F67:$F72)-SUM(予算計画!$F70:$F71)) -> 0 | M95: その他費用 | N95: =IF(資金調達!N4=1,0,SUM(予算計画!$F67:$F72)-SUM(予算計画!$F70:$F71)) -> 0 | O95: その他費用 | P95: =IF(資金調達!P4=1,0,SUM(予算計画!$F67:$F72)-SUM(予算計画!$F70:$F71)) -> 0 | Q95: その他費用 | R95: =IF(資金調達!R4=1,0,SUM(予算計画!$F67:$F72)-SUM(予算計画!$F70:$F71)) -> 0 | S95: その他費用 | T95: =IF(資金調達!T4=1,0,SUM(予算計画!$F67:$F72)-SUM(予算計画!$F70:$F71)) -> 0 | U95: その他費用 | V95: =IF(資金調達!V4=1,0,SUM(予算計画!$F67:$F72)-SUM(予算計画!$F70:$F71)) -> 0 | W95: その他費用 | X95: =IF(資金調達!X4=1,0,SUM(予算計画!$F67:$F72)-SUM(予算計画!$F70:$F71)) -> 0 | Y95: その他費用 | Z95: =IF(資金調達!Z4=1,0,SUM(予算計画!$F67:$F72)-SUM(予算計画!$F70:$F71)) -> 0 | AA95: その他費用 | AB95: =IF(資金調達!AB4=1,0,SUM(予算計画!$F67:$F72)-SUM(予算計画!$F70:$F71)) -> 0 | AC95: その他費用 | AD95: =IF(資金調達!AD4=1,0,SUM(予算計画!$F67:$F72)-SUM(予算計画!$F70:$F71)) -> 0 | AE95: その他費用 | AF95: =IF(資金調達!AF4=1,0,SUM(予算計画!$F67:$F72)-SUM(予算計画!$F70:$F71)) -> 0 | AG95: その他費用 | AH95: =IF(資金調達!AH4=1,0,SUM(予算計画!$F67:$F72)-SUM(予算計画!$F70:$F71)) -> 0 | AI95: その他費用 | AJ95: =IF(資金調達!AJ4=1,0,SUM(予算計画!$F67:$F72)-SUM(予算計画!$F70:$F71)) -> 0 | AK95: その他費用 | AL95: =IF(資金調達!AL4=1,0,SUM(予算計画!$F67:$F72)-SUM(予算計画!$F70:$F71)) -> 0 | AM95: その他費用 | AN95: =IF(資金調達!AN4=1,0,SUM(予算計画!$F67:$F72)-SUM(予算計画!$F70:$F71)) -> 0 | AO95: その他費用 | AP95: =IF(資金調達!AP4=1,0,SUM(予算計画!$F67:$F72)-SUM(予算計画!$F70:$F71)) -> 0 | AQ95: その他費用 | AR95: =IF(資金調達!AR4=1,0,SUM(予算計画!$F67:$F72)-SUM(予算計画!$F70:$F71)) -> 0 | AS95: その他費用 | AT95: =IF(資金調達!AT4=1,0,SUM(予算計画!$F67:$F72)-SUM(予算計画!$F70:$F71)) -> 0 | AU95: その他費用 | AV95: =IF(資金調達!AV4=1,0,SUM(予算計画!$F67:$F72)-SUM(予算計画!$F70:$F71)) -> 0 | AW95: その他費用 | AX95: =IF(資金調達!AX4=1,0,SUM(予算計画!$F67:$F72)-SUM(予算計画!$F70:$F71)) -> 0 | AY95: その他費用 | AZ95: =IF(資金調達!AZ4=1,0,SUM(予算計画!$F67:$F72)-SUM(予算計画!$F70:$F71)) -> 0 | BA95: その他費用 | BB95: =IF(資金調達!BB4=1,0,SUM(予算計画!$F67:$F72)-SUM(予算計画!$F70:$F71)) -> 0 | BC95: その他費用 | BD95: =IF(資金調達!BD4=1,0,SUM(予算計画!$F67:$F72)-SUM(予算計画!$F70:$F71)) -> 0 | BE95: その他費用 | BF95: =IF(資金調達!BF4=1,0,SUM(予算計画!$F67:$F72)-SUM(予算計画!$F70:$F71)) -> 0 | BG95: その他費用 | BH95: =IF(資金調達!BH4=1,0,SUM(予算計画!$F67:$F72)-SUM(予算計画!$F70:$F71)) -> 0 | BI95: その他費用 | BJ95: =IF(資金調達!BJ4=1,0,SUM(予算計画!$F67:$F72)-SUM(予算計画!$F70:$F71)) -> 0 | BK95: その他費用 | BL95: =IF(資金調達!BL4=1,0,SUM(予算計画!$F67:$F72)-SUM(予算計画!$F70:$F71)) -> 0 | BM95: その他費用 | BN95: =IF(資金調達!BN4=1,0,SUM(予算計画!$F67:$F72)-SUM(予算計画!$F70:$F71)) -> 0 | BO95: その他費用 | BP95: =IF(資金調達!BP4=1,0,SUM(予算計画!$F67:$F72)-SUM(予算計画!$F70:$F71)) -> 0 | BQ95: その他費用 | BR95: =IF(資金調達!BR4=1,0,SUM(予算計画!$F67:$F72)-SUM(予算計画!$F70:$F71)) -> 0 | BS95: その他費用 | BT95: =IF(資金調達!BT4=1,0,SUM(予算計画!$F67:$F72)-SUM(予算計画!$F70:$F71)) -> 0 | BU95: その他費用 | BV95: =IF(資金調達!BV4=1,0,SUM(予算計画!$F67:$F72)-SUM(予算計画!$F70:$F71)) -> 0 | BW95: その他費用 | BX95: =IF(資金調達!BX4=1,0,SUM(予算計画!$F67:$F72)-SUM(予算計画!$F70:$F71)) -> 0 | BY95: その他費用 | BZ95: =IF(資金調達!BZ4=1,0,SUM(予算計画!$F67:$F72)-SUM(予算計画!$F70:$F71)) -> 0 | CA95: その他費用 | CB95: =IF(資金調達!CB4=1,0,SUM(予算計画!$F67:$F72)-SUM(予算計画!$F70:$F71)) -> 0 | CC95: その他費用 | CD95: =IF(資金調達!CD4=1,0,SUM(予算計画!$F67:$F72)-SUM(予算計画!$F70:$F71)) -> 0 | CE95: その他費用 | CF95: =IF(資金調達!CF4=1,0,SUM(予算計画!$F67:$F72)-SUM(予算計画!$F70:$F71)) -> 0 | CG95: その他費用 | CH95: =IF(資金調達!CH4=1,0,SUM(予算計画!$F67:$F72)-SUM(予算計画!$F70:$F71)) -> 0 | CI95: その他費用 | CJ95: =IF(資金調達!CJ4=1,0,SUM(予算計画!$F67:$F72)-SUM(予算計画!$F70:$F71)) -> 0 | CK95: その他費用 | CL95: =IF(資金調達!CL4=1,0,SUM(予算計画!$F67:$F72)-SUM(予算計画!$F70:$F71)) -> 0 | CM95: その他費用 | CN95: =IF(資金調達!CN4=1,0,SUM(予算計画!$F67:$F72)-SUM(予算計画!$F70:$F71)) -> 0 | CO95: その他費用 | CP95: =IF(資金調達!CP4=1,0,SUM(予算計画!$F67:$F72)-SUM(予算計画!$F70:$F71)) -> 0 | CQ95: その他費用 | CR95: =IF(資金調達!CR4=1,0,SUM(予算計画!$F67:$F72)-SUM(予算計画!$F70:$F71)) -> 0 | CS95: その他費用 | CT95: =IF(資金調達!CT4=1,0,SUM(予算計画!$F67:$F72)-SUM(予算計画!$F70:$F71)) -> 0 | CU95: その他費用 | CV95: =IF(資金調達!CV4=1,0,SUM(予算計画!$F67:$F72)-SUM(予算計画!$F70:$F71)) -> 0 | CW95: =IF(資金調達!CW4=1,0,SUM(予算計画!$F67:$F72)-SUM(予算計画!$F70:$F71)) -> 0 | CX95: =IF(資金調達!CX4=1,0,SUM(予算計画!$F67:$F72)-SUM(予算計画!$F70:$F71)) -> 0 | CY95: その他費用 | CZ95: =IF(資金調達!CZ4=1,0,SUM(予算計画!$F67:$F72)-SUM(予算計画!$F70:$F71)) -> 0 | DA95: =IF(資金調達!DA4=1,0,SUM(予算計画!$F67:$F72)-SUM(予算計画!$F70:$F71)) -> 0 | DB95: =IF(資金調達!DB4=1,0,SUM(予算計画!$F67:$F72)-SUM(予算計画!$F70:$F71)) -> 0 | DC95: その他費用 | DD95: =IF(資金調達!DD4=1,0,SUM(予算計画!$F67:$F72)-SUM(予算計画!$F70:$F71)) -> 0 | DE95: =IF(資金調達!DE4=1,0,SUM(予算計画!$F67:$F72)-SUM(予算計画!$F70:$F71)) -> 0 | DF95: =IF(資金調達!DF4=1,0,SUM(予算計画!$F67:$F72)-SUM(予算計画!$F70:$F71)) -> 0

Sheet table (hidden)
A1: 収入印紙 | AD1: 5年ルール・125％ルール適用なし
B2: 契約額（円） | C2: 税額 | D2: 軽減 | F2: フラット35 | H2: 0.5 | I2: 0.5 | K2: ミックスあり | L2: 0 | M2: 現状 | O2: 0 | Q2: なし | U2: =SmartRanking!F5 -> 0.01 | V2: 1 | W2: 1 新築 | X2: 1 マンション | Y2: 1 自己居住用 | Z2: 1 居宅 | AA2: 単独債務 | AD2: ソニー銀行 | AF2: MIXなし | AJ2: 10 | AK2: 11 | AL2: 12 | AM2: 13 | AN2: 14 | AO2: 15 | AP2: 16 | AQ2: 17 | AR2: 18 | AS2: 19 | AT2: 20 | AU2: 21 | AV2: 22 | AW2: 23 | AX2: 24 | AY2: 25 | AZ2: 26 | BA2: 27 | BB2: 28 | BC2: 29 | BD2: 30 | BE2: 31 | BF2: 32 | BG2: 33 | BH2: 34 | BI2: 35 | BJ2: 36 | BK2: 37 | BL2: 38 | BM2: 39 | BN2: 40 | BO2: 41 | BP2: 42 | BQ2: 43 | BR2: 44 | BS2: 45 | BT2: 46 | BU2: 47 | BV2: 48 | BW2: 49 | BX2: 50
B3: 10001 | C3: 200 | D3: 200 | F3: メガバンク | H3: 5 | I3: 5 | K3: ミックスなし | L3: =SmartRanking!F5*100 -> 1 | M3: 資産運用 | O3: 1 | Q3: 一般団信 | S3: 含めない | T3: 元利均等 | U3: =SmartRanking!G5 -> 0.02 | V3: 2 | W3: 2 中古 | X3: 2 土地＋建物 | Y3: 2 親族居住用 | Z3: 2 賃貸併用 | AA3: 単独債務（収入合算） | AD3: SBI新生銀行 | AF3: PayPay銀行 | AI3: 保証料率 | AO3: 0.011982 | AP3: 0.0125526 | AQ3: 0.0131232 | AR3: 0.0136938 | AS3: 0.0142644 | AT3: 0.014835 | AU3: 0.0153198 | AV3: 0.0158046 | AW3: 0.0162894 | AX3: 0.0167742 | AY3: 0.017259 | AZ3: 0.0176342 | BA3: 0.0180094 | BB3: 0.0183846 | BC3: 0.0187598 | BD3: 0.019135 | BE3: 0.0194302 | BF3: 0.0197254 | BG3: 0.0200206 | BH3: 0.0203158 | BI3: 0.020611 | BJ3: 0 | BK3: 0 | BL3: 0 | BM3: 0 | BN3: 0 | BO3: 0 | BP3: 0 | BQ3: 0 | BR3: 0 | BS3: 0 | BT3: 0 | BU3: 0 | BV3: 0 | BW3: 0 | BX3: 0
B4: 100001 | C4: 400 | D4: =C4/2 -> 200 | H4: 10 | I4: 10 | L4: =SmartRanking!G5*100 -> 2 | M4: 家計見直し | O4: 2 | Q4: がん団信 | S4: 含める | T4: 元金均等 | U4: =SmartRanking!H5 -> 0.03 | V4: 3 | W4: 3 建替え | X4: 3 建物 | Y4: 3 セカンドハウス | Z4: 3 事業併用 | AA4: 連帯債務 | AD4: PayPay銀行 | AI4: 常陽銀行 | AO4: 0.005985 | AP4: =AO4+(AT4-AO4)/5 -> 0.0062696 | AQ4: =AO4+(AT4-AO4)/5*2 -> 0.0065542 | AR4: =AO4+(AT4-AO4)/5*3 -> 0.0068388 | AS4: =AO4+(AT4-AO4)/5*4 -> 0.0071234 | AT4: 0.007408 | AU4: =AT4+(AY4-AT4)/5 -> 0.0076496 | AV4: =AT4+(AY4-AT4)/5*2 -> 0.0078912 | AW4: =AT4+(AY4-AT4)/5*3 -> 0.0081328 | AX4: =AT4+(AY4-AT4)/5*4 -> 0.0083744 | AY4: 0.008616 | AZ4: =AY4+(BD4-AY4)/5 -> 0.0088042 | BA4: =AY4+(BD4-AY4)/5*2 -> 0.0089924 | BB4: =AY4+(BD4-AY4)/5*3 -> 0.0091806 | BC4: =AY4+(BD4-AY4)/5*4 -> 0.0093688 | BD4: 0.009557 | BE4: =BD4+(BI4-BD4)/5 -> 0.0097036 | BF4: =BD4+(BI4-BD4)/5*2 -> 0.0098502 | BG4: =BD4+(BI4-BD4)/5*3 -> 0.0099968 | BH4: =BD4+(BI4-BD4)/5*4 -> 0.0101434 | BI4: 0.01029 | BJ4: =BI4+(BN4-BI4)/5 -> 0.0104038 | BK4: =BI4+(BN4-BI4)/5*2 -> 0.0105176 | BL4: =BI4+(BN4-BI4)/5*3 -> 0.0106314 | BM4: =BI4+(BN4-BI4)/5*4 -> 0.0107452 | BN4: 0.010859 | BO4: =BN4+(BS4-BN4)/5 -> 0.010945 | BP4: =BN4+(BS4-BN4)/5*2 -> 0.011031 | BQ4: =BN4+(BS4-BN4)/5*3 -> 0.011117 | BR4: =BN4+(BS4-BN4)/5*4 -> 0.011203 | BS4: 0.011289 | BT4: =BS4+(BX4-BS4)/5 -> 0.0113534 | BU4: =BS4+(BX4-BS4)/5*2 -> 0.0114178 | BV4: =BS4+(BX4-BS4)/5*3 -> 0.0114822 | BW4: =BS4+(BX4-BS4)/5*4 -> 0.0115466 | BX4: 0.011611
B5: 500001 | C5: 1000 | D5: 500 | F5: マンション | H5: 20 | L5: =SmartRanking!H5*100 -> 3 | M5: 見直し＋資産運用 | O5: 3 | Q5: 疾病保障付団信 | V5: 4 | W5: 4 住替え | X5: 4 マンション＋リフォーム | AA5: 親子リレー | AD5: アプラス | AI5: 北陸銀行 | AO5: 0.013138 | AP5: 0.013897 | AQ5: 0.014641 | AR5: 0.015368 | AS5: 0.016078 | AT5: 0.016773 | AU5: 0.017449 | AV5: 0.018105 | AW5: 0.018754 | AX5: 0.019379 | AY5: 0.019995 | AZ5: 0.020581 | BA5: 0.021165 | BB5: 0.021728 | BC5: 0.022271 | BD5: 0.022799 | BE5: 0.023322 | BF5: 0.023816 | BG5: 0.024298 | BH5: 0.024774 | BI5: 0.025221 | BJ5: 0.025664 | BK5: 0.026086 | BL5: 0.0265 | BM5: 0.026903 | BN5: 0.027285
B6: 1000001 | C6: 2000 | D6: 1000 | F6: 戸建て | H6: 35 | O6: 4 | Q6: 夫婦連生 | T6: 手数料定率 | V6: 5 | X6: 5 土地＋建物＋リフォーム | AA6: ペアローン | AH6: 団体会員 | AI6: 中央ろうきん | AO6: =0.3809%+(AT6-0.3809%)/10*5 -> 0.00642 | AP6: =0.3809%+(AT6-0.3809%)/10*6 -> 0.0069422 | AQ6: =0.3809%+(AT6-0.3809%)/10*7 -> 0.0074644 | AR6: =0.3809%+(AT6-0.3809%)/10*8 -> 0.0079866 | AS6: =0.3809%+(AT6-0.3809%)/10*9 -> 0.0085088 | AT6: 0.009031 | AU6: =AT6+(BD6-AT6)/10 -> 0.0094232 | AV6: =AT6+(BD6-AT6)/10*2 -> 0.0098154 | AW6: =AT6+(BD6-AT6)/10*3 -> 0.0102076 | AX6: =AT6+(BD6-AT6)/10*4 -> 0.0105998 | AY6: =AT6+(BD6-AT6)/10*5 -> 0.010992 | AZ6: =AT6+(BD6-AT6)/10*6 -> 0.0113842 | BA6: =AT6+(BD6-AT6)/10*7 -> 0.0117764 | BB6: =AT6+(BD6-AT6)/10*8 -> 0.0121686 | BC6: =AT6+(BD6-AT6)/10*9 -> 0.0125608 | BD6: 0.012953 | BE6: =BD6+(BI6-BD6)/5 -> 0.0129851 | BF6: =BD6+(BN6-BD6)/10*2 -> 0.0130172 | BG6: =BD6+(BN6-BD6)/10*3 -> 0.0130493 | BH6: =BD6+(BN6-BD6)/10*4 -> 0.0130814 | BI6: =BD6+(BN6-BD6)/10*5 -> 0.0131135 | BJ6: =BD6+(BN6-BD6)/10*6 -> 0.0131456 | BK6: =BD6+(BN6-BD6)/10*7 -> 0.0131777 | BL6: =BD6+(BN6-BD6)/10*8 -> 0.0132098 | BM6: =BD6+(BN6-BD6)/10*9 -> 0.0132419 | BN6: 0.013274
B7: 5000001 | C7: 10000 | D7: 5000 | H7: 35 | K7: 弊社報酬 | L7: 0 | O7: 5 | Q7: ワイド団信 | T7: 手数料定額 | V7: 6 | AH7: 生協会員 | AI7: 中央ろうきん | AO7: =0.4761%+(AT7-0.4761%)/10*5 -> 0.007799 | AP7: =0.3809%+(AT7-0.3809%)/10*6 -> 0.0080258 | AQ7: =0.3809%+(AT7-0.3809%)/10*7 -> 0.0087286 | AR7: =0.3809%+(AT7-0.3809%)/10*8 -> 0.0094314 | AS7: =0.3809%+(AT7-0.3809%)/10*9 -> 0.0101342 | AT7: 0.010837 | AU7: =AT7+(BD7-AT7)/10 -> 0.0113077 | AV7: =AT7+(BD7-AT7)/10*2 -> 0.0117784 | AW7: =AT7+(BD7-AT7)/10*3 -> 0.0122491 | AX7: =AT7+(BD7-AT7)/10*4 -> 0.0127198 | AY7: =AT7+(BD7-AT7)/10*5 -> 0.0131905 | AZ7: =AT7+(BD7-AT7)/10*6 -> 0.0136612 | BA7: =AT7+(BD7-AT7)/10*7 -> 0.0141319 | BB7: =AT7+(BD7-AT7)/10*8 -> 0.0146026 | BC7: =AT7+(BD7-AT7)/10*9 -> 0.0150733 | BD7: 0.015544 | BE7: =BD7+(BI7-BD7)/5 -> 0.0156489 | BF7: =BD7+(BN7-BD7)/10*2 -> 0.0157538 | BG7: =BD7+(BN7-BD7)/10*3 -> 0.0158587 | BH7: =BD7+(BN7-BD7)/10*4 -> 0.0159636 | BI7: =BD7+(BN7-BD7)/10*5 -> 0.0160685 | BJ7: =BD7+(BN7-BD7)/10*6 -> 0.0161734 | BK7: =BD7+(BN7-BD7)/10*7 -> 0.0162783 | BL7: =BD7+(BN7-BD7)/10*8 -> 0.0163832 | BM7: =BD7+(BN7-BD7)/10*9 -> 0.0164881 | BN7: 0.016593
B8: 10000001 | C8: 20000 | D8: 10000 | H8: 35 | T8: 手数料無料 | V8: 7 | AB8: 1 | AC8: 債務者① | AH8: それ以外 | AI8: 中央ろうきん | AO8: =0.5714%+(AT8-0.5714%)/10*5 -> 0.0064695 | AP8: =0.3809%+(AT8-0.3809%)/10*6 -> 0.0058586 | AQ8: =0.3809%+(AT8-0.3809%)/10*7 -> 0.0062002 | AR8: =0.3809%+(AT8-0.3809%)/10*8 -> 0.0065418 | AS8: =0.3809%+(AT8-0.3809%)/10*9 -> 0.0068834 | AT8: 0.007225 | AU8: =AT8+(BD8-AT8)/10 -> 0.0075388 | AV8: =AT8+(BD8-AT8)/10*2 -> 0.0078526 | AW8: =AT8+(BD8-AT8)/10*3 -> 0.0081664 | AX8: =AT8+(BD8-AT8)/10*4 -> 0.0084802 | AY8: =AT8+(BD8-AT8)/10*5 -> 0.008794 | AZ8: =AT8+(BD8-AT8)/10*6 -> 0.0091078 | BA8: =AT8+(BD8-AT8)/10*7 -> 0.0094216 | BB8: =AT8+(BD8-AT8)/10*8 -> 0.0097354 | BC8: =AT8+(BD8-AT8)/10*9 -> 0.0100492 | BD8: 0.010363 | BE8: =BD8+(BI8-BD8)/5 -> 0.0113178 | BF8: =BD8+(BN8-BD8)/10*2 -> 0.0122726 | BG8: =BD8+(BN8-BD8)/10*3 -> 0.0132274 | BH8: =BD8+(BN8-BD8)/10*4 -> 0.0141822 | BI8: =BD8+(BN8-BD8)/10*5 -> 0.015137 | BJ8: =BD8+(BN8-BD8)/10*6 -> 0.0160918 | BK8: =BD8+(BN8-BD8)/10*7 -> 0.0170466 | BL8: =BD8+(BN8-BD8)/10*8 -> 0.0180014 | BM8: =BD8+(BN8-BD8)/10*9 -> 0.0189562 | BN8: 0.019911
B9: 50000001 | C9: 60000 | D9: 30000 | F9: 期間短縮型 | H9: 35 | M9: 配偶者 | O9: 戸建ては、30年間で930万円（日経新聞調べ） | T9: 保証料前払い | V9: 8 | AB9: 2 | AC9: 債務者② | AI9: 横浜銀行 | AO9: 0.011982 | AP9: =AO9+(AT9-AO9)/5 -> 0.0125524 | AQ9: =AO9+(AT9-AO9)/5*2 -> 0.0131228 | AR9: =AO9+(AT9-AO9)/5*3 -> 0.0136932 | AS9: =AO9+(AT9-AO9)/5*4 -> 0.0142636 | AT9: 0.014834 | AU9: =AT9+(AY9-AT9)/5 -> 0.015318 | AV9: =AT9+(AY9-AT9)/5*2 -> 0.015802 | AW9: =AT9+(AY9-AT9)/5*3 -> 0.016286 | AX9: =AT9+(AY9-AT9)/5*4 -> 0.01677 | AY9: 0.017254 | AZ9: =AY9+(BD9-AY9)/5 -> 0.0176306 | BA9: =AY9+(BD9-AY9)/5*2 -> 0.0180072 | BB9: =AY9+(BD9-AY9)/5*3 -> 0.0183838 | BC9: =AY9+(BD9-AY9)/5*4 -> 0.0187604 | BD9: 0.019137 | BE9: =BD9+(BI9-BD9)/5 -> 0.0194458 | BF9: =BD9+(BI9-BD9)/5*2 -> 0.0197546 | BG9: =BD9+(BI9-BD9)/5*3 -> 0.0200634 | BH9: =BD9+(BI9-BD9)/5*4 -> 0.0203722 | BI9: 0.020681
B10: 100000001 | C10: 100000 | D10: 50000 | F10: 返済額軽減型 | K10: 月払い | M10: 親 | O10: マンションは329万円（住宅リフォーム推進協議会調べ） | T10: 保証料後払い | V10: 9 | AI10: 静岡銀行 | AO10: =AO9 -> 0.011982 | AP10: =AP9 -> 0.0125524 | AQ10: 0.0131228 | AR10: 0.0136932 | AS10: 0.0142636 | AT10: 0.014834 | AU10: 0.015318 | AV10: 0.015802 | AW10: 0.016286 | AX10: 0.01677 | AY10: 0.017254 | AZ10: 0.0176306 | BA10: 0.0180072 | BB10: 0.0183838 | BC10: 0.0187604 | BD10: 0.019137 | BE10: 0.0194458 | BF10: 0.0197546 | BG10: 0.0200634 | BH10: 0.0203722 | BI10: 0.020681
B11: 500000001 | C11: 200000 | D11: 100000 | M11: 子 | V11: 10 | AI11: 群馬銀行 | AJ11: 0.004272 | AK11: =AJ11+(AT11-AJ11)/10 -> 0.0045869 | AL11: =AJ11+(AT11-AJ11)/10*2 -> 0.0049018 | AM11: =AJ11+(AT11-AJ11)/10*3 -> 0.0052167 | AN11: =AJ11+(AT11-AJ11)/10*4 -> 0.0055316 | AO11: =AJ11+(AT11-AJ11)/10*5 -> 0.0058465 | AP11: =AJ11+(AT11-AJ11)/10*6 -> 0.0061614 | AQ11: =AJ11+(AT11-AJ11)/10*7 -> 0.0064763 | AR11: =AJ11+(AT11-AJ11)/10*8 -> 0.0067912 | AS11: =AJ11+(AT11-AJ11)/10*9 -> 0.0071061 | AT11: 0.007421 | AU11: =AT11+(AY11-AT11)/5 -> 0.0076626 | AV11: =AT11+(AY11-AT11)/5*2 -> 0.0079042 | AW11: =AT11+(AY11-AT11)/5*3 -> 0.0081458 | AX11: =AT11+(AY11-AT11)/5*4 -> 0.0083874 | AY11: 0.008629 | AZ11: =AY11+(BD11-AY11)/5 -> 0.0088166 | BA11: =AY11+(BD11-AY11)/5*2 -> 0.0090042 | BB11: =AY11+(BD11-AY11)/5*3 -> 0.0091918 | BC11: =AY11+(BD11-AY11)/5*4 -> 0.0093794 | BD11: 0.009567 | BE11: =BD11+(BI11-BD11)/5 -> 0.0097154 | BF11: =BD11+(BI11-BD11)/5*2 -> 0.0098638 | BG11: =BD11+(BI11-BD11)/5*3 -> 0.0100122 | BH11: =BD11+(BI11-BD11)/5*4 -> 0.0101606 | BI11: 0.010309 | BJ11: =BI11+(BN11-BI11)/5 -> 0.0104228 | BK11: =BI11+(BN11-BI11)/5*2 -> 0.0105366 | BL11: =BI11+(BN11-BI11)/5*3 -> 0.0106504 | BM11: =BI11+(BN11-BI11)/5*4 -> 0.0107642 | BN11: 0.010878
F12: 物価上昇対策なし | K12: 月払い | M12: 兄弟 | O12: 単独 | T12: 当初期間 | V12: 11
F13: 物価上昇対策あり | K13: ボーナス払い | M13: 孫 | O13: MIX | T13: 全期間 | AR13: 金融機関名 | BK13: 商品 | BX13: 返済タイプ | CA13: 手数料タイプ | CF13: 優遇タイプ
